Workbook

Sheet notes (hidden)
A1: FY19 Chapter 70
A3: Tabs | B3: What happens on this sheet | C3: Data source (if any) | D3: Notes
A4: Parameters | B4: Allows the user to adjust all of the policy levers in Chapter 70, except for changes to foundation. Foundation budget scenarios can be changed, but they must 1st be run separately and dropped into localcont (all the way to the right). Up to 11 alternatives can be included. | D4: set parameters to 0, and changed dates
A5: Index | B5: Controls the district being viewed for all reports except regional dist members | C5: Dropdown box reads LEAs
A6: Rates | B6: CY and PY foundation budget rates Used to calculate foundation budget report | C6: Copied in from found file | D6: final rates based on Dec and benefits rate adjustment
A7: Foundation Budget | B7: 1 district report showing build-up of foundation budget | C7: Rates, dist435 | D7: labels
A8: Municipal Contribution | B8: 1 city/town report showing build-up of required local contribution (municipal level) | C8: townwide contributions | D8: labels
A9: Regional Allocation | B9: 1 city/town report showing allocation of total municipal required local contribution based on proportion of foundation budget at each district to which it belongs | C9: localcont | D9: labels
A10: Summary | B10: 1 district report summarizing C70 calculation and comparison to PY | C10: aid436, disthist | D10: labels
A11: Regional Dist Members | B11: 1 regional district report summarizing enrollment and local contribution for each member town Changed in FY18 to vlookup on localcont | C11: localcont, leas | D11: labels
A12: LocalCont | B12: Results from distfrac get copied into the far right (up to 11 versions of foundation budget can be entered). Toggle is on parameters sheet. Data is organized in 5 row format for each city/town (municipality and its districts, blanks are 998 and total is 999). Used to calculate each municipal-district combination's RLC. | C12: found file, distfrac (allocate sheet) | D12: Copied in FY17 foundation budget, %s, RLCs and enro.
A13: Regionals | B13: Slice of data from localcont (just regionals), organized such that it can be read by regional dist members report. | C13: localcont updated 1/3/2017 at 85% eff red | D13: **is there any way of getting rid of this tab, and having that regional dist members report look up the data from localcont? | E13: Deleted this. Changed formulas in Regional Dist Members to rely on localcont.
A14: Comparison to Fyxx | B14: 2 year comparison for operating districts | C14: aid436, disthist, localcont
A15: Townwide Contributions | B15: Calculates municipal required local contributions | C15: DOR (EQV, Income, MRGFs), PY file (RLCs), parameters | D15: Copied in FY17 RLCs into PY RLC column
A16: Aid436 | B16: Calculates district Ch 70 aid | C16: disthist, localcont, frac, parameters Starting w/ LEA 406, in col J (target aid %), formula changes to pull from frac tab. | D16: Copied in FY17 foundation budget, aid, and enrollment. Took out hold harmless column from FY17 file.
A17: Frac | B17: Calculates target aid percentage for regional districts | D17: updated
A18: DistHist | B18: ***Don't forget to copy in target aid %s from PY Historical C70 data used in summary report, and other places | D18: Copied in FY17 FB, RLC and Aid Copied in target aid %s from FY17***
A19: Dist435 | B19: Data source for foundation budget report, shows detailed enrollment and budget columns | C19: SWM foundation budget and enrollment
A21: Data | B21: Source | C21: Updated? | D21: Notes
A22: Inflation | B22: BEA website | C22: Q3 Dec | D22: 2.64% Q3
A23: Wage Adjustment Factor Inputs | B23: EOLWD | C23: FY19
A24: EQV | B24: DOR | C24: 2016 EQV | D24: Copied in from DOR file 12/12/16
A25: Income | B25: DOR | C25: 2014 Income | D25: 1/5/18 from DOR
A26: Enrollment | B26: ESE | C26: FY19 except for Postgrad | D26: found19prelim_ecodisv1_2018-1-2.xls
A27: Postgrad Enrollment | B27: ESE-CVTE office | C27: FY18 | D27: FY18
A28: MRGFs | B28: DOR/ANF | C28: FY18 1/6/16 | D28: Rcvd from DOR 1/3/18
A30: Manual Adjustments
A31: Lanesborough and Williamstown are part of Mt Greylock PK-12 - moved their 18 aid into Mt Greylock
A33: 9/7/2017, MK - removed "transitional relief" amounts from FY18 out of base aid for FY19 (in DistHist tab) | B33: Transitional relief, if any, shall be added to the chapter 70 distribution of this section but shall not be added to base aid for the calculation of chapter 70 aid for fiscal year 2019.
B34: http://www.mass.gov/bb/gaa/fy2018/os_18/h3.htm
A35: District list
A36: LEA | B36: District | C36: Eco Dis Transitional Relief - Needs to be removed from base aid
A37: 49 | B37: Cambridge | C37: 107112
A38: 57 | B38: Chelsea | C38: 1214292
A39: 64 | B39: Clinton | C39: 62011
A40: 93 | B40: Everett | C40: 929397
A41: 118 | B41: Halifax | C41: 4770
A42: 149 | B42: Lawrence | C42: 269999
A43: 163 | B43: Lynn | C43: 3586376
A44: 170 | B44: Marlborough | C44: 283229
A45: 248 | B45: Revere | C45: 4085080
A46: 284 | B46: Stoneham | C46: 21592
A47: 292 | B47: Swansea | C47: 327537
A48: 300 | B48: Truro | C48: 9182
A49: 308 | B49: Waltham | C49: 595234
A50: 321 | B50: Westborough | C50: 38681
A51: 728 | B51: New Salem Wendell | C51: 13670
A52: 999 | B52: State Total | C52: 11548162
A54: 6/22/2018. In conjunction with the shift from an English learner (EL) base rate to increments, EL students are assigned to their grade level. For the following districts, total foundation enrollment differs from the FY19 House foundation enrollment due to rounding differences.
A55: 20 | B55: Barnstable
A56: 30 | B56: Beverly
A57: 40 | B57: Braintree
A58: 46 | B58: Brookline
A59: 51 | B59: Carlisle
A60: 67 | B60: Concord
A61: 125 | B61: Harvard
A62: 128 | B62: Haverhill
A63: 139 | B63: Hopkinton
A64: 144 | B64: Ipswich
A65: 149 | B65: Lawrence
A66: 176 | B66: Medford
A67: 181 | B67: Methuen
A68: 186 | B68: Millbury
A69: 207 | B69: Newton
A70: 218 | B70: Norton
A71: 221 | B71: Oak Bluffs
A72: 231 | B72: Pembroke
A73: 239 | B73: Plymouth
A74: 248 | B74: Revere
A75: 258 | B75: Salem
A76: 261 | B76: Sandwich
A77: 296 | B77: Tisbury
A78: 304 | B78: Uxbridge
A79: 305 | B79: Wakefield
A80: 315 | B80: Wayland
A81: 321 | B81: Westborough
A82: 325 | B82: Westfield
A83: 326 | B83: Westford
A84: 335 | B84: Westwood
A85: 336 | B85: Weymouth
A86: 347 | B86: Woburn
A87: 673 | B87: Groton Dunstable

Sheet parameters (hidden)
A1: Cyr | B1: FY19
A2: Pyr | B2: FY18
A3: As of | B3: 2018-08-01
A5: Parameters | D5: Base | K5: Analysis of Aggregate Wealth Model Implementation
B6: Which version of foundation budget? | C6: 1 | D6: 1 | G6: FY18 C70 (GAA) | H6: 4746953714
B7: Effort reduction | C7: 1 | D7: 0 | K7: Progress Towards Target Local Share
B8: Pct downpayment on target aid share | C8: 0 | D8: 0 | G8: FY18 foundation aid increase | H8: ='Aid436'!I448 -> 147686900
D9: 0 | G9: FY18 downpayment increase | H9: 0 | L9: FY07 | M9: FY08 | N9: FY09 | O9: FY10 | P9: FY11 | Q9: FY12 | R9: FY13 | S9: FY14 | T9: FY15 | U9: FY16 | V9: FY17 | W9: FY18 | X9: FY19
G10: Minimum per pupil aid increase | H10: ='Aid436'!AF448 -> 12627464.11 | K10: excess effort before effort reduction | L10: 621.084157 | M10: 494.058912 | N10: 372.382091 | O10: 228.110232 | P10: 366 | Q10: 293.3 | R10: 229.8 | S10: 234.5 | T10: 307.903014 | U10: 235.358789 | V10: 299.86437 | W10: 151.670894 | X10: ='Townwide Contributions'!T361/1000000 -> 68.664221
G11: Non-op reduction | H11: ='Aid436'!AH448 -> 93299.12922 | K11: effort reduction | L11: 124.2168314 | M11: 123.514728 | N11: 122.88609 | O11: 34.216535 | P11: 109.8 | Q11: 58.7 | R11: 34.5 | S11: 35.2 | T11: 153.951507 | U11: 117.6793945 | V11: 254.8847145 | W11: 128.9202599 | X11: ='Townwide Contributions'!U361/1000000 -> 68.664221
G12: FY19 Chapter 70 | H12: ='Aid436'!AJ448 -> 4906614766 | K12: net excess after effort reduction | L12: 496.8673256 | M12: 370.544184 | N12: 249.496001 | O12: 193.893697 | P12: 256.2 | Q12: =Q10-Q11 -> 234.6 | R12: =R10-R11 -> 195.3 | S12: 199.3 | T12: 152.0806983 | U12: 117.4829132 | V12: 44.97879348 | W12: 22.74921402 | X12: ='Townwide Contributions'!AA361/1000000 -> 0
G13: Devens | H13: =308558 -> 308558 | K13: shortfall below target before increment | L13: -321.452322 | M13: -352.174875 | N13: -359.193563 | O13: -427.2 | P13: -228 | Q13: -211 | R13: -200 | S13: -180.2 | T13: -162.972215 | U13: -132.627218 | V13: -96.928091 | W13: -103.17317 | X13: ='Townwide Contributions'!Y361/1000000 -> -117.254713
B14: Per pupil guaranteed increase | C14: 30 | D14: 0 | K14: additional increments toward target | L14: 0 | M14: -19.739149 | N14: -21.387588 | O14: -121.2 | P14: -10.6 | Q14: -10 | R14: -4.2 | S14: -3.9 | T14: -7.563093 | U14: -5.848739 | V14: -2.474215 | W14: -3.628178 | X14: ='Townwide Contributions'!S361/1000000*-1 -> -5.320349
B15: Which version of mrgf? | C15: 1 | D15: 1 | G15: Change in C70 Appropriation | H15: =H12+H13-H6 -> 159969609.9 | K15: net shortfall below target after increment | L15: -321.452322 | M15: -332.435726 | N15: -337.805975 | O15: -306 | P15: -217.4 | Q15: -200.9 | R15: -195.7 | S15: -176.3 | T15: -155.409122 | U15: -126.778479 | V15: -94.453876 | W15: -99.544992 | X15: ='Townwide Contributions'!Z361/1000000 -> -111.934364
B16: Below effort threshold 1 | C16: 2.5 | D16: 2.5 | G16: Percent Change | H16: =H15/H6 -> 0.03369942483 | K16: n of municipalities with effort too high | L16: 232 | M16: 218 | N16: 214 | O16: 193 | P16: 282 | Q16: 257 | R16: 249 | S16: 255 | T16: 279 | U16: 278 | V16: 303 | W16: 291 | X16: ='Townwide Contributions'!AA364 -> 0
B17: Below effort threshold 2 | C17: 7.5 | D17: 7.5
B18: Below effort contribution increment, 5-10% under | C18: 0.01 | D18: 0.01 | G18: N of Foundation Aid Districts | H18: ='Aid436'!X448 -> 133
B19: Below effort contribution increment, >10% under | C19: 0.02 | D19: 0.02 | G19: N of Districts with an Aid Increase | H19: ='Comparison to FY18'!O333 -> 320
B20: Maximum local contribution pct of foundation | C20: 0.825 | D20: 0.825 | G20: Total C70 Including Devens | H20: =H12+H13 -> 4906923324
B21: Statewide target for local contribution % of foundation | C21: 0.59 | D21: 0.59
B22: Cap contributions at fixed percentage of foundation | C22: 0.9 | D22: 0.9
B23: Percentage cut to base aid | C23: 0 | D23: 0
A24: Eqv/income percentages
B26: Target effort | C26: =C21*localcont!K1765 -> 6358777245
B27: Effort based upon following percentages | C27: ='Townwide Contributions'!J361 -> 6358777241
B28: Difference from target | C28: =IF(ABS(C27-C26)<10,0,C27-C26) -> 0
B29: Percentage of EQV | C29: 0.003676015467
B30: Percentage of INCOME | C30: =C29*1/C34 -> 0.01430572684
B32: Total EQV | C32: ='Townwide Contributions'!C361 -> 1106803717800
B33: Total Income | C33: ='Townwide Contributions'!E361 -> 284405513298
B34: State Average % of EQV | C34: =C33/C32 -> 0.2569611113
A37: See Progress Towards Targets
K42: Progress Towards Target Aid Share
L44: FY07 | M44: FY08 | N44: FY09 | O44: FY10 | P44: FY11 | Q44: FY12 | R44: FY13 | S44: FY14 | T44: FY15 | U44: FY16 | V44: FY17 | W44: FY18 | X44: FY19
K45: aid above target | L45: 394.9 | M45: 421 | N45: 440.4 | O45: 413.5991456 | P45: 489.2905867 | Q45: 360.5802896 | R45: 372.9139726 | S45: 385.3 | T45: 404.6539336 | U45: 419.0730779 | V45: 488.1362137 | W45: 497.4038449 | X45: ='Aid436'!AQ449/1000000 -> 487.8069694
K46: aid below target | L46: -176.3 | M46: -143 | N46: -105.5 | O46: -97.82363262 | P46: -75.73073977 | Q46: -110.4290612 | R46: -84.70629692 | S46: -66.9 | T46: -49.39921427 | U46: -44.48798888 | V46: -13.01302676 | W46: -7.202688836 | X46: ='Aid436'!AQ450/1000000 -> -0.01809683687
C50: =TEXT(effortred,"0%") -> 100%

Sheet localcont (hidden)
I1: c70fy18 | J1: c70fy18 | O1: c70fy18 | R1: c70fy18 | Z1: 2018-06-05 | AR1: 2018-05-09 | AX1: 2018-02-05 | BD1: 2018-02-05 | BJ1: 2018-02-05 | BP1: 2018-02-05 | BV1: 2018-02-05 | CM1: Lookup table for foundation budget scenarios | CN1: 1 | CO1: 2
CN2: 2 | CO2: 8
D3: 1 | E3: 2 | F3: 3 | G3: 4 | H3: 5 | I3: 6 | J3: 7 | K3: 8 | L3: 9 | M3: 10 | N3: 11 | O3: 12 | P3: 13 | Q3: 14 | R3: 15 | S3: 16 | T3: 17 | U3: 18 | V3: 19 | W3: 20 | X3: 21 | Y3: 1 | Z3: 2 | AA3: 3 | AB3: 4 | AC3: 5 | AD3: 6 | AE3: 7 | AF3: 8 | AG3: 9 | AH3: 10 | AI3: 11 | AJ3: 12 | AK3: 13 | AL3: 14 | AM3: 15 | AN3: 16 | AO3: 17 | AP3: 18 | AQ3: 19 | AR3: 20 | AS3: 21 | AT3: 22 | AU3: 23 | AV3: 24 | AW3: 25 | AX3: 26 | AY3: 27 | AZ3: 28 | BA3: 29 | BB3: 30 | BC3: 31 | BD3: 32 | BE3: 33 | BF3: 34 | BG3: 35 | BH3: 36 | BI3: 37 | BJ3: 38 | BK3: 39 | BL3: 40 | BM3: 41 | BN3: 42 | BO3: 43 | BP3: 44 | BQ3: 45 | BR3: 46 | BS3: 47 | BT3: 48 | BU3: 49 | BV3: 50 | BW3: 51 | BX3: 52 | BY3: 53 | BZ3: 54 | CA3: 55 | CB3: 56 | CC3: 57 | CD3: 58 | CE3: 59 | CF3: 60 | CG3: 61 | CH3: 62 | CI3: 63 | CJ3: 64 | CK3: 65 | CL3: 66 | CN3: 3 | CO3: 14
G4: lea1755 | K4: found1755 | N4: prelcont1755 | O4: pynetmin | R4: pyenro | W4: enro1755 | CN4: 4 | CO4: 20
Z5: 1 | AF5: 2 | AL5: 3 | AR5: 4 | AX5: 5 | BD5: 6 | BJ5: 7 | BP5: 8 | BV5: 9 | CB5: 10 | CH5: 11 | CN5: 5 | CO5: 26
T6: =parameters!C6 -> 1 | Z6: SWM Budget: H2, correctedenr, increases benefits rates to an approximate 6 of 7 yr phase in (~14.2% of total rec); min30pp; effort reduction at 100%, phase-in new LEP increment at 65% | CN6: 6 | CO6: 32
I7: =PYr -> FY18 | J7: =PYr -> FY18 | K7: =CYr -> FY19 | L7: =CYr -> FY19 | M7: =CYr -> FY19 | N7: =CYr -> FY19 | O7: =PYr -> FY18 | CN7: 7 | CO7: 38
I8: Foundation | J8: Share of Total | K8: Foundation | L8: Share of Total | M8: Townwide | N8: Net Minimum | O8: Net Minimum | P8: =PYr&" to "&CYr -> FY18 to FY19 | Q8: Percent | R8: =PYr -> FY18 | W8: final | X8: foundation | AC8: final | AD8: foundation | AI8: final | AJ8: foundation | AO8: final | AP8: foundation | AU8: final | AV8: foundation | BA8: final | BB8: foundation | BG8: final | BH8: foundation | BM8: final | BN8: foundation | BS8: final | BT8: foundation | BY8: final | BZ8: foundation | CE8: final | CF8: foundation | CK8: final | CL8: foundation | CN8: 8 | CO8: 44
A9: TownLEA | B9: Town | C9: LEA | D9: Order | E9: Town | F9: City or Town | G9: LEA | H9: School District | I9: Budget | J9: Foundation | K9: Budget | L9: Foundation | M9: Contribution | N9: Contribution | O9: Contribution | P9: Change | Q9: Change | R9: Enrollment | T9: Town | U9: LEA | V9: Order | W9: enrollment | X9: budget | Z9: Town | AA9: LEA | AB9: Order | AC9: enrollment | AD9: budget | AF9: Town | AG9: LEA | AH9: Order | AI9: enrollment | AJ9: budget | AL9: Town | AM9: LEA | AN9: Order | AO9: enrollment | AP9: budget | AR9: Town | AS9: LEA | AT9: Order | AU9: enrollment | AV9: budget | AX9: Town | AY9: LEA | AZ9: Order | BA9: enrollment | BB9: budget | BD9: Town | BE9: LEA | BF9: Order | BG9: enrollment | BH9: budget | BJ9: Town | BK9: LEA | BL9: Order | BM9: enrollment | BN9: budget | BP9: Town | BQ9: LEA | BR9: Order | BS9: enrollment | BT9: budget | BV9: Town | BW9: LEA | BX9: Order | BY9: enrollment | BZ9: budget | CB9: Town | CC9: LEA | CD9: Order | CE9: enrollment | CF9: budget | CH9: Town | CI9: LEA | CJ9: Order | CK9: enrollment | CL9: budget | CN9: 9 | CO9: 50
A10: =B10&C10 -> 00010001 | B10: 0001 | C10: 0001 | D10: 1 | E10: 1 | F10: Abington | G10: 1 | H10: Abington | I10: 19699144.43 | J10: 0.8937302433 | K10: =X10 -> 21515960.21 | L10: =IF(K14>0, K10/K14, 0) -> 0.917737123 | N10: =ROUND(M14*L10,0) -> 13701008 | O10: 12922903 | P10: =N10-O10 -> 778105 | Q10: =IF(O10>0,P10*100/O10,IF(P10>0,100,0)) -> 6.02113163 | R10: 1930 | S10: =ABS(T10-E10)+ABS(U10-G10) -> 0 | T10: =VLOOKUP($D10, foundoptions, VLOOKUP($T$6, foundoptcell, 2, FALSE), FALSE) -> 1 | U10: =VLOOKUP($D10, foundoptions, VLOOKUP($T$6, foundoptcell, 2, FALSE)+1, FALSE) -> 1 | V10: =VLOOKUP($D10, foundoptions, VLOOKUP($T$6, foundoptcell, 2, FALSE)+2, FALSE) -> 1 | W10: =VLOOKUP($D10, foundoptions, VLOOKUP($T$6, foundoptcell, 2, FALSE)+3, FALSE) -> 2024 | X10: =VLOOKUP($D10, foundoptions, VLOOKUP($T$6, foundoptcell, 2, FALSE)+4, FALSE) -> 21515960.21 | Y10: =D10 -> 1 | Z10: 1 | AA10: 1 | AB10: 1 | AC10: 2024 | AD10: 21515960.21 | CN10: 10 | CO10: 56 | CR10: =
A11: 00010873 | B11: 0001 | C11: 0873 | D11: 2 | E11: 1 | F11: Abington | G11: 873 | H11: South Shore | I11: 2342343.567 | J11: 0.1062697567 | K11: =X11 -> 1928618.495 | L11: =IF(K14>0, K11/K14, 0) -> 0.08226287702 | N11: =ROUND(M14*L11,0) -> 1228112 | O11: 1536609 | P11: =N11-O11 -> -308497 | Q11: -20.07648009 | R11: 144 | S11: 0 | T11: 1 | U11: 873 | V11: 2 | W11: 115 | X11: 1928618.495 | Y11: =D11 -> 2 | Z11: 1 | AA11: 873 | AB11: 2 | AC11: 115 | AD11: 1928618.495 | CN11: 11 | CO11: 62
A12: 00010998 | B12: 0001 | C12: 0998 | D12: 3 | E12: 1 | G12: 998 | I12: 0 | J12: 0 | K12: =X12 -> 0 | L12: =IF(K14>0, K12/K14, 0) -> 0 | N12: =ROUND(M14*L12,0) -> 0 | O12: 0 | P12: =N12-O12 -> 0 | Q12: 0 | R12: 0 | S12: 0 | T12: 1 | U12: 998 | V12: 3 | W12: 0 | X12: 0 | Y12: 3 | Z12: 1 | AA12: 998 | AB12: 3 | AC12: 0 | AD12: 0
A13: 00010998 | B13: 0001 | C13: 0998 | D13: 4 | E13: 1 | G13: 998 | I13: 0 | J13: 0 | K13: =X13 -> 0 | L13: =IF(K14>0, K13/K14, 0) -> 0 | N13: =ROUND(M14*L13,0) -> 0 | O13: 0 | P13: =N13-O13 -> 0 | Q13: 0 | R13: 0 | S13: 0 | T13: 1 | U13: 998 | V13: 4 | W13: 0 | X13: 0 | Y13: 4 | Z13: 1 | AA13: 998 | AB13: 4 | AC13: 0 | AD13: 0
A14: 00010999 | B14: 0001 | C14: 0999 | D14: 5 | E14: 1 | F14: Abington | G14: 999 | H14: Total | I14: 22041488 | J14: 1 | K14: =SUM(K10:K13) -> 23444578.71 | L14: =SUM(L10:L13) -> 1 | M14: =VLOOKUP(E14,town351,22) -> 14929120 | N14: =SUM(N10:N13) -> 14929120 | O14: 14459512 | P14: =SUM(P10:P13) -> 469608 | Q14: 3.247744461 | R14: 2074 | S14: 0 | T14: 1 | U14: 999 | V14: 5 | W14: 2139 | X14: 23444578.71 | Y14: 5 | Z14: 1 | AA14: 999 | AB14: 5 | AC14: 2139 | AD14: 23444578.71
A15: 00020002 | B15: 0002 | C15: 0002 | D15: 6 | E15: 2 | F15: Acton | G15: 2 | H15: Acton | I15: 0 | J15: 0 | K15: =X15 -> 0 | L15: =IF(K19>0, K15/K19, 0) -> 0 | N15: =ROUND(M19*L15,0) -> 0 | O15: 0 | P15: =N15-O15 -> 0 | Q15: 0 | R15: 0 | S15: 0 | T15: 2 | U15: 2 | V15: 6 | W15: 0 | X15: 0 | Y15: 6 | Z15: 2 | AA15: 2 | AB15: 6 | AC15: 0 | AD15: 0
A16: 00020600 | B16: 0002 | C16: 0600 | D16: 7 | E16: 2 | F16: Acton | G16: 600 | H16: Acton Boxborough | I16: 45276746.93 | J16: 0.9856167958 | K16: 46559239.31 | L16: =IF(K19>0, K16/K19, 0) -> 0.9866805097 | N16: =ROUND(M19*L16,0) -> 35990717 | O16: 35277492 | P16: =N16-O16 -> 713225 | Q16: 2.021756535 | R16: 4613.143114 | S16: 0 | T16: 2 | U16: 600 | V16: 7 | W16: 4587.53929 | X16: 46559239.31 | Y16: 7 | Z16: 2 | AA16: 600 | AB16: 7 | AC16: 4587.53929 | AD16: 46559239.31
A17: 00020830 | B17: 0002 | C17: 0830 | D17: 8 | E17: 2 | F17: Acton | G17: 830 | H17: Minuteman | I17: 660728.0839 | J17: 0.01438320421 | K17: 628516.8595 | L17: =IF(K19>0, K17/K19, 0) -> 0.01331949028 | N17: =ROUND(M19*L17,0) -> 485849 | O17: 514808 | P17: =N17-O17 -> -28959 | Q17: -5.62520396 | R17: 36.10434783 | S17: 0 | T17: 2 | U17: 830 | V17: 8 | W17: 35.1026393 | X17: 628516.8595 | Y17: 8 | Z17: 2 | AA17: 830 | AB17: 8 | AC17: 35.1026393 | AD17: 628516.8595
A18: 00020998 | B18: 0002 | C18: 0998 | D18: 9 | E18: 2 | G18: 998 | I18: 0 | J18: 0 | K18: 0 | L18: =IF(K19>0, K18/K19, 0) -> 0 | N18: =ROUND(M19*L18,0) -> 0 | O18: 0 | P18: =N18-O18 -> 0 | Q18: 0 | R18: 0 | S18: 0 | T18: 2 | U18: 998 | V18: 9 | W18: 0 | X18: 0 | Y18: 9 | Z18: 2 | AA18: 998 | AB18: 9 | AC18: 0 | AD18: 0
A19: 00020999 | B19: 0002 | C19: 0999 | D19: 10 | E19: 2 | F19: Acton | G19: 999 | H19: Total | I19: 45937475.01 | J19: 1 | K19: =SUM(K15:K18) -> 47187756.17 | L19: =SUM(L15:L18) -> 1 | M19: =VLOOKUP(E19,town351,22) -> 36476566 | N19: =SUM(N15:N18) -> 36476566 | O19: 35792300 | P19: =SUM(P15:P18) -> 684266 | Q19: =IF(O19>0,P19*100/O19,IF(P19>0,100,0)) -> 1.911768732 | R19: 4649.247462 | S19: 0 | T19: 2 | U19: 999 | V19: 10 | W19: 4622.641929 | X19: 47187756.17 | Y19: 10 | Z19: 2 | AA19: 999 | AB19: 10 | AC19: 4622.641929 | AD19: 47187756.17
A20: 00030003 | B20: 0003 | C20: 0003 | D20: 11 | E20: 3 | F20: Acushnet | G20: 3 | H20: Acushnet | I20: 11736546.35 | J20: 0.8342453692 | K20: =X20 -> 12395984.84 | L20: =IF(K24>0, K20/K24, 0) -> 0.8408793154 | N20: =ROUND(M24*L20,0) -> 7125126 | O20: 6867294 | P20: =N20-O20 -> 257832 | Q20: 3.754491944 | R20: 1210 | S20: 0 | T20: 3 | U20: 3 | V20: 11 | W20: 1227 | X20: 12395984.84 | Y20: 11 | Z20: 3 | AA20: 3 | AB20: 11 | AC20: 1227 | AD20: 12395984.84
A21: 00030855 | B21: 0003 | C21: 0855 | D21: 12 | E21: 3 | F21: Acushnet | G21: 855 | H21: Old Colony | I21: 2097655.165 | J21: 0.1491034122 | K21: 2136088.548 | L21: =IF(K24>0, K21/K24, 0) -> 0.1449011675 | N21: =ROUND(M24*L21,0) -> 1227809 | O21: 1227381 | P21: =N21-O21 -> 428 | Q21: 0.03487099768 | R21: 135 | S21: 0 | T21: 3 | U21: 855 | V21: 12 | W21: 133 | X21: 2136088.548 | Y21: 12 | Z21: 3 | AA21: 855 | AB21: 12 | AC21: 133 | AD21: 2136088.548
A22: 00030910 | B22: 0003 | C22: 0910 | D22: 13 | E22: 3 | F22: Acushnet | G22: 910 | H22: Bristol County | I22: 234256.9772 | J22: 0.01665121857 | K22: 209619.7569 | L22: =IF(K24>0, K22/K24, 0) -> 0.01421951704 | N22: =ROUND(M24*L22,0) -> 120488 | O22: 137069 | P22: =N22-O22 -> -16581 | Q22: -12.09682715 | R22: 15 | S22: 0 | T22: 3 | U22: 910 | V22: 13 | W22: 13 | X22: 209619.7569 | Y22: 13 | Z22: 3 | AA22: 910 | AB22: 13 | AC22: 13 | AD22: 209619.7569
A23: 00030998 | B23: 0003 | C23: 0998 | D23: 14 | E23: 3 | G23: 998 | I23: 0 | J23: 0 | K23: 0 | L23: =IF(K24>0, K23/K24, 0) -> 0 | N23: =ROUND(M24*L23,0) -> 0 | O23: 0 | P23: =N23-O23 -> 0 | Q23: 0 | R23: 0 | S23: 0 | T23: 3 | U23: 998 | V23: 14 | W23: 0 | X23: 0 | Y23: 14 | Z23: 3 | AA23: 998 | AB23: 14 | AC23: 0 | AD23: 0
A24: 00030999 | B24: 0003 | C24: 0999 | D24: 15 | E24: 3 | F24: Acushnet | G24: 999 | H24: Total | I24: 14068458.49 | J24: 1 | K24: =SUM(K20:K23) -> 14741693.14 | L24: =SUM(L20:L23) -> 1 | M24: =VLOOKUP(E24,town351,22) -> 8473423 | N24: =SUM(N20:N23) -> 8473423 | O24: 8231744 | P24: =SUM(P20:P23) -> 241679 | Q24: 2.935939213 | R24: 1360 | S24: 0 | T24: 3 | U24: 999 | V24: 15 | W24: 1373 | X24: 14741693.14 | Y24: 15 | Z24: 3 | AA24: 999 | AB24: 15 | AC24: 1373 | AD24: 14741693.14
A25: 00040004 | B25: 0004 | C25: 0004 | D25: 16 | E25: 4 | F25: Adams | G25: 4 | H25: Adams | I25: 0 | J25: 0 | K25: =X25 -> 0 | L25: =IF(K29>0, K25/K29, 0) -> 0 | N25: =ROUND(M29*L25,0) -> 0 | O25: 0 | P25: =N25-O25 -> 0 | Q25: 0 | R25: 0 | S25: 0 | T25: 4 | U25: 4 | V25: 16 | W25: 0 | X25: 0 | Y25: 16 | Z25: 4 | AA25: 4 | AB25: 16 | AC25: 0 | AD25: 0
A26: 00040603 | B26: 0004 | C26: 0603 | D26: 17 | E26: 4 | F26: Adams | G26: 603 | H26: Adams Cheshire | I26: 10863964.26 | J26: 0.8242812108 | K26: 11011705.79 | L26: =IF(K29>0, K26/K29, 0) -> 0.8352437046 | N26: =ROUND(M29*L26,0) -> 3713168 | O26: 3548018 | P26: =N26-O26 -> 165150 | Q26: 4.654711447 | R26: 993.6306818 | S26: 0 | T26: 4 | U26: 603 | V26: 17 | W26: 975.2043636 | X26: 11011705.79 | Y26: 17 | Z26: 4 | AA26: 603 | AB26: 17 | AC26: 975.2043636 | AD26: 11011705.79
A27: 00040851 | B27: 0004 | C27: 0851 | D27: 18 | E27: 4 | F27: Adams | G27: 851 | H27: Northern Berkshire | I27: 2315960.403 | J27: 0.1757187892 | K27: 2172117.959 | L27: =IF(K29>0, K27/K29, 0) -> 0.1647562954 | N27: =ROUND(M29*L27,0) -> 732442 | O27: 756360 | P27: =N27-O27 -> -23918 | Q27: -3.16225078 | R27: 144 | S27: 0 | T27: 4 | U27: 851 | V27: 18 | W27: 129 | X27: 2172117.959 | Y27: 18 | Z27: 4 | AA27: 851 | AB27: 18 | AC27: 129 | AD27: 2172117.959
A28: 00040998 | B28: 0004 | C28: 0998 | D28: 19 | E28: 4 | G28: 998 | I28: 0 | J28: 0 | K28: 0 | L28: =IF(K29>0, K28/K29, 0) -> 0 | N28: =ROUND(M29*L28,0) -> 0 | O28: 0 | P28: =N28-O28 -> 0 | Q28: 0 | R28: 0 | S28: 0 | T28: 4 | U28: 998 | V28: 19 | W28: 0 | X28: 0 | Y28: 19 | Z28: 4 | AA28: 998 | AB28: 19 | AC28: 0 | AD28: 0
A29: 00040999 | B29: 0004 | C29: 0999 | D29: 20 | E29: 4 | F29: Adams | G29: 999 | H29: Total | I29: 13179924.66 | J29: 1 | K29: =SUM(K25:K28) -> 13183823.75 | L29: =SUM(L25:L28) -> 1 | M29: =VLOOKUP(E29,town351,22) -> 4445610 | N29: =SUM(N25:N28) -> 4445610 | O29: 4304378 | P29: =SUM(P25:P28) -> 141232 | Q29: 3.281124474 | R29: 1137.630682 | S29: 0 | T29: 4 | U29: 999 | V29: 20 | W29: 1104.204364 | X29: 13183823.75 | Y29: 20 | Z29: 4 | AA29: 999 | AB29: 20 | AC29: 1104.204364 | AD29: 13183823.75
A30: 00050005 | B30: 0005 | C30: 0005 | D30: 21 | E30: 5 | F30: Agawam | G30: 5 | H30: Agawam | I30: 40549530.34 | J30: 1 | K30: =X30 -> 41326070.32 | L30: =IF(K34>0, K30/K34, 0) -> 1 | N30: =ROUND(M34*L30,0) -> 22474431 | O30: 22135293 | P30: =N30-O30 -> 339138 | Q30: 1.532114348 | R30: 3831 | S30: 0 | T30: 5 | U30: 5 | V30: 21 | W30: 3773 | X30: 41326070.32 | Y30: 21 | Z30: 5 | AA30: 5 | AB30: 21 | AC30: 3773 | AD30: 41326070.32
A31: 00050998 | B31: 0005 | C31: 0998 | D31: 22 | E31: 5 | G31: 998 | I31: 0 | J31: 0 | K31: 0 | L31: =IF(K34>0, K31/K34, 0) -> 0 | N31: =ROUND(M34*L31,0) -> 0 | O31: 0 | P31: =N31-O31 -> 0 | Q31: 0 | R31: 0 | S31: 0 | T31: 5 | U31: 998 | V31: 22 | W31: 0 | X31: 0 | Y31: 22 | Z31: 5 | AA31: 998 | AB31: 22 | AC31: 0 | AD31: 0
A32: 00050998 | B32: 0005 | C32: 0998 | D32: 23 | E32: 5 | G32: 998 | I32: 0 | J32: 0 | K32: 0 | L32: =IF(K34>0, K32/K34, 0) -> 0 | N32: =ROUND(M34*L32,0) -> 0 | O32: 0 | P32: =N32-O32 -> 0 | Q32: 0 | R32: 0 | S32: 0 | T32: 5 | U32: 998 | V32: 23 | W32: 0 | X32: 0 | Y32: 23 | Z32: 5 | AA32: 998 | AB32: 23 | AC32: 0 | AD32: 0
A33: 00050998 | B33: 0005 | C33: 0998 | D33: 24 | E33: 5 | G33: 998 | I33: 0 | J33: 0 | K33: 0 | L33: =IF(K34>0, K33/K34, 0) -> 0 | N33: =ROUND(M34*L33,0) -> 0 | O33: 0 | P33: =N33-O33 -> 0 | Q33: 0 | R33: 0 | S33: 0 | T33: 5 | U33: 998 | V33: 24 | W33: 0 | X33: 0 | Y33: 24 | Z33: 5 | AA33: 998 | AB33: 24 | AC33: 0 | AD33: 0
A34: 00050999 | B34: 0005 | C34: 0999 | D34: 25 | E34: 5 | F34: Agawam | G34: 999 | H34: Total | I34: 40549530.34 | J34: 1 | K34: =SUM(K30:K33) -> 41326070.32 | L34: =SUM(L30:L33) -> 1 | M34: =VLOOKUP(E34,town351,22) -> 22474431 | N34: =SUM(N30:N33) -> 22474431 | O34: 22135293 | P34: =SUM(P30:P33) -> 339138 | Q34: 1.532114348 | R34: 3831 | S34: 0 | T34: 5 | U34: 999 | V34: 25 | W34: 3773 | X34: 41326070.32 | Y34: 25 | Z34: 5 | AA34: 999 | AB34: 25 | AC34: 3773 | AD34: 41326070.32
A35: 00060006 | B35: 0006 | C35: 0006 | D35: 26 | E35: 6 | F35: Alford | G35: 6 | H35: Alford | I35: 0 | J35: 0 | K35: =X35 -> 0 | L35: =IF(K39>0, K35/K39, 0) -> 0 | N35: =ROUND(M39*L35,0) -> 0 | O35: 0 | P35: =N35-O35 -> 0 | Q35: 0 | R35: 0 | S35: 0 | T35: 6 | U35: 6 | V35: 26 | W35: 0 | X35: 0 | Y35: 26 | Z35: 6 | AA35: 6 | AB35: 26 | AC35: 0 | AD35: 0
A36: 00060765 | B36: 0006 | C36: 0765 | D36: 27 | E36: 6 | F36: Alford | G36: 765 | H36: Southern Berkshire | I36: 206450.4645 | J36: 1 | K36: 275789.3386 | L36: =IF(K39>0, K36/K39, 0) -> 1 | N36: =ROUND(M39*L36,0) -> 185505 | O36: 175951 | P36: =N36-O36 -> 9554 | Q36: 5.42992083 | R36: 19.41348974 | S36: 0 | T36: 6 | U36: 765 | V36: 27 | W36: 25.33131619 | X36: 275789.3386 | Y36: 27 | Z36: 6 | AA36: 765 | AB36: 27 | AC36: 25.33131619 | AD36: 275789.3386
A37: 00060998 | B37: 0006 | C37: 0998 | D37: 28 | E37: 6 | G37: 998 | I37: 0 | J37: 0 | K37: 0 | L37: =IF(K39>0, K37/K39, 0) -> 0 | N37: =ROUND(M39*L37,0) -> 0 | O37: 0 | P37: =N37-O37 -> 0 | Q37: 0 | R37: 0 | S37: 0 | T37: 6 | U37: 998 | V37: 28 | W37: 0 | X37: 0 | Y37: 28 | Z37: 6 | AA37: 998 | AB37: 28 | AC37: 0 | AD37: 0
A38: 00060998 | B38: 0006 | C38: 0998 | D38: 29 | E38: 6 | G38: 998 | I38: 0 | J38: 0 | K38: 0 | L38: =IF(K39>0, K38/K39, 0) -> 0 | N38: =ROUND(M39*L38,0) -> 0 | O38: 0 | P38: =N38-O38 -> 0 | Q38: 0 | R38: 0 | S38: 0 | T38: 6 | U38: 998 | V38: 29 | W38: 0 | X38: 0 | Y38: 29 | Z38: 6 | AA38: 998 | AB38: 29 | AC38: 0 | AD38: 0
A39: 00060999 | B39: 0006 | C39: 0999 | D39: 30 | E39: 6 | F39: Alford | G39: 999 | H39: Total | I39: 206450.4645 | J39: 1 | K39: =SUM(K35:K38) -> 275789.3386 | L39: =SUM(L35:L38) -> 1 | M39: =VLOOKUP(E39,town351,22) -> 185505 | N39: =SUM(N35:N38) -> 185505 | O39: 175951 | P39: =SUM(P35:P38) -> 9554 | Q39: 5.42992083 | R39: 19.41348974 | S39: 0 | T39: 6 | U39: 999 | V39: 30 | W39: 25.33131619 | X39: 275789.3386 | Y39: 30 | Z39: 6 | AA39: 999 | AB39: 30 | AC39: 25.33131619 | AD39: 275789.3386
A40: 00070007 | B40: 0007 | C40: 0007 | D40: 31 | E40: 7 | F40: Amesbury | G40: 7 | H40: Amesbury | I40: 22137199.05 | J40: 0.9509561812 | K40: =X40 -> 22830750.46 | L40: =IF(K44>0, K40/K44, 0) -> 0.9490965242 | N40: =ROUND(M44*L40,0) -> 15155898 | O40: 14640237 | P40: =N40-O40 -> 515661 | Q40: 3.522217571 | R40: 2217 | S40: 0 | T40: 7 | U40: 7 | V40: 31 | W40: 2198 | X40: 22830750.46 | Y40: 31 | Z40: 7 | AA40: 7 | AB40: 31 | AC40: 2198 | AD40: 22830750.46
A41: 00070885 | B41: 0007 | C41: 0885 | D41: 32 | E41: 7 | F41: Amesbury | G41: 885 | H41: Whittier | I41: 1141685.391 | J41: 0.04904381884 | K41: 1224495.637 | L41: =IF(K44>0, K41/K44, 0) -> 0.05090347576 | N41: =ROUND(M44*L41,0) -> 812866 | O41: 755043 | P41: =N41-O41 -> 57823 | Q41: 7.658239332 | R41: 70.94222946 | S41: 0 | T41: 7 | U41: 885 | V41: 32 | W41: 74 | X41: 1224495.637 | Y41: 32 | Z41: 7 | AA41: 885 | AB41: 32 | AC41: 74 | AD41: 1224495.637
A42: 00070998 | B42: 0007 | C42: 0998 | D42: 33 | E42: 7 | G42: 998 | I42: 0 | J42: 0 | K42: 0 | L42: =IF(K44>0, K42/K44, 0) -> 0 | N42: =ROUND(M44*L42,0) -> 0 | O42: 0 | P42: =N42-O42 -> 0 | Q42: 0 | R42: 0 | S42: 0 | T42: 7 | U42: 998 | V42: 33 | W42: 0 | X42: 0 | Y42: 33 | Z42: 7 | AA42: 998 | AB42: 33 | AC42: 0 | AD42: 0
A43: 00070998 | B43: 0007 | C43: 0998 | D43: 34 | E43: 7 | G43: 998 | I43: 0 | J43: 0 | K43: 0 | L43: =IF(K44>0, K43/K44, 0) -> 0 | N43: =ROUND(M44*L43,0) -> 0 | O43: 0 | P43: =N43-O43 -> 0 | Q43: 0 | R43: 0 | S43: 0 | T43: 7 | U43: 998 | V43: 34 | W43: 0 | X43: 0 | Y43: 34 | Z43: 7 | AA43: 998 | AB43: 34 | AC43: 0 | AD43: 0
A44: 00070999 | B44: 0007 | C44: 0999 | D44: 35 | E44: 7 | F44: Amesbury | G44: 999 | H44: Total | I44: 23278884.44 | J44: 1 | K44: =SUM(K40:K43) -> 24055246.1 | L44: =SUM(L40:L43) -> 1 | M44: =VLOOKUP(E44,town351,22) -> 15968764 | N44: =SUM(N40:N43) -> 15968764 | O44: 15395280 | P44: =SUM(P40:P43) -> 573484 | Q44: 3.725063786 | R44: 2287.942229 | S44: 0 | T44: 7 | U44: 999 | V44: 35 | W44: 2272 | X44: 24055246.1 | Y44: 35 | Z44: 7 | AA44: 999 | AB44: 35 | AC44: 2272 | AD44: 24055246.1
A45: 00080008 | B45: 0008 | C45: 0008 | D45: 36 | E45: 8 | F45: Amherst | G45: 8 | H45: Amherst | I45: 11871248.34 | J45: 0.4795657472 | K45: =X45 -> 11969353.38 | L45: =IF(K49>0, K45/K49, 0) -> 0.4813199267 | N45: =ROUND(M49*L45,0) -> 8946746 | O45: 8817279 | P45: =N45-O45 -> 129467 | Q45: 1.468332804 | R45: 1136 | S45: 0 | T45: 8 | U45: 8 | V45: 36 | W45: 1106 | X45: 11969353.38 | Y45: 36 | Z45: 8 | AA45: 8 | AB45: 36 | AC45: 1106 | AD45: 11969353.38
A46: 00080605 | B46: 0008 | C46: 0605 | D46: 37 | E46: 8 | F46: Amherst | G46: 605 | H46: Amherst Pelham | I46: 12882913.97 | J46: 0.5204342528 | K46: 12898416.93 | L46: =IF(K49>0, K46/K49, 0) -> 0.5186800733 | N46: =ROUND(M49*L46,0) -> 9641195 | O46: 9568685 | P46: =N46-O46 -> 72510 | Q46: 0.7577843769 | R46: 1211.272601 | S46: 0 | T46: 8 | U46: 605 | V46: 37 | W46: 1152 | X46: 12898416.93 | Y46: 37 | Z46: 8 | AA46: 605 | AB46: 37 | AC46: 1152 | AD46: 12898416.93
A47: 00080998 | B47: 0008 | C47: 0998 | D47: 38 | E47: 8 | G47: 998 | I47: 0 | J47: 0 | K47: 0 | L47: =IF(K49>0, K47/K49, 0) -> 0 | N47: =ROUND(M49*L47,0) -> 0 | O47: 0 | P47: =N47-O47 -> 0 | Q47: 0 | R47: 0 | S47: 0 | T47: 8 | U47: 998 | V47: 38 | W47: 0 | X47: 0 | Y47: 38 | Z47: 8 | AA47: 998 | AB47: 38 | AC47: 0 | AD47: 0
A48: 00080998 | B48: 0008 | C48: 0998 | D48: 39 | E48: 8 | G48: 998 | I48: 0 | J48: 0 | K48: 0 | L48: =IF(K49>0, K48/K49, 0) -> 0 | N48: =ROUND(M49*L48,0) -> 0 | O48: 0 | P48: =N48-O48 -> 0 | Q48: 0 | R48: 0 | S48: 0 | T48: 8 | U48: 998 | V48: 39 | W48: 0 | X48: 0 | Y48: 39 | Z48: 8 | AA48: 998 | AB48: 39 | AC48: 0 | AD48: 0
A49: 00080999 | B49: 0008 | C49: 0999 | D49: 40 | E49: 8 | F49: Amherst | G49: 999 | H49: Total | I49: 24754162.31 | J49: 1 | K49: =SUM(K45:K48) -> 24867770.31 | L49: =SUM(L45:L48) -> 1 | M49: =VLOOKUP(E49,town351,22) -> 18587941 | N49: =SUM(N45:N48) -> 18587941 | O49: 18385964 | P49: =SUM(P45:P48) -> 201977 | Q49: 1.098539081 | R49: 2347.272601 | S49: 0 | T49: 8 | U49: 999 | V49: 40 | W49: 2258 | X49: 24867770.31 | Y49: 40 | Z49: 8 | AA49: 999 | AB49: 40 | AC49: 2258 | AD49: 24867770.31
A50: 00090009 | B50: 0009 | C50: 0009 | D50: 41 | E50: 9 | F50: Andover | G50: 9 | H50: Andover | I50: 59213763.71 | J50: 0.9902952324 | K50: =X50 -> 60546641.05 | L50: =IF(K54>0, K50/K54, 0) -> 0.9910091393 | N50: =ROUND(M54*L50,0) -> 49950979 | O50: 49146929 | P50: =N50-O50 -> 804050 | Q50: 1.6360127 | R50: 5911 | S50: 0 | T50: 9 | U50: 9 | V50: 41 | W50: 5805 | X50: 60546641.05 | Y50: 41 | Z50: 9 | AA50: 9 | AB50: 41 | AC50: 5805 | AD50: 60546641.05
A51: 00090823 | B51: 0009 | C51: 0823 | D51: 42 | E51: 9 | F51: Andover | G51: 823 | H51: Greater Lawrence | I51: 580287.3678 | J51: 0.009704767572 | K51: 549305.1397 | L51: =IF(K54>0, K51/K54, 0) -> 0.00899086067 | N51: =ROUND(M54*L51,0) -> 453177 | O51: 481634 | P51: =N51-O51 -> -28457 | Q51: -5.908428392 | R51: 32.00000001 | S51: 0 | T51: 9 | U51: 823 | V51: 42 | W51: 29 | X51: 549305.1397 | Y51: 42 | Z51: 9 | AA51: 823 | AB51: 42 | AC51: 29 | AD51: 549305.1397
A52: 00090998 | B52: 0009 | C52: 0998 | D52: 43 | E52: 9 | G52: 998 | I52: 0 | J52: 0 | K52: 0 | L52: =IF(K54>0, K52/K54, 0) -> 0 | N52: =ROUND(M54*L52,0) -> 0 | O52: 0 | P52: =N52-O52 -> 0 | Q52: 0 | R52: 0 | S52: 0 | T52: 9 | U52: 998 | V52: 43 | W52: 0 | X52: 0 | Y52: 43 | Z52: 9 | AA52: 998 | AB52: 43 | AC52: 0 | AD52: 0
A53: 00090998 | B53: 0009 | C53: 0998 | D53: 44 | E53: 9 | G53: 998 | I53: 0 | J53: 0 | K53: 0 | L53: =IF(K54>0, K53/K54, 0) -> 0 | N53: =ROUND(M54*L53,0) -> 0 | O53: 0 | P53: =N53-O53 -> 0 | Q53: 0 | R53: 0 | S53: 0 | T53: 9 | U53: 998 | V53: 44 | W53: 0 | X53: 0 | Y53: 44 | Z53: 9 | AA53: 998 | AB53: 44 | AC53: 0 | AD53: 0
A54: 00090999 | B54: 0009 | C54: 0999 | D54: 45 | E54: 9 | F54: Andover | G54: 999 | H54: Total | I54: 59794051.07 | J54: 1 | K54: =SUM(K50:K53) -> 61095946.19 | L54: =SUM(L50:L53) -> 1 | M54: =VLOOKUP(E54,town351,22) -> 50404156 | N54: =SUM(N50:N53) -> 50404156 | O54: 49628563 | P54: =SUM(P50:P53) -> 775593 | Q54: 1.562795602 | R54: 5943 | S54: 0 | T54: 9 | U54: 999 | V54: 45 | W54: 5834 | X54: 61095946.19 | Y54: 45 | Z54: 9 | AA54: 999 | AB54: 45 | AC54: 5834 | AD54: 61095946.19
A55: 00100010 | B55: 0010 | C55: 0010 | D55: 46 | E55: 10 | F55: Arlington | G55: 10 | H55: Arlington | I55: 54501493.56 | J55: 0.9608481758 | K55: =X55 -> 58002940.65 | L55: =IF(K59>0, K55/K59, 0) -> 0.965620222 | N55: =ROUND(M59*L55,0) -> 46237018 | O55: 43805119 | P55: =N55-O55 -> 2431899 | Q55: 5.551631991 | R55: 5607 | S55: 0 | T55: 10 | U55: 10 | V55: 46 | W55: 5785 | X55: 58002940.65 | Y55: 46 | Z55: 10 | AA55: 10 | AB55: 46 | AC55: 5785 | AD55: 58002940.65
A56: 00100830 | B56: 0010 | C56: 0830 | D56: 47 | E56: 10 | F56: Arlington | G56: 830 | H56: Minuteman | I56: 2220780.504 | J56: 0.03915182423 | K56: 2065126.824 | L56: =IF(K59>0, K56/K59, 0) -> 0.03437977799 | N56: =ROUND(M59*L56,0) -> 1646215 | O56: 1784934 | P56: =N56-O56 -> -138719 | Q56: -7.771659905 | R56: 121.3507246 | S56: 0 | T56: 10 | U56: 830 | V56: 47 | W56: 115.3372434 | X56: 2065126.824 | Y56: 47 | Z56: 10 | AA56: 830 | AB56: 47 | AC56: 115.3372434 | AD56: 2065126.824
A57: 00100998 | B57: 0010 | C57: 0998 | D57: 48 | E57: 10 | G57: 998 | I57: 0 | J57: 0 | K57: 0 | L57: =IF(K59>0, K57/K59, 0) -> 0 | N57: =ROUND(M59*L57,0) -> 0 | O57: 0 | P57: =N57-O57 -> 0 | Q57: 0 | R57: 0 | S57: 0 | T57: 10 | U57: 998 | V57: 48 | W57: 0 | X57: 0 | Y57: 48 | Z57: 10 | AA57: 998 | AB57: 48 | AC57: 0 | AD57: 0
A58: 00100998 | B58: 0010 | C58: 0998 | D58: 49 | E58: 10 | G58: 998 | I58: 0 | J58: 0 | K58: 0 | L58: =IF(K59>0, K58/K59, 0) -> 0 | N58: =ROUND(M59*L58,0) -> 0 | O58: 0 | P58: =N58-O58 -> 0 | Q58: 0 | R58: 0 | S58: 0 | T58: 10 | U58: 998 | V58: 49 | W58: 0 | X58: 0 | Y58: 49 | Z58: 10 | AA58: 998 | AB58: 49 | AC58: 0 | AD58: 0
A59: 00100999 | B59: 0010 | C59: 0999 | D59: 50 | E59: 10 | F59: Arlington | G59: 999 | H59: Total | I59: 56722274.07 | J59: 1 | K59: =SUM(K55:K58) -> 60068067.47 | L59: =SUM(L55:L58) -> 1 | M59: =VLOOKUP(E59,town351,22) -> 47883233 | N59: =SUM(N55:N58) -> 47883233 | O59: 45590053 | P59: =SUM(P55:P58) -> 2293180 | Q59: 5.030000733 | R59: 5728.350725 | S59: 0 | T59: 10 | U59: 999 | V59: 50 | W59: 5900.337243 | X59: 60068067.47 | Y59: 50 | Z59: 10 | AA59: 999 | AB59: 50 | AC59: 5900.337243 | AD59: 60068067.47
A60: 00110011 | B60: 0011 | C60: 0011 | D60: 51 | E60: 11 | F60: Ashburnham | G60: 11 | H60: Ashburnham | I60: 0 | J60: 0 | K60: =X60 -> 0 | L60: =IF(K64>0, K60/K64, 0) -> 0 | N60: =ROUND(M64*L60,0) -> 0 | O60: 0 | P60: =N60-O60 -> 0 | Q60: 0 | R60: 0 | S60: 0 | T60: 11 | U60: 11 | V60: 51 | W60: 0 | X60: 0 | Y60: 51 | Z60: 11 | AA60: 11 | AB60: 51 | AC60: 0 | AD60: 0
A61: 00110610 | B61: 0011 | C61: 0610 | D61: 52 | E61: 11 | F61: Ashburnham | G61: 610 | H61: Ashburnham Westminster | I61: 10271473.09 | J61: 0.9189864062 | K61: 10862999.7 | L61: =IF(K64>0, K61/K64, 0) -> 0.9127346045 | N61: =ROUND(M64*L61,0) -> 4717731 | O61: 4594298 | P61: =N61-O61 -> 123433 | Q61: 2.686656373 | R61: 1050.158389 | S61: 0 | T61: 11 | U61: 610 | V61: 52 | W61: 1076.284344 | X61: 10862999.7 | Y61: 52 | Z61: 11 | AA61: 610 | AB61: 52 | AC61: 1076.284344 | AD61: 10862999.7
A62: 00110832 | B62: 0011 | C62: 0832 | D62: 53 | E62: 11 | F62: Ashburnham | G62: 832 | H62: Montachusett | I62: 905485.5895 | J62: 0.08101359375 | K62: 1038597.594 | L62: =IF(K64>0, K62/K64, 0) -> 0.08726539548 | N62: =ROUND(M64*L62,0) -> 451056 | O62: 405012 | P62: =N62-O62 -> 46044 | Q62: 11.36855204 | R62: 58.03879598 | S62: 0 | T62: 11 | U62: 832 | V62: 53 | W62: 64.04306865 | X62: 1038597.594 | Y62: 53 | Z62: 11 | AA62: 832 | AB62: 53 | AC62: 64.04306865 | AD62: 1038597.594
A63: 00110998 | B63: 0011 | C63: 0998 | D63: 54 | E63: 11 | G63: 998 | I63: 0 | J63: 0 | K63: 0 | L63: =IF(K64>0, K63/K64, 0) -> 0 | N63: =ROUND(M64*L63,0) -> 0 | O63: 0 | P63: =N63-O63 -> 0 | Q63: 0 | R63: 0 | S63: 0 | T63: 11 | U63: 998 | V63: 54 | W63: 0 | X63: 0 | Y63: 54 | Z63: 11 | AA63: 998 | AB63: 54 | AC63: 0 | AD63: 0
A64: 00110999 | B64: 0011 | C64: 0999 | D64: 55 | E64: 11 | F64: Ashburnham | G64: 999 | H64: Total | I64: 11176958.68 | J64: 1 | K64: =SUM(K60:K63) -> 11901597.29 | L64: =SUM(L60:L63) -> 1 | M64: =VLOOKUP(E64,town351,22) -> 5168787 | N64: =SUM(N60:N63) -> 5168787 | O64: 4999310 | P64: =SUM(P60:P63) -> 169477 | Q64: 3.390007821 | R64: 1108.197185 | S64: 0 | T64: 11 | U64: 999 | V64: 55 | W64: 1140.327412 | X64: 11901597.29 | Y64: 55 | Z64: 11 | AA64: 999 | AB64: 55 | AC64: 1140.327412 | AD64: 11901597.29
A65: 00120012 | B65: 0012 | C65: 0012 | D65: 56 | E65: 12 | F65: Ashby | G65: 12 | H65: Ashby | I65: 0 | J65: 0 | K65: =X65 -> 0 | L65: =IF(K69>0, K65/K69, 0) -> 0 | N65: =ROUND(M69*L65,0) -> 0 | O65: 0 | P65: =N65-O65 -> 0 | Q65: 0 | R65: 0 | S65: 0 | T65: 12 | U65: 12 | V65: 56 | W65: 0 | X65: 0 | Y65: 56 | Z65: 12 | AA65: 12 | AB65: 56 | AC65: 0 | AD65: 0
A66: 00120735 | B66: 0012 | C66: 0735 | D66: 57 | E66: 12 | F66: Ashby | G66: 735 | H66: North Middlesex | I66: 3882256.47 | J66: 0.8797201729 | K66: 3774894.734 | L66: =IF(K69>0, K66/K69, 0) -> 0.8891500395 | N66: =ROUND(M69*L66,0) -> 2175126 | O66: 2077476 | P66: =N66-O66 -> 97650 | Q66: 4.700415312 | R66: 396.1835541 | S66: 0 | T66: 12 | U66: 735 | V66: 57 | W66: 370.7240412 | X66: 3774894.734 | Y66: 57 | Z66: 12 | AA66: 735 | AB66: 57 | AC66: 370.7240412 | AD66: 3774894.734
A67: 00120832 | B67: 0012 | C67: 0832 | D67: 58 | E67: 12 | F67: Ashby | G67: 832 | H67: Montachusett | I67: 530801.8974 | J67: 0.1202798271 | K67: 470614.5348 | L67: =IF(K69>0, K67/K69, 0) -> 0.1108499605 | N67: =ROUND(M69*L67,0) -> 271172 | O67: 284043 | P67: =N67-O67 -> -12871 | Q67: -4.531356168 | R67: 34.02274248 | S67: 0 | T67: 12 | U67: 832 | V67: 58 | W67: 29.01951547 | X67: 470614.5348 | Y67: 58 | Z67: 12 | AA67: 832 | AB67: 58 | AC67: 29.01951547 | AD67: 470614.5348
A68: 00120998 | B68: 0012 | C68: 0998 | D68: 59 | E68: 12 | G68: 998 | I68: 0 | J68: 0 | K68: 0 | L68: =IF(K69>0, K68/K69, 0) -> 0 | N68: =ROUND(M69*L68,0) -> 0 | O68: 0 | P68: =N68-O68 -> 0 | Q68: 0 | R68: 0 | S68: 0 | T68: 12 | U68: 998 | V68: 59 | W68: 0 | X68: 0 | Y68: 59 | Z68: 12 | AA68: 998 | AB68: 59 | AC68: 0 | AD68: 0
A69: 00120999 | B69: 0012 | C69: 0999 | D69: 60 | E69: 12 | F69: Ashby | G69: 999 | H69: Total | I69: 4413058.368 | J69: 1 | K69: =SUM(K65:K68) -> 4245509.269 | L69: =SUM(L65:L68) -> 1 | M69: =VLOOKUP(E69,town351,22) -> 2446298 | N69: =SUM(N65:N68) -> 2446298 | O69: 2361519 | P69: =SUM(P65:P68) -> 84779 | Q69: 3.590019814 | R69: 430.2062965 | S69: 0 | T69: 12 | U69: 999 | V69: 60 | W69: 399.7435566 | X69: 4245509.269 | Y69: 60 | Z69: 12 | AA69: 999 | AB69: 60 | AC69: 399.7435566 | AD69: 4245509.269
A70: 00130013 | B70: 0013 | C70: 0013 | D70: 61 | E70: 13 | F70: Ashfield | G70: 13 | H70: Ashfield | I70: 226884.1827 | J70: 0.1145235138 | K70: =X70 -> 233861.83 | L70: =IF(K74>0, K70/K74, 0) -> 0.1066373907 | N70: =ROUND(M74*L70,0) -> 163542 | O70: 176931 | P70: =N70-O70 -> -13389 | Q70: -7.567356766 | R70: 15 | S70: 0 | T70: 13 | U70: 13 | V70: 61 | W70: 15 | X70: 233861.83 | Y70: 61 | Z70: 13 | AA70: 13 | AB70: 61 | AC70: 15 | AD70: 233861.83
A71: 00130717 | B71: 0013 | C71: 0717 | D71: 62 | E71: 13 | F71: Ashfield | G71: 717 | H71: Mohawk Trail | I71: 1754230.22 | J71: 0.8854764862 | K71: 1959194.738 | L71: =IF(K74>0, K71/K74, 0) -> 0.8933626093 | N71: =ROUND(M74*L71,0) -> 1370082 | O71: 1368002 | P71: =N71-O71 -> 2080 | Q71: 0.1520465613 | R71: 166.5422315 | S71: 0 | T71: 13 | U71: 717 | V71: 62 | W71: 179.693617 | X71: 1959194.738 | Y71: 62 | Z71: 13 | AA71: 717 | AB71: 62 | AC71: 179.693617 | AD71: 1959194.738
A72: 00130998 | B72: 0013 | C72: 0998 | D72: 63 | E72: 13 | G72: 998 | I72: 0 | J72: 0 | K72: 0 | L72: =IF(K74>0, K72/K74, 0) -> 0 | N72: =ROUND(M74*L72,0) -> 0 | O72: 0 | P72: =N72-O72 -> 0 | Q72: 0 | R72: 0 | S72: 0 | T72: 13 | U72: 998 | V72: 63 | W72: 0 | X72: 0 | Y72: 63 | Z72: 13 | AA72: 998 | AB72: 63 | AC72: 0 | AD72: 0
A73: 00130998 | B73: 0013 | C73: 0998 | D73: 64 | E73: 13 | G73: 998 | I73: 0 | J73: 0 | K73: 0 | L73: =IF(K74>0, K73/K74, 0) -> 0 | N73: =ROUND(M74*L73,0) -> 0 | O73: 0 | P73: =N73-O73 -> 0 | Q73: 0 | R73: 0 | S73: 0 | T73: 13 | U73: 998 | V73: 64 | W73: 0 | X73: 0 | Y73: 64 | Z73: 13 | AA73: 998 | AB73: 64 | AC73: 0 | AD73: 0
A74: =B74&C74 -> 00130999 | B74: 0013 | C74: 0999 | D74: 65 | E74: 13 | F74: Ashfield | G74: 999 | H74: Total | I74: 1981114.403 | J74: 1 | K74: =SUM(K70:K73) -> 2193056.568 | L74: =SUM(L70:L73) -> 1 | M74: =VLOOKUP(E74,town351,22) -> 1533624 | N74: =SUM(N70:N73) -> 1533624 | O74: 1544933 | P74: =SUM(P70:P73) -> -11309 | Q74: -0.732005854 | R74: 181.5422315 | S74: =ABS(T74-E74)+ABS(U74-G74) -> 0 | T74: =VLOOKUP($D74, foundoptions, VLOOKUP($T$6, foundoptcell, 2, FALSE), FALSE) -> 13 | U74: =VLOOKUP($D74, foundoptions, VLOOKUP($T$6, foundoptcell, 2, FALSE)+1, FALSE) -> 999 | V74: =VLOOKUP($D74, foundoptions, VLOOKUP($T$6, foundoptcell, 2, FALSE)+2, FALSE) -> 65 | W74: =VLOOKUP($D74, foundoptions, VLOOKUP($T$6, foundoptcell, 2, FALSE)+3, FALSE) -> 194.693617 | X74: =VLOOKUP($D74, foundoptions, VLOOKUP($T$6, foundoptcell, 2, FALSE)+4, FALSE) -> 2193056.568 | Y74: 65 | Z74: 13 | AA74: 999 | AB74: 65 | AC74: 194.693617 | AD74: 2193056.568
A75: 00140014 | B75: 0014 | C75: 0014 | D75: 66 | E75: 14 | F75: Ashland | G75: 14 | H75: Ashland | I75: 24948345.56 | J75: 0.95884303 | K75: =X75 -> 26344731.8 | L75: =IF(K79>0, K75/K79, 0) -> 0.9575405389 | N75: =ROUND(M79*L75,0) -> 20247938 | O75: 19465664 | P75: =N75-O75 -> 782274 | Q75: 4.018737814 | R75: 2547 | S75: 0 | T75: 14 | U75: 14 | V75: 66 | W75: 2581 | X75: 26344731.8 | Y75: =D75 -> 66 | Z75: 14 | AA75: 14 | AB75: 66 | AC75: 2581 | AD75: 26344731.8
A76: 00140829 | B76: 0014 | C76: 0829 | D76: 67 | E76: 14 | F76: Ashland | G76: 829 | H76: South Middlesex | I76: 1070872.163 | J76: 0.04115697 | K76: 1168183.558 | L76: =IF(K79>0, K76/K79, 0) -> 0.04245946106 | N76: =ROUND(M79*L76,0) -> 897838 | O76: 835536 | P76: =N76-O76 -> 62302 | Q76: 7.456530898 | R76: 63 | S76: 0 | T76: 14 | U76: 829 | V76: 67 | W76: 66 | X76: 1168183.558 | Y76: 67 | Z76: 14 | AA76: 829 | AB76: 67 | AC76: 66 | AD76: 1168183.558
A77: 00140998 | B77: 0014 | C77: 0998 | D77: 68 | E77: 14 | G77: 998 | I77: 0 | J77: 0 | K77: 0 | L77: =IF(K79>0, K77/K79, 0) -> 0 | N77: =ROUND(M79*L77,0) -> 0 | O77: 0 | P77: =N77-O77 -> 0 | Q77: 0 | R77: 0 | S77: 0 | T77: 14 | U77: 998 | V77: 68 | W77: 0 | X77: 0 | Y77: 68 | Z77: 14 | AA77: 998 | AB77: 68 | AC77: 0 | AD77: 0
A78: 00140998 | B78: 0014 | C78: 0998 | D78: 69 | E78: 14 | G78: 998 | I78: 0 | J78: 0 | K78: 0 | L78: =IF(K79>0, K78/K79, 0) -> 0 | N78: =ROUND(M79*L78,0) -> 0 | O78: 0 | P78: =N78-O78 -> 0 | Q78: 0 | R78: 0 | S78: 0 | T78: 14 | U78: 998 | V78: 69 | W78: 0 | X78: 0 | Y78: 69 | Z78: 14 | AA78: 998 | AB78: 69 | AC78: 0 | AD78: 0
A79: 00140999 | B79: 0014 | C79: 0999 | D79: 70 | E79: 14 | F79: Ashland | G79: 999 | H79: Total | I79: 26019217.72 | J79: 1 | K79: =SUM(K75:K78) -> 27512915.35 | L79: =SUM(L75:L78) -> 1 | M79: =VLOOKUP(E79,town351,22) -> 21145776 | N79: =SUM(N75:N78) -> 21145776 | O79: 20301200 | P79: =SUM(P75:P78) -> 844576 | Q79: 4.160226982 | R79: 2610 | S79: 0 | T79: 14 | U79: 999 | V79: 70 | W79: 2647 | X79: 27512915.35 | Y79: 70 | Z79: 14 | AA79: 999 | AB79: 70 | AC79: 2647 | AD79: 27512915.35
A80: 00150015 | B80: 0015 | C80: 0015 | D80: 71 | E80: 15 | F80: Athol | G80: 15 | H80: Athol | I80: 26833.66669 | J80: 0.001442893355 | K80: =X80 -> 13837.16 | L80: =IF(K84>0, K80/K84, 0) -> 0.0007016448517 | N80: =ROUND(M84*L80,0) -> 2099 | O80: 4106 | P80: =N80-O80 -> -2007 | Q80: =IF(O80>0,P80*100/O80,IF(P80>0,100,0)) -> -48.87968826 | R80: 2 | S80: 0 | T80: 15 | U80: 15 | V80: 71 | W80: 1 | X80: 13837.16 | Y80: 71 | Z80: 15 | AA80: 15 | AB80: 71 | AC80: 1 | AD80: 13837.16
A81: 00150615 | B81: 0015 | C81: 0615 | D81: 72 | E81: 15 | F81: Athol | G81: 615 | H81: Athol Royalston | I81: 17227673.8 | J81: 0.9263622575 | K81: 18262894.24 | L81: =IF(K84>0, K81/K84, 0) -> 0.9260618308 | N81: =ROUND(M84*L81,0) -> 2770441 | O81: 2635856 | P81: =N81-O81 -> 134585 | Q81: =IF(O81>0,P81*100/O81,IF(P81>0,100,0)) -> 5.105931432 | R81: 1601.106719 | S81: 0 | T81: 15 | U81: 615 | V81: 72 | W81: 1628.887892 | X81: 18262894.24 | Y81: 72 | Z81: 15 | AA81: 615 | AB81: 72 | AC81: 1628.887892 | AD81: 18262894.24
A82: 00150832 | B82: 0015 | C82: 0832 | D82: 73 | E82: 15 | F82: Athol | G82: 832 | H82: Montachusett | I82: 1342616.564 | J82: 0.07219484912 | K82: 1444299.779 | L82: =IF(K84>0, K82/K84, 0) -> 0.0732365243 | N82: =ROUND(M84*L82,0) -> 219097 | O82: 205422 | P82: =N82-O82 -> 13675 | Q82: =IF(O82>0,P82*100/O82,IF(P82>0,100,0)) -> 6.657027972 | R82: 86.05752508 | S82: 0 | T82: 15 | U82: 832 | V82: 73 | W82: 89.05989233 | X82: 1444299.779 | Y82: 73 | Z82: 15 | AA82: 832 | AB82: 73 | AC82: 89.05989233 | AD82: 1444299.779
A83: 00150998 | B83: 0015 | C83: 0998 | D83: 74 | E83: 15 | G83: 998 | I83: 0 | J83: 0 | K83: 0 | L83: =IF(K84>0, K83/K84, 0) -> 0 | N83: =ROUND(M84*L83,0) -> 0 | O83: 0 | P83: =N83-O83 -> 0 | Q83: =IF(O83>0,P83*100/O83,IF(P83>0,100,0)) -> 0 | R83: 0 | S83: 0 | T83: 15 | U83: 998 | V83: 74 | W83: 0 | X83: 0 | Y83: 74 | Z83: 15 | AA83: 998 | AB83: 74 | AC83: 0 | AD83: 0
A84: 00150999 | B84: 0015 | C84: 0999 | D84: 75 | E84: 15 | F84: Athol | G84: 999 | H84: Total | I84: 18597124.03 | J84: 1 | K84: =SUM(K80:K83) -> 19721031.18 | L84: =SUM(L80:L83) -> 1 | M84: =VLOOKUP(E84,town351,22) -> 2991637 | N84: =SUM(N80:N83) -> 2991637 | O84: 2845384 | P84: =SUM(P80:P83) -> 146253 | Q84: =IF(O84>0,P84*100/O84,IF(P84>0,100,0)) -> 5.140009222 | R84: 1689.164244 | S84: 0 | T84: 15 | U84: 999 | V84: 75 | W84: 1718.947785 | X84: 19721031.18 | Y84: 75 | Z84: 15 | AA84: 999 | AB84: 75 | AC84: 1718.947785 | AD84: 19721031.18
A85: 00160016 | B85: 0016 | C85: 0016 | D85: 76 | E85: 16 | F85: Attleboro | G85: 16 | H85: Attleboro | I85: 69495854.73 | J85: 0.992196167 | K85: =X85 -> 72980818.83 | L85: =IF(K89>0, K85/K89, 0) -> 0.9927616586 | N85: =ROUND(M89*L85,0) -> 35206834 | O85: 33973326 | P85: =N85-O85 -> 1233508 | Q85: 3.630813186 | R85: 6251 | S85: 0 | T85: 16 | U85: 16 | V85: 76 | W85: 6311 | X85: 72980818.83 | Y85: 76 | Z85: 16 | AA85: 16 | AB85: 76 | AC85: 6311 | AD85: 72980818.83
A86: 00160910 | B86: 0016 | C86: 0910 | D86: 77 | E86: 16 | F86: Attleboro | G86: 910 | H86: Bristol County | I86: 546599.6136 | J86: 0.007803832956 | K86: 532111.6905 | L86: =IF(K89>0, K86/K89, 0) -> 0.007238341429 | N86: =ROUND(M89*L86,0) -> 256697 | O86: 267207 | P86: =N86-O86 -> -10510 | Q86: -3.933280191 | R86: 35 | S86: 0 | T86: 16 | U86: 910 | V86: 77 | W86: 33 | X86: 532111.6905 | Y86: 77 | Z86: 16 | AA86: 910 | AB86: 77 | AC86: 33 | AD86: 532111.6905
A87: 00160998 | B87: 0016 | C87: 0998 | D87: 78 | E87: 16 | G87: 998 | I87: 0 | J87: 0 | K87: 0 | L87: =IF(K89>0, K87/K89, 0) -> 0 | N87: =ROUND(M89*L87,0) -> 0 | O87: 0 | P87: =N87-O87 -> 0 | Q87: 0 | R87: 0 | S87: 0 | T87: 16 | U87: 998 | V87: 78 | W87: 0 | X87: 0 | Y87: 78 | Z87: 16 | AA87: 998 | AB87: 78 | AC87: 0 | AD87: 0
A88: 00160998 | B88: 0016 | C88: 0998 | D88: 79 | E88: 16 | G88: 998 | I88: 0 | J88: 0 | K88: 0 | L88: =IF(K89>0, K88/K89, 0) -> 0 | N88: =ROUND(M89*L88,0) -> 0 | O88: 0 | P88: =N88-O88 -> 0 | Q88: 0 | R88: 0 | S88: 0 | T88: 16 | U88: 998 | V88: 79 | W88: 0 | X88: 0 | Y88: 79 | Z88: 16 | AA88: 998 | AB88: 79 | AC88: 0 | AD88: 0
A89: 00160999 | B89: 0016 | C89: 0999 | D89: 80 | E89: 16 | F89: Attleboro | G89: 999 | H89: Total | I89: 70042454.35 | J89: 1 | K89: =SUM(K85:K88) -> 73512930.52 | L89: =SUM(L85:L88) -> 1 | M89: =VLOOKUP(E89,town351,22) -> 35463531 | N89: =SUM(N85:N88) -> 35463531 | O89: 34240533 | P89: =SUM(P85:P88) -> 1222998 | Q89: 3.571784353 | R89: 6286 | S89: 0 | T89: 16 | U89: 999 | V89: 80 | W89: 6344 | X89: 73512930.52 | Y89: 80 | Z89: 16 | AA89: 999 | AB89: 80 | AC89: 6344 | AD89: 73512930.52
A90: 00170017 | B90: 0017 | C90: 0017 | D90: 81 | E90: 17 | F90: Auburn | G90: 17 | H90: Auburn | I90: 24064548.39 | J90: 0.9429067146 | K90: =X90 -> 25672129.78 | L90: =IF(K94>0, K90/K94, 0) -> 0.9495990138 | N90: =ROUND(M94*L90,0) -> 14624535 | O90: 13986014 | P90: =N90-O90 -> 638521 | Q90: 4.565425145 | R90: 2431 | S90: 0 | T90: 17 | U90: 17 | V90: 81 | W90: 2495 | X90: 25672129.78 | Y90: 81 | Z90: 17 | AA90: 17 | AB90: 81 | AC90: 2495 | AD90: 25672129.78
A91: 00170876 | B91: 0017 | C91: 0876 | D91: 82 | E91: 17 | F91: Auburn | G91: 876 | H91: Southern Worcester | I91: 1457115.65 | J91: 0.05709328543 | K91: 1362575.824 | L91: =IF(K94>0, K91/K94, 0) -> 0.05040098621 | N91: =ROUND(M94*L91,0) -> 776213 | O91: 846857 | P91: =N91-O91 -> -70644 | Q91: -8.341904241 | R91: 92 | S91: 0 | T91: 17 | U91: 876 | V91: 82 | W91: 84 | X91: 1362575.824 | Y91: 82 | Z91: 17 | AA91: 876 | AB91: 82 | AC91: 84 | AD91: 1362575.824
A92: 00170998 | B92: 0017 | C92: 0998 | D92: 83 | E92: 17 | G92: 998 | I92: 0 | J92: 0 | K92: 0 | L92: =IF(K94>0, K92/K94, 0) -> 0 | N92: =ROUND(M94*L92,0) -> 0 | O92: 0 | P92: =N92-O92 -> 0 | Q92: 0 | R92: 0 | S92: 0 | T92: 17 | U92: 998 | V92: 83 | W92: 0 | X92: 0 | Y92: 83 | Z92: 17 | AA92: 998 | AB92: 83 | AC92: 0 | AD92: 0
A93: 00170998 | B93: 0017 | C93: 0998 | D93: 84 | E93: 17 | G93: 998 | I93: 0 | J93: 0 | K93: 0 | L93: =IF(K94>0, K93/K94, 0) -> 0 | N93: =ROUND(M94*L93,0) -> 0 | O93: 0 | P93: =N93-O93 -> 0 | Q93: 0 | R93: 0 | S93: 0 | T93: 17 | U93: 998 | V93: 84 | W93: 0 | X93: 0 | Y93: 84 | Z93: 17 | AA93: 998 | AB93: 84 | AC93: 0 | AD93: 0
A94: 00170999 | B94: 0017 | C94: 0999 | D94: 85 | E94: 17 | F94: Auburn | G94: 999 | H94: Total | I94: 25521664.04 | J94: 1 | K94: =SUM(K90:K93) -> 27034705.6 | L94: =SUM(L90:L93) -> 1 | M94: =VLOOKUP(E94,town351,22) -> 15400748 | N94: =SUM(N90:N93) -> 15400748 | O94: 14832871 | P94: =SUM(P90:P93) -> 567877 | Q94: 3.828503599 | R94: 2523 | S94: 0 | T94: 17 | U94: 999 | V94: 85 | W94: 2579 | X94: 27034705.6 | Y94: 85 | Z94: 17 | AA94: 999 | AB94: 85 | AC94: 2579 | AD94: 27034705.6
A95: 00180018 | B95: 0018 | C95: 0018 | D95: 86 | E95: 18 | F95: Avon | G95: 18 | H95: Avon | I95: 5634205.663 | J95: 0.8636489956 | K95: =X95 -> 6193899.03 | L95: =IF(K99>0, K95/K99, 0) -> 0.8546657806 | N95: =ROUND(M99*L95,0) -> 4386495 | O95: 4254900 | P95: =N95-O95 -> 131595 | Q95: 3.09278714 | R95: 538 | S95: 0 | T95: 18 | U95: 18 | V95: 86 | W95: 561 | X95: 6193899.03 | Y95: 86 | Z95: 18 | AA95: 18 | AB95: 86 | AC95: 561 | AD95: 6193899.03
A96: 00180806 | B96: 0018 | C96: 0806 | D96: 87 | E96: 18 | F96: Avon | G96: 806 | H96: Blue Hills | I96: 856571.407 | J96: 0.131301035 | K96: 984907.1615 | L96: =IF(K99>0, K96/K99, 0) -> 0.1359025137 | N96: =ROUND(M99*L96,0) -> 697507 | O96: 646875 | P96: =N96-O96 -> 50632 | Q96: 7.827169082 | R96: 52 | S96: 0 | T96: 18 | U96: 806 | V96: 87 | W96: 58 | X96: 984907.1615 | Y96: 87 | Z96: 18 | AA96: 806 | AB96: 87 | AC96: 58 | AD96: 984907.1615
A97: 00180915 | B97: 0018 | C97: 0915 | D97: 88 | E97: 18 | F97: Avon | G97: 915 | H97: Norfolk County | I97: 32944.59469 | J97: 0.005049969387 | K97: 68353.07351 | L97: =IF(K99>0, K97/K99, 0) -> 0.009431705722 | N97: =ROUND(M99*L97,0) -> 48407 | O97: 24879 | P97: =N97-O97 -> 23528 | Q97: 94.56971743 | R97: 2 | S97: 0 | T97: 18 | U97: 915 | V97: 88 | W97: 3.999999999 | X97: 68353.07351 | Y97: 88 | Z97: 18 | AA97: 915 | AB97: 88 | AC97: 3.999999999 | AD97: 68353.07351
A98: 00180998 | B98: 0018 | C98: 0998 | D98: 89 | E98: 18 | G98: 998 | I98: 0 | J98: 0 | K98: 0 | L98: =IF(K99>0, K98/K99, 0) -> 0 | N98: =ROUND(M99*L98,0) -> 0 | O98: 0 | P98: =N98-O98 -> 0 | Q98: 0 | R98: 0 | S98: 0 | T98: 18 | U98: 998 | V98: 89 | W98: 0 | X98: 0 | Y98: 89 | Z98: 18 | AA98: 998 | AB98: 89 | AC98: 0 | AD98: 0
A99: 00180999 | B99: 0018 | C99: 0999 | D99: 90 | E99: 18 | F99: Avon | G99: 999 | H99: Total | I99: 6523721.665 | J99: 1 | K99: =SUM(K95:K98) -> 7247159.265 | L99: =SUM(L95:L98) -> 1 | M99: =VLOOKUP(E99,town351,22) -> 5132410 | N99: =SUM(N95:N98) -> 5132409 | O99: 4926654 | P99: =SUM(P95:P98) -> 205755 | Q99: 4.176363918 | R99: 592 | S99: 0 | T99: 18 | U99: 999 | V99: 90 | W99: 623 | X99: 7247159.265 | Y99: 90 | Z99: 18 | AA99: 999 | AB99: 90 | AC99: 623 | AD99: 7247159.265
A100: 00190019 | B100: 0019 | C100: 0019 | D100: 91 | E100: 19 | F100: Ayer | G100: 19 | H100: Ayer | I100: 0 | J100: 0 | K100: =X100 -> 0 | L100: =IF(K104>0, K100/K104, 0) -> 0 | N100: =ROUND(M104*L100,0) -> 0 | O100: 0 | P100: =N100-O100 -> 0 | Q100: 0 | R100: 0 | S100: 0 | T100: 19 | U100: 19 | V100: 91 | W100: 0 | X100: 0 | Y100: 91 | Z100: 19 | AA100: 19 | AB100: 91 | AC100: 0 | AD100: 0
A101: 00190616 | B101: 0019 | C101: 0616 | D101: 92 | E101: 19 | F101: Ayer | G101: 616 | H101: Ayer Shirley | I101: 10071670.79 | J101: 0.9293608235 | K101: 9988703.748 | L101: =IF(K104>0, K101/K104, 0) -> 0.9274031692 | N101: =ROUND(M104*L101,0) -> 7215157 | O101: 6843717 | P101: =N101-O101 -> 371440 | Q101: 5.427459961 | R101: 998.7213847 | S101: 0 | T101: 19 | U101: 616 | V101: 92 | W101: 953.354394 | X101: 9988703.748 | Y101: 92 | Z101: 19 | AA101: 616 | AB101: 92 | AC101: 953.354394 | AD101: 9988703.748
A102: 00190852 | B102: 0019 | C102: 0852 | D102: 93 | E102: 19 | F102: Ayer | G102: 852 | H102: Nashoba Valley | I102: 765531.0111 | J102: 0.07063917654 | K102: 781912.613 | L102: =IF(K104>0, K102/K104, 0) -> 0.07259683075 | N102: =ROUND(M104*L102,0) -> 564800 | O102: 520180 | P102: =N102-O102 -> 44620 | Q102: 8.577799992 | R102: 48 | S102: 0 | T102: 19 | U102: 852 | V102: 93 | W102: 48 | X102: 781912.613 | Y102: 93 | Z102: 19 | AA102: 852 | AB102: 93 | AC102: 48 | AD102: 781912.613
A103: 00190998 | B103: 0019 | C103: 0998 | D103: 94 | E103: 19 | G103: 998 | I103: 0 | J103: 0 | K103: 0 | L103: =IF(K104>0, K103/K104, 0) -> 0 | N103: =ROUND(M104*L103,0) -> 0 | O103: 0 | P103: =N103-O103 -> 0 | Q103: 0 | R103: 0 | S103: 0 | T103: 19 | U103: 998 | V103: 94 | W103: 0 | X103: 0 | Y103: 94 | Z103: 19 | AA103: 998 | AB103: 94 | AC103: 0 | AD103: 0
A104: 00190999 | B104: 0019 | C104: 0999 | D104: 95 | E104: 19 | F104: Ayer | G104: 999 | H104: Total | I104: 10837201.8 | J104: 1 | K104: =SUM(K100:K103) -> 10770616.36 | L104: =SUM(L100:L103) -> 1 | M104: =VLOOKUP(E104,town351,22) -> 7779957 | N104: =SUM(N100:N103) -> 7779957 | O104: 7363897 | P104: =SUM(P100:P103) -> 416060 | Q104: 5.649997549 | R104: 1046.721385 | S104: 0 | T104: 19 | U104: 999 | V104: 95 | W104: 1001.354394 | X104: 10770616.36 | Y104: 95 | Z104: 19 | AA104: 999 | AB104: 95 | AC104: 1001.354394 | AD104: 10770616.36
A105: 00200020 | B105: 0020 | C105: 0020 | D105: 96 | E105: 20 | F105: Barnstable | G105: 20 | H105: Barnstable | I105: 58000134.65 | J105: 0.9508039334 | K105: =X105 -> 60393953.44 | L105: =IF(K109>0, K105/K109, 0) -> 0.952336101 | N105: =ROUND(M109*L105,0) -> 49825012 | O105: 48045485 | P105: =N105-O105 -> 1779527 | Q105: 3.703838144 | R105: 5475 | S105: 0 | T105: 20 | U105: 20 | V105: 96 | W105: 5480 | X105: 60393953.44 | Y105: 96 | Z105: 20 | AA105: 20 | AB105: 96 | AC105: 5480 | AD105: 60393953.44
A106: 00200815 | B106: 0020 | C106: 0815 | D106: 97 | E106: 20 | F106: Barnstable | G106: 815 | H106: Cape Cod | I106: 3001016.706 | J106: 0.04919606662 | K106: 3022684.212 | L106: =IF(K109>0, K106/K109, 0) -> 0.047663899 | N106: =ROUND(M109*L106,0) -> 2493714 | O106: 2485948 | P106: =N106-O106 -> 7766 | Q106: 0.312395915 | R106: 183 | S106: 0 | T106: 20 | U106: 815 | V106: 97 | W106: 179 | X106: 3022684.212 | Y106: 97 | Z106: 20 | AA106: 815 | AB106: 97 | AC106: 179 | AD106: 3022684.212
A107: 00200998 | B107: 0020 | C107: 0998 | D107: 98 | E107: 20 | G107: 998 | I107: 0 | J107: 0 | K107: 0 | L107: =IF(K109>0, K107/K109, 0) -> 0 | N107: =ROUND(M109*L107,0) -> 0 | O107: 0 | P107: =N107-O107 -> 0 | Q107: 0 | R107: 0 | S107: 0 | T107: 20 | U107: 998 | V107: 98 | W107: 0 | X107: 0 | Y107: 98 | Z107: 20 | AA107: 998 | AB107: 98 | AC107: 0 | AD107: 0
A108: 00200998 | B108: 0020 | C108: 0998 | D108: 99 | E108: 20 | G108: 998 | I108: 0 | J108: 0 | K108: 0 | L108: =IF(K109>0, K108/K109, 0) -> 0 | N108: =ROUND(M109*L108,0) -> 0 | O108: 0 | P108: =N108-O108 -> 0 | Q108: 0 | R108: 0 | S108: 0 | T108: 20 | U108: 998 | V108: 99 | W108: 0 | X108: 0 | Y108: 99 | Z108: 20 | AA108: 998 | AB108: 99 | AC108: 0 | AD108: 0
A109: 00200999 | B109: 0020 | C109: 0999 | D109: 100 | E109: 20 | F109: Barnstable | G109: 999 | H109: Total | I109: 61001151.36 | J109: 1 | K109: =SUM(K105:K108) -> 63416637.65 | L109: =SUM(L105:L108) -> 1 | M109: =VLOOKUP(E109,town351,22) -> 52318726 | N109: =SUM(N105:N108) -> 52318726 | O109: 50531433 | P109: =SUM(P105:P108) -> 1787293 | Q109: 3.536992509 | R109: 5658 | S109: 0 | T109: 20 | U109: 999 | V109: 100 | W109: 5659 | X109: 63416637.65 | Y109: 100 | Z109: 20 | AA109: 999 | AB109: 100 | AC109: 5659 | AD109: 63416637.65
A110: 00210021 | B110: 0021 | C110: 0021 | D110: 101 | E110: 21 | F110: Barre | G110: 21 | H110: Barre | I110: 0 | J110: 0 | K110: =X110 -> 0 | L110: =IF(K114>0, K110/K114, 0) -> 0 | N110: =ROUND(M114*L110,0) -> 0 | O110: 0 | P110: =N110-O110 -> 0 | Q110: 0 | R110: 0 | S110: 0 | T110: 21 | U110: 21 | V110: 101 | W110: 0 | X110: 0 | Y110: 101 | Z110: 21 | AA110: 21 | AB110: 101 | AC110: 0 | AD110: 0
A111: 00210753 | B111: 0021 | C111: 0753 | D111: 102 | E111: 21 | F111: Barre | G111: 753 | H111: Quabbin | I111: 7877386.801 | J111: 0.9231583191 | K111: 8357183.38 | L111: =IF(K114>0, K111/K114, 0) -> 0.9212855705 | N111: =ROUND(M114*L111,0) -> 3282113 | O111: 3274027 | P111: =N111-O111 -> 8086 | Q111: 0.2469741392 | R111: 770.4836104 | S111: 0 | T111: 21 | U111: 753 | V111: 102 | W111: 790.1778412 | X111: 8357183.38 | Y111: 102 | Z111: 21 | AA111: 753 | AB111: 102 | AC111: 790.1778412 | AD111: 8357183.38
A112: 00210832 | B112: 0021 | C112: 0832 | D112: 103 | E112: 21 | F112: Barre | G112: 832 | H112: Montachusett | I112: 655696.4613 | J112: 0.07684168092 | K112: 714035.8459 | L112: =IF(K114>0, K112/K114, 0) -> 0.07871442946 | N112: =ROUND(M114*L112,0) -> 280423 | O112: 272523 | P112: =N112-O112 -> 7900 | Q112: 2.898837896 | R112: 42.02809364 | S112: 0 | T112: 21 | U112: 832 | V112: 103 | W112: 44.02960968 | X112: 714035.8459 | Y112: 103 | Z112: 21 | AA112: 832 | AB112: 103 | AC112: 44.02960968 | AD112: 714035.8459
A113: 00210998 | B113: 0021 | C113: 0998 | D113: 104 | E113: 21 | G113: 998 | I113: 0 | J113: 0 | K113: 0 | L113: =IF(K114>0, K113/K114, 0) -> 0 | N113: =ROUND(M114*L113,0) -> 0 | O113: 0 | P113: =N113-O113 -> 0 | Q113: 0 | R113: 0 | S113: 0 | T113: 21 | U113: 998 | V113: 104 | W113: 0 | X113: 0 | Y113: 104 | Z113: 21 | AA113: 998 | AB113: 104 | AC113: 0 | AD113: 0
A114: 00210999 | B114: 0021 | C114: 0999 | D114: 105 | E114: 21 | F114: Barre | G114: 999 | H114: Total | I114: 8533083.263 | J114: 1 | K114: =SUM(K110:K113) -> 9071219.226 | L114: =SUM(L110:L113) -> 1 | M114: =VLOOKUP(E114,town351,22) -> 3562536 | N114: =SUM(N110:N113) -> 3562536 | O114: 3546550 | P114: =SUM(P110:P113) -> 15986 | Q114: 0.4507479099 | R114: 812.5117041 | S114: 0 | T114: 21 | U114: 999 | V114: 105 | W114: 834.2074509 | X114: 9071219.226 | Y114: 105 | Z114: 21 | AA114: 999 | AB114: 105 | AC114: 834.2074509 | AD114: 9071219.226
A115: 00220022 | B115: 0022 | C115: 0022 | D115: 106 | E115: 22 | F115: Becket | G115: 22 | H115: Becket | I115: 173216.8493 | J115: 0.0743233593 | K115: =X115 -> 206187.51 | L115: =IF(K119>0, K115/K119, 0) -> 0.08517180085 | N115: =ROUND(M119*L115,0) -> 157270 | O115: 131694 | P115: =N115-O115 -> 25576 | Q115: 19.42077847 | R115: 11 | S115: 0 | T115: 22 | U115: 22 | V115: 106 | W115: 13 | X115: 206187.51 | Y115: 106 | Z115: 22 | AA115: 22 | AB115: 106 | AC115: 13 | AD115: 206187.51
A116: 00220635 | B116: 0022 | C116: 0635 | D116: 107 | E116: 22 | F116: Becket | G116: 635 | H116: Central Berkshire | I116: 2157367.384 | J116: 0.9256766407 | K116: 2214654.928 | L116: =IF(K119>0, K116/K119, 0) -> 0.9148281992 | N116: =ROUND(M119*L116,0) -> 1689234 | O116: 1640213 | P116: =N116-O116 -> 49021 | Q116: 2.9886972 | R116: 208.7839806 | S116: 0 | T116: 22 | U116: 635 | V116: 107 | W116: 205.0704225 | X116: 2214654.928 | Y116: 107 | Z116: 22 | AA116: 635 | AB116: 107 | AC116: 205.0704225 | AD116: 2214654.928
A117: 00220998 | B117: 0022 | C117: 0998 | D117: 108 | E117: 22 | G117: 998 | I117: 0 | J117: 0 | K117: 0 | L117: =IF(K119>0, K117/K119, 0) -> 0 | N117: =ROUND(M119*L117,0) -> 0 | O117: 0 | P117: =N117-O117 -> 0 | Q117: 0 | R117: 0 | S117: 0 | T117: 22 | U117: 998 | V117: 108 | W117: 0 | X117: 0 | Y117: 108 | Z117: 22 | AA117: 998 | AB117: 108 | AC117: 0 | AD117: 0
A118: 00220998 | B118: 0022 | C118: 0998 | D118: 109 | E118: 22 | G118: 998 | I118: 0 | J118: 0 | K118: 0 | L118: =IF(K119>0, K118/K119, 0) -> 0 | N118: =ROUND(M119*L118,0) -> 0 | O118: 0 | P118: =N118-O118 -> 0 | Q118: 0 | R118: 0 | S118: 0 | T118: 22 | U118: 998 | V118: 109 | W118: 0 | X118: 0 | Y118: 109 | Z118: 22 | AA118: 998 | AB118: 109 | AC118: 0 | AD118: 0
A119: 00220999 | B119: 0022 | C119: 0999 | D119: 110 | E119: 22 | F119: Becket | G119: 999 | H119: Total | I119: 2330584.233 | J119: 1 | K119: =SUM(K115:K118) -> 2420842.438 | L119: =SUM(L115:L118) -> 1 | M119: =VLOOKUP(E119,town351,22) -> 1846504 | N119: =SUM(N115:N118) -> 1846504 | O119: 1771907 | P119: =SUM(P115:P118) -> 74597 | Q119: 4.209983933 | R119: 219.7839806 | S119: 0 | T119: 22 | U119: 999 | V119: 110 | W119: 218.0704225 | X119: 2420842.438 | Y119: 110 | Z119: 22 | AA119: 999 | AB119: 110 | AC119: 218.0704225 | AD119: 2420842.438
A120: 00230023 | B120: 0023 | C120: 0023 | D120: 111 | E120: 23 | F120: Bedford | G120: 23 | H120: Bedford | I120: 26915524.99 | J120: 0.9881502891 | K120: =X120 -> 27912085.89 | L120: =IF(K124>0, K120/K124, 0) -> 0.9892623389 | N120: =ROUND(M124*L120,0) -> 23027471 | O120: 22291183 | P120: =N120-O120 -> 736288 | Q120: 3.303045872 | R120: 2647 | S120: 0 | T120: 23 | U120: 23 | V120: 111 | W120: 2661 | X120: 27912085.89 | Y120: 111 | Z120: 23 | AA120: 23 | AB120: 111 | AC120: 2661 | AD120: 27912085.89
A121: 00230871 | B121: 0023 | C121: 0871 | D121: 112 | E121: 23 | F121: Bedford | G121: 871 | H121: Shawsheen Valley | I121: 322765.8718 | J121: 0.01184971089 | K121: 302963.6389 | L121: =IF(K124>0, K121/K124, 0) -> 0.01073766107 | N121: =ROUND(M124*L121,0) -> 249945 | O121: 267312 | P121: =N121-O121 -> -17367 | Q121: -6.496902496 | R121: 21 | S121: 0 | T121: 23 | U121: 871 | V121: 112 | W121: 19 | X121: 302963.6389 | Y121: 112 | Z121: 23 | AA121: 871 | AB121: 112 | AC121: 19 | AD121: 302963.6389
A122: 00230998 | B122: 0023 | C122: 0998 | D122: 113 | E122: 23 | G122: 998 | I122: 0 | J122: 0 | K122: 0 | L122: =IF(K124>0, K122/K124, 0) -> 0 | N122: =ROUND(M124*L122,0) -> 0 | O122: 0 | P122: =N122-O122 -> 0 | Q122: 0 | R122: 0 | S122: 0 | T122: 23 | U122: 998 | V122: 113 | W122: 0 | X122: 0 | Y122: 113 | Z122: 23 | AA122: 998 | AB122: 113 | AC122: 0 | AD122: 0
A123: 00230998 | B123: 0023 | C123: 0998 | D123: 114 | E123: 23 | G123: 998 | I123: 0 | J123: 0 | K123: 0 | L123: =IF(K124>0, K123/K124, 0) -> 0 | N123: =ROUND(M124*L123,0) -> 0 | O123: 0 | P123: =N123-O123 -> 0 | Q123: 0 | R123: 0 | S123: 0 | T123: 23 | U123: 998 | V123: 114 | W123: 0 | X123: 0 | Y123: 114 | Z123: 23 | AA123: 998 | AB123: 114 | AC123: 0 | AD123: 0
A124: 00230999 | B124: 0023 | C124: 0999 | D124: 115 | E124: 23 | F124: Bedford | G124: 999 | H124: Total | I124: 27238290.87 | J124: 1 | K124: =SUM(K120:K123) -> 28215049.53 | L124: =SUM(L120:L123) -> 1 | M124: =VLOOKUP(E124,town351,22) -> 23277416 | N124: =SUM(N120:N123) -> 23277416 | O124: 22558495 | P124: =SUM(P120:P123) -> 718921 | Q124: 3.186919163 | R124: 2668 | S124: 0 | T124: 23 | U124: 999 | V124: 115 | W124: 2680 | X124: 28215049.53 | Y124: 115 | Z124: 23 | AA124: 999 | AB124: 115 | AC124: 2680 | AD124: 28215049.53
A125: 00240024 | B125: 0024 | C125: 0024 | D125: 116 | E125: 24 | F125: Belchertown | G125: 24 | H125: Belchertown | I125: 23338797.01 | J125: 0.9333139595 | K125: =X125 -> 23863029.98 | L125: =IF(K129>0, K125/K129, 0) -> 0.9302301329 | N125: =ROUND(M129*L125,0) -> 11563925 | O125: 11231898 | P125: =N125-O125 -> 332027 | Q125: 2.956107685 | R125: 2374 | S125: 0 | T125: 24 | U125: 24 | V125: 116 | W125: 2344 | X125: 23863029.98 | Y125: 116 | Z125: 24 | AA125: 24 | AB125: 116 | AC125: 2344 | AD125: 23863029.98
A126: 00240860 | B126: 0024 | C126: 0860 | D126: 117 | E126: 24 | F126: Belchertown | G126: 860 | H126: Pathfinder | I126: 1667576.003 | J126: 0.0666860405 | K126: 1789794.128 | L126: =IF(K129>0, K126/K129, 0) -> 0.06976986706 | N126: =ROUND(M129*L126,0) -> 867327 | O126: 802528 | P126: =N126-O126 -> 64799 | Q126: 8.074360022 | R126: 101 | S126: 0 | T126: 24 | U126: 860 | V126: 117 | W126: 106 | X126: 1789794.128 | Y126: 117 | Z126: 24 | AA126: 860 | AB126: 117 | AC126: 106 | AD126: 1789794.128
A127: 00240998 | B127: 0024 | C127: 0998 | D127: 118 | E127: 24 | G127: 998 | I127: 0 | J127: 0 | K127: 0 | L127: =IF(K129>0, K127/K129, 0) -> 0 | N127: =ROUND(M129*L127,0) -> 0 | O127: 0 | P127: =N127-O127 -> 0 | Q127: 0 | R127: 0 | S127: 0 | T127: 24 | U127: 998 | V127: 118 | W127: 0 | X127: 0 | Y127: 118 | Z127: 24 | AA127: 998 | AB127: 118 | AC127: 0 | AD127: 0
A128: 00240998 | B128: 0024 | C128: 0998 | D128: 119 | E128: 24 | G128: 998 | I128: 0 | J128: 0 | K128: 0 | L128: =IF(K129>0, K128/K129, 0) -> 0 | N128: =ROUND(M129*L128,0) -> 0 | O128: 0 | P128: =N128-O128 -> 0 | Q128: 0 | R128: 0 | S128: 0 | T128: 24 | U128: 998 | V128: 119 | W128: 0 | X128: 0 | Y128: 119 | Z128: 24 | AA128: 998 | AB128: 119 | AC128: 0 | AD128: 0
A129: 00240999 | B129: 0024 | C129: 0999 | D129: 120 | E129: 24 | F129: Belchertown | G129: 999 | H129: Total | I129: 25006373.01 | J129: 1 | K129: =SUM(K125:K128) -> 25652824.11 | L129: =SUM(L125:L128) -> 1 | M129: =VLOOKUP(E129,town351,22) -> 12431252 | N129: =SUM(N125:N128) -> 12431252 | O129: 12034426 | P129: =SUM(P125:P128) -> 396826 | Q129: 3.297423575 | R129: 2475 | S129: 0 | T129: 24 | U129: 999 | V129: 120 | W129: 2450 | X129: 25652824.11 | Y129: 120 | Z129: 24 | AA129: 999 | AB129: 120 | AC129: 2450 | AD129: 25652824.11
A130: 00250025 | B130: 0025 | C130: 0025 | D130: 121 | E130: 25 | F130: Bellingham | G130: 25 | H130: Bellingham | I130: 22943454.17 | J130: 0.9399915621 | K130: =X130 -> 23842628.52 | L130: =IF(K134>0, K130/K134, 0) -> 0.9440503857 | N130: =ROUND(M134*L130,0) -> 15794941 | O130: 15348243 | P130: =N130-O130 -> 446698 | Q130: 2.910417824 | R130: 2332 | S130: 0 | T130: 25 | U130: 25 | V130: 121 | W130: 2330 | X130: 23842628.52 | Y130: 121 | Z130: 25 | AA130: 25 | AB130: 121 | AC130: 2330 | AD130: 23842628.52
A131: 00250805 | B131: 0025 | C131: 0805 | D131: 122 | E131: 25 | F131: Bellingham | G131: 805 | H131: Blackstone Valley | I131: 1283499.626 | J131: 0.05258488148 | K131: 1105456.372 | L131: =IF(K134>0, K131/K134, 0) -> 0.04377061504 | N131: =ROUND(M134*L131,0) -> 732328 | O131: 858609 | P131: =N131-O131 -> -126281 | Q131: -14.70762594 | R131: 85 | S131: 0 | T131: 25 | U131: 805 | V131: 122 | W131: 71 | X131: 1105456.372 | Y131: 122 | Z131: 25 | AA131: 805 | AB131: 122 | AC131: 71 | AD131: 1105456.372
A132: 00250915 | B132: 0025 | C132: 0915 | D132: 123 | E132: 25 | F132: Bellingham | G132: 915 | H132: Norfolk County | I132: 181195.2709 | J132: 0.007423556385 | K132: 307588.8309 | L132: =IF(K134>0, K132/K134, 0) -> 0.01217899923 | N132: =ROUND(M134*L132,0) -> 203767 | O132: 121212 | P132: =N132-O132 -> 82555 | Q132: 68.10794311 | R132: 11 | S132: 0 | T132: 25 | U132: 915 | V132: 123 | W132: 18 | X132: 307588.8309 | Y132: 123 | Z132: 25 | AA132: 915 | AB132: 123 | AC132: 18 | AD132: 307588.8309
A133: 00250998 | B133: 0025 | C133: 0998 | D133: 124 | E133: 25 | G133: 998 | I133: 0 | J133: 0 | K133: 0 | L133: =IF(K134>0, K133/K134, 0) -> 0 | N133: =ROUND(M134*L133,0) -> 0 | O133: 0 | P133: =N133-O133 -> 0 | Q133: 0 | R133: 0 | S133: 0 | T133: 25 | U133: 998 | V133: 124 | W133: 0 | X133: 0 | Y133: 124 | Z133: 25 | AA133: 998 | AB133: 124 | AC133: 0 | AD133: 0
A134: 00250999 | B134: 0025 | C134: 0999 | D134: 125 | E134: 25 | F134: Bellingham | G134: 999 | H134: Total | I134: 24408149.07 | J134: 1 | K134: =SUM(K130:K133) -> 25255673.72 | L134: =SUM(L130:L133) -> 1 | M134: =VLOOKUP(E134,town351,22) -> 16731036 | N134: =SUM(N130:N133) -> 16731036 | O134: 16328064 | P134: =SUM(P130:P133) -> 402972 | Q134: 2.467971708 | R134: 2428 | S134: 0 | T134: 25 | U134: 999 | V134: 125 | W134: 2419 | X134: 25255673.72 | Y134: 125 | Z134: 25 | AA134: 999 | AB134: 125 | AC134: 2419 | AD134: 25255673.72
A135: 00260026 | B135: 0026 | C135: 0026 | D135: 126 | E135: 26 | F135: Belmont | G135: 26 | H135: Belmont | I135: 42643514.6 | J135: 0.9880924372 | K135: =X135 -> 45512607.46 | L135: =IF(K139>0, K135/K139, 0) -> 0.9913942987 | N135: =ROUND(M139*L135,0) -> 36735671 | O135: 34843282 | P135: =N135-O135 -> 1892389 | Q135: 5.431144517 | R135: 4355 | S135: 0 | T135: 26 | U135: 26 | V135: 126 | W135: 4488 | X135: 45512607.46 | Y135: 126 | Z135: 26 | AA135: 26 | AB135: 126 | AC135: 4488 | AD135: 45512607.46
A136: 00260830 | B136: 0026 | C136: 0830 | D136: 127 | E136: 26 | F136: Belmont | G136: 830 | H136: Minuteman | I136: 513899.6208 | J136: 0.01190756282 | K136: 395067.7402 | L136: =IF(K139>0, K136/K139, 0) -> 0.008605701301 | N136: =ROUND(M139*L136,0) -> 318880 | O136: 419899 | P136: =N136-O136 -> -101019 | Q136: -24.05792822 | R136: 28.08115942 | S136: 0 | T136: 26 | U136: 830 | V136: 127 | W136: 22.06451613 | X136: 395067.7402 | Y136: 127 | Z136: 26 | AA136: 830 | AB136: 127 | AC136: 22.06451613 | AD136: 395067.7402
A137: 00260998 | B137: 0026 | C137: 0998 | D137: 128 | E137: 26 | G137: 998 | I137: 0 | J137: 0 | K137: 0 | L137: =IF(K139>0, K137/K139, 0) -> 0 | N137: =ROUND(M139*L137,0) -> 0 | O137: 0 | P137: =N137-O137 -> 0 | Q137: 0 | R137: 0 | S137: 0 | T137: 26 | U137: 998 | V137: 128 | W137: 0 | X137: 0 | Y137: 128 | Z137: 26 | AA137: 998 | AB137: 128 | AC137: 0 | AD137: 0
A138: =B138&C138 -> 00260998 | B138: 0026 | C138: 0998 | D138: 129 | E138: 26 | G138: 998 | I138: 0 | J138: 0 | K138: 0 | L138: =IF(K139>0, K138/K139, 0) -> 0 | N138: =ROUND(M139*L138,0) -> 0 | O138: 0 | P138: =N138-O138 -> 0 | Q138: 0 | R138: 0 | S138: =ABS(T138-E138)+ABS(U138-G138) -> 0 | T138: =VLOOKUP($D138, foundoptions, VLOOKUP($T$6, foundoptcell, 2, FALSE), FALSE) -> 26 | U138: =VLOOKUP($D138, foundoptions, VLOOKUP($T$6, foundoptcell, 2, FALSE)+1, FALSE) -> 998 | V138: =VLOOKUP($D138, foundoptions, VLOOKUP($T$6, foundoptcell, 2, FALSE)+2, FALSE) -> 129 | W138: =VLOOKUP($D138, foundoptions, VLOOKUP($T$6, foundoptcell, 2, FALSE)+3, FALSE) -> 0 | X138: =VLOOKUP($D138, foundoptions, VLOOKUP($T$6, foundoptcell, 2, FALSE)+4, FALSE) -> 0 | Y138: 129 | Z138: 26 | AA138: 998 | AB138: 129 | AC138: 0 | AD138: 0
A139: 00260999 | B139: 0026 | C139: 0999 | D139: 130 | E139: 26 | F139: Belmont | G139: 999 | H139: Total | I139: 43157414.22 | J139: 1 | K139: =SUM(K135:K138) -> 45907675.2 | L139: =SUM(L135:L138) -> 1 | M139: =VLOOKUP(E139,town351,22) -> 37054551 | N139: =SUM(N135:N138) -> 37054551 | O139: 35263181 | P139: =SUM(P135:P138) -> 1791370 | Q139: 5.080001149 | R139: 4383.081159 | S139: 0 | T139: 26 | U139: 999 | V139: 130 | W139: 4510.064516 | X139: 45907675.2 | Y139: =D139 -> 130 | Z139: 26 | AA139: 999 | AB139: 130 | AC139: 4510.064516 | AD139: 45907675.2
A140: 00270027 | B140: 0027 | C140: 0027 | D140: 131 | E140: 27 | F140: Berkley | G140: 27 | H140: Berkley | I140: 7359719.096 | J140: 0.6137185231 | K140: =X140 -> 7541762.29 | L140: =IF(K144>0, K140/K144, 0) -> 0.6173477677 | N140: =ROUND(M144*L140,0) -> 3837447 | O140: 3696563 | P140: =N140-O140 -> 140884 | Q140: 3.811215986 | R140: 784 | S140: 0 | T140: 27 | U140: 27 | V140: 131 | W140: 774 | X140: 7541762.29 | Y140: 131 | Z140: 27 | AA140: 27 | AB140: 131 | AC140: 774 | AD140: 7541762.29
A141: 00270763 | B141: 0027 | C141: 0763 | D141: 132 | E141: 27 | F141: Berkley | G141: 763 | H141: Somerset Berkley | I141: 3011540.841 | J141: 0.2511289321 | K141: 2968320.139 | L141: =IF(K144>0, K141/K144, 0) -> 0.2429784633 | N141: =ROUND(M144*L141,0) -> 1510359 | O141: 1512605 | P141: =N141-O141 -> -2246 | Q141: -0.1484855597 | R141: 277.2832311 | S141: 0 | T141: 27 | U141: 763 | V141: 132 | W141: 265 | X141: 2968320.139 | Y141: 132 | Z141: 27 | AA141: 763 | AB141: 132 | AC141: 265 | AD141: 2968320.139
A142: 00270810 | B142: 0027 | C142: 0810 | D142: 133 | E142: 27 | F142: Berkley | G142: 810 | H142: Bristol Plymouth | I142: 1495813.709 | J142: 0.1247341873 | K142: 1512814.346 | L142: =IF(K144>0, K142/K144, 0) -> 0.1238347913 | N142: =ROUND(M144*L142,0) -> 769760 | O142: 751302 | P142: =N142-O142 -> 18458 | Q142: 2.456801659 | R142: 94.56414104 | S142: 0 | T142: 27 | U142: 810 | V142: 133 | W142: 93.21104387 | X142: 1512814.346 | Y142: 133 | Z142: 27 | AA142: 810 | AB142: 133 | AC142: 93.21104387 | AD142: 1512814.346
A143: 00270910 | B143: 0027 | C143: 0910 | D143: 134 | E143: 27 | F143: Berkley | G143: 910 | H143: Bristol County | I143: 124937.0545 | J143: 0.01041835749 | K143: 193495.1602 | L143: =IF(K144>0, K143/K144, 0) -> 0.01583897776 | N143: =ROUND(M144*L143,0) -> 98455 | O143: 62752 | P143: =N143-O143 -> 35703 | Q143: 56.89539776 | R143: 8.000000001 | S143: 0 | T143: 27 | U143: 910 | V143: 134 | W143: 12 | X143: 193495.1602 | Y143: 134 | Z143: 27 | AA143: 910 | AB143: 134 | AC143: 12 | AD143: 193495.1602
A144: 00270999 | B144: 0027 | C144: 0999 | D144: 135 | E144: 27 | F144: Berkley | G144: 999 | H144: Total | I144: 11992010.7 | J144: 1 | K144: =SUM(K140:K143) -> 12216391.94 | L144: =SUM(L140:L143) -> 1 | M144: =VLOOKUP(E144,town351,22) -> 6216022 | N144: =SUM(N140:N143) -> 6216021 | O144: 6023222 | P144: =SUM(P140:P143) -> 192799 | Q144: =IF(O144>0,P144*100/O144,IF(P144>0,100,0)) -> 3.200928008 | R144: 1163.847372 | S144: 0 | T144: 27 | U144: 999 | V144: 135 | W144: 1144.211044 | X144: 12216391.94 | Y144: 135 | Z144: 27 | AA144: 999 | AB144: 135 | AC144: 1144.211044 | AD144: 12216391.94
A145: 00280028 | B145: 0028 | C145: 0028 | D145: 136 | E145: 28 | F145: Berlin | G145: 28 | H145: Berlin | I145: 1603891.135 | J145: 0.4177961705 | K145: =X145 -> 1639651.663 | L145: =IF(K149>0, K145/K149, 0) -> 0.409965727 | N145: =ROUND(M149*L145,0) -> 1352713 | O145: 1339179 | P145: =N145-O145 -> 13534 | Q145: 1.010619193 | R145: 160 | S145: 0 | T145: 28 | U145: 28 | V145: 136 | W145: 159 | X145: 1639651.663 | Y145: 136 | Z145: 28 | AA145: 28 | AB145: 136 | AC145: 159 | AD145: 1639651.663
A146: 00280620 | B146: 0028 | C146: 0620 | D146: 137 | E146: 28 | F146: Berlin | G146: 620 | H146: Berlin Boylston | I146: 1914408.079 | J146: 0.498682452 | K146: 1939567.246 | L146: =IF(K149>0, K146/K149, 0) -> 0.4849542828 | N146: =ROUND(M149*L146,0) -> 1600143 | O146: 1598447 | P146: =N146-O146 -> 1696 | Q146: 0.1061029862 | R146: 197 | S146: 0 | T146: 28 | U146: 620 | V146: 137 | W146: 189.6860254 | X146: 1939567.246 | Y146: 137 | Z146: 28 | AA146: 620 | AB146: 137 | AC146: 189.6860254 | AD146: 1939567.246
A147: 00280801 | B147: 0028 | C147: 0801 | D147: 138 | E147: 28 | F147: Berlin | G147: 801 | H147: Assabet Valley | I147: 320632.8978 | J147: 0.08352137743 | K147: 420265.8159 | L147: =IF(K149>0, K147/K149, 0) -> 0.1050799902 | N147: =ROUND(M149*L147,0) -> 346719 | O147: 267714 | P147: =N147-O147 -> 79005 | Q147: 29.51097066 | R147: 19 | S147: 0 | T147: 28 | U147: 801 | V147: 138 | W147: 24 | X147: 420265.8159 | Y147: 138 | Z147: 28 | AA147: 801 | AB147: 138 | AC147: 24 | AD147: 420265.8159
A148: 00280998 | B148: 0028 | C148: 0998 | D148: 139 | E148: 28 | G148: 998 | I148: 0 | J148: 0 | K148: 0 | L148: =IF(K149>0, K148/K149, 0) -> 0 | N148: =ROUND(M149*L148,0) -> 0 | O148: 0 | P148: =N148-O148 -> 0 | Q148: 0 | R148: 0 | S148: 0 | T148: 28 | U148: 998 | V148: 139 | W148: 0 | X148: 0 | Y148: 139 | Z148: 28 | AA148: 998 | AB148: 139 | AC148: 0 | AD148: 0
A149: 00280999 | B149: 0028 | C149: 0999 | D149: 140 | E149: 28 | F149: Berlin | G149: 999 | H149: Total | I149: 3838932.112 | J149: 1 | K149: =SUM(K145:K148) -> 3999484.725 | L149: =SUM(L145:L148) -> 1 | M149: =VLOOKUP(E149,town351,22) -> 3299575 | N149: =SUM(N145:N148) -> 3299575 | O149: 3205340 | P149: =SUM(P145:P148) -> 94235 | Q149: 2.939937729 | R149: 376 | S149: 0 | T149: 28 | U149: 999 | V149: 140 | W149: 372.6860254 | X149: 3999484.725 | Y149: 140 | Z149: 28 | AA149: 999 | AB149: 140 | AC149: 372.6860254 | AD149: 3999484.725
A150: 00290029 | B150: 0029 | C150: 0029 | D150: 141 | E150: 29 | F150: Bernardston | G150: 29 | H150: Bernardston | I150: 0 | J150: 0 | K150: =X150 -> 0 | L150: =IF(K154>0, K150/K154, 0) -> 0 | N150: =ROUND(M154*L150,0) -> 0 | O150: 0 | P150: =N150-O150 -> 0 | Q150: 0 | R150: 0 | S150: 0 | T150: 29 | U150: 29 | V150: 141 | W150: 0 | X150: 0 | Y150: 141 | Z150: 29 | AA150: 29 | AB150: 141 | AC150: 0 | AD150: 0
A151: 00290750 | B151: 0029 | C151: 0750 | D151: 142 | E151: 29 | F151: Bernardston | G151: 750 | H151: Pioneer | I151: 2733049.748 | J151: 0.887048459 | K151: 2510445.984 | L151: =IF(K154>0, K151/K154, 0) -> 0.8462046523 | N151: =ROUND(M154*L151,0) -> 1412356 | O151: 1430433 | P151: =N151-O151 -> -18077 | Q151: -1.263743216 | R151: 267.1550069 | S151: 0 | T151: 29 | U151: 750 | V151: 142 | W151: 239.6345609 | X151: 2510445.984 | Y151: 142 | Z151: 29 | AA151: 750 | AB151: 142 | AC151: 239.6345609 | AD151: 2510445.984
A152: 00290818 | B152: 0029 | C152: 0818 | D152: 143 | E152: 29 | F152: Bernardston | G152: 818 | H152: Franklin County | I152: 348010.5033 | J152: 0.112951541 | K152: 456266.592 | L152: =IF(K154>0, K152/K154, 0) -> 0.1537953477 | N152: =ROUND(M154*L152,0) -> 256692 | O152: 182143 | P152: =N152-O152 -> 74549 | Q152: 40.92883064 | R152: 21 | S152: 0 | T152: 29 | U152: 818 | V152: 143 | W152: 27 | X152: 456266.592 | Y152: 143 | Z152: 29 | AA152: 818 | AB152: 143 | AC152: 27 | AD152: 456266.592
A153: 00290998 | B153: 0029 | C153: 0998 | D153: 144 | E153: 29 | G153: 998 | I153: 0 | J153: 0 | K153: 0 | L153: =IF(K154>0, K153/K154, 0) -> 0 | N153: =ROUND(M154*L153,0) -> 0 | O153: 0 | P153: =N153-O153 -> 0 | Q153: 0 | R153: 0 | S153: 0 | T153: 29 | U153: 998 | V153: 144 | W153: 0 | X153: 0 | Y153: 144 | Z153: 29 | AA153: 998 | AB153: 144 | AC153: 0 | AD153: 0
A154: 00290999 | B154: 0029 | C154: 0999 | D154: 145 | E154: 29 | F154: Bernardston | G154: 999 | H154: Total | I154: 3081060.251 | J154: 1 | K154: =SUM(K150:K153) -> 2966712.576 | L154: =SUM(L150:L153) -> 1 | M154: =VLOOKUP(E154,town351,22) -> 1669048 | N154: =SUM(N150:N153) -> 1669048 | O154: 1612576 | P154: =SUM(P150:P153) -> 56472 | Q154: 3.501974481 | R154: 288.1550069 | S154: 0 | T154: 29 | U154: 999 | V154: 145 | W154: 266.6345609 | X154: 2966712.576 | Y154: 145 | Z154: 29 | AA154: 999 | AB154: 145 | AC154: 266.6345609 | AD154: 2966712.576
A155: 00300030 | B155: 0030 | C155: 0030 | D155: 146 | E155: 30 | F155: Beverly | G155: 30 | H155: Beverly | I155: 45588032.86 | J155: 0.9588471636 | K155: =X155 -> 46490353.89 | L155: =IF(K159>0, K155/K159, 0) -> 0.9572881994 | N155: =ROUND(M159*L155,0) -> 38354542 | O155: 37741029 | P155: =N155-O155 -> 613513 | Q155: 1.625586308 | R155: 4444 | S155: 0 | T155: 30 | U155: 30 | V155: 146 | W155: 4398 | X155: 46490353.89 | Y155: 146 | Z155: 30 | AA155: 30 | AB155: 146 | AC155: 4398 | AD155: 46490353.89
A156: 00300817 | B156: 0030 | C156: 0817 | D156: 147 | E156: 30 | F156: Beverly | G156: 817 | H156: Essex North Shore | I156: 1956596.349 | J156: 0.04115283643 | K156: 2074283.092 | L156: =IF(K159>0, K156/K159, 0) -> 0.04271180062 | N156: =ROUND(M159*L156,0) -> 1711284 | O156: 1619810 | P156: =N156-O156 -> 91474 | Q156: 5.647205536 | R156: 123 | S156: 0 | T156: 30 | U156: 817 | V156: 147 | W156: 128 | X156: 2074283.092 | Y156: 147 | Z156: 30 | AA156: 817 | AB156: 147 | AC156: 128 | AD156: 2074283.092
A157: 00300998 | B157: 0030 | C157: 0998 | D157: 148 | E157: 30 | G157: 998 | I157: 0 | J157: 0 | K157: 0 | L157: =IF(K159>0, K157/K159, 0) -> 0 | N157: =ROUND(M159*L157,0) -> 0 | O157: 0 | P157: =N157-O157 -> 0 | Q157: 0 | R157: 0 | S157: 0 | T157: 30 | U157: 998 | V157: 148 | W157: 0 | X157: 0 | Y157: 148 | Z157: 30 | AA157: 998 | AB157: 148 | AC157: 0 | AD157: 0
A158: 00300998 | B158: 0030 | C158: 0998 | D158: 149 | E158: 30 | G158: 998 | I158: 0 | J158: 0 | K158: 0 | L158: =IF(K159>0, K158/K159, 0) -> 0 | N158: =ROUND(M159*L158,0) -> 0 | O158: 0 | P158: =N158-O158 -> 0 | Q158: 0 | R158: 0 | S158: 0 | T158: 30 | U158: 998 | V158: 149 | W158: 0 | X158: 0 | Y158: 149 | Z158: 30 | AA158: 998 | AB158: 149 | AC158: 0 | AD158: 0
A159: 00300999 | B159: 0030 | C159: 0999 | D159: 150 | E159: 30 | F159: Beverly | G159: 999 | H159: Total | I159: 47544629.21 | J159: 1 | K159: =SUM(K155:K158) -> 48564636.98 | L159: =SUM(L155:L158) -> 1 | M159: =VLOOKUP(E159,town351,22) -> 40065826 | N159: =SUM(N155:N158) -> 40065826 | O159: 39360839 | P159: =SUM(P155:P158) -> 704987 | Q159: 1.791087329 | R159: 4567 | S159: 0 | T159: 30 | U159: 999 | V159: 150 | W159: 4526 | X159: 48564636.98 | Y159: 150 | Z159: 30 | AA159: 999 | AB159: 150 | AC159: 4526 | AD159: 48564636.98
A160: 00310031 | B160: 0031 | C160: 0031 | D160: 151 | E160: 31 | F160: Billerica | G160: 31 | H160: Billerica | I160: 49374269.01 | J160: 0.8327898066 | K160: =X160 -> 50010476.06 | L160: =IF(K164>0, K160/K164, 0) -> 0.832729159 | N160: =ROUND(M164*L160,0) -> 37025362 | O160: 35556235 | P160: =N160-O160 -> 1469127 | Q160: 4.131840731 | R160: 5034 | S160: 0 | T160: 31 | U160: 31 | V160: 151 | W160: 4912 | X160: 50010476.06 | Y160: 151 | Z160: 31 | AA160: 31 | AB160: 151 | AC160: 4912 | AD160: 50010476.06
A161: 00310871 | B161: 0031 | C161: 0871 | D161: 152 | E161: 31 | F161: Billerica | G161: 871 | H161: Shawsheen Valley | I161: 9913523.206 | J161: 0.1672101934 | K161: 10045636.45 | L161: =IF(K164>0, K161/K164, 0) -> 0.167270841 | N161: =ROUND(M164*L161,0) -> 7437308 | O161: 7139094 | P161: =N161-O161 -> 298214 | Q161: 4.177196714 | R161: 645 | S161: 0 | T161: 31 | U161: 871 | V161: 152 | W161: 630 | X161: 10045636.45 | Y161: 152 | Z161: 31 | AA161: 871 | AB161: 152 | AC161: 630 | AD161: 10045636.45
A162: 00310998 | B162: 0031 | C162: 0998 | D162: 153 | E162: 31 | G162: 998 | I162: 0 | J162: 0 | K162: 0 | L162: =IF(K164>0, K162/K164, 0) -> 0 | N162: =ROUND(M164*L162,0) -> 0 | O162: 0 | P162: =N162-O162 -> 0 | Q162: 0 | R162: 0 | S162: 0 | T162: 31 | U162: 998 | V162: 153 | W162: 0 | X162: 0 | Y162: 153 | Z162: 31 | AA162: 998 | AB162: 153 | AC162: 0 | AD162: 0
A163: 00310998 | B163: 0031 | C163: 0998 | D163: 154 | E163: 31 | G163: 998 | I163: 0 | J163: 0 | K163: 0 | L163: =IF(K164>0, K163/K164, 0) -> 0 | N163: =ROUND(M164*L163,0) -> 0 | O163: 0 | P163: =N163-O163 -> 0 | Q163: 0 | R163: 0 | S163: 0 | T163: 31 | U163: 998 | V163: 154 | W163: 0 | X163: 0 | Y163: 154 | Z163: 31 | AA163: 998 | AB163: 154 | AC163: 0 | AD163: 0
A164: 00310999 | B164: 0031 | C164: 0999 | D164: 155 | E164: 31 | F164: Billerica | G164: 999 | H164: Total | I164: 59287792.22 | J164: 1 | K164: =SUM(K160:K163) -> 60056112.51 | L164: =SUM(L160:L163) -> 1 | M164: =VLOOKUP(E164,town351,22) -> 44462670 | N164: =SUM(N160:N163) -> 44462670 | O164: 42695329 | P164: =SUM(P160:P163) -> 1767341 | Q164: 4.139424713 | R164: 5679 | S164: 0 | T164: 31 | U164: 999 | V164: 155 | W164: 5542 | X164: 60056112.51 | Y164: 155 | Z164: 31 | AA164: 999 | AB164: 155 | AC164: 5542 | AD164: 60056112.51
A165: 00320032 | B165: 0032 | C165: 0032 | D165: 156 | E165: 32 | F165: Blackstone | G165: 32 | H165: Blackstone | I165: 293968.3494 | J165: 0.02044037844 | K165: =X165 -> 303047.63 | L165: =IF(K169>0, K165/K169, 0) -> 0.02048401944 | N165: =ROUND(M169*L165,0) -> 146874 | O165: 142085 | P165: =N165-O165 -> 4789 | Q165: 3.370517648 | R165: 20 | S165: 0 | T165: 32 | U165: 32 | V165: 156 | W165: 20 | X165: 303047.63 | Y165: 156 | Z165: 32 | AA165: 32 | AB165: 156 | AC165: 20 | AD165: 303047.63
A166: 00320622 | B166: 0032 | C166: 0622 | D166: 157 | E166: 32 | F166: Blackstone | G166: 622 | H166: Blackstone Millville | I166: 12940178.89 | J166: 0.8997640534 | K166: 13152292.87 | L166: =IF(K169>0, K166/K169, 0) -> 0.8890081829 | N166: =ROUND(M169*L166,0) -> 6374329 | O166: 6254416 | P166: =N166-O166 -> 119913 | Q166: 1.917253345 | R166: 1301.452695 | S166: 0 | T166: 32 | U166: 622 | V166: 157 | W166: 1279.134454 | X166: 13152292.87 | Y166: 157 | Z166: 32 | AA166: 622 | AB166: 157 | AC166: 1279.134454 | AD166: 13152292.87
A167: 00320805 | B167: 0032 | C167: 0805 | D167: 158 | E167: 32 | F167: Blackstone | G167: 805 | H167: Blackstone Valley | I167: 1147599.666 | J167: 0.07979556817 | K167: 1339003.493 | L167: =IF(K169>0, K167/K169, 0) -> 0.09050779768 | N167: =ROUND(M169*L167,0) -> 648955 | O167: 554673 | P167: =N167-O167 -> 94282 | Q167: 16.99776265 | R167: 76 | S167: 0 | T167: 32 | U167: 805 | V167: 158 | W167: 86 | X167: 1339003.493 | Y167: 158 | Z167: 32 | AA167: 805 | AB167: 158 | AC167: 86 | AD167: 1339003.493
A168: 00320998 | B168: 0032 | C168: 0998 | D168: 159 | E168: 32 | G168: 998 | I168: 0 | J168: 0 | K168: 0 | L168: =IF(K169>0, K168/K169, 0) -> 0 | N168: =ROUND(M169*L168,0) -> 0 | O168: 0 | P168: =N168-O168 -> 0 | Q168: 0 | R168: 0 | S168: 0 | T168: 32 | U168: 998 | V168: 159 | W168: 0 | X168: 0 | Y168: 159 | Z168: 32 | AA168: 998 | AB168: 159 | AC168: 0 | AD168: 0
A169: 00320999 | B169: 0032 | C169: 0999 | D169: 160 | E169: 32 | F169: Blackstone | G169: 999 | H169: Total | I169: 14381746.9 | J169: 1 | K169: =SUM(K165:K168) -> 14794343.99 | L169: =SUM(L165:L168) -> 1 | M169: =VLOOKUP(E169,town351,22) -> 7170158 | N169: =SUM(N165:N168) -> 7170158 | O169: 6951174 | P169: =SUM(P165:P168) -> 218984 | Q169: 3.150316767 | R169: 1397.452695 | S169: 0 | T169: 32 | U169: 999 | V169: 160 | W169: 1385.134454 | X169: 14794343.99 | Y169: 160 | Z169: 32 | AA169: 999 | AB169: 160 | AC169: 1385.134454 | AD169: 14794343.99
A170: 00330033 | B170: 0033 | C170: 0033 | D170: 161 | E170: 33 | F170: Blandford | G170: 33 | H170: Blandford | I170: 80501.00006 | J170: 0.06245340262 | K170: =X170 -> 110697.28 | L170: =IF(K174>0, K170/K174, 0) -> 0.08659184341 | N170: =ROUND(M174*L170,0) -> 91325 | O170: 67637 | P170: =N170-O170 -> 23688 | Q170: 35.02225113 | R170: 6 | S170: 0 | T170: 33 | U170: 33 | V170: 161 | W170: 8 | X170: 110697.28 | Y170: 161 | Z170: 33 | AA170: 33 | AB170: 161 | AC170: 8 | AD170: 110697.28
A171: 00330672 | B171: 0033 | C171: 0672 | D171: 162 | E171: 33 | F171: Blandford | G171: 672 | H171: Gateway | I171: 1208476.008 | J171: 0.9375465974 | K171: 1167682.711 | L171: =IF(K174>0, K171/K174, 0) -> 0.9134081566 | N171: =ROUND(M174*L171,0) -> 963338 | O171: 1015369 | P171: =N171-O171 -> -52031 | Q171: -5.124343958 | R171: 115.7636566 | S171: 0 | T171: 33 | U171: 672 | V171: 162 | W171: 108.006795 | X171: 1167682.711 | Y171: 162 | Z171: 33 | AA171: 672 | AB171: 162 | AC171: 108.006795 | AD171: 1167682.711
A172: 00330998 | B172: 0033 | C172: 0998 | D172: 163 | E172: 33 | G172: 998 | I172: 0 | J172: 0 | K172: 0 | L172: =IF(K174>0, K172/K174, 0) -> 0 | N172: =ROUND(M174*L172,0) -> 0 | O172: 0 | P172: =N172-O172 -> 0 | Q172: 0 | R172: 0 | S172: 0 | T172: 33 | U172: 998 | V172: 163 | W172: 0 | X172: 0 | Y172: 163 | Z172: 33 | AA172: 998 | AB172: 163 | AC172: 0 | AD172: 0
A173: 00330998 | B173: 0033 | C173: 0998 | D173: 164 | E173: 33 | G173: 998 | I173: 0 | J173: 0 | K173: 0 | L173: =IF(K174>0, K173/K174, 0) -> 0 | N173: =ROUND(M174*L173,0) -> 0 | O173: 0 | P173: =N173-O173 -> 0 | Q173: 0 | R173: 0 | S173: 0 | T173: 33 | U173: 998 | V173: 164 | W173: 0 | X173: 0 | Y173: 164 | Z173: 33 | AA173: 998 | AB173: 164 | AC173: 0 | AD173: 0
A174: 00330999 | B174: 0033 | C174: 0999 | D174: 165 | E174: 33 | F174: Blandford | G174: 999 | H174: Total | I174: 1288977.008 | J174: 1 | K174: =SUM(K170:K173) -> 1278379.991 | L174: =SUM(L170:L173) -> 1 | M174: =VLOOKUP(E174,town351,22) -> 1054663 | N174: =SUM(N170:N173) -> 1054663 | O174: 1083006 | P174: =SUM(P170:P173) -> -28343 | Q174: -2.61706768 | R174: 121.7636566 | S174: 0 | T174: 33 | U174: 999 | V174: 165 | W174: 116.006795 | X174: 1278379.991 | Y174: 165 | Z174: 33 | AA174: 999 | AB174: 165 | AC174: 116.006795 | AD174: 1278379.991
A175: 00340034 | B175: 0034 | C175: 0034 | D175: 166 | E175: 34 | F175: Bolton | G175: 34 | H175: Bolton | I175: 13854.83454 | J175: 0.001395272082 | K175: =X175 -> 14264.24656 | L175: =IF(K179>0, K175/K179, 0) -> 0.001335325678 | N175: =ROUND(M179*L175,0) -> 11464 | O175: 11515 | P175: =N175-O175 -> -51 | Q175: -0.4429005645 | R175: 1 | S175: 0 | T175: 34 | U175: 34 | V175: 166 | W175: 1 | X175: 14264.24656 | Y175: 166 | Z175: 34 | AA175: 34 | AB175: 166 | AC175: 1 | AD175: 14264.24656
A176: 00340725 | B176: 0034 | C176: 0725 | D176: 167 | E176: 34 | F176: Bolton | G176: 725 | H176: Nashoba | I176: 9714100.34 | J176: 0.9782731768 | K176: 10452467.17 | L176: =IF(K179>0, K176/K179, 0) -> 0.9784917668 | N176: =ROUND(M179*L176,0) -> 8400729 | O176: 8073490 | P176: =N176-O176 -> 327239 | Q176: 4.053253302 | R176: 1000.997888 | S176: 0 | T176: 34 | U176: 725 | V176: 167 | W176: 1037.266117 | X176: 10452467.17 | Y176: 167 | Z176: 34 | AA176: 725 | AB176: 167 | AC176: 1037.266117 | AD176: 10452467.17
A177: 00340830 | B177: 0034 | C177: 0830 | D177: 168 | E177: 34 | F177: Bolton | G177: 830 | H177: Minuteman | I177: 201889.1367 | J177: 0.02033155107 | K177: 215491.4947 | L177: =IF(K179>0, K177/K179, 0) -> 0.02017290749 | N177: =ROUND(M179*L177,0) -> 173192 | O177: 167792 | P177: =N177-O177 -> 5400 | Q177: 3.218270239 | R177: 11.03188406 | S177: 0 | T177: 34 | U177: 830 | V177: 168 | W177: 12.03519062 | X177: 215491.4947 | Y177: 168 | Z177: 34 | AA177: 830 | AB177: 168 | AC177: 12.03519062 | AD177: 215491.4947
A178: 00340998 | B178: 0034 | C178: 0998 | D178: 169 | E178: 34 | G178: 998 | I178: 0 | J178: 0 | K178: 0 | L178: =IF(K179>0, K178/K179, 0) -> 0 | N178: =ROUND(M179*L178,0) -> 0 | O178: 0 | P178: =N178-O178 -> 0 | Q178: 0 | R178: 0 | S178: 0 | T178: 34 | U178: 998 | V178: 169 | W178: 0 | X178: 0 | Y178: 169 | Z178: 34 | AA178: 998 | AB178: 169 | AC178: 0 | AD178: 0
A179: 00340999 | B179: 0034 | C179: 0999 | D179: 170 | E179: 34 | F179: Bolton | G179: 999 | H179: Total | I179: 9929844.312 | J179: 1 | K179: =SUM(K175:K178) -> 10682222.92 | L179: =SUM(L175:L178) -> 1 | M179: =VLOOKUP(E179,town351,22) -> 8585385 | N179: =SUM(N175:N178) -> 8585385 | O179: 8252797 | P179: =SUM(P175:P178) -> 332588 | Q179: 4.030003404 | R179: 1013.029772 | S179: 0 | T179: 34 | U179: 999 | V179: 170 | W179: 1050.301307 | X179: 10682222.92 | Y179: 170 | Z179: 34 | AA179: 999 | AB179: 170 | AC179: 1050.301307 | AD179: 10682222.92
A180: 00350035 | B180: 0035 | C180: 0035 | D180: 171 | E180: 35 | F180: Boston | G180: 35 | H180: Boston | I180: 829896970.5 | J180: 1 | K180: =X180 -> 861999611.9 | L180: =IF(K184>0, K180/K184, 0) -> 1 | N180: =ROUND(M184*L180,0) -> 711149680 | O180: 686260642 | P180: =N180-O180 -> 24889038 | Q180: 3.626761682 | R180: 64602 | S180: 0 | T180: 35 | U180: 35 | V180: 171 | W180: 64508 | X180: 861999611.9 | Y180: 171 | Z180: 35 | AA180: 35 | AB180: 171 | AC180: 64508 | AD180: 861999611.9
A181: 00350998 | B181: 0035 | C181: 0998 | D181: 172 | E181: 35 | G181: 998 | I181: 0 | J181: 0 | K181: 0 | L181: =IF(K184>0, K181/K184, 0) -> 0 | N181: =ROUND(M184*L181,0) -> 0 | O181: 0 | P181: =N181-O181 -> 0 | Q181: 0 | R181: 0 | S181: 0 | T181: 35 | U181: 998 | V181: 172 | W181: 0 | X181: 0 | Y181: 172 | Z181: 35 | AA181: 998 | AB181: 172 | AC181: 0 | AD181: 0
A182: 00350998 | B182: 0035 | C182: 0998 | D182: 173 | E182: 35 | G182: 998 | I182: 0 | J182: 0 | K182: 0 | L182: =IF(K184>0, K182/K184, 0) -> 0 | N182: =ROUND(M184*L182,0) -> 0 | O182: 0 | P182: =N182-O182 -> 0 | Q182: 0 | R182: 0 | S182: 0 | T182: 35 | U182: 998 | V182: 173 | W182: 0 | X182: 0 | Y182: 173 | Z182: 35 | AA182: 998 | AB182: 173 | AC182: 0 | AD182: 0
A183: 00350998 | B183: 0035 | C183: 0998 | D183: 174 | E183: 35 | G183: 998 | I183: 0 | J183: 0 | K183: 0 | L183: =IF(K184>0, K183/K184, 0) -> 0 | N183: =ROUND(M184*L183,0) -> 0 | O183: 0 | P183: =N183-O183 -> 0 | Q183: 0 | R183: 0 | S183: 0 | T183: 35 | U183: 998 | V183: 174 | W183: 0 | X183: 0 | Y183: 174 | Z183: 35 | AA183: 998 | AB183: 174 | AC183: 0 | AD183: 0
A184: 00350999 | B184: 0035 | C184: 0999 | D184: 175 | E184: 35 | F184: Boston | G184: 999 | H184: Total | I184: 829896970.5 | J184: 1 | K184: =SUM(K180:K183) -> 861999611.9 | L184: =SUM(L180:L183) -> 1 | M184: =VLOOKUP(E184,town351,22) -> 711149680 | N184: =SUM(N180:N183) -> 711149680 | O184: 686260642 | P184: =SUM(P180:P183) -> 24889038 | Q184: 3.626761682 | R184: 64602 | S184: 0 | T184: 35 | U184: 999 | V184: 175 | W184: 64508 | X184: 861999611.9 | Y184: 175 | Z184: 35 | AA184: 999 | AB184: 175 | AC184: 64508 | AD184: 861999611.9
A185: 00360036 | B185: 0036 | C185: 0036 | D185: 176 | E185: 36 | F185: Bourne | G185: 36 | H185: Bourne | I185: 20067959.03 | J185: 0.8680478011 | K185: =X185 -> 21368782.29 | L185: =IF(K189>0, K185/K189, 0) -> 0.8829556615 | N185: =ROUND(M189*L185,0) -> 17629245 | O185: 16608266 | P185: =N185-O185 -> 1020979 | Q185: 6.147414787 | R185: 1981 | S185: 0 | T185: 36 | U185: 36 | V185: 176 | W185: 2038 | X185: 21368782.29 | Y185: 176 | Z185: 36 | AA185: 36 | AB185: 176 | AC185: 2038 | AD185: 21368782.29
A186: 00360879 | B186: 0036 | C186: 0879 | D186: 177 | E186: 36 | F186: Bourne | G186: 879 | H186: Upper Cape Cod | I186: 3050536.295 | J186: 0.1319521989 | K186: 2832639.392 | L186: =IF(K189>0, K186/K189, 0) -> 0.1170443385 | N186: =ROUND(M189*L186,0) -> 2336928 | O186: 2524627 | P186: =N186-O186 -> -187699 | Q186: -7.43472204 | R186: 193.7378378 | S186: 0 | T186: 36 | U186: 879 | V186: 177 | W186: 175 | X186: 2832639.392 | Y186: 177 | Z186: 36 | AA186: 879 | AB186: 177 | AC186: 175 | AD186: 2832639.392
A187: 00360998 | B187: 0036 | C187: 0998 | D187: 178 | E187: 36 | G187: 998 | I187: 0 | J187: 0 | K187: 0 | L187: =IF(K189>0, K187/K189, 0) -> 0 | N187: =ROUND(M189*L187,0) -> 0 | O187: 0 | P187: =N187-O187 -> 0 | Q187: 0 | R187: 0 | S187: 0 | T187: 36 | U187: 998 | V187: 178 | W187: 0 | X187: 0 | Y187: 178 | Z187: 36 | AA187: 998 | AB187: 178 | AC187: 0 | AD187: 0
A188: 00360998 | B188: 0036 | C188: 0998 | D188: 179 | E188: 36 | G188: 998 | I188: 0 | J188: 0 | K188: 0 | L188: =IF(K189>0, K188/K189, 0) -> 0 | N188: =ROUND(M189*L188,0) -> 0 | O188: 0 | P188: =N188-O188 -> 0 | Q188: 0 | R188: 0 | S188: 0 | T188: 36 | U188: 998 | V188: 179 | W188: 0 | X188: 0 | Y188: 179 | Z188: 36 | AA188: 998 | AB188: 179 | AC188: 0 | AD188: 0
A189: 00360999 | B189: 0036 | C189: 0999 | D189: 180 | E189: 36 | F189: Bourne | G189: 999 | H189: Total | I189: 23118495.33 | J189: 1 | K189: =SUM(K185:K188) -> 24201421.68 | L189: =SUM(L185:L188) -> 1 | M189: =VLOOKUP(E189,town351,22) -> 19966173 | N189: =SUM(N185:N188) -> 19966173 | O189: 19132893 | P189: =SUM(P185:P188) -> 833280 | Q189: 4.355222182 | R189: 2174.737838 | S189: 0 | T189: 36 | U189: 999 | V189: 180 | W189: 2213 | X189: 24201421.68 | Y189: 180 | Z189: 36 | AA189: 999 | AB189: 180 | AC189: 2213 | AD189: 24201421.68
A190: 00370037 | B190: 0037 | C190: 0037 | D190: 181 | E190: 37 | F190: Boxborough | G190: 37 | H190: Boxborough | I190: 88385.02166 | J190: 0.0107351902 | K190: =X190 -> 106694.35 | L190: =IF(K194>0, K190/K194, 0) -> 0.01223870901 | N190: =ROUND(M194*L190,0) -> 87553 | O190: 73448 | P190: =N190-O190 -> 14105 | Q190: 19.20406274 | R190: 6 | S190: 0 | T190: 37 | U190: 37 | V190: 181 | W190: 7 | X190: 106694.35 | Y190: 181 | Z190: 37 | AA190: 37 | AB190: 181 | AC190: 7 | AD190: 106694.35
A191: 00370600 | B191: 0037 | C191: 0600 | D191: 182 | E191: 37 | F191: Boxborough | G191: 600 | H191: Acton Boxborough | I191: 8144819.981 | J191: 0.9892648098 | K191: 8611083.801 | L191: =IF(K194>0, K191/K194, 0) -> 0.987761291 | N191: =ROUND(M194*L191,0) -> 7066196 | O191: 6768317 | P191: =N191-O191 -> 297879 | Q191: 4.401079323 | R191: 829.856886 | S191: 0 | T191: 37 | U191: 600 | V191: 182 | W191: 848.4607105 | X191: 8611083.801 | Y191: 182 | Z191: 37 | AA191: 600 | AB191: 182 | AC191: 848.4607105 | AD191: 8611083.801
A192: 00370830 | B192: 0037 | C192: 0830 | D192: 183 | E192: 37 | G192: 998 | I192: 0 | J192: 0 | K192: 0 | L192: =IF(K194>0, K192/K194, 0) -> 0 | N192: =ROUND(M194*L192,0) -> 0 | O192: 0 | P192: =N192-O192 -> 0 | Q192: 0 | R192: 0 | S192: 168 | T192: 37 | U192: 830 | V192: 183 | W192: 0 | X192: 0 | Y192: 183 | Z192: 37 | AA192: 830 | AB192: 183 | AC192: 0 | AD192: 0
A193: 00370998 | B193: 0037 | C193: 0998 | D193: 184 | E193: 37 | G193: 998 | I193: 0 | J193: 0 | K193: 0 | L193: =IF(K194>0, K193/K194, 0) -> 0 | N193: =ROUND(M194*L193,0) -> 0 | O193: 0 | P193: =N193-O193 -> 0 | Q193: 0 | R193: 0 | S193: 0 | T193: 37 | U193: 998 | V193: 184 | W193: 0 | X193: 0 | Y193: 184 | Z193: 37 | AA193: 998 | AB193: 184 | AC193: 0 | AD193: 0
A194: 00370999 | B194: 0037 | C194: 0999 | D194: 185 | E194: 37 | F194: Boxborough | G194: 999 | H194: Total | I194: 8233205.003 | J194: 1 | K194: =SUM(K190:K193) -> 8717778.151 | L194: =SUM(L190:L193) -> 1 | M194: =VLOOKUP(E194,town351,22) -> 7153749 | N194: =SUM(N190:N193) -> 7153749 | O194: 6841765 | P194: =SUM(P190:P193) -> 311984 | Q194: 4.559992926 | R194: 835.856886 | S194: 0 | T194: 37 | U194: 999 | V194: 185 | W194: 855.4607105 | X194: 8717778.151 | Y194: 185 | Z194: 37 | AA194: 999 | AB194: 185 | AC194: 855.4607105 | AD194: 8717778.151
A195: 00380038 | B195: 0038 | C195: 0038 | D195: 186 | E195: 38 | F195: Boxford | G195: 38 | H195: Boxford | I195: 6728318.945 | J195: 0.4737594543 | K195: =X195 -> 6655216.908 | L195: =IF(K199>0, K195/K199, 0) -> 0.4677186164 | N195: =ROUND(M199*L195,0) -> 5490554 | O195: 5579890 | P195: =N195-O195 -> -89336 | Q195: -1.601035146 | R195: 739 | S195: 0 | T195: 38 | U195: 38 | V195: 186 | W195: 704 | X195: 6655216.908 | Y195: 186 | Z195: 38 | AA195: 38 | AB195: 186 | AC195: 704 | AD195: 6655216.908
A196: 00380705 | B196: 0038 | C196: 0705 | D196: 187 | E196: 38 | F196: Boxford | G196: 705 | H196: Masconomet | I196: 7187322.812 | J196: 0.5060791798 | K196: 7282191.189 | L196: =IF(K199>0, K196/K199, 0) -> 0.5117814241 | N196: =ROUND(M199*L196,0) -> 6007808 | O196: 5960548 | P196: =N196-O196 -> 47260 | Q196: 0.7928801177 | R196: 712.3785221 | S196: 0 | T196: 38 | U196: 705 | V196: 187 | W196: 700.7592191 | X196: 7282191.189 | Y196: 187 | Z196: 38 | AA196: 705 | AB196: 187 | AC196: 700.7592191 | AD196: 7282191.189
A197: 00380817 | B197: 0038 | C197: 0817 | D197: 188 | E197: 38 | F197: Boxford | G197: 817 | H197: Essex North Shore | I197: 286331.173 | J197: 0.02016136592 | K197: 291696.0598 | L197: =IF(K199>0, K197/K199, 0) -> 0.02049995956 | N197: =ROUND(M199*L197,0) -> 240649 | O197: 237458 | P197: =N197-O197 -> 3191 | Q197: 1.343816591 | R197: 18 | S197: 0 | T197: 38 | U197: 817 | V197: 188 | W197: 18 | X197: 291696.0598 | Y197: 188 | Z197: 38 | AA197: 817 | AB197: 188 | AC197: 18 | AD197: 291696.0598
A198: 00380998 | B198: 0038 | C198: 0998 | D198: 189 | E198: 38 | G198: 998 | I198: 0 | J198: 0 | K198: 0 | L198: =IF(K199>0, K198/K199, 0) -> 0 | N198: =ROUND(M199*L198,0) -> 0 | O198: 0 | P198: =N198-O198 -> 0 | Q198: 0 | R198: 0 | S198: 0 | T198: 38 | U198: 998 | V198: 189 | W198: 0 | X198: 0 | Y198: 189 | Z198: 38 | AA198: 998 | AB198: 189 | AC198: 0 | AD198: 0
A199: 00380999 | B199: 0038 | C199: 0999 | D199: 190 | E199: 38 | F199: Boxford | G199: 999 | H199: Total | I199: 14201972.93 | J199: 1 | K199: =SUM(K195:K198) -> 14229104.16 | L199: =SUM(L195:L198) -> 1 | M199: =VLOOKUP(E199,town351,22) -> 11739011 | N199: =SUM(N195:N198) -> 11739011 | O199: 11777896 | P199: =SUM(P195:P198) -> -38885 | Q199: -0.3301523464 | R199: 1469.378522 | S199: 0 | T199: 38 | U199: 999 | V199: 190 | W199: 1422.759219 | X199: 14229104.16 | Y199: 190 | Z199: 38 | AA199: 999 | AB199: 190 | AC199: 1422.759219 | AD199: 14229104.16
A200: 00390039 | B200: 0039 | C200: 0039 | D200: 191 | E200: 39 | F200: Boylston | G200: 39 | H200: Boylston | I200: 2629403.776 | J200: 0.4409818861 | K200: =X200 -> 2856144.64 | L200: =IF(K204>0, K200/K204, 0) -> 0.4346535656 | N200: =ROUND(M204*L200,0) -> 2256220 | O200: 2172204 | P200: =N200-O200 -> 84016 | Q200: 3.867776691 | R200: 275 | S200: 0 | T200: 39 | U200: 39 | V200: 191 | W200: 286 | X200: 2856144.64 | Y200: 191 | Z200: 39 | AA200: 39 | AB200: 191 | AC200: 286 | AD200: 2856144.64
... 1566 more rows

Sheet Index
A1: Massachusetts Department of Elementary and Secondary Education | J1: 2018-08-01
A2: =parameters!B1& " Chapter 70 and Net School Spending Formula Spreadsheet" -> FY19 Chapter 70 and Net School Spending Formula Spreadsheet
B3: Select or type full district name below | C3: LEA code
A4: =C4 -> 999 | B4: Select a district | C4: =VLOOKUP(B4,leas!$E$4:$F$447,2,FALSE) -> 999
B6: Use the drop-down menu to select a municipal or regional district and then go to any of the first four links below.
B7: Only municipal district selections will activate the Municipal Contribution Requirement and Regional Allocation reports.
B8: A list of LEAs by code begins on row 26 of this sheet.
B10: We recommend that you save this workbook to your computer before proceeding, then leave this browser, and open the workbook using Excel or My Computer.
B12: Summary
B13: Foundation Budget
B14: Municipal Contribution Requirement
B15: Regional Allocation
B17: Regional District Detail | D17: (go to this sheet to see any particular regional district's comparison of enrollment and minimum contributions to the prior year)
B19: There are also a number of "hidden" sheets which contain the underlying spreadsheet calculations.
B20: They can be accessed by right-clicking on any of the tabs below and choosing a sheet to unhide.
B22: Questions or comments about Chapter 70 may be directed to:
B23: Rob O'Donnell | D23: rodonnell@doe.mass.edu | G23: 781-338-6512
B24: Rob Hanna | D24: robert.hanna@doe.mass.edu | G24: 781-338-6525
A26: LEA | B26: District
A27: 1 | B27: Abington
A28: 2 | B28: Acton
A29: 3 | B29: Acushnet
A30: 4 | B30: Adams
A31: 5 | B31: Agawam
A32: 6 | B32: Alford
A33: 7 | B33: Amesbury
A34: 8 | B34: Amherst
A35: 9 | B35: Andover
A36: 10 | B36: Arlington
A37: 11 | B37: Ashburnham
A38: 12 | B38: Ashby
A39: 13 | B39: Ashfield
A40: 14 | B40: Ashland
A41: 15 | B41: Athol
A42: 16 | B42: Attleboro
A43: 17 | B43: Auburn
A44: 18 | B44: Avon
A45: 19 | B45: Ayer
A46: 20 | B46: Barnstable
A47: 21 | B47: Barre
A48: 22 | B48: Becket
A49: 23 | B49: Bedford
A50: 24 | B50: Belchertown
A51: 25 | B51: Bellingham
A52: 26 | B52: Belmont
A53: 27 | B53: Berkley
A54: 28 | B54: Berlin
A55: 29 | B55: Bernardston
A56: 30 | B56: Beverly
A57: 31 | B57: Billerica
A58: 32 | B58: Blackstone
A59: 33 | B59: Blandford
A60: 34 | B60: Bolton
A61: 35 | B61: Boston
A62: 36 | B62: Bourne
A63: 37 | B63: Boxborough
A64: 38 | B64: Boxford
A65: 39 | B65: Boylston
A66: 40 | B66: Braintree
A67: 41 | B67: Brewster
A68: 42 | B68: Bridgewater
A69: 43 | B69: Brimfield
A70: 44 | B70: Brockton
A71: 45 | B71: Brookfield
A72: 46 | B72: Brookline
A73: 47 | B73: Buckland
A74: 48 | B74: Burlington
A75: 49 | B75: Cambridge
A76: 50 | B76: Canton
A77: 51 | B77: Carlisle
A78: 52 | B78: Carver
A79: 53 | B79: Charlemont
A80: 54 | B80: Charlton
A81: 55 | B81: Chatham
A82: 56 | B82: Chelmsford
A83: 57 | B83: Chelsea
A84: 58 | B84: Cheshire
A85: 59 | B85: Chester
A86: 60 | B86: Chesterfield
A87: 61 | B87: Chicopee
A88: 62 | B88: Chilmark
A89: 63 | B89: Clarksburg
A90: 64 | B90: Clinton
A91: 65 | B91: Cohasset
A92: 66 | B92: Colrain
A93: 67 | B93: Concord
A94: 68 | B94: Conway
A95: 69 | B95: Cummington
A96: 70 | B96: Dalton
A97: 71 | B97: Danvers
A98: 72 | B98: Dartmouth
A99: 73 | B99: Dedham
A100: 74 | B100: Deerfield
A101: 75 | B101: Dennis
A102: 76 | B102: Dighton
A103: 77 | B103: Douglas
A104: 78 | B104: Dover
A105: 79 | B105: Dracut
A106: 80 | B106: Dudley
A107: 81 | B107: Dunstable
A108: 82 | B108: Duxbury
A109: 83 | B109: East Bridgewater
A110: 84 | B110: East Brookfield
A111: 85 | B111: Eastham
A112: 86 | B112: Easthampton
A113: 87 | B113: East Longmeadow
A114: 88 | B114: Easton
A115: 89 | B115: Edgartown
A116: 90 | B116: Egremont
A117: 91 | B117: Erving
A118: 92 | B118: Essex
A119: 93 | B119: Everett
A120: 94 | B120: Fairhaven
A121: 95 | B121: Fall River
A122: 96 | B122: Falmouth
A123: 97 | B123: Fitchburg
A124: 98 | B124: Florida
A125: 99 | B125: Foxborough
A126: 100 | B126: Framingham
A127: 101 | B127: Franklin
A128: 102 | B128: Freetown
A129: 103 | B129: Gardner
A130: 104 | B130: Gay Head
A131: 105 | B131: Georgetown
A132: 106 | B132: Gill
A133: 107 | B133: Gloucester
A134: 108 | B134: Goshen
A135: 109 | B135: Gosnold
A136: 110 | B136: Grafton
A137: 111 | B137: Granby
A138: 112 | B138: Granville
A139: 113 | B139: Great Barrington
A140: 114 | B140: Greenfield
A141: 115 | B141: Groton
A142: 116 | B142: Groveland
A143: 117 | B143: Hadley
A144: 118 | B144: Halifax
A145: 119 | B145: Hamilton
A146: 120 | B146: Hampden
A147: 121 | B147: Hancock
A148: 122 | B148: Hanover
A149: 123 | B149: Hanson
A150: 124 | B150: Hardwick
A151: 125 | B151: Harvard
A152: 126 | B152: Harwich
A153: 127 | B153: Hatfield
A154: 128 | B154: Haverhill
A155: 129 | B155: Hawley
A156: 130 | B156: Heath
A157: 131 | B157: Hingham
A158: 132 | B158: Hinsdale
A159: 133 | B159: Holbrook
A160: 134 | B160: Holden
A161: 135 | B161: Holland
A162: 136 | B162: Holliston
A163: 137 | B163: Holyoke
A164: 138 | B164: Hopedale
A165: 139 | B165: Hopkinton
A166: 140 | B166: Hubbardston
A167: 141 | B167: Hudson
A168: 142 | B168: Hull
A169: 143 | B169: Huntington
A170: 144 | B170: Ipswich
A171: 145 | B171: Kingston
A172: 146 | B172: Lakeville
A173: 147 | B173: Lancaster
A174: 148 | B174: Lanesborough
A175: 149 | B175: Lawrence
A176: 150 | B176: Lee
A177: 151 | B177: Leicester
A178: 152 | B178: Lenox
A179: 153 | B179: Leominster
A180: 154 | B180: Leverett
A181: 155 | B181: Lexington
A182: 156 | B182: Leyden
A183: 157 | B183: Lincoln
A184: 158 | B184: Littleton
A185: 159 | B185: Longmeadow
A186: 160 | B186: Lowell
A187: 161 | B187: Ludlow
A188: 162 | B188: Lunenburg
A189: 163 | B189: Lynn
A190: 164 | B190: Lynnfield
A191: 165 | B191: Malden
A192: 166 | B192: Manchester
A193: 167 | B193: Mansfield
A194: 168 | B194: Marblehead
A195: 169 | B195: Marion
A196: 170 | B196: Marlborough
A197: 171 | B197: Marshfield
A198: 172 | B198: Mashpee
A199: 173 | B199: Mattapoisett
A200: 174 | B200: Maynard
A201: 175 | B201: Medfield
A202: 176 | B202: Medford
A203: 177 | B203: Medway
A204: 178 | B204: Melrose
A205: 179 | B205: Mendon
A206: 180 | B206: Merrimac
A207: 181 | B207: Methuen
... 257 more rows

Sheet MoreAboutData
B1: FY19 Chapter 70 and Net School Spending Formula | C1: FY18 Chapter 70 and Net School Spending Formula Spreadsheet | D1: FY18 Chapter 70 and Net School Spending Formula Spreadsheet | E1: FY18 Chapter 70 and Net School Spending Formula Spreadsheet | F1: FY18 Chapter 70 and Net School Spending Formula Spreadsheet | G1: Return to Index
B2: More about the data
A3: TABLE OF CONTENTS
A4: Index | E4: Back to the top
A5: Select the district you're interested in from the dropdown list on this sheet.
A7: Foundation Budget | E7: Back to the top
A8: This report displays the foundation enrollment and foundation budget for a single district. A district’s foundation budget is updated each year and it is derived by multiplying the number of pupils in thirteen enrollment categories by cost rates in eleven functional areas. More on calculating the foundation budget can be found here:
A10: http://www.doe.mass.edu/finance/chapter70/chapter-cal.docx
A11: Key Terms
A12: Foundation Enrollment: A count of the students for whom a school district is financially responsible on October 1st of any given year. Inflation: Foundation budget rates are adjusted each year by a statutorily defined inflationary factor. It affects all districts in the same way. Wage Adjustment Factor (WAF): Gives a district credit for having higher school costs if it is located in a geographic area where average wages are higher than in other areas of the state. Calculated using the latest available average wage data supplied by the state’s Executive Office of Labor and Workforce Development (EOLWD). Economically Disadvantaged Decile: Determined based on the relative concentration of economically disadvantaged students served in the district (decile 10 includes the districts with the greatest concentration of these students). Corresponds to a foundation budget rate for economically disadvantaged students.
A13: Municipal Contribution | E13: Back to the top
A14: This report displays the required local contribution for a single municipality. Each municipality has a target local share of its foundation budget, based on local ability to pay. The required local contribution for each municipality is based on the previous year's required contribution, and includes some transition factors so that the shift toward the target levels occurs over a period of several years.
A16: Key Terms
A17: Equalized Valuation (EQV): Calculated by DOR every two years. Full and fair cash value of all taxable property for each municipality. Income: Derived annually by DOR from state income tax returns. Includes all forms of wage, pension, interest, business, investment, and capital gains income. Combined Effort Yield (CEY): Sum of property and income effort. Based on DESE-calculated property and income percentages, which, when applied to all municipalities in the Commonwealth, yields 59% of statewide foundation coming from local revenue. Target Local Contribution/Share: Calculated for each municipality as an equitable share of its foundation budget based on property wealth and income. Municipal Revenue Growth Factor (MRGF): Calculated each year by DOR and quantifies the most recent annual percentage change in each community's local revenues (such as the annual increase in the Proposition 2½ levy limit) that should be available for schools.
A18: Regional Allocation | E18: Back to the top
A19: This report displays the allocation of a municipality's required local contribution across the districts to which it belongs. The municipality's required contribution is allocated in direct proportion to the district's share of the municipality's foundation budget.
A21: Summary | E21: Back to the top
A22: This report displays the Chapter 70 aid calculation for a single district. The aid calculation begins with each district's prior year Chapter 70 amount. The difference between each district's foundation budget and its required contribution equals foundation aid. In FY19, each district is guaranteed to receive at least $20 per pupil in additional Chapter 70 aid. On the right-hand side, there is a comparison to the prior year.
A24: Key Terms
A25: Foundation Aid: The amount of aid needed by a district to reach its foundation budget, after factoring in this year's required local contribution. Foundation budget - Required Local Contribution = Foundation Aid Minimum Aid: A guaranteed per pupil aid increase over the prior year. Required Net School Spending (NSS): The sum of this year's required local contribution and Chapter 70 aid. A district must spend this amount to be in compliance.
A26: Regional District Members | E26: Back to the top
A27: This report displays relevant data for municipal members of a single regional district.
A29: Key Terms
A30: District Foundation Enrollment: Foundation enrollment for the selected district, in total and by member. District Required Minimum Contribution: Total required minimum contribution for the selected district, in total and by member. District's Share of Town Foundation Budget: The proportion of the town's total foundation budget related to students at the selected district. Municipalities often belong to more than one district. Town Required Local Contribution: The total municipal required local contribution for all of its students across all of the districts to which it belongs.
A31: Comparison to FY18 | E31: Back to the top
A32: This report displays prior year and current year foundation enrollment, foundation budget, required local contribution and Chapter 70 aid for all operating districts.
A34: Rates | E34: Back to the top
A35: This sheet displays the FY19 foundation budget rates, and the prior year (FY18) foundation budget rates. Rates are annually adjusted for inflation.
A37: Townwide Contributions | E37: Back to the top
A38: This sheet calculates FY19 required local contributions for each municipality.
A40: Aid436 | E40: Back to the top
A41: This sheet calculates FY19 Chapter 70 aid for each district.

Sheet Foundation Budget
A1: Return to Index | V1: More about the data
A2: Massachusetts Department of Elementary and Secondary Education
A3: Office of School Finance | C3: 2018-07-20
A4: =parameters!B1&" Chapter 70 Foundation Budget" -> FY19 Chapter 70 Foundation Budget
A5: =lea -> 999 | B5: =IF(lea=999,"State total cannot be computed on this page; Please enter an lea code on the index sheet",VLOOKUP(A5,dist915,2)) -> State total cannot be computed on this page; Please enter an lea code on the index sheet
C6: Base Foundation Components | K6: Incremental Costs Above The Base
C7: (1) | D7: (2) | E7: (3) | F7: (4) | G7: (5) | H7: (6) | I7: (7) | K7: (8) | L7: (9) | M7: (10) | N7: (11) | O7: (12) | P7: (13) | Q7: (14) | R7: (15) | S7: (16) | T7: (17)
C8: Pre- | D8: ------ Kindergarten ------ | G8: Jr High/ | H8: High | I8: Voca- | K8: Special Ed | L8: Special Ed | M8: ELL | N8: ELL | O8: ELL | P8: ELL | Q8: ELL | R8: ELL | S8: ELL | T8: Economically
C9: School | D9: Half-Day | E9: Full-Day | F9: Elementary | G9: Middle | H9: School | I9: tional | K9: In District | L9: Out of Dist | M9: PK | N9: K Half | O9: K Full | P9: Elementary | Q9: Junior/Middle | R9: High School | S9: Vocational | T9: Disadvantaged | V9: TOTAL*
B10: Foundation Enrollment | C10: =IF($A$5<>999,VLOOKUP(lea,dist915,3),0) -> 0 | D10: =IF(A5<>999,VLOOKUP(lea,dist915,4),0) -> 0 | E10: =IF(A5<>999,VLOOKUP(lea,dist915,5),0) -> 0 | F10: =IF(A5<>999,VLOOKUP(lea,dist915,6),0) -> 0 | G10: =IF(A5<>999,VLOOKUP(lea,dist915,7),0) -> 0 | H10: =IF(A5<>999,VLOOKUP(lea,dist915,8),0) -> 0 | I10: =IF(A5<>999,VLOOKUP(lea,dist915,18),0) -> 0 | K10: =IF(A5<>999,VLOOKUP(lea,dist915,9),0) -> 0 | L10: =IF(A5<>999,VLOOKUP(lea,dist915,10),0) -> 0 | M10: =IF(A5<>999,VLOOKUP(lea,dist915,11),0) -> 0 | N10: =IF(A5<>999,VLOOKUP(lea,dist915,12),0) -> 0 | O10: =IF(A5<>999,VLOOKUP(lea,dist915,13),0) -> 0 | P10: =IF(A5<>999,VLOOKUP(lea,dist915,14),0) -> 0 | Q10: =IF(A5<>999,VLOOKUP(lea,dist915,15),0) -> 0 | R10: =IF(A5<>999,VLOOKUP(lea,dist915,16),0) -> 0 | S10: =IF(A5<>999,VLOOKUP(lea,dist915,17),0) -> 0 | T10: =IF(A5<>999,VLOOKUP(lea,dist915,19),0) -> 0 | V10: =IF(A5<>999,VLOOKUP(lea,dist915,21),0) -> 0
A12: 1 | B12: Administration | C12: =(VLOOKUP(VALUE(C$7)/-1,newrates,$A12+2)*C$10*waf) -> 0 | D12: 0 | E12: 0 | F12: 0 | G12: 0 | H12: 0 | I12: =(VLOOKUP(7,newrates,$A12+2)*I$10*waf) -> 0 | K12: =(VLOOKUP(8,newrates,$A12+2)*K$10*waf) -> 0 | L12: =(VLOOKUP(9,newrates,$A12+2)*L$10*waf) -> 0 | M12: =(VLOOKUP(10,newrates,$A12+2)*M$10*waf) -> 0 | N12: =(VLOOKUP(11,newrates,$A12+2)*N$10*waf) -> 0 | O12: =(VLOOKUP(12,newrates,$A12+2)*O$10*waf) -> 0 | P12: =(VLOOKUP(13,newrates,$A12+2)*P$10*waf) -> 0 | Q12: =(VLOOKUP(14,newrates,$A12+2)*Q$10*waf) -> 0 | R12: =(VLOOKUP(15,newrates,$A12+2)*R$10*waf) -> 0 | S12: =(VLOOKUP(16,newrates,$A12+2)*S$10*waf) -> 0 | T12: =(VLOOKUP((VALUE(T$7)*-1)+$C$27-1, newrates, A12+2, FALSE))*T$10*waf -> 0 | V12: =SUM(C12:T12) -> 0
A13: 2 | B13: Instructional Leadership | C13: 0 | D13: 0 | E13: 0 | F13: 0 | G13: 0 | H13: 0 | I13: =(VLOOKUP(7,newrates,$A13+2)*I$10*waf) -> 0 | K13: =(VLOOKUP(8,newrates,$A13+2)*K$10*waf) -> 0 | L13: =(VLOOKUP(9,newrates,$A13+2)*L$10*waf) -> 0 | M13: =(VLOOKUP(10,newrates,$A13+2)*M$10*waf) -> 0 | N13: =(VLOOKUP(11,newrates,$A13+2)*N$10*waf) -> 0 | O13: =(VLOOKUP(12,newrates,$A13+2)*O$10*waf) -> 0 | P13: =(VLOOKUP(13,newrates,$A13+2)*P$10*waf) -> 0 | Q13: =(VLOOKUP(14,newrates,$A13+2)*Q$10*waf) -> 0 | R13: =(VLOOKUP(15,newrates,$A13+2)*R$10*waf) -> 0 | S13: =(VLOOKUP(16,newrates,$A13+2)*S$10*waf) -> 0 | T13: =(VLOOKUP((VALUE(T$7)*-1)+$C$27-1, newrates, A13+2, FALSE))*T$10*waf -> 0 | V13: 0
A14: 3 | B14: Classroom and Specialist Teachers | C14: 0 | D14: 0 | E14: 0 | F14: 0 | G14: 0 | H14: 0 | I14: =(VLOOKUP(7,newrates,$A14+2)*I$10*waf) -> 0 | K14: =(VLOOKUP(8,newrates,$A14+2)*K$10*waf) -> 0 | L14: =(VLOOKUP(9,newrates,$A14+2)*L$10*waf) -> 0 | M14: =(VLOOKUP(10,newrates,$A14+2)*M$10*waf) -> 0 | N14: =(VLOOKUP(11,newrates,$A14+2)*N$10*waf) -> 0 | O14: =(VLOOKUP(12,newrates,$A14+2)*O$10*waf) -> 0 | P14: =(VLOOKUP(13,newrates,$A14+2)*P$10*waf) -> 0 | Q14: =(VLOOKUP(14,newrates,$A14+2)*Q$10*waf) -> 0 | R14: =(VLOOKUP(15,newrates,$A14+2)*R$10*waf) -> 0 | S14: =(VLOOKUP(16,newrates,$A14+2)*S$10*waf) -> 0 | T14: =(VLOOKUP((VALUE(T$7)*-1)+$C$27-1, newrates, A14+2, FALSE))*T$10*waf -> 0 | V14: 0
A15: 4 | B15: Other Teaching Services | C15: 0 | D15: 0 | E15: 0 | F15: 0 | G15: 0 | H15: 0 | I15: =(VLOOKUP(7,newrates,$A15+2)*I$10*waf) -> 0 | K15: =(VLOOKUP(8,newrates,$A15+2)*K$10*waf) -> 0 | L15: =(VLOOKUP(9,newrates,$A15+2)*L$10*waf) -> 0 | M15: =(VLOOKUP(10,newrates,$A15+2)*M$10*waf) -> 0 | N15: =(VLOOKUP(11,newrates,$A15+2)*N$10*waf) -> 0 | O15: =(VLOOKUP(12,newrates,$A15+2)*O$10*waf) -> 0 | P15: =(VLOOKUP(13,newrates,$A15+2)*P$10*waf) -> 0 | Q15: =(VLOOKUP(14,newrates,$A15+2)*Q$10*waf) -> 0 | R15: =(VLOOKUP(15,newrates,$A15+2)*R$10*waf) -> 0 | S15: =(VLOOKUP(16,newrates,$A15+2)*S$10*waf) -> 0 | T15: =(VLOOKUP((VALUE(T$7)*-1)+$C$27-1, newrates, A15+2, FALSE))*T$10*waf -> 0 | V15: 0
A16: 5 | B16: Professional Development | C16: 0 | D16: 0 | E16: 0 | F16: 0 | G16: 0 | H16: 0 | I16: =(VLOOKUP(7,newrates,$A16+2)*I$10*waf) -> 0 | K16: =(VLOOKUP(8,newrates,$A16+2)*K$10*waf) -> 0 | L16: =(VLOOKUP(9,newrates,$A16+2)*L$10*waf) -> 0 | M16: =(VLOOKUP(10,newrates,$A16+2)*M$10*waf) -> 0 | N16: =(VLOOKUP(11,newrates,$A16+2)*N$10*waf) -> 0 | O16: =(VLOOKUP(12,newrates,$A16+2)*O$10*waf) -> 0 | P16: =(VLOOKUP(13,newrates,$A16+2)*P$10*waf) -> 0 | Q16: =(VLOOKUP(14,newrates,$A16+2)*Q$10*waf) -> 0 | R16: =(VLOOKUP(15,newrates,$A16+2)*R$10*waf) -> 0 | S16: =(VLOOKUP(16,newrates,$A16+2)*S$10*waf) -> 0 | T16: =(VLOOKUP((VALUE(T$7)*-1)+$C$27-1, newrates, A16+2, FALSE))*T$10*waf -> 0 | V16: 0
A17: 6 | B17: Instructional Equipment & Tech | C17: =(VLOOKUP(VALUE(C$7)/-1,newrates,$A17+2)*C$10) -> 0 | D17: 0 | E17: 0 | F17: 0 | G17: 0 | H17: 0 | I17: =(VLOOKUP(7,newrates,$A17+2)*I$10) -> 0 | K17: =(VLOOKUP(8,newrates,$A17+2)*K$10) -> 0 | L17: =(VLOOKUP(9,newrates,$A17+2)) -> 0 | M17: =(VLOOKUP(10,newrates,$A17+2)*M$10) -> 0 | N17: =(VLOOKUP(11,newrates,$A17+2)*N$10) -> 0 | O17: =(VLOOKUP(12,newrates,$A17+2)*O$10) -> 0 | P17: =(VLOOKUP(13,newrates,$A17+2)*P$10) -> 0 | Q17: =(VLOOKUP(14,newrates,$A17+2)*Q$10) -> 0 | R17: =(VLOOKUP(15,newrates,$A17+2)*R$10) -> 0 | S17: =(VLOOKUP(16,newrates,$A17+2)*S$10) -> 0 | T17: =(VLOOKUP((VALUE(T$7)*-1)+$C$27-1, newrates, A17+2, FALSE))*T$10 -> 0 | V17: 0
A18: 7 | B18: Guidance and Psychological | C18: =(VLOOKUP(VALUE(C$7)/-1,newrates,$A18+2)*C$10*waf) -> 0 | D18: 0 | E18: 0 | F18: 0 | G18: 0 | H18: 0 | I18: =(VLOOKUP(7,newrates,$A18+2)*I$10*waf) -> 0 | K18: =(VLOOKUP(8,newrates,$A18+2)*K$10*waf) -> 0 | L18: =(VLOOKUP(9,newrates,$A18+2)*L$10*waf) -> 0 | M18: =(VLOOKUP(10,newrates,$A18+2)*M$10*waf) -> 0 | N18: =(VLOOKUP(11,newrates,$A18+2)*N$10*waf) -> 0 | O18: =(VLOOKUP(12,newrates,$A18+2)*O$10*waf) -> 0 | P18: =(VLOOKUP(13,newrates,$A18+2)*P$10*waf) -> 0 | Q18: =(VLOOKUP(14,newrates,$A18+2)*Q$10*waf) -> 0 | R18: =(VLOOKUP(15,newrates,$A18+2)*R$10*waf) -> 0 | S18: =(VLOOKUP(16,newrates,$A18+2)*S$10*waf) -> 0 | T18: =(VLOOKUP((VALUE(T$7)*-1)+$C$27-1, newrates, A18+2, FALSE))*T$10*waf -> 0 | V18: 0
A19: 8 | B19: Pupil Services | C19: 0 | D19: 0 | E19: 0 | F19: 0 | G19: 0 | H19: 0 | I19: =(VLOOKUP(7,newrates,$A19+2)*I$10*waf) -> 0 | K19: =(VLOOKUP(8,newrates,$A19+2)*K$10*waf) -> 0 | L19: =(VLOOKUP(9,newrates,$A19+2)*L$10*waf) -> 0 | M19: =(VLOOKUP(10,newrates,$A19+2)*M$10*waf) -> 0 | N19: =(VLOOKUP(11,newrates,$A19+2)*N$10*waf) -> 0 | O19: =(VLOOKUP(12,newrates,$A19+2)*O$10*waf) -> 0 | P19: =(VLOOKUP(13,newrates,$A19+2)*P$10*waf) -> 0 | Q19: =(VLOOKUP(14,newrates,$A19+2)*Q$10*waf) -> 0 | R19: =(VLOOKUP(15,newrates,$A19+2)*R$10*waf) -> 0 | S19: =(VLOOKUP(16,newrates,$A19+2)*S$10*waf) -> 0 | T19: =(VLOOKUP((VALUE(T$7)*-1)+$C$27-1, newrates, A19+2, FALSE))*T$10*waf -> 0 | V19: 0
A20: 9 | B20: Operations and Maintenance | C20: 0 | D20: 0 | E20: 0 | F20: 0 | G20: 0 | H20: 0 | I20: =(VLOOKUP(7,newrates,$A20+2)*I$10*waf) -> 0 | K20: =(VLOOKUP(8,newrates,$A20+2)*K$10*waf) -> 0 | L20: =(VLOOKUP(9,newrates,$A20+2)*L$10*waf) -> 0 | M20: =(VLOOKUP(10,newrates,$A20+2)*M$10*waf) -> 0 | N20: =(VLOOKUP(11,newrates,$A20+2)*N$10*waf) -> 0 | O20: =(VLOOKUP(12,newrates,$A20+2)*O$10*waf) -> 0 | P20: =(VLOOKUP(13,newrates,$A20+2)*P$10*waf) -> 0 | Q20: =(VLOOKUP(14,newrates,$A20+2)*Q$10*waf) -> 0 | R20: =(VLOOKUP(15,newrates,$A20+2)*R$10*waf) -> 0 | S20: =(VLOOKUP(16,newrates,$A20+2)*S$10*waf) -> 0 | T20: =(VLOOKUP((VALUE(T$7)*-1)+$C$27-1, newrates, A20+2, FALSE))*T$10*waf -> 0 | V20: 0
A21: 10 | B21: Employee Benefits/Fixed Charges | C21: =(VLOOKUP(VALUE(C$7)/-1,newrates,$A21+2)*C$10) -> 0 | D21: 0 | E21: 0 | F21: 0 | G21: 0 | H21: 0 | I21: =(VLOOKUP(7,newrates,$A21+2)*I$10) -> 0 | K21: =(VLOOKUP(8,newrates,$A21+2)*K$10) -> 0 | L21: =(VLOOKUP(9,newrates,$A21+2)*L$10) -> 0 | M21: =(VLOOKUP(10,newrates,$A21+2)*M$10) -> 0 | N21: =(VLOOKUP(11,newrates,$A21+2)*N$10) -> 0 | O21: =(VLOOKUP(12,newrates,$A21+2)*O$10) -> 0 | P21: =(VLOOKUP(13,newrates,$A21+2)*P$10) -> 0 | Q21: =(VLOOKUP(14,newrates,$A21+2)*Q$10) -> 0 | R21: =(VLOOKUP(15,newrates,$A21+2)*R$10) -> 0 | S21: =(VLOOKUP(16,newrates,$A21+2)*S$10) -> 0 | T21: =(VLOOKUP((VALUE(T$7)*-1)+$C$27-1, newrates, A21+2, FALSE))*T$10 -> 0 | V21: 0
A22: 11 | B22: Special Ed Tuition | C22: 0 | D22: 0 | E22: 0 | F22: 0 | G22: 0 | H22: 0 | I22: =(VLOOKUP(7,newrates,$A22+2)*I$10) -> 0 | K22: =(VLOOKUP(78,newrates,$A22+2)*K$10) -> 0 | L22: =(VLOOKUP(9,newrates,$A22+2)*L$10) -> 0 | M22: =(VLOOKUP(10,newrates,$A22+2)*M$10) -> 0 | N22: =(VLOOKUP(11,newrates,$A22+2)*N$10) -> 0 | O22: =(VLOOKUP(12,newrates,$A22+2)*O$10) -> 0 | P22: =(VLOOKUP(13,newrates,$A22+2)*P$10) -> 0 | Q22: =(VLOOKUP(14,newrates,$A22+2)*Q$10) -> 0 | R22: =(VLOOKUP(15,newrates,$A22+2)*R$10) -> 0 | S22: =(VLOOKUP(16,newrates,$A22+2)*S$10) -> 0 | T22: =(VLOOKUP((VALUE(T$7)*-1)+$C$27-1, newrates, A22+2, FALSE))*T$10 -> 0 | V22: 0
A24: 12 | B24: Total | C24: =SUM(C12:C22) -> 0 | D24: 0 | E24: 0 | F24: 0 | G24: 0 | H24: 0 | I24: =SUM(I12:I22) -> 0 | K24: =SUM(K12:K22) -> 0 | L24: =SUM(L12:L22) -> 0 | M24: =SUM(M12:M22) -> 0 | N24: =SUM(N12:N22) -> 0 | O24: =SUM(O12:O22) -> 0 | P24: =SUM(P12:P22) -> 0 | Q24: 0 | R24: 0 | S24: 0 | T24: =SUM(T12:T22) -> 0 | V24: =SUM(V12:V23) -> 0
A26: 13 | B26: Wage Adjustment Factor | C26: =VLOOKUP(lea,dist915,22) -> 1 | R26: Foundation Budget per Pupil | V26: =IF(A5<>999,V24/V10," ") -> 
A27: 14 | B27: Economically Disadvantaged Decile | C27: =VLOOKUP(lea,dist915,23) -> 0
A28: * | B28: Total foundation enrollment does not include columns 8 through 17, because those columns represent increments above the base. The pupils are already counted in columns 1 to 7.
B29: Total foundation enrollment assigns pupils in pre-kindergarten and half-time kindergarten an enrollment count of .5.
B30: Special education in-district headcount is an assumed percentage, representing 3.75 percent of K to 12 non-vocational enrollment and 4.75 percent of vocational enrollment.
B31: Special education out-of-district headcount is also an assumed percentage, representing 1 percent of non-vocational K-12 enrollment.
B32: Economically disadvantaged headcounts are the number of pupils in columns 1 through 7 who are directly certified as eligible for the Supplemental Nutrition
B33: Assistance Program (SNAP); the Transitional Assistance for Families with Dependent Children (TAFDC); and MassHealth (Medicaid).
B34: Each component of the foundation budget represents the enrollment on line 1 multiplied by the appropriate state-wide foundation allotment.
B35: The wage adjustment factor is applied to underlying rates in all functions except instructional equipment, benefits and special education tuition.
B36: The foundation budget shown on this page may differ from the final number used in the formula, due to rounding error.
B38: Return to Index

Sheet Municipal Contribution
M1: =IF(VLOOKUP(A6,town351,17)>0,"lo","hi") -> hi
A2: Return to Index | G2: More about the data
A3: Massachusetts Department of Elementary and Secondary Education
A4: Office of School Finance
A5: =parameters!B1&" Chapter 70 Determination of City and Town Total Required Contribution" -> FY19 Chapter 70 Determination of City and Town Total Required Contribution
A6: =lea -> 999 | B6: =IF(lea>351, "This lea code does not refer to a city or a town - this table shows municipal data only.",VLOOKUP(A6,aidcalc,2)) -> This lea code does not refer to a city or a town - this table shows municipal data only.
A8: Effort Goal | E8: =parameters!B1&" Increments Toward Goal" -> FY19 Increments Toward Goal
A10: 1) | B10: 2016 equalized valuation | C10: =IF(A6<352,VLOOKUP($A$6,town351,3)," ") ->  | E10: 13) | F10: Required local contribution FY18 | G10: =IF(A6<352,VLOOKUP($A$6,town351,13)," ") -> 
A11: 2) | B11: Property percentage | C11: =IF(A6<352,'Townwide Contributions'!D5," ") ->  | E11: 14) | F11: Municipal revenue growth factor (DOR) | G11: =IF(A$6<352,VLOOKUP($A$6,town351,14)," ") -> 
A12: 3) | B12: Local effort from property wealth | C12: =IF(A6<352,VLOOKUP($A$6,town351,4)," ") ->  | E12: 15) | F12: =parameters!B1&" preliminary contribution (13 x 14)" -> FY19 preliminary contribution (13 x 14) | G12: =IF(A$6<352,VLOOKUP($A$6,town351,15)," ") -> 
E13: 16) | F13: Preliminary contribution pct of foundation (15/8) | G13: =IF(A$6<352,VLOOKUP($A$6,town351,16)/100," ") -> 
A14: 4) | B14: 2015 income | C14: =IF(A6<352,VLOOKUP($A$6,town351,5)," ") -> 
A15: 5) | B15: Income percentage | C15: =IF(A6<352,'Townwide Contributions'!F5," ") ->  | E15: If preliminary contribution is above the target share:
A16: 6) | B16: Local effort from income | C16: =IF(A6<352,VLOOKUP($A$6,town351,6)," ") ->  | E16: 17) | F16: Excess local effort (15 - 10) | G16: =IF(AND(A$6<352,M$1="hi"),VLOOKUP($A$6,town351,20)," ") -> 
E17: 18) | F17: =parameters!$C$50&" reduction toward target (17 x "&parameters!$C$50&")" -> 100% reduction toward target (17 x 100%) | G17: =IF(AND(A$6<352,M$1="hi"),VLOOKUP($A$6,town351,21)," ") -> 
A18: 7) | B18: Combined effort yield (row 3+ row 6) | C18: =IF(A6<352,VLOOKUP($A$6,town351,7)," ") ->  | E18: 19) | F18: =parameters!B1&" required local contribution (15 - 18), capped at 90% of foundation" -> FY19 required local contribution (15 - 18), capped at 90% of foundation | G18: =IF(AND(A$6<352,M$1="hi"),VLOOKUP($A$6,town351,22)," ") -> 
E19: 20) | F19: Contribution as percentage of foundation (19 / 8) | G19: =IF(AND(A$6<352,M$1="hi"),VLOOKUP($A$6,town351,23)," ") -> 
A20: 8) | B20: Foundation budget FY19 | C20: =IF(A6<352,VLOOKUP($A$6,town351,8)," ") -> 
A21: 9) | B21: Maximum local contribution (82.5% * row 8) | C21: =IF(A6<352,VLOOKUP($A$6,town351,9)," ") ->  | E21: If preliminary contribution is below the target share:
E22: 21) | F22: Shortfall from target local share (11 - 16) | G22: =IF(AND(A$6<352,M1="lo"),VLOOKUP($A$6,town351,17)/100," ") -> 
A23: 10) | B23: Target local contribution (lesser of row 7 or row 9) | C23: =IF(A6<352,VLOOKUP($A$6,town351,10)," ") ->  | E23: 22) | F23: Added increment toward target (13 x 1% or 2%)* | G23: =IF(AND(A$6<352,M1="lo"),VLOOKUP($A$6,town351,19)," ") -> 
F24: *1% if shortfall is between 2.5% and 7.5%; 2% if shortfall > 7.5%
A25: 11) | B25: Target local share (row 10 as % of row 8) | C25: =IF(A6<352,VLOOKUP(lea,town351,11)/100," ") ->  | E25: 23) | F25: Shortfall from target after adding increment (10 - 15 - 22) | G25: =IF(AND(A$6<352,M1="lo"),VLOOKUP($A$6,town351,26)," ") -> 
A26: 12) | B26: Target aid share (100% minus row 11) | C26: =IF(A6<352,VLOOKUP(lea,aidcalc,10)/100," ") ->  | E26: 24) | F26: =parameters!B1&" required local contribution (15 + 22)" -> FY19 required local contribution (15 + 22) | G26: =IF(AND(A$6<352,M1="lo"),VLOOKUP($A$6,town351,22)," ") -> 
E27: 25) | F27: Contribution as percentage of foundation (24 / 8) | G27: =IF(AND(A$6<352,M1="lo"),VLOOKUP($A$6,town351,23)/100," ") -> 
B29: See a listing of all 351 communities

Sheet Regl Allocation
J1: More about the data
D2: Return to Index
D3: Massachusetts Department of Elementary and Secondary Education
D4: Office of School Finance
D5: FY19 Chapter 70 Apportionment of Local Contribution Across School Districts
E7: 4 | F7: 4 | G7: 3 | H7: 2 | I7: 1
A9: 5 | D9: =lea -> 999 | E9: =IF($D$9>351, "", IF(AND($D$9>0, VLOOKUP($D$9*5-E$7, order1755, $A9)<>0), VLOOKUP($D$9*5-E$7, order1755, $A9), "")) ->  | F9: =IF(OR($D$9="", $D$9>351), "", IF(AND($D$9>0, VLOOKUP($D$9*5-F$7, order1755, $A9)<>0), VLOOKUP($D$9*5-F$7, order1755, $A9), "")) ->  | G9: =IF(OR($D$9="", $D$9>351), "", IF(AND($D$9>0, VLOOKUP($D$9*5-G$7, order1755, $A9)<>0), VLOOKUP($D$9*5-G$7, order1755, $A9), "")) ->  | H9: =IF(OR($D$9="", $D$9>351), "", IF(AND($D$9>0, VLOOKUP($D$9*5-H$7, order1755, $A9)<>0), VLOOKUP($D$9*5-H$7, order1755, $A9), "")) ->  | I9: =IF(OR($D$9="", $D$9>351), "", IF(AND($D$9>0, VLOOKUP($D$9*5-I$7, order1755, $A9)<>0), VLOOKUP($D$9*5-I$7, order1755, $A9), "")) ->  | J9: Combined Total for All Districts
A10: 6
E11: Prior Year Data (for comparison purposes)
A13: 15 | D13: 1 | E13: =parameters!B2&" foundation enrollment" -> FY18 foundation enrollment | F13: =IF(OR($D$9="", $D$9>351), "", IF(AND($D$9>0, VLOOKUP($D$9*5-F$7, order1755, $A13)<>0), VLOOKUP($D$9*5-F$7, order1755, $A13), "")) ->  | J13: =IF(OR($D$9="", $D$9>351), "", VLOOKUP($D$9*5, order1755, $A13)) -> 
A14: 6 | D14: 2 | E14: =parameters!B2&" foundation budget" -> FY18 foundation budget | J14: =IF(OR($D$9="", $D$9>351), "", VLOOKUP($D$9*5, order1755, $A14)) -> 
A15: 7 | D15: 3 | E15: ="Each district's share of municipality's combined "& parameters!B2&" foundation" -> Each district's share of municipality's combined FY18 foundation | J15: =IF(OR($D$9="", $D$9>351), "", VLOOKUP($D$9*5, order1755, $A15)) -> 
A16: 12 | D16: 4 | E16: =parameters!B2&" required contribution" -> FY18 required contribution | J16: =IF(OR($D$9="", $D$9>351), "", VLOOKUP($D$9*5, order1755, $A16)) -> 
E17: =parameters!B1& " apportionment of contribution among community's districts" -> FY19 apportionment of contribution among community's districts
D18: 5 | E18: =parameters!B1&" total unapportioned required contribution ('municipal contribution' sheet row 19 or 24)" -> FY19 total unapportioned required contribution ('municipal contribution' sheet row 19 or 24) | J18: =IF(OR($D$9="", $D$9>351), "", VLOOKUP($D$9,town351,22)) -> 
A19: 20 | D19: 6 | E19: =parameters!B1&" foundation enrollment" -> FY19 foundation enrollment | F19: =IF(OR($D$9="", $D$9>351), "", IF(AND($D$9>0, VLOOKUP($D$9*5-F$7, order1755, $A19)<>0), VLOOKUP($D$9*5-F$7, order1755, $A19), "")) ->  | J19: =IF(OR($D$9="", $D$9>351), "", VLOOKUP($D$9*5, order1755, $A19)) -> 
A20: 8 | D20: 7 | E20: =parameters!B1&" foundation budget" -> FY19 foundation budget | J20: =IF(OR($D$9="", $D$9>351), "", VLOOKUP($D$9*5, order1755, $A20)) -> 
A21: 9 | D21: 8 | E21: ="Each district's share of municipality's total "& parameters!B1&" foundation " -> Each district's share of municipality's total FY19 foundation | J21: =IF(OR($D$9="", $D$9>351), "", VLOOKUP($D$9*5, order1755, $A21)) -> 
A22: 11 | D22: 9 | E22: =parameters!B1&" Required Contribution" -> FY19 Required Contribution | J22: =VLOOKUP($D$9*5, order1755, $A22) -> 6246842886
A24: 13 | D24: 10 | E24: ="Change "&parameters!B1&" to "&parameters!B2& " (9 - 4)" -> Change FY19 to FY18 (9 - 4) | F24: =IF(OR($D$9="", $D$9>351), "", IF(AND($D$9>0, VLOOKUP($D$9*5-F$7, order1755, $A24)<>0), VLOOKUP($D$9*5-F$7, order1755, $A24), "")) ->  | G24: =IF(OR($D$9="", $D$9>351), "", IF(AND($D$9>0, VLOOKUP($D$9*5-G$7, order1755, $A24)<>0), VLOOKUP($D$9*5-G$7, order1755, $A24), "")) ->  | H24: =IF(OR($D$9="", $D$9>351), "", IF(AND($D$9>0, VLOOKUP($D$9*5-H$7, order1755, $A24)<>0), VLOOKUP($D$9*5-H$7, order1755, $A24), "")) ->  | I24: =IF(OR($D$9="", $D$9>351), "", IF(AND($D$9>0, VLOOKUP($D$9*5-I$7, order1755, $A24)<>0), VLOOKUP($D$9*5-I$7, order1755, $A24), "")) ->  | J24: =IF(OR($D$9="", $D$9>351), "", VLOOKUP($D$9*5, order1755, $A24)) -> 

Sheet Summary
A1: Return to Index | I1: More about the data
I2: =parameters!B3 -> 2018-08-01
A3: Massachusetts Department of Elementary and Secondary Education
A4: =parameters!B1&" Chapter 70 Summary" -> FY19 Chapter 70 Summary
A6: =lea -> 999 | B6: =PROPER(VLOOKUP(A6,dist915,2)) -> State Total
A8: ="Aid Calculation " & parameters!B1 -> Aid Calculation FY19 | E8: ="Comparison to "& PYr -> Comparison to FY18
F10: =PYr -> FY18 | G10: =CYr -> FY19 | H10: Change | I10: Pct Chg | S10: FY06 | T10: FY07 | U10: FY08 | V10: FY09 | W10: FY10 | X10: FY11 | Y10: FY12 | Z10: FY13 | AA10: FY14 | AB10: FY15 | AC10: FY16 | AD10: FY17 | AE10: FY18 | AF10: FY19
A11: Prior Year Aid | E11: Enrollment | F11: =VLOOKUP(A6,aidcalc,17) -> 941303 | G11: =VLOOKUP(A6,aidcalc,18) -> 941411 | H11: =G11-F11 -> 108 | I11: =IF(F11>0, H11/F11, 0) -> 0.0001147345754 | R11: Foundation Budget | S11: =VLOOKUP($A$6,disthist,4) -> 7551933454 | T11: =VLOOKUP($A$6,disthist,7) -> 8014672861 | U11: =VLOOKUP($A$6,disthist,10) -> 8406096436 | V11: =VLOOKUP($A$6,disthist,13) -> 8811314229 | W11: =VLOOKUP($A$6,disthist,17) -> 9088557473 | X11: =VLOOKUP($A$6,disthist,21) -> 8921047970 | Y11: =VLOOKUP($A$6,disthist,26) -> 9119340580 | Z11: =VLOOKUP($A$6,disthist,29) -> 9467117141 | AA11: =VLOOKUP($A$6,disthist, 32) -> 9711217585 | AB11: =VLOOKUP($A$6,disthist, 35) -> 9866011313 | AC11: =VLOOKUP($A$6,disthist, 38) -> 1.009017727e+10 | AD11: =VLOOKUP($A$6,disthist, 41) -> 1.012823838e+10 | AE11: =VLOOKUP($A$6,disthist, 44) -> 1.037917384e+10 | AF11: =VLOOKUP($A$6, aidcalc, 6) -> 1.077758855e+10
A12: 1 | B12: ="Chapter 70 "&PYr -> Chapter 70 FY18 | C12: =VLOOKUP(A6,aidcalc,5) -> 4734096994 | E12: Foundation budget | F12: =VLOOKUP(A6,aidcalc,4) -> 1.037917384e+10 | G12: =VLOOKUP(A6,aidcalc,6) -> 1.077758855e+10 | H12: =G12-F12 -> 398414708.2 | I12: =IF(F12>0, H12/F12, 0) -> 0.03838597506 | R12: Required District Contribution | S12: =VLOOKUP($A$6,disthist,5) -> 4743946672 | T12: =VLOOKUP($A$6,disthist,8) -> 4876428772 | U12: =VLOOKUP($A$6,disthist,11) -> 4997705374 | V12: =VLOOKUP($A$6,disthist,14) -> 5110365426 | W12: =VLOOKUP($A$6,disthist,18) -> 5250106061 | X12: =VLOOKUP($A$6,disthist,22) -> 5302200670 | Y12: =VLOOKUP($A$6,disthist,27) -> 5413602268 | Z12: =VLOOKUP($A$6,disthist,30) -> 5582113529 | AA12: =VLOOKUP($A$6,disthist, 33) -> 5748475145 | AB12: =VLOOKUP($A$6,disthist, 36) -> 5817618237 | AC12: =VLOOKUP($A$6,disthist, 39) -> 5943909029 | AD12: =VLOOKUP($A$6,disthist, 42) -> 5926185567 | AE12: =VLOOKUP($A$6,disthist, 45) -> 6046916786 | AF12: =VLOOKUP($A$6, aidcalc, 7) -> 6246842886
E13: Required district contribution | F13: =VLOOKUP(A6,disthist,45) -> 6046916786 | G13: =VLOOKUP($A$6, aidcalc, 7) -> 6246842886 | H13: =G13-F13 -> 199926100 | I13: =IF(F13>0, H13/F13, 0) -> 0.03306248574 | R13: C70 Aid | S13: =VLOOKUP($A$6,disthist,6) -> 3288603062 | T13: =VLOOKUP($A$6,disthist,9) -> 3505192039 | U13: =VLOOKUP($A$6,disthist,12) -> 3725343327 | V13: =VLOOKUP($A$6,disthist,15)+VLOOKUP($A$6,disthist,16) -> 3948496062 | W13: =VLOOKUP($A$6,disthist,19)+VLOOKUP($A$6,disthist,20) -> 4043156700 | X13: =VLOOKUP($A$6,disthist,23)+VLOOKUP($A$6,disthist,24)+VLOOKUP($A$6,disthist,25) -> 4072032853 | Y13: =VLOOKUP($A$6,disthist,28) -> 3990504093 | Z13: =VLOOKUP($A$6,disthist,31) -> 4173223954 | AA13: =VLOOKUP($A$6,disthist,34) -> 4300854366 | AB13: =VLOOKUP($A$6,disthist,37) -> 4400335962 | AC13: =VLOOKUP($A$6,disthist,40) -> 4511521974 | AD13: =VLOOKUP($A$6,disthist,43) -> 4627705061 | AE13: =VLOOKUP($A$6,disthist,46) -> 4745645156 | AF13: =VLOOKUP($A$6, aidcalc, 36) -> 4906614766
A14: Foundation Aid | E14: Chapter 70 aid | F14: =IF(A6=999, parameters!H6, VLOOKUP($A$6, disthist,46)) -> 4746953714 | G14: =IF(A6=999, parameters!H20, VLOOKUP($A$6, aidcalc, 36)) -> 4906923324 | H14: =G14-F14 -> 159969609.9 | I14: =IF(F14>0, H14/F14, 0) -> 0.03369942483
A15: 2 | B15: ="Foundation budget "&parameters!B1 -> Foundation budget FY19 | C15: =VLOOKUP($A$6, aidcalc, 6) -> 1.077758855e+10 | E15: Required net school spending (NSS) | F15: =F13+F14 -> 1.07938705e+10 | G15: =G13+G14 -> 1.115376621e+10 | H15: =G15-F15 -> 359895709.9 | I15: =IF(F15>0, H15/F15, 0) -> 0.03334260031
A16: 3 | B16: ="Required district contribution "& CYr -> Required district contribution FY19 | C16: =VLOOKUP($A$6, aidcalc, 7) -> 6246842886
A17: 4 | B17: Foundation aid (2 -3) | C17: =VLOOKUP($A$6, aidcalc, 8) -> 4530745655 | E17: Target aid share | F17: =VLOOKUP(A$6,disthist,3)/100 -> 0.41 | G17: =VLOOKUP(A6,aidcalc,10)/100 -> 0.41
A18: 5 | B18: ="Increase over " & PYr&" (4 - 1)" -> Increase over FY18 (4 - 1) | C18: =VLOOKUP($A$6, aidcalc, 9) -> 147686900 | E18: C70 % of foundation | F18: =IF(F12>0,F14/F12,IF(F14>0,1,0)) -> 0.4573537148 | G18: =IF(G12>0,G14/G12,IF(G14>0,1,0)) -> 0.4552895391
A20: Minimum Aid | E20: Required NSS % of foundation | F20: =IF(F12>0,F15/F12,IF(F15>0,1,0)) -> 1.039954688 | G20: =IF(G12>0,G15/G12,IF(G15>0,1,0)) -> 1.034903695
A21: 6 | B21: Minimum $30 per pupil increase | C21: =VLOOKUP($A$6, aidcalc, 32, FALSE) -> 12627464.11
A23: Non-Operating District Reduction to Foundation
A24: 7 | B24: Reduction to foundation | C24: =VLOOKUP($A$6, aidcalc, 34) -> 93299.12922
A26: Additional Aid Increment
A27: 8 | B27: Adjustment based on H. 4401 Ch. 70 aid | C27: =VLOOKUP($A$6, aidcalc, 35) -> 446706.8717
A29: Transitional Relief for Impact of Change in Low-Income Measure
A30: 9 | B30: Relief for impact of change in measure | C30: =VLOOKUP($A$6, aidcalc, 28) -> 11850000
A32: =CYr&" Chapter 70 Aid" -> FY19 Chapter 70 Aid
A33: 10 | B33: sum of line 1, 5, 8, 9 minus 7 | C33: =VLOOKUP($A$6, aidcalc, 36) -> 4906614766
C36: =C18-C24 -> 147593600.9

Sheet Regl Dist Members
E2: Return to Index | V2: More about the data
F3: Select or type full regional district name below
E4: =VLOOKUP(reg_order, regdistricts, 3, FALSE) -> 0 | F4: Select a regional district | G4: =VLOOKUP(F4,leas!$E$359:$H$447,4,FALSE) -> 88
E6: Massachusetts Department of Elementary and Secondary Education
E7: Office of School Finance
E8: =CYr&" Chapter 70" -> FY19 Chapter 70
E9: Regional District Enrollment and Contributions by Member City or Town
B11: =VLOOKUP(E4, leas!D6:G447, 4, FALSE) ->  | D11: 2 | E11: =VLOOKUP(reg_order, regdistricts, 2, FALSE) -> Select a regional district
G13: District Foundation Enrollment | K13: District Required Minimum Contribution | N13: District's Share of Town Foundation Budget | Q13: Town Required Local Contribution | T13: FY19 Town Target v Actual Local Share
B15: =VLOOKUP($E$4, regcount, 2, FALSE) ->  | E15: LEA | F15: Member | G15: =PYr -> FY18 | H15: =CYr -> FY19 | I15: Change | J15: Pct of Town Enrollment | K15: =PYr -> FY18 | L15: =CYr -> FY19 | M15: Change | N15: =PYr -> FY18 | O15: =CYr -> FY19 | P15: Change | Q15: =PYr -> FY18 | R15: =CYr -> FY19 | S15: Change | T15: Target | U15: Actual | V15: Above/Below Target
F17: District Total | G17: =SUM(G19:G66) ->  | H17: =SUM(H19:H66) ->  | I17: =SUM(I19:I61) ->  | K17: =SUM(K19:K66) ->  | L17: =SUM(L19:L66) ->  | M17: =SUM(M19:M61) -> 
A19: =IF($C19<=$B$15,VLOOKUP(E19,leas!D6:G447,4,FALSE),"") ->  | B19: =$E$4*100+C19 -> 1 | C19: 1 | E19: =IF($C19<=$B$15, VLOOKUP($B19, regdetail, 5), " ") ->  | F19: =IF($C19<=$B$15, VLOOKUP($B19, regdetail, 6), " ") ->  | G19: =IF($C19<=$B$15,VLOOKUP(A19&$B$11, localcont!A10:X1764, 18, FALSE), "") ->  | H19: =IF($C19<=$B$15,VLOOKUP(A19&$B$11, localcont!$A$10:$X$1764, 23, FALSE), "") ->  | I19: =IF($C19<=$B$15, H19-G19, " ") ->  | J19: =IF($C19<=$B$15,H19/VLOOKUP(A19&"0999", localcont!$A$10:$X$1764, 23, FALSE), "") ->  | K19: =IF($C19<=$B$15,VLOOKUP(A19&$B$11, localcont!$A$10:$X$1764, 15, FALSE), "") ->  | L19: =IF($C19<=$B$15,VLOOKUP(A19&$B$11, localcont!$A$10:$X$1764, 14, FALSE),"") ->  | M19: =IF($C19<=$B$15, L19-K19, " ") ->  | N19: =IF($C19<=$B$15,VLOOKUP(A19&$B$11, localcont!$A$10:$X$1764, 10, FALSE), "") ->  | O19: =IF($C19<=$B$15,VLOOKUP(A19&$B$11, localcont!$A$10:$X$1764, 12, FALSE), "") ->  | P19: =IF($C19<=$B$15, O19-N19, " ") ->  | Q19: =IF($C19<=$B$15,VLOOKUP(E19, town351, 13, FALSE), "") ->  | R19: =IF($C19<=$B$15,VLOOKUP(E19, town351, 22, FALSE), "") ->  | S19: =IF($C19<=$B$15, R19-Q19, " ") ->  | T19: =IF($C19<=$B$15,VLOOKUP(E19, town351, 11, FALSE), "") ->  | U19: =IF($C19<=$B$15,VLOOKUP(E19, town351, 23, FALSE), "") ->  | V19: =IF(U19<T19, "Below", IF(U19>T19, "Above", "")) -> 
A20: =IF($C20<=$B$15,VLOOKUP(E20,leas!D7:G448,4,FALSE),"") ->  | B20: =$E$4*100+C20 -> 2 | C20: 2 | G20: =IF($C20<=$B$15,VLOOKUP(A20&$B$11, localcont!A11:X1765, 18, FALSE), "") ->  | H20: =IF($C20<=$B$15,VLOOKUP(A20&$B$11, localcont!$A$10:$X$1764, 23, FALSE), "") ->  | I20: =IF($C20<=$B$15, H20-G20, " ") ->  | J20: =IF($C20<=$B$15,H20/VLOOKUP(A20&"0999", localcont!$A$10:$X$1764, 23, FALSE), "") ->  | K20: =IF($C20<=$B$15,VLOOKUP(A20&$B$11, localcont!$A$10:$X$1764, 15, FALSE), "") ->  | L20: =IF($C20<=$B$15,VLOOKUP(A20&$B$11, localcont!$A$10:$X$1764, 14, FALSE),"") ->  | M20: =IF($C20<=$B$15, L20-K20, " ") ->  | N20: =IF($C20<=$B$15,VLOOKUP(A20&$B$11, localcont!$A$10:$X$1764, 10, FALSE), "") ->  | O20: =IF($C20<=$B$15,VLOOKUP(A20&$B$11, localcont!$A$10:$X$1764, 12, FALSE), "") ->  | P20: =IF($C20<=$B$15, O20-N20, " ") ->  | S20: =IF($C20<=$B$15, R20-Q20, " ") ->  | V20: =IF(U20<T20, "Below", IF(U20>T20, "Above", "")) -> 
A21: =IF($C21<=$B$15,VLOOKUP(E21,leas!D8:G449,4,FALSE),"") ->  | B21: 3 | C21: 3 | G21: =IF($C21<=$B$15,VLOOKUP(A21&$B$11, localcont!A12:X1766, 18, FALSE), "") ->  | H21: =IF($C21<=$B$15,VLOOKUP(A21&$B$11, localcont!$A$10:$X$1764, 23, FALSE), "") ->  | J21: =IF($C21<=$B$15,H21/VLOOKUP(A21&"0999", localcont!$A$10:$X$1764, 23, FALSE), "") ->  | K21: =IF($C21<=$B$15,VLOOKUP(A21&$B$11, localcont!$A$10:$X$1764, 15, FALSE), "") ->  | L21: =IF($C21<=$B$15,VLOOKUP(A21&$B$11, localcont!$A$10:$X$1764, 14, FALSE),"") ->  | N21: =IF($C21<=$B$15,VLOOKUP(A21&$B$11, localcont!$A$10:$X$1764, 10, FALSE), "") ->  | O21: =IF($C21<=$B$15,VLOOKUP(A21&$B$11, localcont!$A$10:$X$1764, 12, FALSE), "") -> 
A22: =IF($C22<=$B$15,VLOOKUP(E22,leas!D9:G450,4,FALSE),"") ->  | B22: 4 | C22: 4 | G22: =IF($C22<=$B$15,VLOOKUP(A22&$B$11, localcont!A13:X1767, 18, FALSE), "") ->  | H22: =IF($C22<=$B$15,VLOOKUP(A22&$B$11, localcont!$A$10:$X$1764, 23, FALSE), "") ->  | J22: =IF($C22<=$B$15,H22/VLOOKUP(A22&"0999", localcont!$A$10:$X$1764, 23, FALSE), "") ->  | K22: =IF($C22<=$B$15,VLOOKUP(A22&$B$11, localcont!$A$10:$X$1764, 15, FALSE), "") ->  | L22: =IF($C22<=$B$15,VLOOKUP(A22&$B$11, localcont!$A$10:$X$1764, 14, FALSE),"") ->  | N22: =IF($C22<=$B$15,VLOOKUP(A22&$B$11, localcont!$A$10:$X$1764, 10, FALSE), "") ->  | O22: =IF($C22<=$B$15,VLOOKUP(A22&$B$11, localcont!$A$10:$X$1764, 12, FALSE), "") -> 
A23: =IF($C23<=$B$15,VLOOKUP(E23,leas!D10:G451,4,FALSE),"") ->  | B23: 5 | C23: 5 | G23: =IF($C23<=$B$15,VLOOKUP(A23&$B$11, localcont!A14:X1768, 18, FALSE), "") ->  | H23: =IF($C23<=$B$15,VLOOKUP(A23&$B$11, localcont!$A$10:$X$1764, 23, FALSE), "") ->  | J23: =IF($C23<=$B$15,H23/VLOOKUP(A23&"0999", localcont!$A$10:$X$1764, 23, FALSE), "") ->  | K23: =IF($C23<=$B$15,VLOOKUP(A23&$B$11, localcont!$A$10:$X$1764, 15, FALSE), "") ->  | L23: =IF($C23<=$B$15,VLOOKUP(A23&$B$11, localcont!$A$10:$X$1764, 14, FALSE),"") ->  | N23: =IF($C23<=$B$15,VLOOKUP(A23&$B$11, localcont!$A$10:$X$1764, 10, FALSE), "") ->  | O23: =IF($C23<=$B$15,VLOOKUP(A23&$B$11, localcont!$A$10:$X$1764, 12, FALSE), "") -> 
A24: =IF($C24<=$B$15,VLOOKUP(E24,leas!D11:G452,4,FALSE),"") ->  | B24: 6 | C24: 6 | G24: =IF($C24<=$B$15,VLOOKUP(A24&$B$11, localcont!A15:X1769, 18, FALSE), "") ->  | H24: =IF($C24<=$B$15,VLOOKUP(A24&$B$11, localcont!$A$10:$X$1764, 23, FALSE), "") ->  | J24: =IF($C24<=$B$15,H24/VLOOKUP(A24&"0999", localcont!$A$10:$X$1764, 23, FALSE), "") ->  | K24: =IF($C24<=$B$15,VLOOKUP(A24&$B$11, localcont!$A$10:$X$1764, 15, FALSE), "") ->  | L24: =IF($C24<=$B$15,VLOOKUP(A24&$B$11, localcont!$A$10:$X$1764, 14, FALSE),"") ->  | N24: =IF($C24<=$B$15,VLOOKUP(A24&$B$11, localcont!$A$10:$X$1764, 10, FALSE), "") ->  | O24: =IF($C24<=$B$15,VLOOKUP(A24&$B$11, localcont!$A$10:$X$1764, 12, FALSE), "") -> 
A25: =IF($C25<=$B$15,VLOOKUP(E25,leas!D12:G453,4,FALSE),"") ->  | B25: 7 | C25: 7 | G25: =IF($C25<=$B$15,VLOOKUP(A25&$B$11, localcont!A16:X1770, 18, FALSE), "") ->  | H25: =IF($C25<=$B$15,VLOOKUP(A25&$B$11, localcont!$A$10:$X$1764, 23, FALSE), "") ->  | J25: =IF($C25<=$B$15,H25/VLOOKUP(A25&"0999", localcont!$A$10:$X$1764, 23, FALSE), "") ->  | K25: =IF($C25<=$B$15,VLOOKUP(A25&$B$11, localcont!$A$10:$X$1764, 15, FALSE), "") ->  | L25: =IF($C25<=$B$15,VLOOKUP(A25&$B$11, localcont!$A$10:$X$1764, 14, FALSE),"") ->  | N25: =IF($C25<=$B$15,VLOOKUP(A25&$B$11, localcont!$A$10:$X$1764, 10, FALSE), "") ->  | O25: =IF($C25<=$B$15,VLOOKUP(A25&$B$11, localcont!$A$10:$X$1764, 12, FALSE), "") -> 
A26: =IF($C26<=$B$15,VLOOKUP(E26,leas!D13:G454,4,FALSE),"") ->  | B26: 8 | C26: 8 | G26: =IF($C26<=$B$15,VLOOKUP(A26&$B$11, localcont!A17:X1771, 18, FALSE), "") ->  | H26: =IF($C26<=$B$15,VLOOKUP(A26&$B$11, localcont!$A$10:$X$1764, 23, FALSE), "") ->  | J26: =IF($C26<=$B$15,H26/VLOOKUP(A26&"0999", localcont!$A$10:$X$1764, 23, FALSE), "") ->  | K26: =IF($C26<=$B$15,VLOOKUP(A26&$B$11, localcont!$A$10:$X$1764, 15, FALSE), "") ->  | L26: =IF($C26<=$B$15,VLOOKUP(A26&$B$11, localcont!$A$10:$X$1764, 14, FALSE),"") ->  | N26: =IF($C26<=$B$15,VLOOKUP(A26&$B$11, localcont!$A$10:$X$1764, 10, FALSE), "") ->  | O26: =IF($C26<=$B$15,VLOOKUP(A26&$B$11, localcont!$A$10:$X$1764, 12, FALSE), "") -> 
A27: =IF($C27<=$B$15,VLOOKUP(E27,leas!D14:G455,4,FALSE),"") ->  | B27: 9 | C27: 9 | G27: =IF($C27<=$B$15,VLOOKUP(A27&$B$11, localcont!A18:X1772, 18, FALSE), "") ->  | H27: =IF($C27<=$B$15,VLOOKUP(A27&$B$11, localcont!$A$10:$X$1764, 23, FALSE), "") ->  | J27: =IF($C27<=$B$15,H27/VLOOKUP(A27&"0999", localcont!$A$10:$X$1764, 23, FALSE), "") ->  | K27: =IF($C27<=$B$15,VLOOKUP(A27&$B$11, localcont!$A$10:$X$1764, 15, FALSE), "") ->  | L27: =IF($C27<=$B$15,VLOOKUP(A27&$B$11, localcont!$A$10:$X$1764, 14, FALSE),"") ->  | N27: =IF($C27<=$B$15,VLOOKUP(A27&$B$11, localcont!$A$10:$X$1764, 10, FALSE), "") ->  | O27: =IF($C27<=$B$15,VLOOKUP(A27&$B$11, localcont!$A$10:$X$1764, 12, FALSE), "") -> 
A28: =IF($C28<=$B$15,VLOOKUP(E28,leas!D15:G456,4,FALSE),"") ->  | B28: 10 | C28: 10 | G28: =IF($C28<=$B$15,VLOOKUP(A28&$B$11, localcont!A19:X1773, 18, FALSE), "") ->  | H28: =IF($C28<=$B$15,VLOOKUP(A28&$B$11, localcont!$A$10:$X$1764, 23, FALSE), "") ->  | J28: =IF($C28<=$B$15,H28/VLOOKUP(A28&"0999", localcont!$A$10:$X$1764, 23, FALSE), "") ->  | K28: =IF($C28<=$B$15,VLOOKUP(A28&$B$11, localcont!$A$10:$X$1764, 15, FALSE), "") ->  | L28: =IF($C28<=$B$15,VLOOKUP(A28&$B$11, localcont!$A$10:$X$1764, 14, FALSE),"") ->  | N28: =IF($C28<=$B$15,VLOOKUP(A28&$B$11, localcont!$A$10:$X$1764, 10, FALSE), "") ->  | O28: =IF($C28<=$B$15,VLOOKUP(A28&$B$11, localcont!$A$10:$X$1764, 12, FALSE), "") -> 
A29: =IF($C29<=$B$15,VLOOKUP(E29,leas!D16:G457,4,FALSE),"") ->  | B29: 11 | C29: 11 | G29: =IF($C29<=$B$15,VLOOKUP(A29&$B$11, localcont!A20:X1774, 18, FALSE), "") ->  | H29: =IF($C29<=$B$15,VLOOKUP(A29&$B$11, localcont!$A$10:$X$1764, 23, FALSE), "") ->  | J29: =IF($C29<=$B$15,H29/VLOOKUP(A29&"0999", localcont!$A$10:$X$1764, 23, FALSE), "") ->  | K29: =IF($C29<=$B$15,VLOOKUP(A29&$B$11, localcont!$A$10:$X$1764, 15, FALSE), "") ->  | L29: =IF($C29<=$B$15,VLOOKUP(A29&$B$11, localcont!$A$10:$X$1764, 14, FALSE),"") ->  | N29: =IF($C29<=$B$15,VLOOKUP(A29&$B$11, localcont!$A$10:$X$1764, 10, FALSE), "") ->  | O29: =IF($C29<=$B$15,VLOOKUP(A29&$B$11, localcont!$A$10:$X$1764, 12, FALSE), "") -> 
A30: =IF($C30<=$B$15,VLOOKUP(E30,leas!D17:G458,4,FALSE),"") ->  | B30: 12 | C30: 12 | G30: =IF($C30<=$B$15,VLOOKUP(A30&$B$11, localcont!A21:X1775, 18, FALSE), "") ->  | H30: =IF($C30<=$B$15,VLOOKUP(A30&$B$11, localcont!$A$10:$X$1764, 23, FALSE), "") ->  | J30: =IF($C30<=$B$15,H30/VLOOKUP(A30&"0999", localcont!$A$10:$X$1764, 23, FALSE), "") ->  | K30: =IF($C30<=$B$15,VLOOKUP(A30&$B$11, localcont!$A$10:$X$1764, 15, FALSE), "") ->  | L30: =IF($C30<=$B$15,VLOOKUP(A30&$B$11, localcont!$A$10:$X$1764, 14, FALSE),"") ->  | N30: =IF($C30<=$B$15,VLOOKUP(A30&$B$11, localcont!$A$10:$X$1764, 10, FALSE), "") ->  | O30: =IF($C30<=$B$15,VLOOKUP(A30&$B$11, localcont!$A$10:$X$1764, 12, FALSE), "") -> 
A31: =IF($C31<=$B$15,VLOOKUP(E31,leas!D18:G459,4,FALSE),"") ->  | B31: 13 | C31: 13 | G31: =IF($C31<=$B$15,VLOOKUP(A31&$B$11, localcont!A22:X1776, 18, FALSE), "") ->  | H31: =IF($C31<=$B$15,VLOOKUP(A31&$B$11, localcont!$A$10:$X$1764, 23, FALSE), "") ->  | J31: =IF($C31<=$B$15,H31/VLOOKUP(A31&"0999", localcont!$A$10:$X$1764, 23, FALSE), "") ->  | K31: =IF($C31<=$B$15,VLOOKUP(A31&$B$11, localcont!$A$10:$X$1764, 15, FALSE), "") ->  | L31: =IF($C31<=$B$15,VLOOKUP(A31&$B$11, localcont!$A$10:$X$1764, 14, FALSE),"") ->  | N31: =IF($C31<=$B$15,VLOOKUP(A31&$B$11, localcont!$A$10:$X$1764, 10, FALSE), "") ->  | O31: =IF($C31<=$B$15,VLOOKUP(A31&$B$11, localcont!$A$10:$X$1764, 12, FALSE), "") -> 
A32: =IF($C32<=$B$15,VLOOKUP(E32,leas!D19:G460,4,FALSE),"") ->  | B32: 14 | C32: 14 | G32: =IF($C32<=$B$15,VLOOKUP(A32&$B$11, localcont!A23:X1777, 18, FALSE), "") ->  | H32: =IF($C32<=$B$15,VLOOKUP(A32&$B$11, localcont!$A$10:$X$1764, 23, FALSE), "") ->  | J32: =IF($C32<=$B$15,H32/VLOOKUP(A32&"0999", localcont!$A$10:$X$1764, 23, FALSE), "") ->  | K32: =IF($C32<=$B$15,VLOOKUP(A32&$B$11, localcont!$A$10:$X$1764, 15, FALSE), "") ->  | L32: =IF($C32<=$B$15,VLOOKUP(A32&$B$11, localcont!$A$10:$X$1764, 14, FALSE),"") ->  | N32: =IF($C32<=$B$15,VLOOKUP(A32&$B$11, localcont!$A$10:$X$1764, 10, FALSE), "") ->  | O32: =IF($C32<=$B$15,VLOOKUP(A32&$B$11, localcont!$A$10:$X$1764, 12, FALSE), "") -> 
A33: =IF($C33<=$B$15,VLOOKUP(E33,leas!D20:G461,4,FALSE),"") ->  | B33: 15 | C33: 15 | G33: =IF($C33<=$B$15,VLOOKUP(A33&$B$11, localcont!A24:X1778, 18, FALSE), "") ->  | H33: =IF($C33<=$B$15,VLOOKUP(A33&$B$11, localcont!$A$10:$X$1764, 23, FALSE), "") ->  | J33: =IF($C33<=$B$15,H33/VLOOKUP(A33&"0999", localcont!$A$10:$X$1764, 23, FALSE), "") ->  | K33: =IF($C33<=$B$15,VLOOKUP(A33&$B$11, localcont!$A$10:$X$1764, 15, FALSE), "") ->  | L33: =IF($C33<=$B$15,VLOOKUP(A33&$B$11, localcont!$A$10:$X$1764, 14, FALSE),"") ->  | N33: =IF($C33<=$B$15,VLOOKUP(A33&$B$11, localcont!$A$10:$X$1764, 10, FALSE), "") ->  | O33: =IF($C33<=$B$15,VLOOKUP(A33&$B$11, localcont!$A$10:$X$1764, 12, FALSE), "") -> 
A34: =IF($C34<=$B$15,VLOOKUP(E34,leas!D21:G462,4,FALSE),"") ->  | B34: 16 | C34: 16 | G34: =IF($C34<=$B$15,VLOOKUP(A34&$B$11, localcont!A25:X1779, 18, FALSE), "") ->  | H34: =IF($C34<=$B$15,VLOOKUP(A34&$B$11, localcont!$A$10:$X$1764, 23, FALSE), "") ->  | J34: =IF($C34<=$B$15,H34/VLOOKUP(A34&"0999", localcont!$A$10:$X$1764, 23, FALSE), "") ->  | K34: =IF($C34<=$B$15,VLOOKUP(A34&$B$11, localcont!$A$10:$X$1764, 15, FALSE), "") ->  | L34: =IF($C34<=$B$15,VLOOKUP(A34&$B$11, localcont!$A$10:$X$1764, 14, FALSE),"") ->  | N34: =IF($C34<=$B$15,VLOOKUP(A34&$B$11, localcont!$A$10:$X$1764, 10, FALSE), "") ->  | O34: =IF($C34<=$B$15,VLOOKUP(A34&$B$11, localcont!$A$10:$X$1764, 12, FALSE), "") -> 
A35: =IF($C35<=$B$15,VLOOKUP(E35,leas!D22:G463,4,FALSE),"") ->  | B35: 17 | C35: 17 | G35: =IF($C35<=$B$15,VLOOKUP(A35&$B$11, localcont!A26:X1780, 18, FALSE), "") ->  | H35: =IF($C35<=$B$15,VLOOKUP(A35&$B$11, localcont!$A$10:$X$1764, 23, FALSE), "") ->  | J35: =IF($C35<=$B$15,H35/VLOOKUP(A35&"0999", localcont!$A$10:$X$1764, 23, FALSE), "") ->  | K35: =IF($C35<=$B$15,VLOOKUP(A35&$B$11, localcont!$A$10:$X$1764, 15, FALSE), "") ->  | L35: =IF($C35<=$B$15,VLOOKUP(A35&$B$11, localcont!$A$10:$X$1764, 14, FALSE),"") ->  | N35: =IF($C35<=$B$15,VLOOKUP(A35&$B$11, localcont!$A$10:$X$1764, 10, FALSE), "") ->  | O35: =IF($C35<=$B$15,VLOOKUP(A35&$B$11, localcont!$A$10:$X$1764, 12, FALSE), "") -> 
A36: =IF($C36<=$B$15,VLOOKUP(E36,leas!D23:G464,4,FALSE),"") ->  | B36: 18 | C36: 18 | G36: =IF($C36<=$B$15,VLOOKUP(A36&$B$11, localcont!A27:X1781, 18, FALSE), "") ->  | H36: =IF($C36<=$B$15,VLOOKUP(A36&$B$11, localcont!$A$10:$X$1764, 23, FALSE), "") ->  | J36: =IF($C36<=$B$15,H36/VLOOKUP(A36&"0999", localcont!$A$10:$X$1764, 23, FALSE), "") ->  | K36: =IF($C36<=$B$15,VLOOKUP(A36&$B$11, localcont!$A$10:$X$1764, 15, FALSE), "") ->  | L36: =IF($C36<=$B$15,VLOOKUP(A36&$B$11, localcont!$A$10:$X$1764, 14, FALSE),"") ->  | N36: =IF($C36<=$B$15,VLOOKUP(A36&$B$11, localcont!$A$10:$X$1764, 10, FALSE), "") ->  | O36: =IF($C36<=$B$15,VLOOKUP(A36&$B$11, localcont!$A$10:$X$1764, 12, FALSE), "") -> 
A37: =IF($C37<=$B$15,VLOOKUP(E37,leas!D24:G465,4,FALSE),"") ->  | B37: 19 | C37: 19 | G37: =IF($C37<=$B$15,VLOOKUP(A37&$B$11, localcont!A28:X1782, 18, FALSE), "") ->  | H37: =IF($C37<=$B$15,VLOOKUP(A37&$B$11, localcont!$A$10:$X$1764, 23, FALSE), "") ->  | J37: =IF($C37<=$B$15,H37/VLOOKUP(A37&"0999", localcont!$A$10:$X$1764, 23, FALSE), "") ->  | K37: =IF($C37<=$B$15,VLOOKUP(A37&$B$11, localcont!$A$10:$X$1764, 15, FALSE), "") ->  | L37: =IF($C37<=$B$15,VLOOKUP(A37&$B$11, localcont!$A$10:$X$1764, 14, FALSE),"") ->  | N37: =IF($C37<=$B$15,VLOOKUP(A37&$B$11, localcont!$A$10:$X$1764, 10, FALSE), "") ->  | O37: =IF($C37<=$B$15,VLOOKUP(A37&$B$11, localcont!$A$10:$X$1764, 12, FALSE), "") -> 
A38: =IF($C38<=$B$15,VLOOKUP(E38,leas!D25:G466,4,FALSE),"") ->  | B38: 20 | C38: 20 | G38: =IF($C38<=$B$15,VLOOKUP(A38&$B$11, localcont!A29:X1783, 18, FALSE), "") ->  | H38: =IF($C38<=$B$15,VLOOKUP(A38&$B$11, localcont!$A$10:$X$1764, 23, FALSE), "") ->  | J38: =IF($C38<=$B$15,H38/VLOOKUP(A38&"0999", localcont!$A$10:$X$1764, 23, FALSE), "") ->  | K38: =IF($C38<=$B$15,VLOOKUP(A38&$B$11, localcont!$A$10:$X$1764, 15, FALSE), "") ->  | L38: =IF($C38<=$B$15,VLOOKUP(A38&$B$11, localcont!$A$10:$X$1764, 14, FALSE),"") ->  | N38: =IF($C38<=$B$15,VLOOKUP(A38&$B$11, localcont!$A$10:$X$1764, 10, FALSE), "") ->  | O38: =IF($C38<=$B$15,VLOOKUP(A38&$B$11, localcont!$A$10:$X$1764, 12, FALSE), "") -> 
A39: =IF($C39<=$B$15,VLOOKUP(E39,leas!D26:G467,4,FALSE),"") ->  | B39: 21 | C39: 21 | G39: =IF($C39<=$B$15,VLOOKUP(A39&$B$11, localcont!A30:X1784, 18, FALSE), "") ->  | H39: =IF($C39<=$B$15,VLOOKUP(A39&$B$11, localcont!$A$10:$X$1764, 23, FALSE), "") ->  | J39: =IF($C39<=$B$15,H39/VLOOKUP(A39&"0999", localcont!$A$10:$X$1764, 23, FALSE), "") ->  | K39: =IF($C39<=$B$15,VLOOKUP(A39&$B$11, localcont!$A$10:$X$1764, 15, FALSE), "") ->  | L39: =IF($C39<=$B$15,VLOOKUP(A39&$B$11, localcont!$A$10:$X$1764, 14, FALSE),"") ->  | N39: =IF($C39<=$B$15,VLOOKUP(A39&$B$11, localcont!$A$10:$X$1764, 10, FALSE), "") ->  | O39: =IF($C39<=$B$15,VLOOKUP(A39&$B$11, localcont!$A$10:$X$1764, 12, FALSE), "") -> 
A40: =IF($C40<=$B$15,VLOOKUP(E40,leas!D27:G468,4,FALSE),"") ->  | B40: 22 | C40: 22 | G40: =IF($C40<=$B$15,VLOOKUP(A40&$B$11, localcont!A31:X1785, 18, FALSE), "") ->  | H40: =IF($C40<=$B$15,VLOOKUP(A40&$B$11, localcont!$A$10:$X$1764, 23, FALSE), "") ->  | J40: =IF($C40<=$B$15,H40/VLOOKUP(A40&"0999", localcont!$A$10:$X$1764, 23, FALSE), "") ->  | K40: =IF($C40<=$B$15,VLOOKUP(A40&$B$11, localcont!$A$10:$X$1764, 15, FALSE), "") ->  | L40: =IF($C40<=$B$15,VLOOKUP(A40&$B$11, localcont!$A$10:$X$1764, 14, FALSE),"") ->  | N40: =IF($C40<=$B$15,VLOOKUP(A40&$B$11, localcont!$A$10:$X$1764, 10, FALSE), "") ->  | O40: =IF($C40<=$B$15,VLOOKUP(A40&$B$11, localcont!$A$10:$X$1764, 12, FALSE), "") -> 
A41: =IF($C41<=$B$15,VLOOKUP(E41,leas!D28:G469,4,FALSE),"") ->  | B41: 23 | C41: 23 | G41: =IF($C41<=$B$15,VLOOKUP(A41&$B$11, localcont!A32:X1786, 18, FALSE), "") ->  | H41: =IF($C41<=$B$15,VLOOKUP(A41&$B$11, localcont!$A$10:$X$1764, 23, FALSE), "") ->  | J41: =IF($C41<=$B$15,H41/VLOOKUP(A41&"0999", localcont!$A$10:$X$1764, 23, FALSE), "") ->  | K41: =IF($C41<=$B$15,VLOOKUP(A41&$B$11, localcont!$A$10:$X$1764, 15, FALSE), "") ->  | L41: =IF($C41<=$B$15,VLOOKUP(A41&$B$11, localcont!$A$10:$X$1764, 14, FALSE),"") ->  | N41: =IF($C41<=$B$15,VLOOKUP(A41&$B$11, localcont!$A$10:$X$1764, 10, FALSE), "") ->  | O41: =IF($C41<=$B$15,VLOOKUP(A41&$B$11, localcont!$A$10:$X$1764, 12, FALSE), "") -> 
A42: =IF($C42<=$B$15,VLOOKUP(E42,leas!D29:G470,4,FALSE),"") ->  | B42: 24 | C42: 24 | G42: =IF($C42<=$B$15,VLOOKUP(A42&$B$11, localcont!A33:X1787, 18, FALSE), "") ->  | H42: =IF($C42<=$B$15,VLOOKUP(A42&$B$11, localcont!$A$10:$X$1764, 23, FALSE), "") ->  | J42: =IF($C42<=$B$15,H42/VLOOKUP(A42&"0999", localcont!$A$10:$X$1764, 23, FALSE), "") ->  | K42: =IF($C42<=$B$15,VLOOKUP(A42&$B$11, localcont!$A$10:$X$1764, 15, FALSE), "") ->  | L42: =IF($C42<=$B$15,VLOOKUP(A42&$B$11, localcont!$A$10:$X$1764, 14, FALSE),"") ->  | N42: =IF($C42<=$B$15,VLOOKUP(A42&$B$11, localcont!$A$10:$X$1764, 10, FALSE), "") ->  | O42: =IF($C42<=$B$15,VLOOKUP(A42&$B$11, localcont!$A$10:$X$1764, 12, FALSE), "") -> 
A43: =IF($C43<=$B$15,VLOOKUP(E43,leas!D30:G471,4,FALSE),"") ->  | B43: 25 | C43: 25 | G43: =IF($C43<=$B$15,VLOOKUP(A43&$B$11, localcont!A34:X1788, 18, FALSE), "") ->  | H43: =IF($C43<=$B$15,VLOOKUP(A43&$B$11, localcont!$A$10:$X$1764, 23, FALSE), "") ->  | J43: =IF($C43<=$B$15,H43/VLOOKUP(A43&"0999", localcont!$A$10:$X$1764, 23, FALSE), "") ->  | K43: =IF($C43<=$B$15,VLOOKUP(A43&$B$11, localcont!$A$10:$X$1764, 15, FALSE), "") ->  | L43: =IF($C43<=$B$15,VLOOKUP(A43&$B$11, localcont!$A$10:$X$1764, 14, FALSE),"") ->  | N43: =IF($C43<=$B$15,VLOOKUP(A43&$B$11, localcont!$A$10:$X$1764, 10, FALSE), "") ->  | O43: =IF($C43<=$B$15,VLOOKUP(A43&$B$11, localcont!$A$10:$X$1764, 12, FALSE), "") -> 
A44: =IF($C44<=$B$15,VLOOKUP(E44,leas!D31:G472,4,FALSE),"") ->  | B44: 26 | C44: 26 | G44: =IF($C44<=$B$15,VLOOKUP(A44&$B$11, localcont!A35:X1789, 18, FALSE), "") ->  | H44: =IF($C44<=$B$15,VLOOKUP(A44&$B$11, localcont!$A$10:$X$1764, 23, FALSE), "") ->  | J44: =IF($C44<=$B$15,H44/VLOOKUP(A44&"0999", localcont!$A$10:$X$1764, 23, FALSE), "") ->  | K44: =IF($C44<=$B$15,VLOOKUP(A44&$B$11, localcont!$A$10:$X$1764, 15, FALSE), "") ->  | L44: =IF($C44<=$B$15,VLOOKUP(A44&$B$11, localcont!$A$10:$X$1764, 14, FALSE),"") ->  | N44: =IF($C44<=$B$15,VLOOKUP(A44&$B$11, localcont!$A$10:$X$1764, 10, FALSE), "") ->  | O44: =IF($C44<=$B$15,VLOOKUP(A44&$B$11, localcont!$A$10:$X$1764, 12, FALSE), "") -> 
A45: =IF($C45<=$B$15,VLOOKUP(E45,leas!D32:G473,4,FALSE),"") ->  | B45: 27 | C45: 27 | G45: =IF($C45<=$B$15,VLOOKUP(A45&$B$11, localcont!A36:X1790, 18, FALSE), "") ->  | H45: =IF($C45<=$B$15,VLOOKUP(A45&$B$11, localcont!$A$10:$X$1764, 23, FALSE), "") ->  | J45: =IF($C45<=$B$15,H45/VLOOKUP(A45&"0999", localcont!$A$10:$X$1764, 23, FALSE), "") ->  | K45: =IF($C45<=$B$15,VLOOKUP(A45&$B$11, localcont!$A$10:$X$1764, 15, FALSE), "") ->  | L45: =IF($C45<=$B$15,VLOOKUP(A45&$B$11, localcont!$A$10:$X$1764, 14, FALSE),"") ->  | N45: =IF($C45<=$B$15,VLOOKUP(A45&$B$11, localcont!$A$10:$X$1764, 10, FALSE), "") ->  | O45: =IF($C45<=$B$15,VLOOKUP(A45&$B$11, localcont!$A$10:$X$1764, 12, FALSE), "") -> 
A46: =IF($C46<=$B$15,VLOOKUP(E46,leas!D33:G474,4,FALSE),"") ->  | B46: 28 | C46: 28 | G46: =IF($C46<=$B$15,VLOOKUP(A46&$B$11, localcont!A37:X1791, 18, FALSE), "") ->  | H46: =IF($C46<=$B$15,VLOOKUP(A46&$B$11, localcont!$A$10:$X$1764, 23, FALSE), "") ->  | J46: =IF($C46<=$B$15,H46/VLOOKUP(A46&"0999", localcont!$A$10:$X$1764, 23, FALSE), "") ->  | K46: =IF($C46<=$B$15,VLOOKUP(A46&$B$11, localcont!$A$10:$X$1764, 15, FALSE), "") ->  | L46: =IF($C46<=$B$15,VLOOKUP(A46&$B$11, localcont!$A$10:$X$1764, 14, FALSE),"") ->  | N46: =IF($C46<=$B$15,VLOOKUP(A46&$B$11, localcont!$A$10:$X$1764, 10, FALSE), "") ->  | O46: =IF($C46<=$B$15,VLOOKUP(A46&$B$11, localcont!$A$10:$X$1764, 12, FALSE), "") -> 
A47: =IF($C47<=$B$15,VLOOKUP(E47,leas!D34:G475,4,FALSE),"") ->  | B47: 29 | C47: 29 | G47: =IF($C47<=$B$15,VLOOKUP(A47&$B$11, localcont!A38:X1792, 18, FALSE), "") ->  | H47: =IF($C47<=$B$15,VLOOKUP(A47&$B$11, localcont!$A$10:$X$1764, 23, FALSE), "") ->  | J47: =IF($C47<=$B$15,H47/VLOOKUP(A47&"0999", localcont!$A$10:$X$1764, 23, FALSE), "") ->  | K47: =IF($C47<=$B$15,VLOOKUP(A47&$B$11, localcont!$A$10:$X$1764, 15, FALSE), "") ->  | L47: =IF($C47<=$B$15,VLOOKUP(A47&$B$11, localcont!$A$10:$X$1764, 14, FALSE),"") ->  | N47: =IF($C47<=$B$15,VLOOKUP(A47&$B$11, localcont!$A$10:$X$1764, 10, FALSE), "") ->  | O47: =IF($C47<=$B$15,VLOOKUP(A47&$B$11, localcont!$A$10:$X$1764, 12, FALSE), "") -> 
A48: =IF($C48<=$B$15,VLOOKUP(E48,leas!D35:G476,4,FALSE),"") ->  | B48: 30 | C48: 30 | G48: =IF($C48<=$B$15,VLOOKUP(A48&$B$11, localcont!A39:X1793, 18, FALSE), "") ->  | H48: =IF($C48<=$B$15,VLOOKUP(A48&$B$11, localcont!$A$10:$X$1764, 23, FALSE), "") ->  | J48: =IF($C48<=$B$15,H48/VLOOKUP(A48&"0999", localcont!$A$10:$X$1764, 23, FALSE), "") ->  | K48: =IF($C48<=$B$15,VLOOKUP(A48&$B$11, localcont!$A$10:$X$1764, 15, FALSE), "") ->  | L48: =IF($C48<=$B$15,VLOOKUP(A48&$B$11, localcont!$A$10:$X$1764, 14, FALSE),"") ->  | N48: =IF($C48<=$B$15,VLOOKUP(A48&$B$11, localcont!$A$10:$X$1764, 10, FALSE), "") ->  | O48: =IF($C48<=$B$15,VLOOKUP(A48&$B$11, localcont!$A$10:$X$1764, 12, FALSE), "") -> 
A49: =IF($C49<=$B$15,VLOOKUP(E49,leas!D36:G477,4,FALSE),"") ->  | B49: 31 | C49: 31 | G49: =IF($C49<=$B$15,VLOOKUP(A49&$B$11, localcont!A40:X1794, 18, FALSE), "") ->  | H49: =IF($C49<=$B$15,VLOOKUP(A49&$B$11, localcont!$A$10:$X$1764, 23, FALSE), "") ->  | J49: =IF($C49<=$B$15,H49/VLOOKUP(A49&"0999", localcont!$A$10:$X$1764, 23, FALSE), "") ->  | K49: =IF($C49<=$B$15,VLOOKUP(A49&$B$11, localcont!$A$10:$X$1764, 15, FALSE), "") ->  | L49: =IF($C49<=$B$15,VLOOKUP(A49&$B$11, localcont!$A$10:$X$1764, 14, FALSE),"") ->  | N49: =IF($C49<=$B$15,VLOOKUP(A49&$B$11, localcont!$A$10:$X$1764, 10, FALSE), "") ->  | O49: =IF($C49<=$B$15,VLOOKUP(A49&$B$11, localcont!$A$10:$X$1764, 12, FALSE), "") -> 
A50: =IF($C50<=$B$15,VLOOKUP(E50,leas!D37:G478,4,FALSE),"") ->  | B50: 32 | C50: 32 | G50: =IF($C50<=$B$15,VLOOKUP(A50&$B$11, localcont!A41:X1795, 18, FALSE), "") ->  | H50: =IF($C50<=$B$15,VLOOKUP(A50&$B$11, localcont!$A$10:$X$1764, 23, FALSE), "") ->  | J50: =IF($C50<=$B$15,H50/VLOOKUP(A50&"0999", localcont!$A$10:$X$1764, 23, FALSE), "") ->  | K50: =IF($C50<=$B$15,VLOOKUP(A50&$B$11, localcont!$A$10:$X$1764, 15, FALSE), "") ->  | L50: =IF($C50<=$B$15,VLOOKUP(A50&$B$11, localcont!$A$10:$X$1764, 14, FALSE),"") ->  | N50: =IF($C50<=$B$15,VLOOKUP(A50&$B$11, localcont!$A$10:$X$1764, 10, FALSE), "") ->  | O50: =IF($C50<=$B$15,VLOOKUP(A50&$B$11, localcont!$A$10:$X$1764, 12, FALSE), "") -> 
A51: =IF($C51<=$B$15,VLOOKUP(E51,leas!D38:G479,4,FALSE),"") ->  | B51: 33 | C51: 33 | F51: =IF($C51<=$B$15, VLOOKUP($B51, regdetail, 6), " ") ->  | G51: =IF($C51<=$B$15,VLOOKUP(A51&$B$11, localcont!A42:X1796, 18, FALSE), "") ->  | H51: =IF($C51<=$B$15,VLOOKUP(A51&$B$11, localcont!$A$10:$X$1764, 23, FALSE), "") ->  | J51: =IF($C51<=$B$15,H51/VLOOKUP(A51&"0999", localcont!$A$10:$X$1764, 23, FALSE), "") ->  | K51: =IF($C51<=$B$15,VLOOKUP(A51&$B$11, localcont!$A$10:$X$1764, 15, FALSE), "") ->  | L51: =IF($C51<=$B$15,VLOOKUP(A51&$B$11, localcont!$A$10:$X$1764, 14, FALSE),"") ->  | N51: =IF($C51<=$B$15,VLOOKUP(A51&$B$11, localcont!$A$10:$X$1764, 10, FALSE), "") ->  | O51: =IF($C51<=$B$15,VLOOKUP(A51&$B$11, localcont!$A$10:$X$1764, 12, FALSE), "") ->  | Q51: =IF($C51<=$B$15,VLOOKUP(E51, town351, 13, FALSE), "") ->  | R51: =IF($C51<=$B$15,VLOOKUP(E51, town351, 22, FALSE), "") ->  | T51: =IF($C51<=$B$15,VLOOKUP(E51, town351, 11, FALSE), "") ->  | U51: =IF($C51<=$B$15,VLOOKUP(E51, town351, 23, FALSE), "") -> 
A52: =IF($C52<=$B$15,VLOOKUP(E52,leas!D39:G480,4,FALSE),"") ->  | B52: 34 | C52: 34 | G52: =IF($C52<=$B$15,VLOOKUP(A52&$B$11, localcont!A43:X1797, 18, FALSE), "") ->  | H52: =IF($C52<=$B$15,VLOOKUP(A52&$B$11, localcont!$A$10:$X$1764, 23, FALSE), "") ->  | J52: =IF($C52<=$B$15,H52/VLOOKUP(A52&"0999", localcont!$A$10:$X$1764, 23, FALSE), "") ->  | K52: =IF($C52<=$B$15,VLOOKUP(A52&$B$11, localcont!$A$10:$X$1764, 15, FALSE), "") ->  | L52: =IF($C52<=$B$15,VLOOKUP(A52&$B$11, localcont!$A$10:$X$1764, 14, FALSE),"") ->  | N52: =IF($C52<=$B$15,VLOOKUP(A52&$B$11, localcont!$A$10:$X$1764, 10, FALSE), "") ->  | O52: =IF($C52<=$B$15,VLOOKUP(A52&$B$11, localcont!$A$10:$X$1764, 12, FALSE), "") -> 
A53: =IF($C53<=$B$15,VLOOKUP(E53,leas!D40:G481,4,FALSE),"") ->  | B53: 35 | C53: 35 | G53: =IF($C53<=$B$15,VLOOKUP(A53&$B$11, localcont!A44:X1798, 18, FALSE), "") ->  | H53: =IF($C53<=$B$15,VLOOKUP(A53&$B$11, localcont!$A$10:$X$1764, 23, FALSE), "") ->  | J53: =IF($C53<=$B$15,H53/VLOOKUP(A53&"0999", localcont!$A$10:$X$1764, 23, FALSE), "") ->  | K53: =IF($C53<=$B$15,VLOOKUP(A53&$B$11, localcont!$A$10:$X$1764, 15, FALSE), "") ->  | L53: =IF($C53<=$B$15,VLOOKUP(A53&$B$11, localcont!$A$10:$X$1764, 14, FALSE),"") ->  | N53: =IF($C53<=$B$15,VLOOKUP(A53&$B$11, localcont!$A$10:$X$1764, 10, FALSE), "") ->  | O53: =IF($C53<=$B$15,VLOOKUP(A53&$B$11, localcont!$A$10:$X$1764, 12, FALSE), "") -> 
A54: =IF($C54<=$B$15,VLOOKUP(E54,leas!D41:G482,4,FALSE),"") ->  | B54: 36 | C54: 36 | G54: =IF($C54<=$B$15,VLOOKUP(A54&$B$11, localcont!A45:X1799, 18, FALSE), "") ->  | H54: =IF($C54<=$B$15,VLOOKUP(A54&$B$11, localcont!$A$10:$X$1764, 23, FALSE), "") ->  | J54: =IF($C54<=$B$15,H54/VLOOKUP(A54&"0999", localcont!$A$10:$X$1764, 23, FALSE), "") ->  | K54: =IF($C54<=$B$15,VLOOKUP(A54&$B$11, localcont!$A$10:$X$1764, 15, FALSE), "") ->  | L54: =IF($C54<=$B$15,VLOOKUP(A54&$B$11, localcont!$A$10:$X$1764, 14, FALSE),"") ->  | N54: =IF($C54<=$B$15,VLOOKUP(A54&$B$11, localcont!$A$10:$X$1764, 10, FALSE), "") ->  | O54: =IF($C54<=$B$15,VLOOKUP(A54&$B$11, localcont!$A$10:$X$1764, 12, FALSE), "") -> 
A55: =IF($C55<=$B$15,VLOOKUP(E55,leas!D42:G483,4,FALSE),"") ->  | B55: 37 | C55: 37 | G55: =IF($C55<=$B$15,VLOOKUP(A55&$B$11, localcont!A46:X1800, 18, FALSE), "") ->  | H55: =IF($C55<=$B$15,VLOOKUP(A55&$B$11, localcont!$A$10:$X$1764, 23, FALSE), "") ->  | J55: =IF($C55<=$B$15,H55/VLOOKUP(A55&"0999", localcont!$A$10:$X$1764, 23, FALSE), "") ->  | K55: =IF($C55<=$B$15,VLOOKUP(A55&$B$11, localcont!$A$10:$X$1764, 15, FALSE), "") ->  | L55: =IF($C55<=$B$15,VLOOKUP(A55&$B$11, localcont!$A$10:$X$1764, 14, FALSE),"") ->  | N55: =IF($C55<=$B$15,VLOOKUP(A55&$B$11, localcont!$A$10:$X$1764, 10, FALSE), "") ->  | O55: =IF($C55<=$B$15,VLOOKUP(A55&$B$11, localcont!$A$10:$X$1764, 12, FALSE), "") -> 
A56: =IF($C56<=$B$15,VLOOKUP(E56,leas!D43:G484,4,FALSE),"") ->  | B56: 38 | C56: 38 | G56: =IF($C56<=$B$15,VLOOKUP(A56&$B$11, localcont!A47:X1801, 18, FALSE), "") ->  | H56: =IF($C56<=$B$15,VLOOKUP(A56&$B$11, localcont!$A$10:$X$1764, 23, FALSE), "") ->  | J56: =IF($C56<=$B$15,H56/VLOOKUP(A56&"0999", localcont!$A$10:$X$1764, 23, FALSE), "") ->  | K56: =IF($C56<=$B$15,VLOOKUP(A56&$B$11, localcont!$A$10:$X$1764, 15, FALSE), "") ->  | L56: =IF($C56<=$B$15,VLOOKUP(A56&$B$11, localcont!$A$10:$X$1764, 14, FALSE),"") ->  | N56: =IF($C56<=$B$15,VLOOKUP(A56&$B$11, localcont!$A$10:$X$1764, 10, FALSE), "") ->  | O56: =IF($C56<=$B$15,VLOOKUP(A56&$B$11, localcont!$A$10:$X$1764, 12, FALSE), "") -> 
A57: =IF($C57<=$B$15,VLOOKUP(E57,leas!D44:G485,4,FALSE),"") ->  | B57: 39 | C57: 39 | G57: =IF($C57<=$B$15,VLOOKUP(A57&$B$11, localcont!A48:X1802, 18, FALSE), "") ->  | H57: =IF($C57<=$B$15,VLOOKUP(A57&$B$11, localcont!$A$10:$X$1764, 23, FALSE), "") ->  | J57: =IF($C57<=$B$15,H57/VLOOKUP(A57&"0999", localcont!$A$10:$X$1764, 23, FALSE), "") ->  | K57: =IF($C57<=$B$15,VLOOKUP(A57&$B$11, localcont!$A$10:$X$1764, 15, FALSE), "") ->  | L57: =IF($C57<=$B$15,VLOOKUP(A57&$B$11, localcont!$A$10:$X$1764, 14, FALSE),"") ->  | N57: =IF($C57<=$B$15,VLOOKUP(A57&$B$11, localcont!$A$10:$X$1764, 10, FALSE), "") ->  | O57: =IF($C57<=$B$15,VLOOKUP(A57&$B$11, localcont!$A$10:$X$1764, 12, FALSE), "") -> 
A58: =IF($C58<=$B$15,VLOOKUP(E58,leas!D45:G486,4,FALSE),"") ->  | B58: 40 | C58: 40 | G58: =IF($C58<=$B$15,VLOOKUP(A58&$B$11, localcont!A49:X1803, 18, FALSE), "") ->  | H58: =IF($C58<=$B$15,VLOOKUP(A58&$B$11, localcont!$A$10:$X$1764, 23, FALSE), "") ->  | J58: =IF($C58<=$B$15,H58/VLOOKUP(A58&"0999", localcont!$A$10:$X$1764, 23, FALSE), "") ->  | K58: =IF($C58<=$B$15,VLOOKUP(A58&$B$11, localcont!$A$10:$X$1764, 15, FALSE), "") ->  | L58: =IF($C58<=$B$15,VLOOKUP(A58&$B$11, localcont!$A$10:$X$1764, 14, FALSE),"") ->  | N58: =IF($C58<=$B$15,VLOOKUP(A58&$B$11, localcont!$A$10:$X$1764, 10, FALSE), "") ->  | O58: =IF($C58<=$B$15,VLOOKUP(A58&$B$11, localcont!$A$10:$X$1764, 12, FALSE), "") -> 
A59: =IF($C59<=$B$15,VLOOKUP(E59,leas!D46:G487,4,FALSE),"") ->  | B59: 41 | C59: 41 | G59: =IF($C59<=$B$15,VLOOKUP(A59&$B$11, localcont!A50:X1804, 18, FALSE), "") ->  | H59: =IF($C59<=$B$15,VLOOKUP(A59&$B$11, localcont!$A$10:$X$1764, 23, FALSE), "") ->  | J59: =IF($C59<=$B$15,H59/VLOOKUP(A59&"0999", localcont!$A$10:$X$1764, 23, FALSE), "") ->  | K59: =IF($C59<=$B$15,VLOOKUP(A59&$B$11, localcont!$A$10:$X$1764, 15, FALSE), "") ->  | L59: =IF($C59<=$B$15,VLOOKUP(A59&$B$11, localcont!$A$10:$X$1764, 14, FALSE),"") ->  | N59: =IF($C59<=$B$15,VLOOKUP(A59&$B$11, localcont!$A$10:$X$1764, 10, FALSE), "") ->  | O59: =IF($C59<=$B$15,VLOOKUP(A59&$B$11, localcont!$A$10:$X$1764, 12, FALSE), "") -> 
A60: =IF($C60<=$B$15,VLOOKUP(E60,leas!D47:G488,4,FALSE),"") ->  | B60: 42 | C60: 42 | G60: =IF($C60<=$B$15,VLOOKUP(A60&$B$11, localcont!A51:X1805, 18, FALSE), "") ->  | H60: =IF($C60<=$B$15,VLOOKUP(A60&$B$11, localcont!$A$10:$X$1764, 23, FALSE), "") ->  | J60: =IF($C60<=$B$15,H60/VLOOKUP(A60&"0999", localcont!$A$10:$X$1764, 23, FALSE), "") ->  | K60: =IF($C60<=$B$15,VLOOKUP(A60&$B$11, localcont!$A$10:$X$1764, 15, FALSE), "") ->  | L60: =IF($C60<=$B$15,VLOOKUP(A60&$B$11, localcont!$A$10:$X$1764, 14, FALSE),"") ->  | N60: =IF($C60<=$B$15,VLOOKUP(A60&$B$11, localcont!$A$10:$X$1764, 10, FALSE), "") ->  | O60: =IF($C60<=$B$15,VLOOKUP(A60&$B$11, localcont!$A$10:$X$1764, 12, FALSE), "") -> 
A61: =IF($C61<=$B$15,VLOOKUP(E61,leas!D48:G489,4,FALSE),"") ->  | B61: 43 | C61: 43 | G61: =IF($C61<=$B$15,VLOOKUP(A61&$B$11, localcont!A52:X1806, 18, FALSE), "") ->  | H61: =IF($C61<=$B$15,VLOOKUP(A61&$B$11, localcont!$A$10:$X$1764, 23, FALSE), "") ->  | J61: =IF($C61<=$B$15,H61/VLOOKUP(A61&"0999", localcont!$A$10:$X$1764, 23, FALSE), "") ->  | K61: =IF($C61<=$B$15,VLOOKUP(A61&$B$11, localcont!$A$10:$X$1764, 15, FALSE), "") ->  | L61: =IF($C61<=$B$15,VLOOKUP(A61&$B$11, localcont!$A$10:$X$1764, 14, FALSE),"") ->  | N61: =IF($C61<=$B$15,VLOOKUP(A61&$B$11, localcont!$A$10:$X$1764, 10, FALSE), "") ->  | O61: =IF($C61<=$B$15,VLOOKUP(A61&$B$11, localcont!$A$10:$X$1764, 12, FALSE), "") -> 
A62: =IF($C62<=$B$15,VLOOKUP(E62,leas!D49:G490,4,FALSE),"") ->  | B62: 44 | C62: 44 | G62: =IF($C62<=$B$15,VLOOKUP(A62&$B$11, localcont!A53:X1807, 18, FALSE), "") ->  | H62: =IF($C62<=$B$15,VLOOKUP(A62&$B$11, localcont!$A$10:$X$1764, 23, FALSE), "") ->  | J62: =IF($C62<=$B$15,H62/VLOOKUP(A62&"0999", localcont!$A$10:$X$1764, 23, FALSE), "") ->  | K62: =IF($C62<=$B$15,VLOOKUP(A62&$B$11, localcont!$A$10:$X$1764, 15, FALSE), "") ->  | L62: =IF($C62<=$B$15,VLOOKUP(A62&$B$11, localcont!$A$10:$X$1764, 14, FALSE),"") ->  | N62: =IF($C62<=$B$15,VLOOKUP(A62&$B$11, localcont!$A$10:$X$1764, 10, FALSE), "") ->  | O62: =IF($C62<=$B$15,VLOOKUP(A62&$B$11, localcont!$A$10:$X$1764, 12, FALSE), "") -> 
A63: =IF($C63<=$B$15,VLOOKUP(E63,leas!D50:G491,4,FALSE),"") ->  | B63: 45 | C63: 45 | G63: =IF($C63<=$B$15,VLOOKUP(A63&$B$11, localcont!A54:X1808, 18, FALSE), "") ->  | H63: =IF($C63<=$B$15,VLOOKUP(A63&$B$11, localcont!$A$10:$X$1764, 23, FALSE), "") ->  | J63: =IF($C63<=$B$15,H63/VLOOKUP(A63&"0999", localcont!$A$10:$X$1764, 23, FALSE), "") ->  | K63: =IF($C63<=$B$15,VLOOKUP(A63&$B$11, localcont!$A$10:$X$1764, 15, FALSE), "") ->  | L63: =IF($C63<=$B$15,VLOOKUP(A63&$B$11, localcont!$A$10:$X$1764, 14, FALSE),"") ->  | N63: =IF($C63<=$B$15,VLOOKUP(A63&$B$11, localcont!$A$10:$X$1764, 10, FALSE), "") ->  | O63: =IF($C63<=$B$15,VLOOKUP(A63&$B$11, localcont!$A$10:$X$1764, 12, FALSE), "") -> 
A64: =IF($C64<=$B$15,VLOOKUP(E64,leas!D51:G492,4,FALSE),"") ->  | B64: 46 | C64: 46 | G64: =IF($C64<=$B$15,VLOOKUP(A64&$B$11, localcont!A55:X1809, 18, FALSE), "") ->  | H64: =IF($C64<=$B$15,VLOOKUP(A64&$B$11, localcont!$A$10:$X$1764, 23, FALSE), "") ->  | J64: =IF($C64<=$B$15,H64/VLOOKUP(A64&"0999", localcont!$A$10:$X$1764, 23, FALSE), "") ->  | K64: =IF($C64<=$B$15,VLOOKUP(A64&$B$11, localcont!$A$10:$X$1764, 15, FALSE), "") ->  | L64: =IF($C64<=$B$15,VLOOKUP(A64&$B$11, localcont!$A$10:$X$1764, 14, FALSE),"") ->  | N64: =IF($C64<=$B$15,VLOOKUP(A64&$B$11, localcont!$A$10:$X$1764, 10, FALSE), "") ->  | O64: =IF($C64<=$B$15,VLOOKUP(A64&$B$11, localcont!$A$10:$X$1764, 12, FALSE), "") -> 
A65: =IF($C65<=$B$15,VLOOKUP(E65,leas!D52:G493,4,FALSE),"") ->  | B65: 47 | C65: 47 | G65: =IF($C65<=$B$15,VLOOKUP(A65&$B$11, localcont!A56:X1810, 18, FALSE), "") ->  | H65: =IF($C65<=$B$15,VLOOKUP(A65&$B$11, localcont!$A$10:$X$1764, 23, FALSE), "") ->  | J65: =IF($C65<=$B$15,H65/VLOOKUP(A65&"0999", localcont!$A$10:$X$1764, 23, FALSE), "") ->  | K65: =IF($C65<=$B$15,VLOOKUP(A65&$B$11, localcont!$A$10:$X$1764, 15, FALSE), "") ->  | L65: =IF($C65<=$B$15,VLOOKUP(A65&$B$11, localcont!$A$10:$X$1764, 14, FALSE),"") ->  | N65: =IF($C65<=$B$15,VLOOKUP(A65&$B$11, localcont!$A$10:$X$1764, 10, FALSE), "") ->  | O65: =IF($C65<=$B$15,VLOOKUP(A65&$B$11, localcont!$A$10:$X$1764, 12, FALSE), "") -> 
A66: =IF($C66<=$B$15,VLOOKUP(E66,leas!D53:G494,4,FALSE),"") ->  | B66: 48 | C66: 48 | G66: =IF($C66<=$B$15,VLOOKUP(A66&$B$11, localcont!A57:X1811, 18, FALSE), "") ->  | H66: =IF($C66<=$B$15,VLOOKUP(A66&$B$11, localcont!$A$10:$X$1764, 23, FALSE), "") ->  | J66: =IF($C66<=$B$15,H66/VLOOKUP(A66&"0999", localcont!$A$10:$X$1764, 23, FALSE), "") ->  | K66: =IF($C66<=$B$15,VLOOKUP(A66&$B$11, localcont!$A$10:$X$1764, 15, FALSE), "") ->  | L66: =IF($C66<=$B$15,VLOOKUP(A66&$B$11, localcont!$A$10:$X$1764, 14, FALSE),"") ->  | N66: =IF($C66<=$B$15,VLOOKUP(A66&$B$11, localcont!$A$10:$X$1764, 10, FALSE), "") ->  | O66: =IF($C66<=$B$15,VLOOKUP(A66&$B$11, localcont!$A$10:$X$1764, 12, FALSE), "") -> 
A67: =IF($C67<=$B$15,VLOOKUP(E67,leas!D54:G495,4,FALSE),"") ->  | B67: 49 | C67: 49 | G67: =IF($C67<=$B$15,VLOOKUP(A67&$B$11, localcont!A58:X1812, 18, FALSE), "") ->  | H67: =IF($C67<=$B$15,VLOOKUP(A67&$B$11, localcont!$A$10:$X$1764, 23, FALSE), "") ->  | J67: =IF($C67<=$B$15,H67/VLOOKUP(A67&"0999", localcont!$A$10:$X$1764, 23, FALSE), "") ->  | K67: =IF($C67<=$B$15,VLOOKUP(A67&$B$11, localcont!$A$10:$X$1764, 15, FALSE), "") ->  | L67: =IF($C67<=$B$15,VLOOKUP(A67&$B$11, localcont!$A$10:$X$1764, 14, FALSE),"") ->  | N67: =IF($C67<=$B$15,VLOOKUP(A67&$B$11, localcont!$A$10:$X$1764, 10, FALSE), "") ->  | O67: =IF($C67<=$B$15,VLOOKUP(A67&$B$11, localcont!$A$10:$X$1764, 12, FALSE), "") -> 

Sheet ceyregionalcalc (hidden)
F1: Total CEY for town | G1: FB for school district/town combo | H1: CEY*% of town's fb
A2: Calculation of CEY as a % of Foundation
F7: FY16 Total | G7: FY16 Proportional | H7: FY16 Prop
F8: CEY | G8: Foundation | H8: CEY
A9: Order | B9: LEA | C9: School District | D9: Town | E9: City or Town | F9: Members | G9: Members | H9: Members
A10: 1 | B10: 1 | C10: ABINGTON | D10: 1 | E10: ABINGTON | F10: =VLOOKUP(D10, town351, 7) -> 14929120 | G10: =VLOOKUP(A10, localcont!$D$10:$L$1764, 8) -> 21515960.21 | H10: =VLOOKUP(A10, localcont!$D$10:$L$1764, 9)*F10 -> 13701007.64
A11: 6 | B11: 2 | C11: ACTON | D11: 2 | E11: ACTON | F11: 36476566 | G11: =VLOOKUP(A11, localcont!$D$10:$L$1764, 8) -> 0 | H11: =VLOOKUP(A11, localcont!$D$10:$L$1764, 9)*F11 -> 0
A12: 11 | B12: 3 | C12: ACUSHNET | D12: 3 | E12: ACUSHNET | F12: 8473423 | G12: =VLOOKUP(A12, localcont!$D$10:$L$1764, 8) -> 12395984.84 | H12: =VLOOKUP(A12, localcont!$D$10:$L$1764, 9)*F12 -> 7125126.132
A13: 16 | B13: 4 | C13: ADAMS | D13: 4 | E13: ADAMS | F13: 4445610 | G13: =VLOOKUP(A13, localcont!$D$10:$L$1764, 8) -> 0 | H13: =VLOOKUP(A13, localcont!$D$10:$L$1764, 9)*F13 -> 0
A14: 21 | B14: 5 | C14: AGAWAM | D14: 5 | E14: AGAWAM | F14: 22474431 | G14: =VLOOKUP(A14, localcont!$D$10:$L$1764, 8) -> 41326070.32 | H14: =VLOOKUP(A14, localcont!$D$10:$L$1764, 9)*F14 -> 22474431
A15: 26 | B15: 6 | C15: ALFORD | D15: 6 | E15: ALFORD | F15: 1378223 | G15: =VLOOKUP(A15, localcont!$D$10:$L$1764, 8) -> 0 | H15: =VLOOKUP(A15, localcont!$D$10:$L$1764, 9)*F15 -> 0
A16: 31 | B16: 7 | C16: AMESBURY | D16: 7 | E16: AMESBURY | F16: 15968764 | G16: =VLOOKUP(A16, localcont!$D$10:$L$1764, 8) -> 22830750.46 | H16: =VLOOKUP(A16, localcont!$D$10:$L$1764, 9)*F16 -> 15155898.41
A17: 36 | B17: 8 | C17: AMHERST | D17: 8 | E17: AMHERST | F17: 18587941 | G17: =VLOOKUP(A17, localcont!$D$10:$L$1764, 8) -> 11969353.38 | H17: =VLOOKUP(A17, localcont!$D$10:$L$1764, 9)*F17 -> 8946746.399
A18: 41 | B18: 9 | C18: ANDOVER | D18: 9 | E18: ANDOVER | F18: 69022032 | G18: =VLOOKUP(A18, localcont!$D$10:$L$1764, 8) -> 60546641.05 | H18: =VLOOKUP(A18, localcont!$D$10:$L$1764, 9)*F18 -> 68401464.53
A19: 46 | B19: 10 | C19: ARLINGTON | D19: 10 | E19: ARLINGTON | F19: 69628275 | G19: =VLOOKUP(A19, localcont!$D$10:$L$1764, 8) -> 58002940.65 | H19: =VLOOKUP(A19, localcont!$D$10:$L$1764, 9)*F19 -> 67234470.36
A20: 51 | B20: 11 | C20: ASHBURNHAM | D20: 11 | E20: ASHBURNHAM | F20: 5285797 | G20: =VLOOKUP(A20, localcont!$D$10:$L$1764, 8) -> 0 | H20: =VLOOKUP(A20, localcont!$D$10:$L$1764, 9)*F20 -> 0
A21: 56 | B21: 12 | C21: ASHBY | D21: 12 | E21: ASHBY | F21: 2494458 | G21: =VLOOKUP(A21, localcont!$D$10:$L$1764, 8) -> 0 | H21: =VLOOKUP(A21, localcont!$D$10:$L$1764, 9)*F21 -> 0
A22: 61 | B22: 13 | C22: ASHFIELD | D22: 13 | E22: ASHFIELD | F22: 1533624 | G22: =VLOOKUP(A22, localcont!$D$10:$L$1764, 8) -> 233861.83 | H22: =VLOOKUP(A22, localcont!$D$10:$L$1764, 9)*F22 -> 163541.6616
A23: 66 | B23: 14 | C23: ASHLAND | D23: 14 | E23: ASHLAND | F23: 21145776 | G23: =VLOOKUP(A23, localcont!$D$10:$L$1764, 8) -> 26344731.8 | H23: =VLOOKUP(A23, localcont!$D$10:$L$1764, 9)*F23 -> 20247937.75
A24: 71 | B24: 15 | C24: ATHOL | D24: 15 | E24: ATHOL | F24: 5716414 | G24: =VLOOKUP(A24, localcont!$D$10:$L$1764, 8) -> 13837.16 | H24: =VLOOKUP(A24, localcont!$D$10:$L$1764, 9)*F24 -> 4010.892454
A25: 76 | B25: 16 | C25: ATTLEBORO | D25: 16 | E25: ATTLEBORO | F25: 35463531 | G25: =VLOOKUP(A25, localcont!$D$10:$L$1764, 8) -> 72980818.83 | H25: =VLOOKUP(A25, localcont!$D$10:$L$1764, 9)*F25 -> 35206833.85
A26: 81 | B26: 17 | C26: AUBURN | D26: 17 | E26: AUBURN | F26: 15400748 | G26: =VLOOKUP(A26, localcont!$D$10:$L$1764, 8) -> 25672129.78 | H26: =VLOOKUP(A26, localcont!$D$10:$L$1764, 9)*F26 -> 14624535.11
A27: 86 | B27: 18 | C27: AVON | D27: 18 | E27: AVON | F27: 5132410 | G27: =VLOOKUP(A27, localcont!$D$10:$L$1764, 8) -> 6193899.03 | H27: =VLOOKUP(A27, localcont!$D$10:$L$1764, 9)*F27 -> 4386495.199
A28: 91 | B28: 19 | C28: AYER | D28: 19 | E28: AYER | F28: 7792640 | G28: =VLOOKUP(A28, localcont!$D$10:$L$1764, 8) -> 0 | H28: =VLOOKUP(A28, localcont!$D$10:$L$1764, 9)*F28 -> 0
A29: 96 | B29: 20 | C29: BARNSTABLE | D29: 20 | E29: BARNSTABLE | F29: 74236024 | G29: =VLOOKUP(A29, localcont!$D$10:$L$1764, 8) -> 60393953.44 | H29: =VLOOKUP(A29, localcont!$D$10:$L$1764, 9)*F29 -> 70697645.65
A30: 101 | B30: 21 | C30: BARRE | D30: 21 | E30: BARRE | F30: 3562536 | G30: =VLOOKUP(A30, localcont!$D$10:$L$1764, 8) -> 0 | H30: =VLOOKUP(A30, localcont!$D$10:$L$1764, 9)*F30 -> 0
A31: 106 | B31: 22 | C31: BECKET | D31: 22 | E31: BECKET | F31: 2595104 | G31: =VLOOKUP(A31, localcont!$D$10:$L$1764, 8) -> 206187.51 | H31: =VLOOKUP(A31, localcont!$D$10:$L$1764, 9)*F31 -> 221029.6811
A32: 111 | B32: 23 | C32: BEDFORD | D32: 23 | E32: BEDFORD | F32: 25719619 | G32: =VLOOKUP(A32, localcont!$D$10:$L$1764, 8) -> 27912085.89 | H32: =VLOOKUP(A32, localcont!$D$10:$L$1764, 9)*F32 -> 25443450.45
A33: 116 | B33: 24 | C33: BELCHERTOWN | D33: 24 | E33: BELCHERTOWN | F33: 12431252 | G33: =VLOOKUP(A33, localcont!$D$10:$L$1764, 8) -> 23863029.98 | H33: =VLOOKUP(A33, localcont!$D$10:$L$1764, 9)*F33 -> 11563925.2
A34: 121 | B34: 25 | C34: BELLINGHAM | D34: 25 | E34: BELLINGHAM | F34: 16731036 | G34: =VLOOKUP(A34, localcont!$D$10:$L$1764, 8) -> 23842628.52 | H34: =VLOOKUP(A34, localcont!$D$10:$L$1764, 9)*F34 -> 15794940.99
A35: 126 | B35: 26 | C35: BELMONT | D35: 26 | E35: BELMONT | F35: 55324049 | G35: =VLOOKUP(A35, localcont!$D$10:$L$1764, 8) -> 45512607.46 | H35: =VLOOKUP(A35, localcont!$D$10:$L$1764, 9)*F35 -> 54847946.76
A36: 131 | B36: 27 | C36: BERKLEY | D36: 27 | E36: BERKLEY | F36: 6216022 | G36: =VLOOKUP(A36, localcont!$D$10:$L$1764, 8) -> 7541762.29 | H36: =VLOOKUP(A36, localcont!$D$10:$L$1764, 9)*F36 -> 3837447.305
A37: 136 | B37: 28 | C37: BERLIN | D37: 28 | E37: BERLIN | F37: 4420521 | G37: =VLOOKUP(A37, localcont!$D$10:$L$1764, 8) -> 1639651.663 | H37: =VLOOKUP(A37, localcont!$D$10:$L$1764, 9)*F37 -> 1812262.105
A38: 141 | B38: 29 | C38: BERNARDSTON | D38: 29 | E38: BERNARDSTON | F38: 1669048 | G38: =VLOOKUP(A38, localcont!$D$10:$L$1764, 8) -> 0 | H38: =VLOOKUP(A38, localcont!$D$10:$L$1764, 9)*F38 -> 0
A39: 146 | B39: 30 | C39: BEVERLY | D39: 30 | E39: BEVERLY | F39: 47565348 | G39: =VLOOKUP(A39, localcont!$D$10:$L$1764, 8) -> 46490353.89 | H39: =VLOOKUP(A39, localcont!$D$10:$L$1764, 9)*F39 -> 45533746.34
A40: 151 | B40: 31 | C40: BILLERICA | D40: 31 | E40: BILLERICA | F40: 44462670 | G40: =VLOOKUP(A40, localcont!$D$10:$L$1764, 8) -> 50010476.06 | H40: =VLOOKUP(A40, localcont!$D$10:$L$1764, 9)*F40 -> 37025361.79
A41: 156 | B41: 32 | C41: BLACKSTONE | D41: 32 | E41: BLACKSTONE | F41: 7170158 | G41: =VLOOKUP(A41, localcont!$D$10:$L$1764, 8) -> 303047.63 | H41: =VLOOKUP(A41, localcont!$D$10:$L$1764, 9)*F41 -> 146873.6559
A42: 161 | B42: 33 | C42: BLANDFORD | D42: 33 | E42: BLANDFORD | F42: 1162168 | G42: =VLOOKUP(A42, localcont!$D$10:$L$1764, 8) -> 110697.28 | H42: =VLOOKUP(A42, localcont!$D$10:$L$1764, 9)*F42 -> 100634.2695
A43: 166 | B43: 34 | C43: BOLTON | D43: 34 | E43: BOLTON | F43: 9271773 | G43: =VLOOKUP(A43, localcont!$D$10:$L$1764, 8) -> 14264.24656 | H43: =VLOOKUP(A43, localcont!$D$10:$L$1764, 9)*F43 -> 12380.83657
A44: 171 | B44: 35 | C44: BOSTON | D44: 35 | E44: BOSTON | F44: 961582538 | G44: =VLOOKUP(A44, localcont!$D$10:$L$1764, 8) -> 861999611.9 | H44: =VLOOKUP(A44, localcont!$D$10:$L$1764, 9)*F44 -> 961582538
A45: 176 | B45: 36 | C45: BOURNE | D45: 36 | E45: BOURNE | F45: 25525405 | G45: =VLOOKUP(A45, localcont!$D$10:$L$1764, 8) -> 21368782.29 | H45: =VLOOKUP(A45, localcont!$D$10:$L$1764, 9)*F45 -> 22537800.86
A46: 181 | B46: 37 | C46: BOXBOROUGH | D46: 37 | E46: BOXBOROUGH | F46: 8327902 | G46: =VLOOKUP(A46, localcont!$D$10:$L$1764, 8) -> 106694.35 | H46: =VLOOKUP(A46, localcont!$D$10:$L$1764, 9)*F46 -> 101922.7692
A47: 186 | B47: 38 | C47: BOXFORD | D47: 38 | E47: BOXFORD | F47: 18778477 | G47: =VLOOKUP(A47, localcont!$D$10:$L$1764, 8) -> 6655216.908 | H47: =VLOOKUP(A47, localcont!$D$10:$L$1764, 9)*F47 -> 8783043.28
A48: 191 | B48: 39 | C48: BOYLSTON | D48: 39 | E48: BOYLSTON | F48: 6016694 | G48: =VLOOKUP(A48, localcont!$D$10:$L$1764, 8) -> 2856144.64 | H48: =VLOOKUP(A48, localcont!$D$10:$L$1764, 9)*F48 -> 2615177.5
A49: 196 | B49: 40 | C49: BRAINTREE | D49: 40 | E49: BRAINTREE | F49: 44948428 | G49: =VLOOKUP(A49, localcont!$D$10:$L$1764, 8) -> 60365199.04 | H49: =VLOOKUP(A49, localcont!$D$10:$L$1764, 9)*F49 -> 42849967.67
A50: 201 | B50: 41 | C50: BREWSTER | D50: 41 | E50: BREWSTER | F50: 18238761 | G50: =VLOOKUP(A50, localcont!$D$10:$L$1764, 8) -> 4845032.06 | H50: =VLOOKUP(A50, localcont!$D$10:$L$1764, 9)*F50 -> 7679787.611
A51: 206 | B51: 42 | C51: BRIDGEWATER | D51: 42 | E51: BRIDGEWATER | F51: 22299719 | G51: =VLOOKUP(A51, localcont!$D$10:$L$1764, 8) -> 124534.44 | H51: =VLOOKUP(A51, localcont!$D$10:$L$1764, 9)*F51 -> 80942.46293
A52: 211 | B52: 43 | C52: BRIMFIELD | D52: 43 | E52: BRIMFIELD | F52: 3331858 | G52: =VLOOKUP(A52, localcont!$D$10:$L$1764, 8) -> 2588960.98 | H52: =VLOOKUP(A52, localcont!$D$10:$L$1764, 9)*F52 -> 1544601.006
A53: 216 | B53: 44 | C53: BROCKTON | D53: 44 | E53: BROCKTON | F53: 51218419 | G53: =VLOOKUP(A53, localcont!$D$10:$L$1764, 8) -> 219005794.2 | H53: =VLOOKUP(A53, localcont!$D$10:$L$1764, 9)*F53 -> 47684924.67
A54: 221 | B54: 45 | C54: BROOKFIELD | D54: 45 | E54: BROOKFIELD | F54: 2280967 | G54: =VLOOKUP(A54, localcont!$D$10:$L$1764, 8) -> 2539081.3 | H54: =VLOOKUP(A54, localcont!$D$10:$L$1764, 9)*F54 -> 1097864.201
A55: 226 | B55: 46 | C55: BROOKLINE | D55: 46 | E55: BROOKLINE | F55: 141966916 | G55: =VLOOKUP(A55, localcont!$D$10:$L$1764, 8) -> 79599261.27 | H55: =VLOOKUP(A55, localcont!$D$10:$L$1764, 9)*F55 -> 141966916
A56: 231 | B56: 47 | C56: BUCKLAND | D56: 47 | E56: BUCKLAND | F56: 1371295 | G56: =VLOOKUP(A56, localcont!$D$10:$L$1764, 8) -> 27674.32 | H56: =VLOOKUP(A56, localcont!$D$10:$L$1764, 9)*F56 -> 17242.08049
A57: 236 | B57: 48 | C57: BURLINGTON | D57: 48 | E57: BURLINGTON | F57: 39236643 | G57: =VLOOKUP(A57, localcont!$D$10:$L$1764, 8) -> 37486525.89 | H57: =VLOOKUP(A57, localcont!$D$10:$L$1764, 9)*F57 -> 37316018.84
A58: 241 | B58: 49 | C58: CAMBRIDGE | D58: 49 | E58: CAMBRIDGE | F58: 238668251 | G58: =VLOOKUP(A58, localcont!$D$10:$L$1764, 8) -> 88309460.91 | H58: =VLOOKUP(A58, localcont!$D$10:$L$1764, 9)*F58 -> 238668251
A59: 246 | B59: 50 | C59: CANTON | D59: 50 | E59: CANTON | F59: 36141878 | G59: =VLOOKUP(A59, localcont!$D$10:$L$1764, 8) -> 34875442.29 | H59: =VLOOKUP(A59, localcont!$D$10:$L$1764, 9)*F59 -> 34966267.56
A60: 251 | B60: 51 | C60: CARLISLE | D60: 51 | E60: CARLISLE | F60: 13953630 | G60: =VLOOKUP(A60, localcont!$D$10:$L$1764, 8) -> 5496906.743 | H60: =VLOOKUP(A60, localcont!$D$10:$L$1764, 9)*F60 -> 8468321.738
A61: 256 | B61: 52 | C61: CARVER | D61: 52 | E61: CARVER | F61: 9471877 | G61: =VLOOKUP(A61, localcont!$D$10:$L$1764, 8) -> 16982947.18 | H61: =VLOOKUP(A61, localcont!$D$10:$L$1764, 9)*F61 -> 8706166.716
A62: 261 | B62: 53 | C62: CHARLEMONT | D62: 53 | E62: CHARLEMONT | F62: 954224 | G62: =VLOOKUP(A62, localcont!$D$10:$L$1764, 8) -> 178513.19 | H62: =VLOOKUP(A62, localcont!$D$10:$L$1764, 9)*F62 -> 88596.93496
A63: 266 | B63: 54 | C63: CHARLTON | D63: 54 | E63: CHARLTON | F63: 12147658 | G63: =VLOOKUP(A63, localcont!$D$10:$L$1764, 8) -> 41511.48 | H63: =VLOOKUP(A63, localcont!$D$10:$L$1764, 9)*F63 -> 21350.2369
A64: 271 | B64: 55 | C64: CHATHAM | D64: 55 | E64: CHATHAM | F64: 29196407 | G64: =VLOOKUP(A64, localcont!$D$10:$L$1764, 8) -> 0 | H64: =VLOOKUP(A64, localcont!$D$10:$L$1764, 9)*F64 -> 0
A65: 276 | B65: 56 | C65: CHELMSFORD | D65: 56 | E65: CHELMSFORD | F65: 46060934 | G65: =VLOOKUP(A65, localcont!$D$10:$L$1764, 8) -> 50869628.26 | H65: =VLOOKUP(A65, localcont!$D$10:$L$1764, 9)*F65 -> 43314572.87
A66: 281 | B66: 57 | C66: CHELSEA | D66: 57 | E66: CHELSEA | F66: 19828395 | G66: =VLOOKUP(A66, localcont!$D$10:$L$1764, 8) -> 94734546.75 | H66: =VLOOKUP(A66, localcont!$D$10:$L$1764, 9)*F66 -> 18987558.09
A67: 286 | B67: 58 | C67: CHESHIRE | D67: 58 | E67: CHESHIRE | F67: 2396476 | G67: =VLOOKUP(A67, localcont!$D$10:$L$1764, 8) -> 0 | H67: =VLOOKUP(A67, localcont!$D$10:$L$1764, 9)*F67 -> 0
A68: 291 | B68: 59 | C68: CHESTER | D68: 59 | E68: CHESTER | F68: 879049 | G68: =VLOOKUP(A68, localcont!$D$10:$L$1764, 8) -> 55348.64 | H68: =VLOOKUP(A68, localcont!$D$10:$L$1764, 9)*F68 -> 28255.26722
A69: 296 | B69: 60 | C69: CHESTERFIELD | D69: 60 | E69: CHESTERFIELD | F69: 967646 | G69: =VLOOKUP(A69, localcont!$D$10:$L$1764, 8) -> 261536.15 | H69: =VLOOKUP(A69, localcont!$D$10:$L$1764, 9)*F69 -> 170905.1815
A70: 301 | B70: 61 | C70: CHICOPEE | D70: 61 | E70: CHICOPEE | F70: 30063802 | G70: =VLOOKUP(A70, localcont!$D$10:$L$1764, 8) -> 93898617.53 | H70: =VLOOKUP(A70, localcont!$D$10:$L$1764, 9)*F70 -> 30063802
A71: 306 | B71: 62 | C71: CHILMARK | D71: 62 | E71: CHILMARK | F71: 13112905 | G71: =VLOOKUP(A71, localcont!$D$10:$L$1764, 8) -> 0 | H71: =VLOOKUP(A71, localcont!$D$10:$L$1764, 9)*F71 -> 0
A72: 311 | B72: 63 | C72: CLARKSBURG | D72: 63 | E72: CLARKSBURG | F72: 929159 | G72: =VLOOKUP(A72, localcont!$D$10:$L$1764, 8) -> 2064205.68 | H72: =VLOOKUP(A72, localcont!$D$10:$L$1764, 9)*F72 -> 709296.1217
A73: 316 | B73: 64 | C73: CLINTON | D73: 64 | E73: CLINTON | F73: 10266561 | G73: =VLOOKUP(A73, localcont!$D$10:$L$1764, 8) -> 22676410.39 | H73: =VLOOKUP(A73, localcont!$D$10:$L$1764, 9)*F73 -> 10266561
A74: 321 | B74: 65 | C74: COHASSET | D74: 65 | E74: COHASSET | F74: =VLOOKUP(D74, town351, 7) -> 22988398 | G74: =VLOOKUP(A74, localcont!$D$10:$L$1764, 8) -> 15141702.03 | H74: =VLOOKUP(A74, localcont!$D$10:$L$1764, 9)*F74 -> 22886523.52
A75: 326 | B75: 66 | C75: COLRAIN | D75: 66 | E75: COLRAIN | F75: 1322033 | G75: =VLOOKUP(A75, localcont!$D$10:$L$1764, 8) -> 0 | H75: =VLOOKUP(A75, localcont!$D$10:$L$1764, 9)*F75 -> 0
A76: 331 | B76: 67 | C76: CONCORD | D76: 67 | E76: CONCORD | F76: 56714905 | G76: =VLOOKUP(A76, localcont!$D$10:$L$1764, 8) -> 19595700.44 | H76: =VLOOKUP(A76, localcont!$D$10:$L$1764, 9)*F76 -> 35809580.47
A77: 336 | B77: 68 | C77: CONWAY | D77: 68 | E77: CONWAY | F77: 1900174 | G77: =VLOOKUP(A77, localcont!$D$10:$L$1764, 8) -> 1045830.03 | H77: =VLOOKUP(A77, localcont!$D$10:$L$1764, 9)*F77 -> 870411.6635
A78: 341 | B78: 69 | C78: CUMMINGTON | D78: 69 | E78: CUMMINGTON | F78: 905052 | G78: =VLOOKUP(A78, localcont!$D$10:$L$1764, 8) -> 110697.28 | H78: =VLOOKUP(A78, localcont!$D$10:$L$1764, 9)*F78 -> 117038.7553
A79: 346 | B79: 70 | C79: DALTON | D79: 70 | E79: DALTON | F79: 5141209 | G79: =VLOOKUP(A79, localcont!$D$10:$L$1764, 8) -> 289210.47 | H79: =VLOOKUP(A79, localcont!$D$10:$L$1764, 9)*F79 -> 146664.6402
A80: 351 | B80: 71 | C80: DANVERS | D80: 71 | E80: DANVERS | F80: 32990975 | G80: =VLOOKUP(A80, localcont!$D$10:$L$1764, 8) -> 35346165.09 | H80: =VLOOKUP(A80, localcont!$D$10:$L$1764, 9)*F80 -> 30894640.34
A81: 356 | B81: 72 | C81: DARTMOUTH | D81: 72 | E81: DARTMOUTH | F81: 37152632 | G81: =VLOOKUP(A81, localcont!$D$10:$L$1764, 8) -> 37575677.39 | H81: =VLOOKUP(A81, localcont!$D$10:$L$1764, 9)*F81 -> 32164323.71
A82: 361 | B82: 73 | C82: DEDHAM | D82: 73 | E82: DEDHAM | F82: 36871912 | G82: =VLOOKUP(A82, localcont!$D$10:$L$1764, 8) -> 28479923.26 | H82: =VLOOKUP(A82, localcont!$D$10:$L$1764, 9)*F82 -> 34755551.53
A83: 366 | B83: 74 | C83: DEERFIELD | D83: 74 | E83: DEERFIELD | F83: 5428696 | G83: =VLOOKUP(A83, localcont!$D$10:$L$1764, 8) -> 3139879.44 | H83: =VLOOKUP(A83, localcont!$D$10:$L$1764, 9)*F83 -> 2721562.711
A84: 371 | B84: 75 | C84: DENNIS | D84: 75 | E84: DENNIS | F84: 31145317 | G84: =VLOOKUP(A84, localcont!$D$10:$L$1764, 8) -> 0 | H84: =VLOOKUP(A84, localcont!$D$10:$L$1764, 9)*F84 -> 0
A85: 376 | B85: 76 | C85: DIGHTON | D85: 76 | E85: DIGHTON | F85: 6820486 | G85: =VLOOKUP(A85, localcont!$D$10:$L$1764, 8) -> 0 | H85: =VLOOKUP(A85, localcont!$D$10:$L$1764, 9)*F85 -> 0
A86: 381 | B86: 77 | C86: DOUGLAS | D86: 77 | E86: DOUGLAS | F86: 7827805 | G86: =VLOOKUP(A86, localcont!$D$10:$L$1764, 8) -> 12935309.57 | H86: =VLOOKUP(A86, localcont!$D$10:$L$1764, 9)*F86 -> 6897894.782
A87: 386 | B87: 78 | C87: DOVER | D87: 78 | E87: DOVER | F87: 27530169 | G87: =VLOOKUP(A87, localcont!$D$10:$L$1764, 8) -> 4640414.508 | H87: =VLOOKUP(A87, localcont!$D$10:$L$1764, 9)*F87 -> 10996195.82
A88: 391 | B88: 79 | C88: DRACUT | D88: 79 | E88: DRACUT | F88: 26588398 | G88: =VLOOKUP(A88, localcont!$D$10:$L$1764, 8) -> 39508798.25 | H88: =VLOOKUP(A88, localcont!$D$10:$L$1764, 9)*F88 -> 22035006.51
A89: 396 | B89: 80 | C89: DUDLEY | D89: 80 | E89: DUDLEY | F89: 7957289 | G89: =VLOOKUP(A89, localcont!$D$10:$L$1764, 8) -> 27674.32 | H89: =VLOOKUP(A89, localcont!$D$10:$L$1764, 9)*F89 -> 10951.3469
A90: 401 | B90: 81 | C90: DUNSTABLE | D90: 81 | E90: DUNSTABLE | F90: 4414049 | G90: =VLOOKUP(A90, localcont!$D$10:$L$1764, 8) -> 13837.16 | H90: =VLOOKUP(A90, localcont!$D$10:$L$1764, 9)*F90 -> 10926.53876
A91: 406 | B91: 82 | C91: DUXBURY | D91: 82 | E91: DUXBURY | F91: 32820077 | G91: =VLOOKUP(A91, localcont!$D$10:$L$1764, 8) -> 30016424.8 | H91: =VLOOKUP(A91, localcont!$D$10:$L$1764, 9)*F91 -> 32820077
A92: 411 | B92: 83 | C92: EAST BRIDGEWATER | D92: 83 | E92: EAST BRIDGEWATER | F92: 12383869 | G92: =VLOOKUP(A92, localcont!$D$10:$L$1764, 8) -> 22148437.78 | H92: =VLOOKUP(A92, localcont!$D$10:$L$1764, 9)*F92 -> 11682385.6
A93: 416 | B93: 84 | C93: EAST BROOKFIELD | D93: 84 | E93: EAST BROOKFIELD | F93: 1754805 | G93: =VLOOKUP(A93, localcont!$D$10:$L$1764, 8) -> 247698.99 | H93: =VLOOKUP(A93, localcont!$D$10:$L$1764, 9)*F93 -> 124589.1575
A94: 421 | B94: 85 | C94: EASTHAM | D94: 85 | E94: EASTHAM | F94: 13003083 | G94: =VLOOKUP(A94, localcont!$D$10:$L$1764, 8) -> 1784959.93 | H94: =VLOOKUP(A94, localcont!$D$10:$L$1764, 9)*F94 -> 4838363.769
A95: 426 | B95: 86 | C95: EASTHAMPTON | D95: 86 | E95: EASTHAMPTON | F95: 12158109 | G95: =VLOOKUP(A95, localcont!$D$10:$L$1764, 8) -> 18672296.82 | H95: =VLOOKUP(A95, localcont!$D$10:$L$1764, 9)*F95 -> 12158109
A96: 431 | B96: 87 | C96: EAST LONGMEADOW | D96: 87 | E96: EAST LONGMEADOW | F96: 16733688 | G96: =VLOOKUP(A96, localcont!$D$10:$L$1764, 8) -> 27763311.46 | H96: =VLOOKUP(A96, localcont!$D$10:$L$1764, 9)*F96 -> 16733688
A97: 436 | B97: 88 | C97: EASTON | D97: 88 | E97: EASTON | F97: 28750763 | G97: =VLOOKUP(A97, localcont!$D$10:$L$1764, 8) -> 36092236.61 | H97: =VLOOKUP(A97, localcont!$D$10:$L$1764, 9)*F97 -> 27619275.65
A98: 441 | B98: 89 | C98: EDGARTOWN | D98: 89 | E98: EDGARTOWN | F98: 31735501 | G98: =VLOOKUP(A98, localcont!$D$10:$L$1764, 8) -> 4383670.73 | H98: =VLOOKUP(A98, localcont!$D$10:$L$1764, 9)*F98 -> 20785143.23
A99: 446 | B99: 90 | C99: EGREMONT | D99: 90 | E99: EGREMONT | F99: 2030610 | G99: =VLOOKUP(A99, localcont!$D$10:$L$1764, 8) -> 0 | H99: =VLOOKUP(A99, localcont!$D$10:$L$1764, 9)*F99 -> 0
A100: 451 | B100: 91 | C100: ERVING | D100: 91 | E100: ERVING | F100: 3744862 | G100: =VLOOKUP(A100, localcont!$D$10:$L$1764, 8) -> 2317098.66 | H100: =VLOOKUP(A100, localcont!$D$10:$L$1764, 9)*F100 -> 3091097.813
A101: 456 | B101: 92 | C101: ESSEX | D101: 92 | E101: ESSEX | F101: 6041939 | G101: =VLOOKUP(A101, localcont!$D$10:$L$1764, 8) -> 0 | H101: =VLOOKUP(A101, localcont!$D$10:$L$1764, 9)*F101 -> 0
A102: 461 | B102: 93 | C102: EVERETT | D102: 93 | E102: EVERETT | F102: 29863697 | G102: =VLOOKUP(A102, localcont!$D$10:$L$1764, 8) -> 96231897.97 | H102: =VLOOKUP(A102, localcont!$D$10:$L$1764, 9)*F102 -> 29863697
A103: 466 | B103: 94 | C103: FAIRHAVEN | D103: 94 | E103: FAIRHAVEN | F103: 13734487 | G103: =VLOOKUP(A103, localcont!$D$10:$L$1764, 8) -> 19508511.55 | H103: =VLOOKUP(A103, localcont!$D$10:$L$1764, 9)*F103 -> 11713786.24
A104: 471 | B104: 95 | C104: FALL RIVER | D104: 95 | E104: FALL RIVER | F104: 41076488 | G104: =VLOOKUP(A104, localcont!$D$10:$L$1764, 8) -> 149318108 | H104: =VLOOKUP(A104, localcont!$D$10:$L$1764, 9)*F104 -> 36550119.16
A105: 476 | B105: 96 | C105: FALMOUTH | D105: 96 | E105: FALMOUTH | F105: 61013985 | G105: =VLOOKUP(A105, localcont!$D$10:$L$1764, 8) -> 37204346.42 | H105: =VLOOKUP(A105, localcont!$D$10:$L$1764, 9)*F105 -> 56858120.82
A106: 481 | B106: 97 | C106: FITCHBURG | D106: 97 | E106: FITCHBURG | F106: 19465305 | G106: =VLOOKUP(A106, localcont!$D$10:$L$1764, 8) -> 70117764.53 | H106: =VLOOKUP(A106, localcont!$D$10:$L$1764, 9)*F106 -> 17872760.28
A107: 486 | B107: 98 | C107: FLORIDA | D107: 98 | E107: FLORIDA | F107: 629811 | G107: =VLOOKUP(A107, localcont!$D$10:$L$1764, 8) -> 718962.58 | H107: =VLOOKUP(A107, localcont!$D$10:$L$1764, 9)*F107 -> 450463.3198
A108: 491 | B108: 99 | C108: FOXBOROUGH | D108: 99 | E108: FOXBOROUGH | F108: 23179566 | G108: =VLOOKUP(A108, localcont!$D$10:$L$1764, 8) -> 27859184.16 | H108: =VLOOKUP(A108, localcont!$D$10:$L$1764, 9)*F108 -> 22576625.25
A109: 496 | B109: 100 | C109: FRAMINGHAM | D109: 100 | E109: FRAMINGHAM | F109: 65981988 | G109: =VLOOKUP(A109, localcont!$D$10:$L$1764, 8) -> 108226362.1 | H109: =VLOOKUP(A109, localcont!$D$10:$L$1764, 9)*F109 -> 60883908.76
A110: 501 | B110: 101 | C110: FRANKLIN | D110: 101 | E110: FRANKLIN | F110: 40986779 | G110: =VLOOKUP(A110, localcont!$D$10:$L$1764, 8) -> 57909532.28 | H110: =VLOOKUP(A110, localcont!$D$10:$L$1764, 9)*F110 -> 38720635.37
A111: 506 | B111: 102 | C111: FREETOWN | D111: 102 | E111: FREETOWN | F111: 9164353 | G111: =VLOOKUP(A111, localcont!$D$10:$L$1764, 8) -> 1281376.32 | H111: =VLOOKUP(A111, localcont!$D$10:$L$1764, 9)*F111 -> 845733.1746
A112: 511 | B112: 103 | C112: GARDNER | D112: 103 | E112: GARDNER | F112: 10270745 | G112: =VLOOKUP(A112, localcont!$D$10:$L$1764, 8) -> 28813726.65 | H112: =VLOOKUP(A112, localcont!$D$10:$L$1764, 9)*F112 -> 9330136.429
A113: 516 | B113: 104 | C113: AQUINNAH | D113: 104 | E113: AQUINNAH | F113: 2735703 | G113: =VLOOKUP(A113, localcont!$D$10:$L$1764, 8) -> 0 | H113: =VLOOKUP(A113, localcont!$D$10:$L$1764, 9)*F113 -> 0
A114: 521 | B114: 105 | C114: GEORGETOWN | D114: 105 | E114: GEORGETOWN | F114: 10262179 | G114: =VLOOKUP(A114, localcont!$D$10:$L$1764, 8) -> 13014006.64 | H114: =VLOOKUP(A114, localcont!$D$10:$L$1764, 9)*F114 -> 9683491.21
A115: 526 | B115: 106 | C115: GILL | D115: 106 | E115: GILL | F115: 1122301 | G115: =VLOOKUP(A115, localcont!$D$10:$L$1764, 8) -> 0 | H115: =VLOOKUP(A115, localcont!$D$10:$L$1764, 9)*F115 -> 0
A116: 531 | B116: 107 | C116: GLOUCESTER | D116: 107 | E116: GLOUCESTER | F116: 38745330 | G116: =VLOOKUP(A116, localcont!$D$10:$L$1764, 8) -> 36267476.23 | H116: =VLOOKUP(A116, localcont!$D$10:$L$1764, 9)*F116 -> 36961654.37
A117: 536 | B117: 108 | C117: GOSHEN | D117: 108 | E117: GOSHEN | F117: 747330 | G117: =VLOOKUP(A117, localcont!$D$10:$L$1764, 8) -> 138371.6 | H117: =VLOOKUP(A117, localcont!$D$10:$L$1764, 9)*F117 -> 82070.95734
A118: 541 | B118: 109 | C118: GOSNOLD | D118: 109 | E118: GOSNOLD | F118: 875296 | G118: =VLOOKUP(A118, localcont!$D$10:$L$1764, 8) -> 22611 | H118: =VLOOKUP(A118, localcont!$D$10:$L$1764, 9)*F118 -> 875296
A119: 546 | B119: 110 | C119: GRAFTON | D119: 110 | E119: GRAFTON | F119: 21092020 | G119: =VLOOKUP(A119, localcont!$D$10:$L$1764, 8) -> 30766240.78 | H119: =VLOOKUP(A119, localcont!$D$10:$L$1764, 9)*F119 -> 20470453.58
A120: 551 | B120: 111 | C120: GRANBY | D120: 111 | E120: GRANBY | F120: 5006159 | G120: =VLOOKUP(A120, localcont!$D$10:$L$1764, 8) -> 7333030.34 | H120: =VLOOKUP(A120, localcont!$D$10:$L$1764, 9)*F120 -> 4806929.348
A121: 556 | B121: 112 | C121: GRANVILLE | D121: 112 | E121: GRANVILLE | F121: 1496808 | G121: =VLOOKUP(A121, localcont!$D$10:$L$1764, 8) -> 0 | H121: =VLOOKUP(A121, localcont!$D$10:$L$1764, 9)*F121 -> 0
A122: 561 | B122: 113 | C122: GREAT BARRINGTON | D122: 113 | E122: GREAT BARRINGTON | F122: 9144142 | G122: =VLOOKUP(A122, localcont!$D$10:$L$1764, 8) -> 0 | H122: =VLOOKUP(A122, localcont!$D$10:$L$1764, 9)*F122 -> 0
A123: 566 | B123: 114 | C123: GREENFIELD | D123: 114 | E123: GREENFIELD | F123: 10684488 | G123: =VLOOKUP(A123, localcont!$D$10:$L$1764, 8) -> 22188290.89 | H123: =VLOOKUP(A123, localcont!$D$10:$L$1764, 9)*F123 -> 9949462.495
A124: 571 | B124: 115 | C124: GROTON | D124: 115 | E124: GROTON | F124: 17120632 | G124: =VLOOKUP(A124, localcont!$D$10:$L$1764, 8) -> 0 | H124: =VLOOKUP(A124, localcont!$D$10:$L$1764, 9)*F124 -> 0
A125: 576 | B125: 116 | C125: GROVELAND | D125: 116 | E125: GROVELAND | F125: 6934738 | G125: =VLOOKUP(A125, localcont!$D$10:$L$1764, 8) -> 206187.51 | H125: =VLOOKUP(A125, localcont!$D$10:$L$1764, 9)*F125 -> 141366.977
A126: 581 | B126: 117 | C126: HADLEY | D126: 117 | E126: HADLEY | F126: 6067922 | G126: =VLOOKUP(A126, localcont!$D$10:$L$1764, 8) -> 5888757.82 | H126: =VLOOKUP(A126, localcont!$D$10:$L$1764, 9)*F126 -> 6067922
A127: 586 | B127: 118 | C127: HALIFAX | D127: 118 | E127: HALIFAX | F127: 6769352 | G127: =VLOOKUP(A127, localcont!$D$10:$L$1764, 8) -> 6353417.465 | H127: =VLOOKUP(A127, localcont!$D$10:$L$1764, 9)*F127 -> 3373628.142
A128: 591 | B128: 119 | C128: HAMILTON | D128: 119 | E128: HAMILTON | F128: 13194757 | G128: =VLOOKUP(A128, localcont!$D$10:$L$1764, 8) -> 0 | H128: =VLOOKUP(A128, localcont!$D$10:$L$1764, 9)*F128 -> 0
A129: 596 | B129: 120 | C129: HAMPDEN | D129: 120 | E129: HAMPDEN | F129: 5137990 | G129: =VLOOKUP(A129, localcont!$D$10:$L$1764, 8) -> 0 | H129: =VLOOKUP(A129, localcont!$D$10:$L$1764, 9)*F129 -> 0
A130: 601 | B130: 121 | C130: HANCOCK | D130: 121 | E130: HANCOCK | F130: 1262374 | G130: =VLOOKUP(A130, localcont!$D$10:$L$1764, 8) -> 715919.97 | H130: =VLOOKUP(A130, localcont!$D$10:$L$1764, 9)*F130 -> 1262374
A131: 606 | B131: 122 | C131: HANOVER | D131: 122 | E131: HANOVER | F131: 20619109 | G131: =VLOOKUP(A131, localcont!$D$10:$L$1764, 8) -> 25234803.16 | H131: =VLOOKUP(A131, localcont!$D$10:$L$1764, 9)*F131 -> 20007465.35
A132: 611 | B132: 123 | C132: HANSON | D132: 123 | E132: HANSON | F132: 9729740 | G132: =VLOOKUP(A132, localcont!$D$10:$L$1764, 8) -> 83022.96 | H132: =VLOOKUP(A132, localcont!$D$10:$L$1764, 9)*F132 -> 47370.54754
A133: 616 | B133: 124 | C133: HARDWICK | D133: 124 | E133: HARDWICK | F133: 1570304 | G133: =VLOOKUP(A133, localcont!$D$10:$L$1764, 8) -> 13837.16 | H133: =VLOOKUP(A133, localcont!$D$10:$L$1764, 9)*F133 -> 5264.100055
A134: 621 | B134: 125 | C134: HARVARD | D134: 125 | E134: HARVARD | F134: 10192083 | G134: =VLOOKUP(A134, localcont!$D$10:$L$1764, 8) -> 9216263.062 | H134: =VLOOKUP(A134, localcont!$D$10:$L$1764, 9)*F134 -> 10120799.78
A135: 626 | B135: 126 | C135: HARWICH | D135: 126 | E135: HARWICH | F135: 25415086 | G135: =VLOOKUP(A135, localcont!$D$10:$L$1764, 8) -> 0 | H135: =VLOOKUP(A135, localcont!$D$10:$L$1764, 9)*F135 -> 0
A136: 631 | B136: 127 | C136: HATFIELD | D136: 127 | E136: HATFIELD | F136: 3581599 | G136: =VLOOKUP(A136, localcont!$D$10:$L$1764, 8) -> 3557025.64 | H136: =VLOOKUP(A136, localcont!$D$10:$L$1764, 9)*F136 -> 3581599
A137: 636 | B137: 128 | C137: HAVERHILL | D137: 128 | E137: HAVERHILL | F137: 46395983 | G137: =VLOOKUP(A137, localcont!$D$10:$L$1764, 8) -> 95275049.07 | H137: =VLOOKUP(A137, localcont!$D$10:$L$1764, 9)*F137 -> 40636856.65
A138: 641 | B138: 129 | C138: HAWLEY | D138: 129 | E138: HAWLEY | F138: =VLOOKUP(D138, town351, 7) -> 268678 | G138: =VLOOKUP(A138, localcont!$D$10:$L$1764, 8) -> 13837.16 | H138: =VLOOKUP(A138, localcont!$D$10:$L$1764, 9)*F138 -> 9584.113363
A139: 646 | B139: 130 | C139: HEATH | D139: 130 | E139: HEATH | F139: 482453 | G139: =VLOOKUP(A139, localcont!$D$10:$L$1764, 8) -> 0 | H139: =VLOOKUP(A139, localcont!$D$10:$L$1764, 9)*F139 -> 0
A140: 651 | B140: 131 | C140: HINGHAM | D140: 131 | E140: HINGHAM | F140: 61863248 | G140: =VLOOKUP(A140, localcont!$D$10:$L$1764, 8) -> 42815000.85 | H140: =VLOOKUP(A140, localcont!$D$10:$L$1764, 9)*F140 -> 61863248
A141: 656 | B141: 132 | C141: HINSDALE | D141: 132 | E141: HINSDALE | F141: 2016484 | G141: =VLOOKUP(A141, localcont!$D$10:$L$1764, 8) -> 124534.44 | H141: =VLOOKUP(A141, localcont!$D$10:$L$1764, 9)*F141 -> 112473.666
A142: 661 | B142: 133 | C142: HOLBROOK | D142: 133 | E142: HOLBROOK | F142: 8763286 | G142: =VLOOKUP(A142, localcont!$D$10:$L$1764, 8) -> 13757037.01 | H142: =VLOOKUP(A142, localcont!$D$10:$L$1764, 9)*F142 -> 7518970.798
A143: 666 | B143: 134 | C143: HOLDEN | D143: 134 | E143: HOLDEN | F143: 19112967 | G143: =VLOOKUP(A143, localcont!$D$10:$L$1764, 8) -> 13837.16 | H143: =VLOOKUP(A143, localcont!$D$10:$L$1764, 9)*F143 -> 8241.751436
A144: 671 | B144: 135 | C144: HOLLAND | D144: 135 | E144: HOLLAND | F144: 2299989 | G144: =VLOOKUP(A144, localcont!$D$10:$L$1764, 8) -> 1748738.77 | H144: =VLOOKUP(A144, localcont!$D$10:$L$1764, 9)*F144 -> 1020203.356
A145: 676 | B145: 136 | C145: HOLLISTON | D145: 136 | E145: HOLLISTON | F145: 20572868 | G145: =VLOOKUP(A145, localcont!$D$10:$L$1764, 8) -> 26788678.93 | H145: =VLOOKUP(A145, localcont!$D$10:$L$1764, 9)*F145 -> 19800979.55
A146: 681 | B146: 137 | C146: HOLYOKE | D146: 137 | E146: HOLYOKE | F146: 17220108 | G146: =VLOOKUP(A146, localcont!$D$10:$L$1764, 8) -> 82326983.74 | H146: =VLOOKUP(A146, localcont!$D$10:$L$1764, 9)*F146 -> 17220108
A147: 686 | B147: 138 | C147: HOPEDALE | D147: 138 | E147: HOPEDALE | F147: 6045105 | G147: =VLOOKUP(A147, localcont!$D$10:$L$1764, 8) -> 10063593.19 | H147: =VLOOKUP(A147, localcont!$D$10:$L$1764, 9)*F147 -> 5684519.855
A148: 691 | B148: 139 | C148: HOPKINTON | D148: 139 | E148: HOPKINTON | F148: 33120024 | G148: =VLOOKUP(A148, localcont!$D$10:$L$1764, 8) -> 37266306.27 | H148: =VLOOKUP(A148, localcont!$D$10:$L$1764, 9)*F148 -> 32808375.15
A149: 696 | B149: 140 | C149: HUBBARDSTON | D149: 140 | E149: HUBBARDSTON | F149: 3713826 | G149: =VLOOKUP(A149, localcont!$D$10:$L$1764, 8) -> 0 | H149: =VLOOKUP(A149, localcont!$D$10:$L$1764, 9)*F149 -> 0
A150: 701 | B150: 141 | C150: HUDSON | D150: 141 | E150: HUDSON | F150: 19481831 | G150: =VLOOKUP(A150, localcont!$D$10:$L$1764, 8) -> 29167889.79 | H150: =VLOOKUP(A150, localcont!$D$10:$L$1764, 9)*F150 -> 17227183.8
A151: 706 | B151: 142 | C151: HULL | D151: 142 | E151: HULL | F151: 13207632 | G151: =VLOOKUP(A151, localcont!$D$10:$L$1764, 8) -> 10202468.32 | H151: =VLOOKUP(A151, localcont!$D$10:$L$1764, 9)*F151 -> 13207632
A152: 711 | B152: 143 | C152: HUNTINGTON | D152: 143 | E152: HUNTINGTON | F152: 1638755 | G152: =VLOOKUP(A152, localcont!$D$10:$L$1764, 8) -> 372233.43 | H152: =VLOOKUP(A152, localcont!$D$10:$L$1764, 9)*F152 -> 195412.6998
A153: 716 | B153: 144 | C153: IPSWICH | D153: 144 | E153: IPSWICH | F153: 19246300 | G153: =VLOOKUP(A153, localcont!$D$10:$L$1764, 8) -> 17790224.74 | H153: =VLOOKUP(A153, localcont!$D$10:$L$1764, 9)*F153 -> 18757778.67
A154: 721 | B154: 145 | C154: KINGSTON | D154: 145 | E154: KINGSTON | F154: 14178392 | G154: =VLOOKUP(A154, localcont!$D$10:$L$1764, 8) -> 10631780.77 | H154: =VLOOKUP(A154, localcont!$D$10:$L$1764, 9)*F154 -> 6678650.062
A155: 726 | B155: 146 | C155: LAKEVILLE | D155: 146 | E155: LAKEVILLE | F155: 11759187 | G155: =VLOOKUP(A155, localcont!$D$10:$L$1764, 8) -> 192350.35 | H155: =VLOOKUP(A155, localcont!$D$10:$L$1764, 9)*F155 -> 123826.0347
A156: 731 | B156: 147 | C156: LANCASTER | D156: 147 | E156: LANCASTER | F156: 7194901 | G156: =VLOOKUP(A156, localcont!$D$10:$L$1764, 8) -> 13837.16 | H156: =VLOOKUP(A156, localcont!$D$10:$L$1764, 9)*F156 -> 9663.496233
A157: 736 | B157: 148 | C157: LANESBOROUGH | D157: 148 | E157: LANESBOROUGH | F157: 2590120 | G157: =VLOOKUP(A157, localcont!$D$10:$L$1764, 8) -> 0 | H157: =VLOOKUP(A157, localcont!$D$10:$L$1764, 9)*F157 -> 0
A158: 741 | B158: 149 | C158: LAWRENCE | D158: 149 | E158: LAWRENCE | F158: 30155359 | G158: =VLOOKUP(A158, localcont!$D$10:$L$1764, 8) -> 196866061 | H158: =VLOOKUP(A158, localcont!$D$10:$L$1764, 9)*F158 -> 27036379.44
A159: 746 | B159: 150 | C159: LEE | D159: 150 | E159: LEE | F159: 5862365 | G159: =VLOOKUP(A159, localcont!$D$10:$L$1764, 8) -> 7003346.37 | H159: =VLOOKUP(A159, localcont!$D$10:$L$1764, 9)*F159 -> 5862365
A160: 751 | B160: 151 | C160: LEICESTER | D160: 151 | E160: LEICESTER | F160: 8057611 | G160: =VLOOKUP(A160, localcont!$D$10:$L$1764, 8) -> 17044107.48 | H160: =VLOOKUP(A160, localcont!$D$10:$L$1764, 9)*F160 -> 8057611
A161: 756 | B161: 152 | C161: LENOX | D161: 152 | E161: LENOX | F161: 7930865 | G161: =VLOOKUP(A161, localcont!$D$10:$L$1764, 8) -> 5362646.54 | H161: =VLOOKUP(A161, localcont!$D$10:$L$1764, 9)*F161 -> 7930865
A162: 761 | B162: 153 | C162: LEOMINSTER | D162: 153 | E162: LEOMINSTER | F162: 28957291 | G162: =VLOOKUP(A162, localcont!$D$10:$L$1764, 8) -> 72123478.45 | H162: =VLOOKUP(A162, localcont!$D$10:$L$1764, 9)*F162 -> 28957291
A163: 766 | B163: 154 | C163: LEVERETT | D163: 154 | E163: LEVERETT | F163: 1997630 | G163: =VLOOKUP(A163, localcont!$D$10:$L$1764, 8) -> 1040580.59 | H163: =VLOOKUP(A163, localcont!$D$10:$L$1764, 9)*F163 -> 987854.5349
A164: 771 | B164: 155 | C164: LEXINGTON | D164: 155 | E164: LEXINGTON | F164: 93566997 | G164: =VLOOKUP(A164, localcont!$D$10:$L$1764, 8) -> 76234730.04 | H164: =VLOOKUP(A164, localcont!$D$10:$L$1764, 9)*F164 -> 92434766.85
A165: 776 | B165: 156 | C165: LEYDEN | D165: 156 | E165: LEYDEN | F165: 702283 | G165: =VLOOKUP(A165, localcont!$D$10:$L$1764, 8) -> 0 | H165: =VLOOKUP(A165, localcont!$D$10:$L$1764, 9)*F165 -> 0
A166: 781 | B166: 157 | C166: LINCOLN | D166: 157 | E166: LINCOLN | F166: 20677206 | G166: =VLOOKUP(A166, localcont!$D$10:$L$1764, 8) -> 6185737.55 | H166: =VLOOKUP(A166, localcont!$D$10:$L$1764, 9)*F166 -> 15198169.64
A167: 786 | B167: 158 | C167: LITTLETON | D167: 158 | E167: LITTLETON | F167: 12968265 | G167: =VLOOKUP(A167, localcont!$D$10:$L$1764, 8) -> 15912198.08 | H167: =VLOOKUP(A167, localcont!$D$10:$L$1764, 9)*F167 -> 12532062.38
A168: 791 | B168: 159 | C168: LONGMEADOW | D168: 159 | E168: LONGMEADOW | F168: 23190899 | G168: =VLOOKUP(A168, localcont!$D$10:$L$1764, 8) -> 27927235.79 | H168: =VLOOKUP(A168, localcont!$D$10:$L$1764, 9)*F168 -> 23190899
A169: 796 | B169: 160 | C169: LOWELL | D169: 160 | E169: LOWELL | F169: 59403476 | G169: =VLOOKUP(A169, localcont!$D$10:$L$1764, 8) -> 198336328.2 | H169: =VLOOKUP(A169, localcont!$D$10:$L$1764, 9)*F169 -> 51600362.36
A170: 801 | B170: 161 | C170: LUDLOW | D170: 161 | E170: LUDLOW | F170: 15760434 | G170: =VLOOKUP(A170, localcont!$D$10:$L$1764, 8) -> 27633670.82 | H170: =VLOOKUP(A170, localcont!$D$10:$L$1764, 9)*F170 -> 15760434
A171: 806 | B171: 162 | C171: LUNENBURG | D171: 162 | E171: LUNENBURG | F171: 10427328 | G171: =VLOOKUP(A171, localcont!$D$10:$L$1764, 8) -> 17203377.8 | H171: =VLOOKUP(A171, localcont!$D$10:$L$1764, 9)*F171 -> 9678670.517
A172: 811 | B172: 163 | C172: LYNN | D172: 163 | E172: LYNN | F172: 51482553 | G172: =VLOOKUP(A172, localcont!$D$10:$L$1764, 8) -> 217113702.9 | H172: =VLOOKUP(A172, localcont!$D$10:$L$1764, 9)*F172 -> 51482553
A173: 816 | B173: 164 | C173: LYNNFIELD | D173: 164 | E173: LYNNFIELD | F173: 24872353 | G173: =VLOOKUP(A173, localcont!$D$10:$L$1764, 8) -> 22155796.56 | H173: =VLOOKUP(A173, localcont!$D$10:$L$1764, 9)*F173 -> 24460852.74
A174: 821 | B174: 165 | C174: MALDEN | D174: 165 | E174: MALDEN | F174: 45067915 | G174: =VLOOKUP(A174, localcont!$D$10:$L$1764, 8) -> 90460805.38 | H174: =VLOOKUP(A174, localcont!$D$10:$L$1764, 9)*F174 -> 43793264.09
A175: 826 | B175: 166 | C175: MANCHESTER | D175: 166 | E175: MANCHESTER | F175: 18614383 | G175: =VLOOKUP(A175, localcont!$D$10:$L$1764, 8) -> 0 | H175: =VLOOKUP(A175, localcont!$D$10:$L$1764, 9)*F175 -> 0
A176: 831 | B176: 167 | C176: MANSFIELD | D176: 167 | E176: MANSFIELD | F176: 28700016 | G176: =VLOOKUP(A176, localcont!$D$10:$L$1764, 8) -> 41538657.53 | H176: =VLOOKUP(A176, localcont!$D$10:$L$1764, 9)*F176 -> 27745188.65
A177: 836 | B177: 168 | C177: MARBLEHEAD | D177: 168 | E177: MARBLEHEAD | F177: 46220789 | G177: =VLOOKUP(A177, localcont!$D$10:$L$1764, 8) -> 31517682.5 | H177: =VLOOKUP(A177, localcont!$D$10:$L$1764, 9)*F177 -> 45564807.86
A178: 841 | B178: 169 | C178: MARION | D178: 169 | E178: MARION | F178: 9988745 | G178: =VLOOKUP(A178, localcont!$D$10:$L$1764, 8) -> 4470718.45 | H178: =VLOOKUP(A178, localcont!$D$10:$L$1764, 9)*F178 -> 5413811.379
A179: 846 | B179: 170 | C179: MARLBOROUGH | D179: 170 | E179: MARLBOROUGH | F179: 39522467 | G179: =VLOOKUP(A179, localcont!$D$10:$L$1764, 8) -> 60815717.03 | H179: =VLOOKUP(A179, localcont!$D$10:$L$1764, 9)*F179 -> 35204274.57
A180: 851 | B180: 171 | C180: MARSHFIELD | D180: 171 | E180: MARSHFIELD | F180: 35448963 | G180: =VLOOKUP(A180, localcont!$D$10:$L$1764, 8) -> 41808529.7 | H180: =VLOOKUP(A180, localcont!$D$10:$L$1764, 9)*F180 -> 35448963
A181: 856 | B181: 172 | C181: MASHPEE | D181: 172 | E181: MASHPEE | F181: 25886019 | G181: =VLOOKUP(A181, localcont!$D$10:$L$1764, 8) -> 17705538.06 | H181: =VLOOKUP(A181, localcont!$D$10:$L$1764, 9)*F181 -> 24640484.59
A182: 861 | B182: 173 | C182: MATTAPOISETT | D182: 173 | E182: MATTAPOISETT | F182: 11326888 | G182: =VLOOKUP(A182, localcont!$D$10:$L$1764, 8) -> 4347489.02 | H182: =VLOOKUP(A182, localcont!$D$10:$L$1764, 9)*F182 -> 5436289.215
A183: 866 | B183: 174 | C183: MAYNARD | D183: 174 | E183: MAYNARD | F183: 10570689 | G183: =VLOOKUP(A183, localcont!$D$10:$L$1764, 8) -> 15215994.51 | H183: =VLOOKUP(A183, localcont!$D$10:$L$1764, 9)*F183 -> 9813974.252
A184: 871 | B184: 175 | C184: MEDFIELD | D184: 175 | E184: MEDFIELD | F184: 26473899 | G184: =VLOOKUP(A184, localcont!$D$10:$L$1764, 8) -> 24827316.1 | H184: =VLOOKUP(A184, localcont!$D$10:$L$1764, 9)*F184 -> 26188612.56
A185: 876 | B185: 176 | C185: MEDFORD | D185: 176 | E185: MEDFORD | F185: 62888038 | G185: =VLOOKUP(A185, localcont!$D$10:$L$1764, 8) -> 55510529.11 | H185: =VLOOKUP(A185, localcont!$D$10:$L$1764, 9)*F185 -> 62888038
A186: 881 | B186: 177 | C186: MEDWAY | D186: 177 | E186: MEDWAY | F186: 16302656 | G186: =VLOOKUP(A186, localcont!$D$10:$L$1764, 8) -> 22271105.48 | H186: =VLOOKUP(A186, localcont!$D$10:$L$1764, 9)*F186 -> 15492710.16
A187: 886 | B187: 178 | C187: MELROSE | D187: 178 | E187: MELROSE | F187: 35677550 | G187: =VLOOKUP(A187, localcont!$D$10:$L$1764, 8) -> 39714034.7 | H187: =VLOOKUP(A187, localcont!$D$10:$L$1764, 9)*F187 -> 35027322.47
A188: 891 | B188: 179 | C188: MENDON | D188: 179 | E188: MENDON | F188: 8177844 | G188: =VLOOKUP(A188, localcont!$D$10:$L$1764, 8) -> 125950.5691 | H188: =VLOOKUP(A188, localcont!$D$10:$L$1764, 9)*F188 -> 94852.83364
A189: 896 | B189: 180 | C189: MERRIMAC | D189: 180 | E189: MERRIMAC | F189: 6042534 | G189: =VLOOKUP(A189, localcont!$D$10:$L$1764, 8) -> 96860.12 | H189: =VLOOKUP(A189, localcont!$D$10:$L$1764, 9)*F189 -> 61805.62909
A190: 901 | B190: 181 | C190: METHUEN | D190: 181 | E190: METHUEN | F190: 39677392 | G190: =VLOOKUP(A190, localcont!$D$10:$L$1764, 8) -> 81561883.42 | H190: =VLOOKUP(A190, localcont!$D$10:$L$1764, 9)*F190 -> 37198081.83
A191: 906 | B191: 182 | C191: MIDDLEBOROUGH | D191: 182 | E191: MIDDLEBOROUGH | F191: 18572073 | G191: =VLOOKUP(A191, localcont!$D$10:$L$1764, 8) -> 32018438.09 | H191: =VLOOKUP(A191, localcont!$D$10:$L$1764, 9)*F191 -> 16144273.78
A192: 911 | B192: 183 | C192: MIDDLEFIELD | D192: 183 | E192: MIDDLEFIELD | F192: 388398 | G192: =VLOOKUP(A192, localcont!$D$10:$L$1764, 8) -> 55348.64 | H192: =VLOOKUP(A192, localcont!$D$10:$L$1764, 9)*F192 -> 45802.7468
A193: 916 | B193: 184 | C193: MIDDLETON | D193: 184 | E193: MIDDLETON | F193: 13832572 | G193: =VLOOKUP(A193, localcont!$D$10:$L$1764, 8) -> 6287830.734 | H193: =VLOOKUP(A193, localcont!$D$10:$L$1764, 9)*F193 -> 6301066.587
A194: 921 | B194: 185 | C194: MILFORD | D194: 185 | E194: MILFORD | F194: 25256225 | G194: =VLOOKUP(A194, localcont!$D$10:$L$1764, 8) -> 48944312.48 | H194: =VLOOKUP(A194, localcont!$D$10:$L$1764, 9)*F194 -> 24011187.94
A195: 926 | B195: 186 | C195: MILLBURY | D195: 186 | E195: MILLBURY | F195: 11784780 | G195: =VLOOKUP(A195, localcont!$D$10:$L$1764, 8) -> 18494289.77 | H195: =VLOOKUP(A195, localcont!$D$10:$L$1764, 9)*F195 -> 11146664.29
A196: 931 | B196: 187 | C196: MILLIS | D196: 187 | E196: MILLIS | F196: 9071434 | G196: =VLOOKUP(A196, localcont!$D$10:$L$1764, 8) -> 11946580.29 | H196: =VLOOKUP(A196, localcont!$D$10:$L$1764, 9)*F196 -> 8451031.7
A197: 936 | B197: 188 | C197: MILLVILLE | D197: 188 | E197: MILLVILLE | F197: 2440335 | G197: =VLOOKUP(A197, localcont!$D$10:$L$1764, 8) -> 124534.44 | H197: =VLOOKUP(A197, localcont!$D$10:$L$1764, 9)*F197 -> 53293.03184
A198: 941 | B198: 189 | C198: MILTON | D198: 189 | E198: MILTON | F198: 45859052 | G198: =VLOOKUP(A198, localcont!$D$10:$L$1764, 8) -> 41890853.24 | H198: =VLOOKUP(A198, localcont!$D$10:$L$1764, 9)*F198 -> 44840237.34
A199: 946 | B199: 190 | C199: MONROE | D199: 190 | E199: MONROE | F199: 109506 | G199: =VLOOKUP(A199, localcont!$D$10:$L$1764, 8) -> 85324.37 | H199: =VLOOKUP(A199, localcont!$D$10:$L$1764, 9)*F199 -> 68783.98887
A200: 951 | B200: 191 | C200: MONSON | D200: 191 | E200: MONSON | F200: 6385774 | G200: =VLOOKUP(A200, localcont!$D$10:$L$1764, 8) -> 9770916.3 | H200: =VLOOKUP(A200, localcont!$D$10:$L$1764, 9)*F200 -> 5559546.346
A201: 956 | B201: 192 | C201: MONTAGUE | D201: 192 | E201: MONTAGUE | F201: 5735511 | G201: =VLOOKUP(A201, localcont!$D$10:$L$1764, 8) -> 0 | H201: =VLOOKUP(A201, localcont!$D$10:$L$1764, 9)*F201 -> 0
A202: 961 | B202: 193 | C202: MONTEREY | D202: 193 | E202: MONTEREY | F202: =VLOOKUP(D202, town351, 7) -> 2257848 | G202: =VLOOKUP(A202, localcont!$D$10:$L$1764, 8) -> 0 | H202: =VLOOKUP(A202, localcont!$D$10:$L$1764, 9)*F202 -> 0
A203: 966 | B203: 194 | C203: MONTGOMERY | D203: 194 | E203: MONTGOMERY | F203: 807731 | G203: =VLOOKUP(A203, localcont!$D$10:$L$1764, 8) -> 83022.96 | H203: =VLOOKUP(A203, localcont!$D$10:$L$1764, 9)*F203 -> 82234.19778
A204: 971 | B204: 195 | C204: MOUNT WASHINGTON | D204: 195 | E204: MOUNT WASHINGTON | F204: 377420 | G204: =VLOOKUP(A204, localcont!$D$10:$L$1764, 8) -> 25705.73 | H204: =VLOOKUP(A204, localcont!$D$10:$L$1764, 9)*F204 -> 377420
... 617 more rows

Sheet Comparison to FY18
B1: Return to Index | Q1: More about the data
A2: Massachusetts Department of Elementary and Secondary Education
A3: =CYr&" Chapter 70 Comparison to "&PYr -> FY19 Chapter 70 Comparison to FY18
D7: =PYr -> FY18 | E7: =CYr -> FY19 | G7: =PYr -> FY18 | H7: =CYr -> FY19 | J7: =PYr -> FY18 | K7: =CYr -> FY19 | M7: =PYr -> FY18 | N7: =CYr -> FY19
B8: Operating | D8: Foundation | E8: Foundation | G8: Foundation | H8: Foundation | J8: Minimum | K8: Minimum | M8: Chapter 70 | N8: Chapter 70
A9: LEA | B9: District name | C9: Non-Op | D9: Enrollment | E9: Enrollment | F9: change | G9: Budget | H9: Budget | I9: chg pp | J9: Contribution | K9: Contribution | L9: chg pp | M9: aid | N9: aid | O9: change | P9: chg pp | Q9: pct chg
A10: 1 | B10: Abington | C10: 1 | D10: =VLOOKUP(A10,aidcalc,17) -> 1930 | E10: =VLOOKUP(A10,aidcalc,18) -> 2024 | F10: =E10-D10 -> 94 | G10: =VLOOKUP(A10,aidcalc,4) -> 19699144.43 | H10: =VLOOKUP(A10,aidcalc,6) -> 21515960.21 | I10: =(H10-G10)/$E10 -> 897.6362558 | J10: =SUMIF(dist1755,A10,pynetmin) -> 12922903 | K10: =VLOOKUP(A10,aidcalc,7) -> 13701008 | L10: =(K10-J10)/$E10 -> 384.4392292 | M10: =VLOOKUP(A10,disthist,46) -> 7637749 | N10: =VLOOKUP(A10,aidcalc,36) -> 7816931 | O10: =N10-M10 -> 179182 | P10: =(N10-M10)/$E10 -> 88.52865613 | Q10: =ROUND(IF(G10>0,(N10-M10)*100/M10,100),2) -> 2.35 | R10: =F10/D10 -> 0.04870466321
A11: 3 | B11: Acushnet | C11: 1 | D11: =VLOOKUP(A11,aidcalc,17) -> 1210 | E11: =VLOOKUP(A11,aidcalc,18) -> 1227 | F11: =E11-D11 -> 17 | G11: =VLOOKUP(A11,aidcalc,4) -> 11736546.35 | H11: =VLOOKUP(A11,aidcalc,6) -> 12395984.84 | I11: =(H11-G11)/$E11 -> 537.4396855 | J11: =SUMIF(dist1755,A11,pynetmin) -> 6867294 | K11: =VLOOKUP(A11,aidcalc,7) -> 7125126 | L11: =(K11-J11)/$E11 -> 210.1320293 | M11: 6286522 | N11: 6323332 | O11: =N11-M11 -> 36810 | P11: =(N11-M11)/$E11 -> 30 | Q11: =ROUND(IF(G11>0,(N11-M11)*100/M11,100),2) -> 0.59 | R11: =F11/D11 -> 0.01404958678
A12: 5 | B12: Agawam | C12: 1 | D12: 3831 | E12: 3773 | F12: -58 | G12: 40549530.34 | H12: 41326070.32 | I12: 205.814997 | J12: 22135293 | K12: 22474431 | L12: 89.88550225 | M12: 19253911.81 | N12: 19367102 | O12: 113190.188 | P12: 30.00004982 | Q12: 0.59 | R12: -0.01513965022
A13: 7 | B13: Amesbury | C13: 1 | D13: 2217 | E13: 2198 | F13: -19 | G13: 22137199.05 | H13: 22830750.46 | I13: 315.537493 | J13: 14640237 | K13: 15155898 | L13: 234.6046406 | M13: 9061587 | N13: 9127527 | O13: 65940 | P13: 30 | Q13: 0.73 | R13: -0.008570139829
A14: 8 | B14: Amherst | C14: 1 | D14: 1136 | E14: 1106 | F14: -30 | G14: 11871248.34 | H14: 11969353.38 | I14: 88.70256364 | J14: 8817279 | K14: 8946746 | L14: 117.0587703 | M14: 6055023 | N14: 6088203 | O14: 33180 | P14: 30 | Q14: 0.55 | R14: -0.0264084507
A15: 9 | B15: Andover | C15: 1 | D15: 5911 | E15: 5805 | F15: -106 | G15: 59213763.71 | H15: 60546641.05 | I15: 229.6085003 | J15: 49146929 | K15: 49950979 | L15: 138.5099053 | M15: 10066835 | N15: 10595662 | O15: 528827 | P15: 91.09853575 | Q15: 5.25 | R15: -0.01793266791
A16: 10 | B16: Arlington | C16: 1 | D16: 5607 | E16: 5785 | F16: 178 | G16: 54501493.56 | H16: 58002940.65 | I16: 605.2631087 | J16: 43805119 | K16: 46237018 | L16: 420.380121 | M16: 11180879 | N16: 11765923 | O16: 585044 | P16: 101.1312014 | Q16: 5.23 | R16: 0.03174603175
A17: 14 | B17: Ashland | C17: 1 | D17: 2547 | E17: 2581 | F17: 34 | G17: 24948345.56 | H17: 26344731.8 | I17: 541.0252758 | J17: 19465664 | K17: 20247938 | L17: 303.0895002 | M17: 6012213 | N17: 6115970 | O17: 103757 | P17: 40.20030996 | Q17: 1.73 | R17: 0.01334903808
A18: 16 | B18: Attleboro | C18: 1 | D18: 6251 | E18: 6311 | F18: 60 | G18: 69495854.73 | H18: 72980818.83 | I18: 552.204737 | J18: 33973326 | K18: 35206834 | L18: 195.4536524 | M18: 35846981 | N18: 37773985 | O18: 1927004 | P18: 305.3405166 | Q18: 5.38 | R18: 0.009598464246
A19: 17 | B19: Auburn | C19: 1 | D19: 2431 | E19: 2495 | F19: 64 | G19: 24064548.39 | H19: 25672129.78 | I19: 644.321197 | J19: 13986014 | K19: 14624535 | L19: 255.9202405 | M19: 10078534 | N19: 11066959 | O19: 988425 | P19: 396.1623246 | Q19: 9.81 | R19: 0.02632661456
A20: 18 | B20: Avon | C20: 1 | D20: 538 | E20: 561 | F20: 23 | G20: 5634205.663 | H20: 6193899.03 | I20: 997.6708852 | J20: 4254900 | K20: 4386495 | L20: 234.5721925 | M20: 1430611 | N20: 1807404 | O20: 376793 | P20: =(N20-M20)/$E20 -> 671.6452763 | Q20: 26.34 | R20: 0.04275092937
A21: 20 | B21: Barnstable | C21: 1 | D21: 5475 | E21: 5480 | F21: 5 | G21: 58000134.65 | H21: 60393953.44 | I21: 436.8282457 | J21: 48045485 | K21: 49825012 | L21: 324.7312044 | M21: 10011348 | N21: 10568941 | O21: 557593 | P21: 101.7505474 | Q21: 5.57 | R21: 0.0009132420091
A22: 23 | B22: Bedford | C22: 1 | D22: 2647 | E22: 2661 | F22: 14 | G22: 26915524.99 | H22: 27912085.89 | I22: 374.5061616 | J22: 22291183 | K22: 23027471 | L22: 276.695979 | M22: 4624342 | N22: 4884615 | O22: 260273 | P22: 97.81022172 | Q22: 5.63 | R22: 0.005289006422
A23: 24 | B23: Belchertown | C23: 1 | D23: 2374 | E23: 2344 | F23: -30 | G23: 23338797.01 | H23: 23863029.98 | I23: 223.6488794 | J23: 11231898 | K23: 11563925 | L23: 141.649744 | M23: 13744526 | N23: 13814846 | O23: 70320 | P23: 30 | Q23: 0.51 | R23: -0.01263689975
A24: 25 | B24: Bellingham | C24: 1 | D24: 2332 | E24: 2330 | F24: -2 | G24: 22943454.17 | H24: 23842628.52 | I24: 385.9117366 | J24: 15348243 | K24: 15794941 | L24: 191.7158798 | M24: 8503945 | N24: 8573845 | O24: 69900 | P24: 30 | Q24: 0.82 | R24: -0.0008576329331
A25: 26 | B25: Belmont | C25: 1 | D25: 4355 | E25: 4488 | F25: 133 | G25: 42643514.6 | H25: 45512607.46 | I25: 639.2809403 | J25: 34843282 | K25: 36735671 | L25: 421.655303 | M25: 7800233 | N25: 9036713 | O25: 1236480 | P25: 275.5080214 | Q25: 15.85 | R25: 0.03053960964
A26: 27 | B26: Berkley | C26: 1 | D26: 784 | E26: 774 | F26: -10 | G26: 7359719.096 | H26: 7541762.29 | I26: 235.1979249 | J26: 3696563 | K26: 3837447 | L26: 182.0206718 | M26: 3957968 | N26: 3981188 | O26: 23220 | P26: 30 | Q26: 0.59 | R26: -0.01275510204
A27: 28 | B27: Berlin | C27: 1 | D27: 160 | E27: 159 | F27: -1 | G27: 1603891.135 | H27: 1639651.663 | I27: 224.9089789 | J27: 1339179 | K27: 1352713 | L27: 85.11949686 | M27: 454305 | N27: 459075 | O27: 4770 | P27: 30 | Q27: 1.05 | R27: -0.00625
A28: 30 | B28: Beverly | C28: 1 | D28: 4444 | E28: 4398 | F28: -46 | G28: 45588032.86 | H28: 46490353.89 | I28: 205.1662191 | J28: 37741029 | K28: 38354542 | L28: 139.498181 | M28: 7884162 | N28: 8135812 | O28: 251650 | P28: 57.21919054 | Q28: 3.19 | R28: -0.0103510351
A29: 31 | B29: Billerica | C29: 1 | D29: 5034 | E29: 4912 | F29: -122 | G29: 49374269.01 | H29: 50010476.06 | I29: 129.5209779 | J29: 35556235 | K29: 37025362 | L29: 299.089373 | M29: 19055514.05 | N29: 19202874.05 | O29: 147360 | P29: 30 | Q29: 0.77 | R29: -0.02423520064
A30: 35 | B30: Boston | C30: 1 | D30: 64602 | E30: 64508 | F30: -94 | G30: 829896970.5 | H30: 861999611.9 | I30: 497.6536458 | J30: 686260642 | K30: 711149680 | L30: 385.8287034 | M30: 218066495 | N30: 220001735 | O30: 1935240 | P30: 30 | Q30: 0.89 | R30: -0.001455063311
A31: 36 | B31: Bourne | C31: 1 | D31: 1981 | E31: 2038 | F31: 57 | G31: 20067959.03 | H31: 21368782.29 | I31: 638.2842272 | J31: 16608266 | K31: 17629245 | L31: 500.97105 | M31: 5094043 | N31: 5155183 | O31: 61140 | P31: 30 | Q31: 1.2 | R31: 0.02877334679
A32: 38 | B32: Boxford | C32: 1 | D32: 739 | E32: 704 | F32: -35 | G32: 6728318.945 | H32: 6655216.908 | I32: -103.8381201 | J32: 5579890 | K32: 5490554 | L32: -126.8977273 | M32: 1705633 | N32: 1726753 | O32: 21120 | P32: 30 | Q32: 1.24 | R32: -0.04736129905
A33: 39 | B33: Boylston | C33: 1 | D33: 275 | E33: 286 | F33: 11 | G33: 2629403.776 | H33: 2856144.64 | I33: 792.8002243 | J33: 2172204 | K33: 2256220 | L33: 293.7622378 | M33: 473687.8802 | N33: 599925 | O33: 126237.1198 | P33: 441.3885308 | Q33: 26.65 | R33: 0.04
A34: 40 | B34: Braintree | C34: 1 | D34: 5667 | E34: 5678 | F34: 11 | G34: 58118969.9 | H34: 60365199.04 | I34: 395.6021737 | J34: 40917885 | K34: 42548094 | L34: 287.1097217 | M34: 17201085 | N34: 17817105 | O34: 616020 | P34: 108.4924269 | Q34: 3.58 | R34: 0.00194106229
A35: 41 | B35: Brewster | C35: 1 | D35: 490 | E35: 474 | F35: -16 | G35: 4863009.865 | H35: 4845032.06 | I35: -37.9278589 | J35: 4034625 | K35: 3997151 | L35: -79.05907173 | M35: 983449 | N35: 997669 | O35: 14220 | P35: 30 | Q35: 1.45 | R35: -0.03265306122
A36: 43 | B36: Brimfield | C36: 1 | D36: 268 | E36: 264 | F36: -4 | G36: 2534076.571 | H36: 2588960.98 | I36: 207.8954902 | J36: 1459687 | K36: 1544601 | L36: 321.6439394 | M36: 1231392 | N36: 1239312 | O36: 7920 | P36: 30 | Q36: 0.64 | R36: -0.01492537313
A37: 44 | B37: Brockton | C37: 1 | D37: 17888 | E37: 17828 | F37: -60 | G37: 210658023.2 | H37: 219005794.2 | I37: 468.2393438 | J37: 42271112 | K37: 43627822 | L37: 76.09995513 | M37: 171549638 | N37: 178296402.2 | O37: 6746764.163 | P37: 378.4364013 | Q37: 3.93 | R37: -0.003354203936
A38: 45 | B38: Brookfield | C38: 1 | D38: 234 | E38: 245 | F38: 11 | G38: 2393041.947 | H38: 2539081.3 | I38: 596.0789903 | J38: 1030082 | K38: 1093626 | L38: 259.3632653 | M38: 1426350 | N38: 1445497 | O38: 19147 | P38: 78.15102041 | Q38: 1.34 | R38: 0.04700854701
A39: 46 | B39: Brookline | C39: 1 | D39: 7541 | E39: 7664 | F39: 123 | G39: 75819883.37 | H39: 79599261.27 | I39: 493.1338593 | J39: 62590117 | K39: 64824584 | L39: 291.5536273 | M39: 13229766 | N39: 14774677 | O39: 1544911 | P39: 201.5802453 | Q39: 11.68 | R39: 0.01631083411
A40: 48 | B40: Burlington | C40: 1 | D40: 3495 | E40: 3519 | F40: 24 | G40: 35700016.02 | H40: 37486525.89 | I40: 507.675438 | J40: 29571420 | K40: 30926384 | L40: 385.0423416 | M40: 6128596 | N40: 6560142 | O40: 431546 | P40: 122.6331344 | Q40: 7.04 | R40: 0.00686695279
A41: 49 | B41: Cambridge | C41: 1 | D41: 7159 | E41: 7319 | F41: 160 | G41: 84055799.77 | H41: 88309460.91 | I41: 581.1806438 | J41: 69688258 | K41: 72855305 | L41: 432.7158082 | M41: 14367542 | N41: 15454156 | O41: 1086614 | P41: 148.4648176 | Q41: 7.56 | R41: 0.02234949015
A42: 50 | B42: Canton | C42: 1 | D42: 3340 | E42: 3319 | F42: -21 | G42: 33816147.85 | H42: 34875442.29 | I42: 319.160722 | J42: 27788653 | K42: 28772240 | L42: 296.3504067 | M42: 6027495 | N42: 6127065 | O42: 99570 | P42: 30 | Q42: 1.65 | R42: -0.00628742515
A43: 51 | B43: Carlisle | C43: 1 | D43: 563 | E43: 575 | F43: 12 | G43: 5148187.653 | H43: 5496906.743 | I43: 606.4679834 | J43: 4284734 | K43: 4534948 | L43: 435.1547826 | M43: 931172.0969 | N43: 961959 | O43: 30786.90305 | P43: 53.54244009 | Q43: 3.31 | R43: 0.02131438721
A44: 52 | B44: Carver | C44: 1 | D44: 1651 | E44: 1603 | F44: -48 | G44: 16782096.61 | H44: 16982947.18 | I44: 125.2966757 | J44: 8454008 | K44: 8706167 | L44: 157.3044292 | M44: 9913049 | N44: 9961139 | O44: 48090 | P44: 30 | Q44: 0.49 | R44: -0.02907328892
A45: 56 | B45: Chelmsford | C45: 1 | D45: 4932 | E45: 5094 | F45: 162 | G45: 47405594.17 | H45: 50869628.26 | I45: 680.0223973 | J45: 37968938 | K45: 40222347 | L45: 442.3653318 | M45: 10894328 | N45: 11047148 | O45: 152820 | P45: 30 | Q45: 1.4 | R45: 0.03284671533
A46: 57 | B46: Chelsea | C46: 1 | D46: 7143 | E46: 7211 | F46: 68 | G46: 87574481.05 | H46: 94734546.75 | I46: 992.9365819 | J46: 16070465 | K46: 17306968 | L46: 171.4745528 | M46: 71895368 | N46: 77723604.35 | O46: 5828236.353 | P46: 808.2424564 | Q46: 8.11 | R46: 0.009519809604
A47: 61 | B47: Chicopee | C47: 1 | D47: 7758 | E47: 7702 | F47: -56 | G47: 91782958.02 | H47: 93898617.53 | I47: 274.6896271 | J47: 29420367 | K47: 30063802 | L47: 83.54128798 | M47: 62362591 | N47: 63834816 | O47: 1472225 | P47: 191.148403 | Q47: 2.36 | R47: -0.007218355246
A48: 63 | B48: Clarksburg | C48: 1 | D48: 180 | E48: 195 | F48: 15 | G48: 1862062.324 | H48: 2064205.68 | I48: 1036.632597 | J48: 641854 | K48: 709296 | L48: 345.8564103 | M48: 1788625 | N48: 1794475 | O48: 5850 | P48: 30 | Q48: 0.33 | R48: 0.08333333333
A49: 64 | B49: Clinton | C49: 1 | D49: 2026 | E49: 2016 | F49: -10 | G49: 21918110.25 | H49: 22676410.39 | I49: 376.140944 | J49: 9770470 | K49: 10266561 | L49: 246.0768849 | M49: 12147640 | N49: 12409849 | O49: 262209 | P49: 130.0639881 | Q49: 2.16 | R49: -0.004935834156
A50: 65 | B50: Cohasset | C50: 1 | D50: 1525 | E50: 1543 | F50: 18 | G50: 14375663.8 | H50: 15141702.03 | I50: 496.4602931 | J50: 11992671 | K50: 12491904 | L50: 323.5469864 | M50: 2545614 | N50: 2649798 | O50: 104184 | P50: 67.52041478 | Q50: 4.09 | R50: 0.01180327869
A51: 67 | B51: Concord | C51: 1 | D51: 2029 | E51: 2031 | F51: 2 | G51: 18805576.71 | H51: 19595700.44 | I51: 389.0318742 | J51: 15575689 | K51: 16166453 | L51: 290.8734613 | M51: 3229888 | N51: 3429247 | O51: 199359 | P51: 98.15805022 | Q51: 6.17 | R51: 0.0009857072449
A52: 68 | B52: Conway | C52: 1 | D52: 117 | E52: 100 | F52: -17 | G52: 1137791.556 | H52: 1045830.03 | I52: -919.6152599 | J52: 909237 | K52: 858867 | L52: -503.7 | M52: 620884 | N52: 623884 | O52: 3000 | P52: 30 | Q52: 0.48 | R52: -0.1452991453
A53: 71 | B53: Danvers | C53: 1 | D53: 3460 | E53: 3516 | F53: 56 | G53: 33833411.73 | H53: 35346165.09 | I53: 430.2483958 | J53: 28261906 | K53: 29017711 | L53: 214.9616041 | M53: 6732852.445 | N53: 6838332.445 | O53: 105480 | P53: 30 | Q53: 1.57 | R53: 0.0161849711
A54: 72 | B54: Dartmouth | C54: 1 | D54: 3646 | E54: 3640 | F54: -6 | G54: 36194408.01 | H54: 37575677.39 | I54: 379.4696101 | J54: 30013628 | K54: 30999934 | L54: 270.9631868 | M54: 9732331 | N54: 9841531 | O54: 109200 | P54: 30 | Q54: 1.12 | R54: -0.001645639057
A55: 73 | B55: Dedham | C55: 1 | D55: 2612 | E55: 2648 | F55: 36 | G55: 27026023.75 | H55: 28479923.26 | I55: 549.0557078 | J55: 22421830 | K55: 23238711 | L55: 308.4898036 | M55: 4604194 | N55: 5241212 | O55: 637018 | P55: 240.56571 | Q55: 13.84 | R55: 0.01378254211
A56: 74 | B56: Deerfield | C56: 1 | D56: 329 | E56: 313 | F56: -16 | G56: 3148595.095 | H56: 3139879.44 | I56: -27.84554433 | J56: 2614687 | K56: 2590401 | L56: -77.59105431 | M56: 1095493 | N56: 1104883 | O56: 9390 | P56: 30 | Q56: 0.86 | R56: -0.04863221884
A57: 77 | B57: Douglas | C57: 1 | D57: 1328 | E57: 1284 | F57: -44 | G57: 12935870.45 | H57: 12935309.57 | I57: -0.4368223918 | J57: 6783425 | K57: 6890730 | L57: 83.57087227 | M57: 8684255 | N57: 8722775 | O57: 38520 | P57: 30 | Q57: 0.44 | R57: -0.03313253012
A58: 78 | B58: Dover | C58: 1 | D58: 485 | E58: 488 | F58: 3 | G58: 4468986.363 | H58: 4640414.508 | I58: 351.2871821 | J58: 3701130 | K58: 3828342 | L58: 260.6803279 | M58: 767856 | N58: 812073 | O58: 44217 | P58: 90.60860656 | Q58: 5.76 | R58: 0.00618556701
A59: 79 | B59: Dracut | C59: 1 | D59: 3769 | E59: 3839 | F59: 70 | G59: 37300000.77 | H59: 39508798.25 | I59: 575.3575094 | J59: 20889283 | K59: 21923341 | L59: 269.3560823 | M59: 19182047 | N59: 19297217 | O59: 115170 | P59: 30 | Q59: 0.6 | R59: 0.01857256567
A60: 82 | B60: Duxbury | C60: 1 | D60: 3028 | E60: 3003 | F60: -25 | G60: 29298212.85 | H60: 30016424.8 | I60: 239.1648188 | J60: 24357911 | K60: 24763550 | L60: 135.0779221 | M60: 5122424.238 | N60: 5252875 | O60: 130450.7618 | P60: 43.44014712 | Q60: 2.55 | R60: -0.008256274769
A61: 83 | B61: East Bridgewater | C61: 1 | D61: 2153 | E61: 2189 | F61: 36 | G61: 21105299.53 | H61: 22148437.78 | I61: 476.536433 | J61: 11373002 | K61: 11682386 | L61: 141.3357698 | M61: 10543697 | N61: 10609367 | O61: 65670 | P61: 30 | Q61: 0.62 | R61: 0.01672085462
A62: 85 | B62: Eastham | C62: 1 | D62: 183 | E62: 173 | F62: -10 | G62: 1861930.382 | H62: 1784959.93 | I62: -444.9159054 | J62: 1558793 | K62: 1472592 | L62: -498.2716763 | M62: 354681 | N62: 359871 | O62: 5190 | P62: 30 | Q62: 1.46 | R62: -0.05464480874
A63: 86 | B63: Easthampton | C63: 1 | D63: 1771 | E63: 1716 | F63: -55 | G63: 18534768.1 | H63: 18672296.82 | I63: 80.14494196 | J63: 11761853 | K63: 12132351 | L63: 215.9079254 | M63: 7926222 | N63: 7977702 | O63: 51480 | P63: 30 | Q63: 0.65 | R63: -0.03105590062
A64: 87 | B64: East Longmeadow | C64: 1 | D64: 2678 | E64: 2707 | F64: 29 | G64: 26517601.93 | H64: 27763311.46 | I64: 460.1808394 | J64: 15918988 | K64: 16509582 | L64: 218.1728851 | M64: 10598614 | N64: 11253729 | O64: 655115 | P64: 242.0077577 | Q64: 6.18 | R64: 0.01082897685
A65: 88 | B65: Easton | C65: 1 | D65: 3648 | E65: 3621 | F65: -27 | G65: 34946347.83 | H65: 36092236.61 | I65: 316.4564438 | J65: 26650276 | K65: 27619276 | L65: 267.6056338 | M65: 9933051 | N65: 10041681 | O65: 108630 | P65: 30 | Q65: 1.09 | R65: -0.007401315789
A66: 89 | B66: Edgartown | C66: 1 | D66: 410 | E66: 415 | F66: 5 | G66: 4120509.473 | H66: 4383670.73 | I66: 634.1235107 | J66: 3417460 | K66: 3563552 | L66: 352.0289157 | M66: 703049 | N66: 820119 | O66: 117070 | P66: 282.0963855 | Q66: 16.65 | R66: 0.01219512195
A67: 91 | B67: Erving | C67: 1 | D67: 226 | E67: 234 | F67: 8 | G67: 2174084.473 | H67: 2317098.66 | I67: 611.1717401 | J67: 1812979 | K67: 1911606 | L67: 421.482906 | M67: 457975 | N67: 464995 | O67: 7020 | P67: 30 | Q67: 1.53 | R67: 0.03539823009
A68: 93 | B68: Everett | C68: 1 | D68: 7635 | E68: 7729 | F68: 94 | G68: 90558887.12 | H68: 96231897.97 | I68: 733.9902761 | J68: 27455803 | K68: 28814865 | L68: 175.8393065 | M68: 64721582 | N68: 68940060.19 | O68: 4218478.193 | P68: 545.7987052 | Q68: 6.52 | R68: 0.01231172233
A69: 94 | B69: Fairhaven | C69: 1 | D69: 1801 | E69: 1812 | F69: 11 | G69: 18758475.28 | H69: 19508511.55 | I69: 413.9273012 | J69: 11557489 | K69: 11713786 | L69: 86.25662252 | M69: 7580960 | N69: 7794726 | O69: 213766 | P69: 117.9724062 | Q69: 2.82 | R69: 0.006107717934
A70: 95 | B70: Fall River | C70: 1 | D70: 11662 | E70: 11821 | F70: 159 | G70: 140367627.1 | H70: 149318108 | I70: 757.1678278 | J70: 27932437 | K70: 29668942 | L70: 146.9000085 | M70: 112435190 | N70: 119649166 | O70: 7213976 | P70: 610.2678284 | Q70: 6.42 | R70: 0.01363402504
A71: 96 | B71: Falmouth | C71: 1 | D71: =VLOOKUP(A71,aidcalc,17) -> 3442 | E71: =VLOOKUP(A71,aidcalc,18) -> 3397 | F71: =E71-D71 -> -45 | G71: =VLOOKUP(A71,aidcalc,4) -> 35776347.34 | H71: =VLOOKUP(A71,aidcalc,6) -> 37204346.42 | I71: =(H71-G71)/$E71 -> 420.3706444 | J71: =SUMIF(dist1755,A71,pynetmin) -> 29665659 | K71: =VLOOKUP(A71,aidcalc,7) -> 30580964 | L71: =(K71-J71)/$E71 -> 269.4450986 | M71: 6110688 | N71: 6623382 | O71: =N71-M71 -> 512694 | P71: =(N71-M71)/$E71 -> 150.9255225 | Q71: 8.39 | R71: -0.01307379431
A72: 97 | B72: Fitchburg | C72: 1 | D72: 5757 | E72: 5798 | F72: 41 | G72: 66887262.05 | H72: 70117764.53 | I72: 557.1753152 | J72: 17058113 | K72: 17761102 | L72: 121.2468092 | M72: 49829149 | N72: 52356663 | O72: 2527514 | P72: 435.9285961 | Q72: 5.07 | R72: 0.007121764808
A73: 98 | B73: Florida | C73: 1 | D73: 85 | E73: 70 | F73: -15 | G73: 837564.7254 | H73: 718962.58 | I73: -1694.316364 | J73: 470893 | K73: 450463 | L73: -291.8571429 | M73: 546637 | N73: 548737 | O73: 2100 | P73: 30 | Q73: 0.38 | R73: -0.1764705882
A74: 99 | B74: Foxborough | C74: 1 | D74: 2597 | E74: 2656 | F74: 59 | G74: 26331117.52 | H74: 27859184.16 | I74: 575.3262965 | J74: 21807366 | K74: 22576625 | L74: 289.6306476 | M74: =VLOOKUP(A74,disthist,46) -> 8888190 | N74: =VLOOKUP(A74,aidcalc,36) -> 8967870 | O74: 79680 | P74: 30 | Q74: =ROUND(IF(G74>0,(N74-M74)*100/M74,100),2) -> 0.9 | R74: 0.02271852137
A75: 100 | B75: Framingham | C75: 1 | D75: 9061 | E75: 9248 | F75: 187 | G75: 100719920.9 | H75: 108226362.1 | I75: 811.682647 | J75: 59331897 | K75: 60883909 | L75: 167.8213668 | M75: 42363221 | N75: 47636211.3 | O75: 5272990.3 | P75: 570.1762868 | Q75: 12.45 | R75: =F75/D75 -> 0.02063789869
A76: 101 | B76: Franklin | C76: 1 | D76: 5818 | E76: 5681 | F76: -137 | G76: 57148940.33 | H76: 57909532.28 | I76: 133.8834633 | J76: 36769474 | K76: 38481997 | L76: 301.4474564 | M76: 28078451 | N76: 28248881 | O76: 170430 | P76: 30 | Q76: 0.61 | R76: -0.02354761086
A77: 103 | B77: Gardner | C77: 1 | D77: 2531 | E77: 2512 | F77: -19 | G77: 28300931.48 | H77: 28813726.65 | I77: 204.1382034 | J77: 8779067 | K77: 9088523 | L77: 123.1910828 | M77: 19521864 | N77: 19725204 | O77: 203340 | P77: 80.94745223 | Q77: 1.04 | R77: -0.007506914263
A78: 105 | B78: Georgetown | C78: 1 | D78: 1347 | E78: 1333 | F78: -14 | G78: 12771696.51 | H78: 13014006.64 | I78: 181.7780384 | J78: 9356963 | K78: 9674567 | L78: 238.2625656 | M78: 5448358 | N78: 5488348 | O78: 39990 | P78: 30 | Q78: 0.73 | R78: -0.01039346696
A79: 107 | B79: Gloucester | C79: 1 | D79: 3189 | E79: 3189 | F79: 0 | G79: 35423863.38 | H79: 36267476.23 | I79: 264.5383665 | J79: 29347381 | K79: 29920668 | L79: 179.7701474 | M79: 6509407.491 | N79: 6605077.491 | O79: 95670 | P79: 30 | Q79: 1.47 | R79: 0
A80: 110 | B80: Grafton | C80: 1 | D80: 3151 | E80: 3114 | F80: -37 | G80: 30005660.38 | H80: 30766240.78 | I80: 244.245472 | J80: 19822623 | K80: 20470454 | L80: 208.0382145 | M80: 10921955 | N80: 11015375 | O80: 93420 | P80: 30 | Q80: 0.86 | R80: -0.01174230403
A81: 111 | B81: Granby | C81: 1 | D81: 742 | E81: 698 | F81: -44 | G81: 7516650.876 | H81: 7333030.34 | I81: -263.0666703 | J81: 4649745 | K81: 4806929 | L81: 225.1919771 | M81: 4622810 | N81: 4643750 | O81: 20940 | P81: 30 | Q81: 0.45 | R81: -0.05929919137
A82: 114 | B82: Greenfield | C82: 1 | D82: 1913 | E82: 1984 | F82: 71 | G82: 20807903.15 | H82: 22188290.89 | I82: 695.7599509 | J82: 9604767 | K82: 9949462 | L82: 173.7373992 | M82: 12197397.36 | N82: 12256917.36 | O82: 59520 | P82: 30 | Q82: 0.49 | R82: 0.03711447987
A83: 117 | B83: Hadley | C83: 1 | D83: 565 | E83: 562 | F83: -3 | G83: 5654945.375 | H83: 5888757.82 | I83: 416.0363796 | J83: 4724445 | K83: 4858225 | L83: 238.0427046 | M83: 1002763.995 | N83: 1030533 | O83: 27769.00483 | P83: 49.41104062 | Q83: 2.77 | R83: -0.005309734513
A84: 118 | B84: Halifax | C84: 1 | D84: 633 | E84: 637 | F84: 4 | G84: 6142874.29 | H84: 6353417.465 | I84: 330.5230371 | J84: 3223996 | K84: 3373628 | L84: 234.9010989 | M84: 2918878 | N84: 2989257 | O84: 70379 | P84: 110.4850863 | Q84: 2.41 | R84: 0.006319115324
A85: 121 | B85: Hancock | C85: 1 | D85: 70 | E85: 70 | F85: 0 | G85: 672606.5336 | H85: 715919.97 | I85: 618.7633777 | J85: 562854 | K85: 571860 | L85: 128.6571429 | M85: 207160 | N85: 209260 | O85: 2100 | P85: 30 | Q85: 1.01 | R85: 0
A86: 122 | B86: Hanover | C86: 1 | D86: 2530 | E86: 2533 | F86: 3 | G86: 24249684.48 | H86: 25234803.16 | I86: 388.913807 | J86: 19005451 | K86: 19689734 | L86: 270.1472562 | M86: 6871448.713 | N86: 6947439 | O86: 75990.28666 | P86: 30.00011317 | Q86: 1.11 | R86: 0.001185770751
A87: 125 | B87: Harvard | C87: 1 | D87: 980 | E87: 945 | F87: -35 | G87: 9274857.153 | H87: 9216263.062 | I87: -62.00432894 | J87: 7706220 | K87: 7603417 | L87: -108.7862434 | M87: 1926361 | N87: 1954741 | O87: 28380 | P87: 30.03174603 | Q87: 1.47 | R87: -0.03571428571
A88: 127 | B88: Hatfield | C88: 1 | D88: 354 | E88: 341 | F88: -13 | G88: 3456804.28 | H88: 3557025.64 | I88: 293.9042816 | J88: 2864170 | K88: 2934546 | L88: 206.3812317 | M88: 825616 | N88: 835846 | O88: 10230 | P88: 30 | Q88: 1.24 | R88: -0.03672316384
A89: 128 | B89: Haverhill | C89: 1 | D89: 8304 | E89: 8316 | F89: 12 | G89: 91533733.13 | H89: 95275049.07 | I89: 449.8936914 | J89: 39059148 | K89: 40630210 | L89: 188.9203944 | M89: 52474585 | N89: 54644839 | O89: 2170254 | P89: 260.9733045 | Q89: 4.14 | R89: 0.001445086705
A90: 131 | B90: Hingham | C90: 1 | D90: 4328 | E90: 4319 | F90: -9 | G90: 41440808 | H90: 42815000.85 | I90: 318.1738467 | J90: 34293632 | K90: 35322376 | L90: 238.1903218 | M90: 7147176 | N90: 7492625 | O90: 345449 | P90: 79.98356101 | Q90: 4.83 | R90: -0.00207948244
A91: 133 | B91: Holbrook | C91: 1 | D91: 1165 | E91: 1231 | F91: 66 | G91: 12628237.27 | H91: 13757037.01 | I91: 916.9778541 | J91: 7152474 | K91: 7518971 | L91: 297.7229894 | M91: 5652634 | N91: 6238066 | O91: 585432 | P91: 475.5743298 | Q91: 10.36 | R91: 0.05665236052
A92: 135 | B92: Holland | C92: 1 | D92: 152 | E92: 162 | F92: 10 | G92: 1612152.099 | H92: 1748738.77 | I92: 843.1275989 | J92: 930261 | K92: 1013627 | L92: 514.6049383 | M92: 923658 | N92: 928518 | O92: 4860 | P92: 30 | Q92: 0.53 | R92: 0.06578947368
A93: 136 | B93: Holliston | C93: 1 | D93: 2612 | E93: 2653 | F93: 41 | G93: 25340457.44 | H93: 26788678.93 | I93: 545.8806985 | J93: 18649605 | K93: 19393070 | L93: 280.2355824 | M93: 7441479.661 | N93: 7521070 | O93: 79590.33871 | P93: 30.00012767 | Q93: 1.07 | R93: 0.01569678407
A94: 137 | B94: Holyoke | C94: 1 | D94: 6463 | E94: 6330 | F94: -133 | G94: 81981180.87 | H94: 82326983.74 | I94: 54.6292056 | J94: 10580654 | K94: 10886435 | L94: 48.30663507 | M94: 71400527 | N94: 71590427 | O94: 189900 | P94: 30 | Q94: 0.27 | R94: -0.02057867863
A95: 138 | B95: Hopedale | C95: 1 | D95: 1019 | E95: 987 | F95: -32 | G95: 9875547.132 | H95: 10063593.19 | I95: 190.5228555 | J95: 5451538 | K95: 5625392 | L95: 176.1438703 | M95: 6029670 | N95: 6059280 | O95: 29610 | P95: 30 | Q95: 0.49 | R95: -0.0314033366
A96: 139 | B96: Hopkinton | C96: 1 | D96: 3471 | E96: 3530 | F96: 59 | G96: 34051687.92 | H96: 37266306.27 | I96: 910.6567587 | J96: 28376314 | K96: 30427150 | L96: 580.9733711 | M96: 6256963.403 | N96: 6839156 | O96: 582192.5973 | P96: 164.9270814 | Q96: 9.3 | R96: 0.01699798329
A97: 141 | B97: Hudson | C97: 1 | D97: 2712 | E97: 2700 | F97: -12 | G97: 28097682.16 | H97: 29167889.79 | I97: 396.373196 | J97: 16800420 | K97: 17227184 | L97: 158.0607407 | M97: 11571901 | N97: 11940706 | O97: 368805 | P97: 136.5944444 | Q97: 3.19 | R97: -0.004424778761
A98: 142 | B98: Hull | C98: 1 | D98: 971 | E98: 938 | F98: -33 | G98: 10207764.98 | H98: 10202468.32 | I98: -5.646763509 | J98: 8510548 | K98: 8417036 | L98: -99.69296375 | M98: 3818486 | N98: 3846626 | O98: 28140 | P98: 30 | Q98: 0.74 | R98: -0.03398558187
A99: 144 | B99: Ipswich | C99: 1 | D99: 1744 | E99: 1706 | F99: -38 | G99: 17585142.68 | H99: 17790224.74 | I99: 120.2122223 | J99: 14661641 | K99: 14676936 | L99: 8.965416178 | M99: 3231029.529 | N99: 3282240 | O99: 51210.47059 | P99: 30.01786084 | Q99: 1.58 | R99: -0.02178899083
A100: 145 | B100: Kingston | C100: 1 | D100: 1046 | E100: 1062 | F100: 16 | G100: 10083448.84 | H100: 10631780.77 | I100: 516.3200893 | J100: 6275524 | K100: 6659009 | L100: 361.0969868 | M100: 4308264.536 | N100: 4340125 | O100: 31860.46437 | P100: 30.00043726 | Q100: 0.74 | R100: 0.01529636711
A101: 149 | B101: Lawrence | C101: 1 | D101: 15312 | E101: 15370 | F101: 58 | G101: 189722671.7 | H101: 196866061 | I101: 464.7618284 | J101: 9390191 | K101: 10121526 | L101: 47.58197788 | M101: 180332481 | N101: 188612758.9 | O101: 8280277.947 | P101: 538.7298599 | Q101: 4.59 | R101: 0.003787878788
A102: 150 | B102: Lee | C102: 1 | D102: 621 | E102: 621 | F102: 0 | G102: 6757761.956 | H102: 7003346.37 | I102: 395.4660444 | J102: 5587191 | K102: 5777761 | L102: 306.8760064 | M102: 2047989 | N102: 2066619 | O102: 18630 | P102: 30 | Q102: 0.91 | R102: 0
A103: 151 | B103: Leicester | C103: 1 | D103: 1572 | E103: 1580 | F103: 8 | G103: 16281458.22 | H103: 17044107.48 | I103: 482.6894037 | J103: 7799077 | K103: 8057611 | L103: 163.6291139 | M103: 9708447 | N103: 9755847 | O103: 47400 | P103: 30 | Q103: 0.49 | R103: 0.005089058524
A104: 152 | B104: Lenox | C104: 1 | D104: 521 | E104: 506 | F104: -15 | G104: 5339115.734 | H104: 5362646.54 | I104: 46.50356987 | J104: 4429745 | K104: 4424183 | L104: -10.99209486 | M104: 1242525 | N104: 1257705 | O104: 15180 | P104: 30 | Q104: 1.22 | R104: -0.02879078695
A105: 153 | B105: Leominster | C105: 1 | D105: 6123 | E105: 6113 | F105: -10 | G105: 69633698.05 | H105: 72123478.45 | I105: 407.2927206 | J105: 27880085 | K105: 28957291 | L105: 176.2156061 | M105: 44073487 | N105: 44256877 | O105: 183390 | P105: 30 | Q105: 0.42 | R105: -0.001633186347
A106: 154 | B106: Leverett | C106: 1 | D106: 123 | E106: 103 | F106: -20 | G106: 1195068.007 | H106: 1040580.59 | I106: -1499.877835 | J106: 990119 | K106: 858479 | L106: -1278.058252 | M106: 289061 | N106: 292151 | O106: 3090 | P106: 30 | Q106: 1.07 | R106: -0.162601626
A107: 155 | B107: Lexington | C107: 1 | D107: 7126 | E107: 7303 | F107: 177 | G107: 74054892.12 | H107: 76234730.04 | I107: 298.485269 | J107: 60055998 | K107: 62875494 | L107: 386.0736684 | M107: 13998894 | N107: 14217984 | O107: 219090 | P107: 30 | Q107: 1.57 | R107: 0.02483861914
A108: 157 | B108: Lincoln | C108: 1 | D108: 653 | E108: 626 | F108: -27 | G108: 6203608.579 | H108: 6185737.55 | I108: -28.54796992 | J108: 5157876 | K108: 5103233 | L108: -87.28913738 | M108: 1052081 | N108: 1082505 | O108: 30424 | P108: 48.60063898 | Q108: 2.89 | R108: -0.04134762634
A109: 158 | B109: Littleton | C109: 1 | D109: 1589 | E109: 1602 | F109: 13 | G109: 15312226.68 | H109: 15912198.08 | I109: 374.5139794 | J109: 12240112 | K109: 12532062 | L109: 182.2409488 | M109: 3943487.508 | N109: 3991548 | O109: 48060.49155 | P109: 30.00030684 | Q109: 1.22 | R109: 0.008181246067
A110: 159 | B110: Longmeadow | C110: 1 | D110: 2824 | E110: 2856 | F110: 32 | G110: 26663231.19 | H110: 27927235.79 | I110: 442.5786419 | J110: 22022317 | K110: 22667571 | L110: 225.9292717 | M110: 4672411 | N110: 5259665 | O110: 587254 | P110: 205.6211485 | Q110: 12.57 | R110: 0.01133144476
A111: 160 | B111: Lowell | C111: 1 | D111: 16025 | E111: 16184 | F111: 159 | G111: 189897177 | H111: 198336328.2 | I111: 521.4502737 | J111: 45829544 | K111: 47400845 | L111: 97.08978003 | M111: 144067633 | N111: 150935483 | O111: 6867850 | P111: 424.3604795 | Q111: 4.77 | R111: 0.00992199688
A112: 161 | B112: Ludlow | C112: 1 | D112: 2602 | E112: 2570 | F112: -32 | G112: 27107617.46 | H112: 27633670.82 | I112: 204.690023 | J112: 15438923 | K112: 15760434 | L112: 125.1015564 | M112: 13642593 | N112: 13719693 | O112: 77100 | P112: 30 | Q112: 0.57 | R112: -0.01229823213
A113: 162 | B113: Lunenburg | C113: 1 | D113: 1705 | E113: 1716 | F113: 11 | G113: 16554528.4 | H113: 17203377.8 | I113: 378.1173676 | J113: 9282023 | K113: 9678671 | L113: 231.1468531 | M113: 7272505 | N113: 7538072 | O113: 265567 | P113: 154.759324 | Q113: 3.65 | R113: 0.006451612903
A114: 163 | B114: Lynn | C114: 1 | D114: 16852 | E114: 17197 | F114: 345 | G114: 201554686.7 | H114: 217113702.9 | I114: 904.7517714 | J114: 48112261 | K114: 50739190 | L114: 152.7550736 | M114: 153442426 | N114: 167691187.8 | O114: 14248761.76 | P114: 828.5608981 | Q114: 9.29 | R114: 0.0204723475
A115: 164 | B115: Lynnfield | C115: 1 | D115: 2191 | E115: 2220 | F115: 29 | G115: 21073446.15 | H115: 22155796.56 | I115: 487.5452261 | J115: 17422551 | K115: 18211808 | L115: 355.5211712 | M115: 4272061 | N115: 4338661 | O115: 66600 | P115: 30 | Q115: 1.56 | R115: 0.01323596531
A116: 165 | B116: Malden | C116: 1 | D116: 7529 | E116: 7516 | F116: -13 | G116: 87320752.24 | H116: 90460805.38 | I116: 417.7824817 | J116: 38872647 | K116: 41267281 | L116: 318.604843 | M116: 49072289 | N116: 49297769 | O116: 225480 | P116: 30 | Q116: 0.46 | R116: -0.001726656927
A117: 167 | B117: Mansfield | C117: 1 | D117: 3932 | E117: 3942 | F117: 10 | G117: 40453621.25 | H117: 41538657.53 | I117: 275.2501974 | J117: 27314680 | K117: 27745189 | L117: 109.2108067 | M117: 18728069 | N117: 18846329 | O117: 118260 | P117: 30 | Q117: 0.63 | R117: 0.002543234995
A118: 168 | B118: Marblehead | C118: 1 | D118: 3233 | E118: 3188 | F118: -45 | G118: 30825074.04 | H118: 31517682.5 | I118: 217.2548482 | J118: 25552661 | K118: 26002088 | L118: 140.9745922 | M118: 5741619 | N118: 5837259 | O118: 95640 | P118: 30 | Q118: 1.67 | R118: -0.01391896072
A119: 169 | B119: Marion | C119: 1 | D119: 455 | E119: 452 | F119: -3 | G119: 4343663.515 | H119: 4470718.45 | I119: 281.094989 | J119: 3510380 | K119: 3641644 | L119: 290.4070796 | M119: 833284 | N119: 846844 | O119: 13560 | P119: 30 | Q119: 1.63 | R119: -0.006593406593
A120: 170 | B120: Marlborough | C120: 1 | D120: 5081 | E120: 5163 | F120: 82 | G120: 56761909.56 | H120: 60815717.03 | I120: 785.1651114 | J120: 32073087 | K120: 33579775 | L120: 291.8241333 | M120: 24688823 | N120: 27459350.45 | O120: 2770527.454 | P120: 536.6119415 | Q120: 11.22 | R120: 0.0161385554
A121: 171 | B121: Marshfield | C121: 1 | D121: 4128 | E121: 4077 | F121: -51 | G121: 41036767.22 | H121: 41808529.7 | I121: 189.2966605 | J121: 33760457 | K121: 34492037 | L121: 179.4407653 | M121: 14421163 | N121: 14543473 | O121: 122310 | P121: 30 | Q121: 0.85 | R121: -0.01235465116
A122: 172 | B122: Mashpee | C122: 1 | D122: 1590 | E122: 1651 | F122: 61 | G122: 16431104.57 | H122: 17705538.06 | I122: 771.9161082 | J122: 13722805 | K122: 14379434 | L122: 397.7159297 | M122: 4541226 | N122: 4590756 | O122: 49530 | P122: 30 | Q122: 1.09 | R122: 0.03836477987
A123: 173 | B123: Mattapoisett | C123: 1 | D123: 451 | E123: 447 | F123: -4 | G123: 4222689.915 | H123: 4347489.02 | I123: 279.1926286 | J123: 3517981 | K123: 3586679 | L123: 153.6868009 | M123: 812995 | N123: 826405 | O123: 13410 | P123: 30 | Q123: 1.65 | R123: -0.008869179601
A124: 174 | B124: Maynard | C124: 1 | D124: 1429 | E124: 1412 | F124: -17 | G124: 14745073.19 | H124: 15215994.51 | I124: 333.5136824 | J124: 9744969 | K124: 9813974 | L124: 48.8703966 | M124: 5000104 | N124: 5402021 | O124: 401917 | P124: 284.6437677 | Q124: 8.04 | R124: -0.01189643107
A125: 175 | B125: Medfield | C125: 1 | D125: 2490 | E125: 2512 | F125: 22 | G125: 23865982.22 | H125: 24827316.1 | I125: 382.6966082 | J125: 19763909 | K125: 20482536 | L125: 286.0776274 | M125: 6137784 | N125: 6213144 | O125: 75360 | P125: 30 | Q125: 1.23 | R125: 0.008835341365
A126: 176 | B126: Medford | C126: 1 | D126: 4847 | E126: 4665 | F126: -182 | G126: 54710623.72 | H126: 55510529.11 | I126: 171.4695359 | J126: 45337673 | K126: 45796187 | L126: 98.28810289 | M126: 11864786 | N126: 12004766 | O126: 139980 | P126: 30.00643087 | Q126: 1.18 | R126: -0.03754899938
A127: 177 | B127: Medway | C127: 1 | D127: 2248 | E127: 2198 | F127: -50 | G127: 22011641.94 | H127: 22271105.48 | I127: 118.0452878 | J127: 14975709 | K127: 15492710 | L127: 235.2142857 | M127: 10368909 | N127: 10434849 | O127: 65940 | P127: 30 | Q127: 0.64 | R127: -0.02224199288
A128: 178 | B128: Melrose | C128: 1 | D128: 3799 | E128: 3872 | F128: 73 | G128: 37544107.27 | H128: 39714034.7 | I128: 560.4151427 | J128: 31014280 | K128: 32332045 | L128: 340.3318698 | M128: 8280046 | N128: 8396206 | O128: 116160 | P128: 30 | Q128: 1.4 | R128: 0.01921558305
A129: 181 | B129: Methuen | C129: 1 | D129: 7088 | E129: 7169 | F129: 81 | G129: 76802334.29 | H129: 81561883.42 | I129: 663.9069791 | J129: 35661626 | K129: 37125698 | L129: 204.2226252 | M129: 42360163 | N129: 44704725.33 | O129: 2344562.329 | P129: 327.0417532 | Q129: 5.53 | R129: 0.01142776524
A130: 182 | B130: Middleborough | C130: 1 | D130: =VLOOKUP(A130,aidcalc,17) -> 2870 | E130: =VLOOKUP(A130,aidcalc,18) -> 3031 | F130: =E130-D130 -> 161 | G130: =VLOOKUP(A130,aidcalc,4) -> 29289460.26 | H130: =VLOOKUP(A130,aidcalc,6) -> 32018438.09 | I130: =(H130-G130)/$E130 -> 900.3556021 | J130: =SUMIF(dist1755,A130,pynetmin) -> 15577573 | K130: =VLOOKUP(A130,aidcalc,7) -> 16144274 | L130: =(K130-J130)/$E130 -> 186.9683273 | M130: 17796089 | N130: 17887019 | O130: =N130-M130 -> 90930 | P130: =(N130-M130)/$E130 -> 30 | Q130: 0.51 | R130: 0.05609756098
A131: 184 | B131: Middleton | C131: 1 | D131: 666 | E131: 653 | F131: -13 | G131: 6172360.672 | H131: 6287830.734 | I131: 176.8301098 | J131: 5171627 | K131: 5187460 | L131: 24.24655436 | M131: 1626461 | N131: 1646051 | O131: 19590 | P131: 30 | Q131: 1.2 | R131: -0.01951951952
A132: 185 | B132: Milford | C132: 1 | D132: 4244 | E132: 4256 | F132: 12 | G132: 46388900.53 | H132: 48944312.48 | I132: 600.4257414 | J132: 23243232 | K132: 24011188 | L132: 180.4407895 | M132: 23145669 | N132: 24933124 | O132: 1787455 | P132: 419.9847274 | Q132: 7.72 | R132: 0.002827521206
A133: 186 | B133: Millbury | C133: 1 | D133: 1748 | E133: 1763 | F133: 15 | G133: 17780962.15 | H133: 18494289.77 | I133: 404.6101061 | J133: 10630390 | K133: 11140779 | L133: 289.5002836 | M133: 7150572 | N133: 7371495 | O133: 220923 | P133: 125.3108338 | Q133: 3.09 | R133: 0.008581235698
A134: 187 | B134: Millis | C134: 1 | D134: 1199 | E134: 1177 | F134: -22 | G134: 11737004.51 | H134: 11946580.29 | I134: 178.0592822 | J134: 8397650 | K134: 8451032 | L134: 45.35429057 | M134: 4761621.532 | N134: 4796932 | O134: 35310.46793 | P134: 30.00039756 | Q134: 0.74 | R134: -0.01834862385
A135: 189 | B135: Milton | C135: 1 | D135: 4093 | E135: 4161 | F135: 68 | G135: 39699383.47 | H135: 41890853.24 | I135: 526.6690152 | J135: 32142381 | K135: 33540779 | L135: 336.0725787 | M135: 7557002 | N135: 8350074 | O135: 793072 | P135: 190.5964912 | Q135: 10.49 | R135: 0.01661373076
A136: 191 | B136: Monson | C136: 1 | D136: 967 | E136: 934 | F136: -33 | G136: 9765311.131 | H136: 9770916.3 | I136: 6.00125191 | J136: 5261486 | K136: 5525534 | L136: 282.7066381 | M136: 7484975 | N136: 7512995 | O136: 28020 | P136: 30 | Q136: 0.37 | R136: -0.03412616339
A137: 196 | B137: Nahant | C137: 1 | D137: 270 | E137: 260 | F137: -10 | G137: 2576635.396 | H137: 2540955.26 | I137: -137.2312931 | J137: 2132494 | K137: 2096288 | L137: -139.2538462 | M137: =VLOOKUP(A137,disthist,46) -> 508003 | N137: =VLOOKUP(A137,aidcalc,36) -> 515803 | O137: 7800 | P137: 30 | Q137: =ROUND(IF(G137>0,(N137-M137)*100/M137,100),2) -> 1.54 | R137: -0.03703703704
A138: 197 | B138: Nantucket | C138: 1 | D138: 1583 | E138: 1618 | F138: 35 | G138: 16351990.16 | H138: 17684068.19 | I138: 823.2867934 | J138: 13342499 | K138: 14133709 | L138: 489.0049444 | M138: 3114564 | N138: 3550359 | O138: 435795 | P138: 269.34178 | Q138: 13.99 | R138: =F138/D138 -> 0.02210991788
A139: 198 | B139: Natick | C139: 1 | D139: 5466 | E139: 5493 | F139: 27 | G139: 53048542.56 | H139: 55788455.04 | I139: 498.8007433 | J139: 43988233 | K139: 46025476 | L139: 370.8798471 | M139: 9281825 | N139: 9762979 | O139: 481154 | P139: 87.59402876 | Q139: 5.18 | R139: 0.004939626784
A140: 199 | B140: Needham | C140: 1 | D140: 5447 | E140: 5495 | F140: 48 | G140: 54000176.56 | H140: 56435153.95 | I140: 443.1260035 | J140: 44833817 | K140: 46559002 | L140: 313.955414 | M140: 9166360 | N140: 9876152 | O140: 709792 | P140: 129.1705187 | Q140: 7.74 | R140: 0.008812190196
A141: 201 | B141: New Bedford | C141: 1 | D141: 13624 | E141: 13752 | F141: 128 | G141: 165003222.2 | H141: 173832434.2 | I141: 642.031119 | J141: 27078190 | K141: 28522973 | L141: 105.0598458 | M141: 137925032 | N141: 145309461 | O141: 7384429 | P141: 536.9712769 | Q141: 5.35 | R141: 0.009395184968
A142: 204 | B142: Newburyport | C142: 1 | D142: 2395 | E142: 2390 | F142: -5 | G142: 22572192.43 | H142: 23394062.99 | I142: 343.878896 | J142: 18688498 | K142: 19300102 | L142: 255.9012552 | M142: 3923141.666 | N142: 4093961 | O142: 170819.3339 | P142: 71.47252465 | Q142: 4.35 | R142: -0.002087682672
A143: 207 | B143: Newton | C143: 1 | D143: 12857 | E143: 12948 | F143: 91 | G143: 131452274.4 | H143: 137300637.3 | I143: 451.6807859 | J143: 108662422 | K143: 113273026 | L143: 356.0861909 | M143: 22789852 | N143: 24027611 | O143: 1237759 | P143: 95.59460921 | Q143: 5.43 | R143: 0.007077856421
A144: 208 | B144: Norfolk | C144: 1 | D144: 892 | E144: 903 | F144: 11 | G144: 8254868.142 | H144: 8641112.909 | I144: 427.735069 | J144: 6844844 | K144: 7128918 | L144: 314.5891473 | M144: 3406815 | N144: 3433905 | O144: 27090 | P144: 30 | Q144: 0.8 | R144: 0.01233183857
A145: 209 | B145: North Adams | C145: 1 | D145: 1506 | E145: 1485 | F145: -21 | G145: 17145309.63 | H145: 17356231.86 | I145: 142.035172 | J145: 5100302 | K145: 5097649 | L145: -1.786531987 | M145: 13721833 | N145: 13766383 | O145: 44550 | P145: 30 | Q145: 0.32 | R145: -0.01394422311
A146: 210 | B146: Northampton | C146: 1 | D146: 2746 | E146: 2713 | F146: -33 | G146: 27919380.15 | H146: 28576804.53 | I146: 242.3237686 | J146: 23143930 | K146: 23575863 | L146: 159.2086251 | M146: 7395919 | N146: 7477309 | O146: 81390 | P146: 30 | Q146: 1.1 | R146: -0.01201747997
A147: 211 | B147: North Andover | C147: 1 | D147: 4811 | E147: 4847 | F147: 36 | G147: 46314260.8 | H147: 48675062.22 | I147: 487.064456 | J147: 38259940 | K147: 39658845 | L147: 288.6125438 | M147: 8326307 | N147: 9016217 | O147: 689910 | P147: 142.3375284 | Q147: 8.29 | R147: 0.007482851798
A148: 212 | B148: North Attleborough | C148: 1 | D148: 4346 | E148: 4296 | F148: -50 | G148: 42205783.55 | H148: 43299173.01 | I148: 254.5133747 | J148: 25945113 | K148: 26709708 | L148: 177.978352 | M148: 20427791 | N148: 20556671 | O148: 128880 | P148: 30 | Q148: 0.63 | R148: -0.01150483203
A149: 213 | B149: Northborough | C149: 1 | D149: 1642 | E149: 1608 | F149: -34 | G149: 15015400.58 | H149: 15211638.35 | I149: 122.0384159 | J149: 12501814 | K149: 12549602 | L149: 29.71890547 | M149: 3899030.038 | N149: 3947270.038 | O149: 48240 | P149: 30 | Q149: 1.24 | R149: -0.02070645554
A150: 214 | B150: Northbridge | C150: 1 | D150: 2305 | E150: 2230 | F150: -75 | G150: 23615219.38 | H150: 23583382.15 | I150: -14.27678359 | J150: 11369969 | K150: 11810469 | L150: 197.5336323 | M150: 15473041 | N150: 15539941 | O150: 66900 | P150: 30 | Q150: 0.43 | R150: -0.03253796095
A151: 215 | B151: North Brookfield | C151: 1 | D151: 596 | E151: 609 | F151: 13 | G151: 6199650.47 | H151: 6455723.84 | I151: 420.4817242 | J151: 2812304 | K151: 2876546 | L151: 105.4876847 | M151: 4254298 | N151: 4272568 | O151: 18270 | P151: 30 | Q151: 0.43 | R151: 0.02181208054
A152: 217 | B152: North Reading | C152: 1 | D152: 2426 | E152: 2427 | F152: 1 | G152: 23960205.84 | H152: 24928075.44 | I152: 398.7925831 | J152: 19895201 | K152: 20565663 | L152: 276.2513391 | M152: 7010717 | N152: 7083527 | O152: 72810 | P152: 30 | Q152: 1.04 | R152: 0.0004122011542
A153: 218 | B153: Norton | C153: 1 | D153: 2517 | E153: 2524 | F153: 7 | G153: 24605799.04 | H153: 25627290.71 | I153: 404.7114393 | J153: 16138030 | K153: 16534896 | L153: 157.2369255 | M153: 12678650 | N153: 12754400 | O153: 75750 | P153: 30.0118859 | Q153: 0.6 | R153: 0.002781088598
A154: 219 | B154: Norwell | C154: 1 | D154: 2145 | E154: 2147 | F154: 2 | G154: 20701123.01 | H154: 21451763.51 | I154: 349.6229655 | J154: 17167966 | K154: 17697705 | L154: 246.7345133 | M154: 3600307.944 | N154: 3754059 | O154: 153751.0563 | P154: 71.612043 | Q154: 4.27 | R154: 0.0009324009324
A155: 220 | B155: Norwood | C155: 1 | D155: 3442 | E155: 3431 | F155: -11 | G155: 36598980.15 | H155: 38062700.29 | I155: 426.616188 | J155: 30391526 | K155: 31401727 | L155: 294.4334013 | M155: 6207454 | N155: 6660973 | O155: 453519 | P155: 132.1827456 | Q155: 7.31 | R155: -0.003195816386
A156: 221 | B156: Oak Bluffs | C156: 1 | D156: 459 | E156: 425 | F156: -34 | G156: 4614741.475 | H156: 4566695.89 | I156: -113.048435 | J156: 3814150 | K156: 3767524 | L156: -109.7082353 | M156: 924052 | N156: 936832 | O156: 12780 | P156: 30.07058824 | Q156: 1.38 | R156: -0.07407407407
A157: 223 | B157: Orange | C157: 1 | D157: 615 | E157: 614 | F157: -1 | G157: 6801556.001 | H157: 6913169.46 | I157: 181.7808786 | J157: 1896835 | K157: 1888769 | L157: -13.13680782 | M157: 5240609 | N157: 5259029 | O157: 18420 | P157: 30 | Q157: 0.35 | R157: -0.00162601626
A158: 224 | B158: Orleans | C158: 1 | D158: 220 | E158: 229 | F158: 9 | G158: 2186402.508 | H158: 2345513.34 | I158: 694.8071246 | J158: 1814388 | K158: 1934693 | L158: 525.349345 | M158: 372015 | N158: 410820 | O158: 38805 | P158: 169.4541485 | Q158: 10.43 | R158: 0.04090909091
A159: 226 | B159: Oxford | C159: 1 | D159: 1785 | E159: 1767 | F159: -18 | G159: 18658337.21 | H159: 19085189.02 | I159: 241.5686531 | J159: 8970216 | K159: 9428164 | L159: 259.1669496 | M159: 10461744 | N159: 10514754 | O159: 53010 | P159: 30 | Q159: 0.51 | R159: -0.01008403361
A160: 227 | B160: Palmer | C160: 1 | D160: 1495 | E160: 1471 | F160: -24 | G160: 15937384.12 | H160: 16355731.32 | I160: 284.396468 | J160: 6595198 | K160: 6739159 | L160: 97.8660775 | M160: 10829000 | N160: 10873130 | O160: 44130 | P160: 30 | Q160: 0.41 | R160: -0.01605351171
A161: 229 | B161: Peabody | C161: 1 | D161: 5892 | E161: 5882 | F161: -10 | G161: 63749465.75 | H161: 65184413.38 | I161: 243.9557337 | J161: 45449042 | K161: 46771496 | L161: 224.8306698 | M161: 19247212 | N161: 19423672 | O161: 176460 | P161: 30 | Q161: 0.92 | R161: -0.001697216565
A162: 230 | B162: Pelham | C162: 1 | D162: 81 | E162: 83 | F162: 2 | G162: 830020.5818 | H162: 859407.46 | I162: 354.0587739 | J162: 620333 | K162: 668413 | L162: 579.2771084 | M162: 230581 | N162: 233071 | O162: 2490 | P162: 30 | Q162: 1.08 | R162: 0.02469135802
A163: 231 | B163: Pembroke | C163: 1 | D163: 3005 | E163: 2902 | F163: -103 | G163: 30076801.77 | H163: 30098844.63 | I163: 7.595748237 | J163: 18988785 | K163: 19889115 | L163: 310.2446589 | M163: 13434662.3 | N163: 13521752 | O163: 87089.69596 | P163: 30.01023293 | Q163: 0.65 | R163: -0.03427620632
A164: 234 | B164: Petersham | C164: 1 | D164: 70 | E164: 70 | F164: 0 | G164: 716629.186 | H164: 772220.59 | I164: 794.162914 | J164: 573272 | K164: 581489 | L164: 117.3857143 | M164: 431323 | N164: 433423 | O164: 2100 | P164: 30 | Q164: 0.49 | R164: 0
A165: 236 | B165: Pittsfield | C165: 1 | D165: 6026 | E165: 6009 | F165: -17 | G165: 68570957.77 | H165: 70785982.7 | I165: 368.6178942 | J165: 28025316 | K165: 28120602 | L165: 15.85721418 | M165: 40545642 | N165: 42665381 | O165: 2119739 | P165: 352.7606923 | Q165: 5.23 | R165: -0.00282110853
A166: 238 | B166: Plainville | C166: 1 | D166: 701 | E166: 692 | F166: -9 | G166: 6634193.243 | H166: 6762343.24 | I166: 185.1878568 | J166: 4712959 | K166: 4806288 | L166: 134.8684971 | M166: 2885980.596 | N166: 2906741 | O166: 20760.40399 | P166: 30.0005838 | Q166: 0.72 | R166: -0.01283880171
A167: 239 | B167: Plymouth | C167: 1 | D167: 8212 | E167: 8107 | F167: -105 | G167: 88349686.53 | H167: 89987228.59 | I167: 201.9911262 | J167: 62464730 | K167: 64955484 | L167: 307.2349821 | M167: 25884957 | N167: 26128197 | O167: 243240 | P167: 30.00370051 | Q167: 0.94 | R167: -0.01278616659
A168: 240 | B168: Plympton | C168: 1 | D168: 221 | E168: 217 | F168: -4 | G168: 2208586.389 | H168: 2244246.152 | I168: 164.3307041 | J168: 1594867 | K168: 1618008 | L168: 106.640553 | M168: 727660.2589 | N168: 734170.2589 | O168: 6510 | P168: 30 | Q168: 0.89 | R168: -0.01809954751
A169: 242 | B169: Provincetown | C169: 1 | D169: 115 | E169: 121 | F169: 6 | G169: 1300534.311 | H169: 1343546.56 | I169: 355.473134 | J169: 1090154 | K169: 1102452 | L169: 101.6363636 | M169: 283851 | N169: 287481 | O169: 3630 | P169: 30 | Q169: 1.28 | R169: 0.05217391304
A170: 243 | B170: Quincy | C170: 1 | D170: 9321 | E170: 9435 | F170: 114 | G170: 112465494 | H170: 117829054.2 | I170: 568.4748476 | J170: 87353305 | K170: 90433969 | L170: 326.5144674 | M170: 27043396.29 | N170: 28364113.48 | O170: 1320717.193 | P170: 139.9806246 | Q170: 4.88 | R170: 0.01223044738
A171: 244 | B171: Randolph | C171: 1 | D171: 3266 | E171: 3319 | F171: 53 | G171: 37100685.94 | H171: 39313342.31 | I171: 666.6635637 | J171: 20804157 | K171: 21866831 | L171: 320.1789696 | M171: 16296529 | N171: 17446511 | O171: 1149982 | P171: 346.4844833 | Q171: 7.06 | R171: 0.01622780159
A172: 246 | B172: Reading | C172: 1 | D172: 4191 | E172: 4077 | F172: -114 | G172: 40268620.86 | H172: 40642299.14 | I172: 91.65520829 | J172: 33365588 | K172: 33529896 | L172: 40.30120186 | M172: 10591299 | N172: 10713609 | O172: 122310 | P172: 30 | Q172: 1.15 | R172: -0.02720114531
A173: 248 | B173: Revere | C173: 1 | D173: 7655 | E173: 7848 | F173: 193 | G173: 88195564.57 | H173: 96064542.99 | I173: 1002.673092 | J173: 31495119 | K173: 32918306 | L173: 181.3439093 | M173: 56739156 | N173: 65040589.08 | O173: 8301433.078 | P173: 1057.776896 | Q173: 14.63 | R173: 0.02521227956
A174: 249 | B174: Richmond | C174: 1 | D174: 123 | E174: 119 | F174: -4 | G174: 1268580.5 | H174: 1277797.22 | I174: 77.45142663 | J174: 1047475 | K174: 1054183 | L174: 56.3697479 | M174: 357479 | N174: 361049 | O174: 3570 | P174: 30 | Q174: 1 | R174: -0.0325203252
A175: 250 | B175: Rochester | C175: 1 | D175: 467 | E175: 496 | F175: 29 | G175: 4319981.404 | H175: 4788761.02 | I175: 945.1201934 | J175: 2706641 | K175: 2933529 | L175: 457.4354839 | M175: 1802732 | N175: 1855232 | O175: 52500 | P175: 105.8467742 | Q175: 2.91 | R175: 0.06209850107
A176: 251 | B176: Rockland | C176: 1 | D176: 2361 | E176: 2280 | F176: -81 | G176: 25966055.37 | H176: 25871093.23 | I176: -41.65006184 | J176: 12806197 | K176: 13345423 | L176: 236.5026316 | M176: 13706495 | N176: 13774895 | O176: 68400 | P176: 30 | Q176: 0.5 | R176: -0.03430749682
A177: 252 | B177: Rockport | C177: 1 | D177: 735 | E177: 687 | F177: -48 | G177: 7549140.322 | H177: 7350864.699 | I177: -288.6108042 | J177: 6289613 | K177: 6064463 | L177: -327.7292576 | M177: 1461146 | N177: 1481756 | O177: 20610 | P177: 30 | Q177: 1.41 | R177: -0.06530612245
A178: 253 | B178: Rowe | C178: 1 | D178: 64 | E178: 54 | F178: -10 | G178: 637861.2716 | H178: 598648 | I178: -726.1716958 | J178: 530325 | K178: 493885 | L178: -674.8148148 | M178: 136715 | N178: 138335 | O178: 1620 | P178: 30 | Q178: 1.18 | R178: -0.15625
A179: 258 | B179: Salem | C179: 1 | D179: 4537 | E179: 4533 | F179: -4 | G179: 52768572.01 | H179: 54862156.09 | I179: 461.8539767 | J179: 32317455 | K179: 33573950 | L179: 277.1883962 | M179: 21736742.19 | N179: 21872762 | O179: 136019.8088 | P179: 30.00657596 | Q179: 0.63 | R179: -0.0008816398501
A180: 261 | B180: Sandwich | C180: 1 | D180: 2886 | E180: 2740 | F180: -146 | G180: 28141702.86 | H180: 27742486.25 | I180: -145.6994914 | J180: 23400169 | K180: 22887551 | L180: -187.0868613 | M180: 6989398 | N180: 7071628 | O180: 82230 | P180: 30.01094891 | Q180: 1.18 | R180: -0.05058905059
A181: 262 | B181: Saugus | C181: 1 | D181: 2678 | E181: 2685 | F181: 7 | G181: 27708148.93 | H181: 28856877.78 | I181: 427.8319736 | J181: 23048854 | K181: 23763905 | L181: 266.3132216 | M181: 5569152.018 | N181: 5649702.018 | O181: 80550 | P181: 30 | Q181: 1.45 | R181: 0.002613890963
A182: 263 | B182: Savoy | C182: 1 | D182: 60 | E182: 58 | F182: -2 | G182: 634366.3495 | H182: 668959.3 | I182: 596.430181 | J182: 316323 | K182: 357593 | L182: 711.5517241 | M182: 512309 | N182: 514049 | O182: 1740 | P182: 30 | Q182: 0.34 | R182: -0.03333333333
A183: 264 | B183: Scituate | C183: 1 | D183: 2932 | E183: 2899 | F183: -33 | G183: 28537003.2 | H183: 29192076.88 | I183: 225.9653954 | J183: 23614603 | K183: 24083464 | L183: 161.7319765 | M183: 5434351 | N183: 5521321 | O183: 86970 | P183: 30 | Q183: 1.6 | R183: -0.01125511596
A184: 265 | B184: Seekonk | C184: 1 | D184: 1912 | E184: 2004 | F184: 92 | G184: 18642353.39 | H184: 20162615.93 | I184: 758.614043 | J184: 14172922 | K184: 14723649 | L184: 274.8138723 | M184: 5143574.974 | N184: 5454099 | O184: 310524.0262 | P184: 154.9521089 | Q184: 6.04 | R184: 0.04811715481
A185: 266 | B185: Sharon | C185: 1 | D185: 3401 | E185: 3458 | F185: 57 | G185: 33110463.78 | H185: 34930860.25 | I185: 526.4304413 | J185: 27317316 | K185: 28416519 | L185: 317.8724696 | M185: 7240547 | N185: 7344287 | O185: 103740 | P185: 30 | Q185: 1.43 | R185: 0.01675977654
A186: 269 | B186: Sherborn | C186: 1 | D186: 415 | E186: 404 | F186: -11 | G186: 3806638.946 | H186: 3863587.521 | I186: 140.9618199 | J186: 3143918 | K186: 3181825 | L186: 93.82920792 | M186: 662721 | N186: 681763 | O186: 19042 | P186: 47.13366337 | Q186: 2.87 | R186: -0.0265060241
A187: 271 | B187: Shrewsbury | C187: 1 | D187: 6039 | E187: 6044 | F187: 5 | G187: 58194036.86 | H187: 60487338.45 | I187: 379.4344121 | J187: 44655044 | K187: 47137864 | L187: 410.790867 | M187: 19706038 | N187: 19887358 | O187: 181320 | P187: 30 | Q187: 0.92 | R187: 0.0008279516476
A188: 272 | B188: Shutesbury | C188: 1 | D188: 116 | E188: 118 | F188: 2 | G188: 1157848.557 | H188: 1166902.03 | I188: 76.72435106 | J188: 680124 | K188: 669164 | L188: -92.88135593 | M188: 623336 | N188: 626876 | O188: 3540 | P188: 30 | Q188: 0.57 | R188: 0.01724137931
A189: 273 | B189: Somerset | C189: 1 | D189: 1804 | E189: 1792 | F189: -12 | G189: 17125371.88 | H189: 17732666.67 | I189: 338.8921839 | J189: 9582995 | K189: 9557082 | L189: -14.46037946 | M189: 7542377 | N189: 8175585 | O189: 633208 | P189: 353.3526786 | Q189: 8.4 | R189: -0.006651884701
A190: 274 | B190: Somerville | C190: 1 | D190: 5353 | E190: 5278 | F190: -75 | G190: 64130648.11 | H190: 65998570.13 | I190: 353.9071661 | J190: 53229236 | K190: 54448820 | L190: 231.0693444 | M190: 20170688 | N190: 20329028 | O190: 158340 | P190: 30 | Q190: 0.79 | R190: -0.01401083505
A191: 275 | B191: Southampton | C191: 1 | D191: 492 | E191: 480 | F191: -12 | G191: 4863203.523 | H191: 4914639.39 | I191: 107.158056 | J191: 3146804 | K191: 3298766 | L191: 316.5875 | M191: 2522746 | N191: 2537146 | O191: 14400 | P191: 30 | Q191: 0.57 | R191: -0.0243902439
A192: 276 | B192: Southborough | C192: 1 | D192: 1235 | E192: 1213 | F192: -22 | G192: 11409894.39 | H192: 11677611.93 | I192: 220.7069624 | J192: 9486965 | K192: 9634030 | L192: 121.2407255 | M192: 2914531 | N192: 2950921 | O192: 36390 | P192: 30 | Q192: 1.25 | R192: -0.01781376518
A193: 277 | B193: Southbridge | C193: 1 | D193: =VLOOKUP(A193,aidcalc,17) -> 2380 | E193: =VLOOKUP(A193,aidcalc,18) -> 2314 | F193: =E193-D193 -> -66 | G193: =VLOOKUP(A193,aidcalc,4) -> 28503932.08 | H193: =VLOOKUP(A193,aidcalc,6) -> 28731938.28 | I193: =(H193-G193)/$E193 -> 98.53336037 | J193: =SUMIF(dist1755,A193,pynetmin) -> 7316033 | K193: =VLOOKUP(A193,aidcalc,7) -> 7510318 | L193: =(K193-J193)/$E193 -> 83.96067416 | M193: 21187899 | N193: 21257319 | O193: =N193-M193 -> 69420 | P193: =(N193-M193)/$E193 -> 30 | Q193: 0.33 | R193: -0.02773109244
A194: 278 | B194: South Hadley | C194: 1 | D194: 1900 | E194: 1917 | F194: 17 | G194: 19637074.33 | H194: 20537051.94 | I194: 469.4718878 | J194: 12896757 | K194: 13237650 | L194: 177.8262911 | M194: 7933784 | N194: 7991294 | O194: 57510 | P194: 30 | Q194: 0.72 | R194: 0.008947368421
A195: 281 | B195: Springfield | C195: 1 | D195: 29533 | E195: 29670 | F195: 137 | G195: 370375982.6 | H195: 383693958 | I195: 448.8700838 | J195: 37357582 | K195: 38246693 | L195: 29.96666667 | M195: 333018401 | N195: 345447265 | O195: 12428864 | P195: 418.9034041 | Q195: 3.73 | R195: 0.004638878543
A196: 284 | B196: Stoneham | C196: 1 | D196: 2425 | E196: 2404 | F196: -21 | G196: 24538424.86 | H196: 25266909.4 | I196: 303.0301772 | J196: 20290210 | K196: 20845200 | L196: 230.8610649 | M196: 4248215 | N196: 4421709 | O196: 173494 | P196: 72.16888519 | Q196: 4.08 | R196: -0.008659793814
A197: 285 | B197: Stoughton | C197: 1 | D197: 3651 | E197: 3714 | F197: 63 | G197: 38830414.52 | H197: 41181929 | I197: 633.1487569 | J197: 23973760 | K197: 25335924 | L197: 366.7646742 | M197: 15439562 | N197: 15846005 | O197: 406443 | P197: 109.4353796 | Q197: 2.63 | R197: 0.01725554643
A198: 287 | B198: Sturbridge | C198: 1 | D198: 871 | E198: 870 | F198: -1 | G198: 8170415.968 | H198: 8423098.59 | I198: 290.4397958 | J198: 4697967 | K198: 4848123 | L198: 172.5931034 | M198: 3795214 | N198: 3821314 | O198: 26100 | P198: 30 | Q198: 0.69 | R198: -0.001148105626
A199: 288 | B199: Sudbury | C199: 1 | D199: 2788 | E199: 2713 | F199: -75 | G199: 25474395.71 | H199: 25690225.1 | I199: 79.55377486 | J199: 21173624 | K199: 21194436 | L199: 7.67121268 | M199: 4829178 | N199: 4910568 | O199: 81390 | P199: 30 | Q199: 1.69 | R199: -0.0269010043
A200: 289 | B200: Sunderland | C200: 1 | D200: 197 | E200: 192 | F200: -5 | G200: 2030461.998 | H200: 2072735.75 | I200: 220.1757903 | J200: 1547169 | K200: 1562671 | L200: 80.73958333 | M200: 861528 | N200: 867288 | O200: 5760 | P200: 30 | Q200: 0.67 | R200: -0.02538071066
A201: 290 | B201: Sutton | C201: 1 | D201: 1422 | E201: 1388 | F201: -34 | G201: 13414412.03 | H201: 13539897.42 | I201: 90.40734038 | J201: 9713548 | K201: 9968231 | L201: 183.4891931 | M201: =VLOOKUP(A201,disthist,46) -> 5398395 | N201: =VLOOKUP(A201,aidcalc,36) -> 5440035 | O201: 41640 | P201: 30 | Q201: =ROUND(IF(G201>0,(N201-M201)*100/M201,100),2) -> 0.77 | R201: -0.02390998594
A202: 291 | B202: Swampscott | C202: 1 | D202: 2119 | E202: 2126 | F202: 7 | G202: 20655963.82 | H202: 21383228.15 | I202: 342.0810607 | J202: 17159833 | K202: 17641164 | L202: 226.4021637 | M202: 3496131 | N202: 3742064 | O202: 245933 | P202: 115.6787394 | Q202: 7.03 | R202: =F202/D202 -> 0.003303445021
A203: 292 | B203: Swansea | C203: 1 | D203: 2049 | E203: 2080 | F203: 31 | G203: 20221515.14 | H203: 21190611.53 | I203: 465.9117247 | J203: 12930499 | K203: 13387790 | L203: 219.8514423 | M203: 7389327 | N203: 8081352.938 | O203: 692025.9381 | P203: 332.7047779 | Q203: 9.37 | R203: 0.01512933138
... 131 more rows

Sheet Rates
A3: Massachusetts Department of Elementary and Secondary Education
A4: Office of School Finance
B5: 2018-06-05
A6: ="Foundation Budget Rates Per Pupil, "& CYr &" Chapter 70" -> Foundation Budget Rates Per Pupil, FY19 Chapter 70
C8: Administration | D8: Instructional Leadership | E8: Teachers | F8: Other Teaching Services | G8: Professional Development | H8: Instructional Materials, Equipment & Technology | I8: Guidance & Psychological Services | J8: Pupil Services | K8: Operations & Maintenance | L8: Employee Benefits & Fixed Charges | M8: Special Education Tuition | N8: Total, All Categories
A10: 1 | B10: Pre-School | C10: 188.89 | D10: 341.14 | E10: 1564.22 | F10: 401.18 | G10: 61.86 | H10: 226.4 | I10: 113.81 | J10: 45.26 | K10: 434.37 | L10: 481.69 | M10: 0 | N10: 3858.82
A11: 2 | B11: Kindergarten-Half | C11: 188.89 | D11: 341.14 | E11: 1564.22 | F11: 401.18 | G11: 61.86 | H11: 226.4 | I11: 113.81 | J11: 45.26 | K11: 434.37 | L11: 481.69 | M11: 0 | N11: 3858.82
A12: 3 | B12: Kindergarten-Full | C12: 377.76 | D12: 682.27 | E12: 3128.44 | F12: 802.38 | G12: 123.78 | H12: 452.8 | I12: 227.65 | J12: 90.57 | K12: 868.72 | L12: 963.36 | M12: 0 | N12: 7717.73
A13: 4 | B13: Elementary | C13: 377.76 | D13: 682.27 | E13: 3128.4 | F13: 802.38 | G13: 123.8 | H13: 452.8 | I13: 227.65 | J13: 135.84 | K13: 868.72 | L13: 963.4 | M13: 0 | N13: 7763.02
A14: 5 | B14: Junior/Middle | C14: 377.76 | D14: 682.27 | E14: 2753.01 | F14: 577.59 | G14: 134.21 | H14: 452.8 | I14: 303.02 | J14: 221.89 | K14: 941.81 | L14: 979.63 | M14: 0 | N14: 7423.99
A15: 6 | B15: High School | C15: 377.76 | D15: 682.27 | E15: 4048.52 | F15: 480.85 | G15: 130.13 | H15: 724.48 | I15: 379.85 | J15: 511.66 | K15: 913.19 | L15: 892.16 | M15: 0 | N15: 9140.87
A16: 7 | B16: Vocational | C16: 377.76 | D16: 682.27 | E16: 6882.53 | F16: 480.85 | G16: 215.14 | H16: 1267.83 | I16: 379.85 | J16: 511.66 | K16: 1709.06 | L16: 1330.21 | M16: 0 | N16: 13837.16
A17: 8 | B17: Special Ed-In School | C17: 2607.21 | D17: 0 | E17: 8603.13 | F17: 8032.63 | G17: 415.01 | H17: 362.24 | I17: 0 | J17: 0 | K17: 2912.38 | L17: 3371.83 | M17: 0 | N17: 26304.43
A18: 9 | B18: Special Ed-Tuitioned Out | C18: 2607.21 | D18: 0 | E18: 0 | F18: 39.83 | G18: 0 | H18: 0 | I18: 0 | J18: 0 | K18: 0 | L18: 0 | M18: 24754.08 | N18: 27401.12
A19: 10 | B19: Limited English PK | C19: 44.69 | D19: 78.21 | E19: 536.31 | F19: 78.21 | G19: 22.35 | H19: 55.87 | I19: 33.52 | J19: 11.17 | K19: 134.08 | L19: 122.91 | M19: 0 | N19: 1117.32
A20: 11 | B20: Limited English K Half Time | C20: 44.69 | D20: 78.21 | E20: 536.31 | F20: 78.21 | G20: 22.35 | H20: 55.87 | I20: 33.52 | J20: 11.17 | K20: 134.08 | L20: 122.91 | M20: 0 | N20: 1117.32
A21: 12 | B21: Limited English K Full | C21: 89.04 | D21: 155.82 | E21: 1090.73 | F21: 155.82 | G21: 44.52 | H21: 111.3 | I21: 66.78 | J21: 22.26 | K21: 267.12 | L21: 244.86 | M21: 0 | N21: 2248.25
A22: 13 | B22: Limited English Elem | C22: 88.41 | D22: 154.71 | E22: 1082.96 | F22: 154.71 | G22: 44.2 | H22: 110.51 | I22: 66.3 | J22: 22.1 | K22: 265.22 | L22: 243.11 | M22: 0 | N22: 2232.23
A23: 14 | B23: Limited English Junior/Middle | C23: 93.24 | D23: 163.17 | E23: 1142.22 | F23: 163.17 | G23: 46.62 | H23: 116.55 | I23: 69.93 | J23: 23.31 | K23: 279.73 | L23: 256.42 | M23: 0 | N23: 2354.36
A24: 15 | B24: Limited English High School | C24: 69.11 | D24: 120.94 | E24: 846.55 | F24: 120.94 | G24: 34.55 | H24: 86.38 | I24: 51.83 | J24: 17.28 | K24: 207.32 | L24: 190.04 | M24: 0 | N24: 1744.94
A25: 16 | B25: Limited English Vocational | C25: 60.61 | D25: 106.06 | E25: 742.45 | F25: 106.06 | G25: 30.3 | H25: 75.76 | I25: 45.46 | J25: 15.15 | K25: 181.82 | L25: 166.67 | M25: 0 | N25: 1530.34
A26: 17 | B26: Low Income 1 | C26: 0 | D26: 0 | E26: 2823.26 | F26: 0 | G26: 72.39 | H26: 0 | I26: 0 | J26: 0 | K26: 434.35 | L26: 289.57 | M26: 0 | N26: 3619.57
A27: 18 | B27: Low Income 2 | C27: 0 | D27: 0 | E27: 2854.46 | F27: 0 | G27: 73.19 | H27: 0 | I27: 0 | J27: 0 | K27: 439.15 | L27: 292.77 | M27: 0 | N27: 3659.57
A28: 19 | B28: Low Income 3 | C28: 0 | D28: 0 | E28: 2885.66 | F28: 0 | G28: 73.99 | H28: 0 | I28: 0 | J28: 0 | K28: 443.95 | L28: 295.97 | M28: 0 | N28: 3699.57
A29: 20 | B29: Low Income 4 | C29: 0 | D29: 0 | E29: 2916.86 | F29: 0 | G29: 74.79 | H29: 0 | I29: 0 | J29: 0 | K29: 448.75 | L29: 299.17 | M29: 0 | N29: 3739.57
A30: 21 | B30: Low Income 5 | C30: 0 | D30: 0 | E30: 2948.06 | F30: 0 | G30: 75.59 | H30: 0 | I30: 0 | J30: 0 | K30: 453.55 | L30: 302.37 | M30: 0 | N30: 3779.57
A31: 22 | B31: Low Income 6 | C31: 0 | D31: 0 | E31: 2979.26 | F31: 0 | G31: 76.39 | H31: 0 | I31: 0 | J31: 0 | K31: 458.35 | L31: 305.57 | M31: 0 | N31: 3819.57
A32: 23 | B32: Low Income 7 | C32: 0 | D32: 0 | E32: 3010.46 | F32: 0 | G32: 77.19 | H32: 0 | I32: 0 | J32: 0 | K32: 463.15 | L32: 308.77 | M32: 0 | N32: 3859.57
A33: 24 | B33: Low Income 8 | C33: 0 | D33: 0 | E33: 3041.66 | F33: 0 | G33: 77.99 | H33: 0 | I33: 0 | J33: 0 | K33: 467.95 | L33: 311.97 | M33: 0 | N33: 3899.57
A34: 25 | B34: Low Income 9 | C34: 0 | D34: 0 | E34: 3072.86 | F34: 0 | G34: 78.79 | H34: 0 | I34: 0 | J34: 0 | K34: 472.75 | L34: 315.17 | M34: 0 | N34: 3939.57
A35: 26 | B35: Low Income 10 | C35: 0 | D35: 0 | E35: 3104.06 | F35: 0 | G35: 79.59 | H35: 0 | I35: 0 | J35: 0 | K35: 477.55 | L35: 318.37 | M35: 0 | N35: 3979.57
B37: FY19 Foundation Budget Rates (Inflation set at 2.64%)

Sheet Townwide Contributions
A1: 1 | B1: 2 | C1: 3 | D1: 4 | E1: From DOR, 1/5/2018 2015 income 5 | F1: 6 | G1: 7 | H1: 8 | I1: 9 | J1: 10 | K1: 11 | L1: 12 | M1: c70fy18 13 | N1: 14 | O1: 15 | P1: 16 | Q1: 17 | R1: 18 | S1: 19 | T1: 20 | U1: 21 | V1: 22 | W1: 23 | X1: 24 | Y1: 25 | Z1: 26 | AA1: 27 | AB1: 28 | AC1: 29 | AD1: 30 | AE1: 31 | AF1: 32 | AH1: Gov 1/3/18 3.5%
B2: Return to Index | C2: 1. Calculation of effort goal (target local share) | M2: 2. Calculation of annual increments toward goal (required local contribution) | Y2: Analysis of Gap Closing
B3: More about the data | R3: Increments | S3: Thresholds
D4: property percentage | F4: income percentage | N4: Version | R4: =parameters!C18 -> 0.01 | S4: =parameters!C16 -> 2.5 | U4: Effort Reduction | AF4: -0.05
D5: =parameters!C29 -> 0.003676015467 | F5: =parameters!C30 -> 0.01430572684 | N5: =mrgfvers -> 1 | R5: =parameters!C19 -> 0.02 | S5: =parameters!C17 -> 7.5 | U5: =effortred -> 1 | AF5: -0.1
I6: maximum | J6: target local | M6: required | P6: preliminary | R6: percentage | S6: dollar | AF6: 0.02
D7: local effort | E7: DOR total | F7: local effort | G7: combined | I7: local contribution | J7: contribution | K7: target | M7: local | O7: preliminary | P7: contribution | Q7: shortfall | R7: increment | S7: increment | U7: excess effort | V7: required | Y7: Before | Z7: After implementation | AF7: 0.01 | AH7: 1 | AI7: 2 | AJ7: 3 | AK7: 4
C8: total | D8: from property | E8: income | F8: from income | G8: effort | H8: =CYr -> FY19 | I8: foundation pct= | J8: (lesser of max local | K8: local | M8: contribution | N8: mrgf | O8: contribution | P8: percentage of | Q8: from target | R8: toward | S8: toward | T8: excess | U8: times effort | V8: contribution | W8: percentage | Y8: below effort | Z8: below effort | AA8: above effort | AB8: distance from | AD8: % distance | AE8: Points | AF8: x% of | AH8: mrgf | AI8: mrgf | AJ8: mrgf | AK8: mrgf
A9: Lea | B9: District | C9: EQV 2016 | D9: wealth | E9: 2015 | F9: wealth | G9: yield | H9: foundation | I9: =maxloc -> 0.825 | J9: or effort yield) | K9: share | M9: =PYr -> FY18 | N9: =CYr -> FY19 | O9: =CYr -> FY19 | P9: foundation | Q9: local share | R9: target | S9: target | T9: effort | U9: reduction % | V9: =CYr -> FY19 | W9: of foundation | Y9: shortfall | Z9: shortfall | AA9: excess | AB9: target | AD9: from target | AE9: from target | AF9: the gap
A10: 1 | B10: Abington | C10: 1892537300 | D10: =D$5*C10 -> 6956996.386 | E10: 557268000 | F10: =E10*F$5 -> 7972123.785 | G10: =ROUND(D10+F10,0) -> 14929120 | H10: =(SUMIF(town1755,A10,found1755)/2) -> 23444578.71 | I10: =ROUND(H10*maxloc,0) -> 19341777 | J10: =MIN(G10,I10) -> 14929120 | K10: =IF(H10>0, ROUND((J10*100/H10), 2), 0) -> 63.68 | M10: 14459512 | N10: =IF($N$5=1,AH10, IF( $N$5=2,AI10, IF( $N$5=3, AJ10, IF($N$5=4, AK10, 0)))) -> 0.0445 | O10: =ROUND(M10*(1+N10),0) -> 15102960 | P10: =O10*100/H10 -> 64.4198396 | Q10: =IF(K10>P10,K10-P10,0) -> 0 | R10: =IF(AND(Q10>$S$4,Q10<=$S$5),$R$4,IF(Q10>$S$5,$R$5,0)) -> 0 | S10: =ROUND(R10*M10,0) -> 0 | T10: =MAX(O10-J10,0) -> 173840 | U10: =MAX(T10*(U$5),0) -> 173840 | V10: =MIN(H10*parameters!C$22,ROUND(O10+S10-U10,0)) -> 14929120 | W10: =V10*100/H10 -> 63.67834622 | Y10: =IF(P10<K10, O10-J10, 0) -> 0 | Z10: =MAX(J10-(O10+S10),0) -> 0 | AA10: =IF(P10>K10, V10-J10,0) -> 0 | AB10: =W10-K10 -> -0.001653782557 | AD10: =(O10-J10)/J10 -> 0.0116443568 | AE10: =P10-K10 -> 0.7398396013 | AF10: =IF(AD10<$AF$5, $AF$6*(M10), IF(AND(AD10<$AF$4, AD10>$AF$5), $AF$7*(M10), 0)) -> 0 | AH10: 0.0445
A11: 2 | B11: Acton | C11: 4306412900 | D11: 15830440.43 | E11: 1443207000 | F11: =E11*F$5 -> 20646125.12 | G11: 36476566 | H11: =(SUMIF(town1755,A11,found1755)/2) -> 47187756.17 | I11: =ROUND(H11*maxloc,0) -> 38929899 | J11: =MIN(G11,I11) -> 36476566 | K11: =IF(H11>0, ROUND((J11*100/H11), 2), 0) -> 77.3 | M11: 35792300 | N11: =IF($N$5=1,AH11, IF( $N$5=2,AI11, IF( $N$5=3, AJ11, IF($N$5=4, AK11, 0)))) -> 0.0419 | O11: =ROUND(M11*(1+N11),0) -> 37291997 | P11: =O11*100/H11 -> 79.02896859 | Q11: =IF(K11>P11,K11-P11,0) -> 0 | R11: =IF(AND(Q11>$S$4,Q11<=$S$5),$R$4,IF(Q11>$S$5,$R$5,0)) -> 0 | S11: =ROUND(R11*M11,0) -> 0 | T11: =MAX(O11-J11,0) -> 815431 | U11: 815431 | V11: =MIN(H11*parameters!C$22,ROUND(O11+S11-U11,0)) -> 36476566 | W11: =V11*100/H11 -> 77.30091228 | Y11: =IF(P11<K11, O11-J11, 0) -> 0 | Z11: 0 | AA11: =IF(P11>K11, V11-J11,0) -> 0 | AB11: =W11-K11 -> 0.0009122772027 | AD11: 0.02235492782 | AE11: =P11-K11 -> 1.728968591 | AF11: 0 | AH11: 0.0419
A12: 3 | B12: Acushnet | C12: 1105676500 | D12: 4064483.915 | E12: 308194000 | F12: =E12*F$5 -> 4408939.178 | G12: 8473423 | H12: 14741693.14 | I12: 12161897 | J12: 8473423 | K12: 57.48 | M12: 8231744 | N12: 0.0488 | O12: 8633453 | P12: 58.56486711 | Q12: 0 | R12: 0 | S12: 0 | T12: 160030 | U12: 160030 | V12: =MIN(H12*parameters!C$22,ROUND(O12+S12-U12,0)) -> 8473423 | W12: 57.4793066 | Y12: 0 | Z12: 0 | AA12: 0 | AB12: -0.0006934045931 | AD12: 0.01888611014 | AE12: 1.08486711 | AF12: 0 | AH12: 0.0488
A13: 4 | B13: Adams | C13: 497127100 | D13: 1827446.908 | E13: 183015000 | F13: 2618162.598 | G13: 4445610 | H13: 13183823.75 | I13: 10876655 | J13: 4445610 | K13: 33.72 | M13: 4304378 | N13: 0.0385 | O13: 4470097 | P13: 33.90592203 | Q13: 0 | R13: 0 | S13: 0 | T13: 24487 | U13: 24487 | V13: =MIN(H13*parameters!C$22,ROUND(O13+S13-U13,0)) -> 4445610 | W13: 33.72018684 | Y13: 0 | Z13: 0 | AA13: 0 | AB13: 0.0001868395492 | AD13: 0.005508130493 | AE13: 0.1859220289 | AF13: 0 | AH13: 0.0385
A14: 5 | B14: Agawam | C14: 2949078000 | D14: 10840856.34 | E14: 813211000 | F14: 11633574.43 | G14: 22474431 | H14: 41326070.32 | I14: 34094008 | J14: 22474431 | K14: 54.38 | M14: 22135293 | N14: 0.0332 | O14: 22870185 | P14: 55.34081712 | Q14: 0 | R14: 0 | S14: 0 | T14: 395754 | U14: 395754 | V14: =MIN(H14*parameters!C$22,ROUND(O14+S14-U14,0)) -> 22474431 | W14: 54.38317949 | Y14: 0 | Z14: 0 | AA14: 0 | AB14: 0.00317949414 | AD14: 0.01760907762 | AE14: 0.9608171232 | AF14: 0 | AH14: 0.0332
A15: 6 | B15: Alford | C15: 297724600 | D15: 1094440.234 | E15: 19837000 | F15: 283782.7033 | G15: 1378223 | H15: 275789.3386 | I15: 227526 | J15: 227526 | K15: 82.5 | M15: 175951 | N15: 0.0343 | O15: 181986 | P15: 65.98732239 | Q15: 16.51267761 | R15: 0.02 | S15: 3519 | T15: 0 | U15: 0 | V15: =MIN(H15*parameters!C$22,ROUND(O15+S15-U15,0)) -> 185505 | W15: 67.2632963 | Y15: -45540 | Z15: 42021 | AA15: 0 | AB15: -15.2367037 | AD15: -0.2001529496 | AE15: -16.51267761 | AF15: 3519.02 | AH15: 0.0343
A16: 7 | B16: Amesbury | C16: 2035493900 | D16: 7482507.058 | E16: 593207000 | F16: 8486257.302 | G16: 15968764 | H16: 24055246.1 | I16: 19845578 | J16: 15968764 | K16: 66.38 | M16: 15395280 | N16: 0.0411 | O16: 16028026 | P16: 66.63006454 | Q16: 0 | R16: 0 | S16: 0 | T16: 59262 | U16: 59262 | V16: =MIN(H16*parameters!C$22,ROUND(O16+S16-U16,0)) -> 15968764 | W16: 66.38370664 | Y16: 0 | Z16: 0 | AA16: 0 | AB16: 0.003706639008 | AD16: 0.003711120034 | AE16: 0.2500645427 | AF16: 0 | AH16: 0.0411
A17: 8 | B17: Amherst | C17: 2348821000 | D17: 8634302.324 | E17: 695780000 | F17: 9953638.621 | G17: 18587941 | H17: 24867770.31 | I17: 20515911 | J17: 18587941 | K17: 74.75 | M17: 18385964 | N17: 0.0401 | O17: 19123241 | P17: 76.89970096 | Q17: 0 | R17: 0 | S17: 0 | T17: 535300 | U17: 535300 | V17: =MIN(H17*parameters!C$22,ROUND(O17+S17-U17,0)) -> 18587941 | W17: 74.74711553 | Y17: 0 | Z17: 0 | AA17: 0 | AB17: -0.002884470721 | AD17: 0.02879824075 | AE17: 2.149700958 | AF17: 0 | AH17: 0.0401
A18: 9 | B18: Andover | C18: 7972993500 | D18: 29308847.42 | E18: 2776034000 | F18: 39713184.1 | G18: 69022032 | H18: 61095946.19 | I18: 50404156 | J18: 50404156 | K18: 82.5 | M18: 49628563 | N18: 0.0428 | O18: 51752665 | P18: 84.70719946 | Q18: 0 | R18: 0 | S18: 0 | T18: 1348509 | U18: 1348509 | V18: =MIN(H18*parameters!C$22,ROUND(O18+S18-U18,0)) -> 50404156 | W18: 82.50000064 | Y18: 0 | Z18: 0 | AA18: 0 | AB18: 6.444683436e-07 | AD18: 0.02675392482 | AE18: 2.207199459 | AF18: 0 | AH18: 0.0428
A19: 10 | B19: Arlington | C19: 9073201400 | D19: 33353228.68 | E19: 2535701000 | F19: 36275045.85 | G19: 69628275 | H19: 60068067.47 | I19: 49556156 | J19: 49556156 | K19: 82.5 | M19: 45590053 | N19: 0.0403 | O19: 47427332 | P19: 78.9559811 | Q19: 3.544018898 | R19: 0.01 | S19: 455901 | T19: 0 | U19: 0 | V19: =MIN(H19*parameters!C$22,ROUND(O19+S19-U19,0)) -> 47883233 | W19: 79.71495508 | Y19: -2128824 | Z19: 1672923 | AA19: 0 | AB19: -2.785044922 | AD19: -0.04295781134 | AE19: -3.544018898 | AF19: 0 | AH19: 0.0403
A20: 11 | B20: Ashburnham | C20: 600324900 | D20: 2206803.617 | E20: 215228000 | F20: 3078992.976 | G20: 5285797 | H20: 11901597.29 | I20: 9818818 | J20: 5285797 | K20: 44.41 | M20: 4999310 | N20: 0.0339 | O20: 5168787 | P20: 43.42935552 | Q20: 0.9806444761 | R20: 0 | S20: 0 | T20: 0 | U20: 0 | V20: =MIN(H20*parameters!C$22,ROUND(O20+S20-U20,0)) -> 5168787 | W20: 43.42935552 | Y20: -117010 | Z20: 117010 | AA20: 0 | AB20: -0.9806444761 | AD20: -0.02213668062 | AE20: -0.9806444761 | AF20: 0 | AH20: 0.0339
A21: 12 | B21: Ashby | C21: 288229500 | D21: 1059536.1 | E21: 100304000 | F21: 1434921.625 | G21: 2494458 | H21: 4245509.269 | I21: 3502545 | J21: 2494458 | K21: 58.76 | M21: 2361519 | N21: 0.0359 | O21: 2446298 | P21: 57.62083757 | Q21: 1.139162427 | R21: 0 | S21: 0 | T21: 0 | U21: 0 | V21: =MIN(H21*parameters!C$22,ROUND(O21+S21-U21,0)) -> 2446298 | W21: 57.62083757 | Y21: -48160 | Z21: 48160 | AA21: 0 | AB21: -1.139162427 | AD21: -0.01930679931 | AE21: -1.139162427 | AF21: 0 | AH21: 0.0359
A22: 13 | B22: Ashfield | C22: 241758400 | D22: 888707.6176 | E22: 45081000 | F22: 644916.4717 | G22: 1533624 | H22: 2193056.568 | I22: 1809272 | J22: 1533624 | K22: 69.93 | M22: 1544933 | N22: 0.036 | O22: 1600551 | P22: 72.98265915 | Q22: 0 | R22: 0 | S22: 0 | T22: 66927 | U22: 66927 | V22: =MIN(H22*parameters!C$22,ROUND(O22+S22-U22,0)) -> 1533624 | W22: 69.93089108 | Y22: 0 | Z22: 0 | AA22: 0 | AB22: 0.0008910839589 | AD22: 0.0436397709 | AE22: 3.052659149 | AF22: 0 | AH22: 0.036
A23: 14 | B23: Ashland | C23: 2509720800 | D23: 9225772.477 | E23: 833233000 | F23: 11920003.69 | G23: 21145776 | H23: 27512915.35 | I23: 22698155 | J23: 21145776 | K23: 76.86 | M23: 20301200 | N23: 0.0472 | O23: 21259417 | P23: 77.27068079 | Q23: 0 | R23: 0 | S23: 0 | T23: 113641 | U23: 113641 | V23: =MIN(H23*parameters!C$22,ROUND(O23+S23-U23,0)) -> 21145776 | W23: 76.85763478 | Y23: 0 | Z23: 0 | AA23: 0 | AB23: -0.002365221851 | AD23: 0.005374170236 | AE23: 0.4106807914 | AF23: 0 | AH23: 0.0472
A24: 15 | B24: Athol | C24: 673223300 | D24: 2474779.263 | E24: 226597000 | F24: 3241634.785 | G24: 5716414 | H24: 19721031.18 | I24: 16269851 | J24: 5716414 | K24: 28.99 | M24: 2845384 | N24: 0.0314 | O24: 2934729 | P24: 14.88121474 | Q24: 14.10878526 | R24: 0.02 | S24: 56908 | T24: 0 | U24: 0 | V24: =MIN(H24*parameters!C$22,ROUND(O24+S24-U24,0)) -> 2991637 | W24: 15.16977978 | Y24: -2781685 | Z24: 2724777 | AA24: 0 | AB24: -13.82022022 | AD24: -0.4866136358 | AE24: -14.10878526 | AF24: 56907.68 | AH24: 0.0314
A25: 16 | B25: Attleboro | C25: 4266596600 | D25: 15684075.09 | E25: 1382625000 | F25: 19779455.57 | G25: 35463531 | H25: 73512930.52 | I25: 60648168 | J25: 35463531 | K25: 48.24 | M25: 34240533 | N25: 0.0394 | O25: 35589610 | P25: 48.41272107 | Q25: 0 | R25: 0 | S25: 0 | T25: 126079 | U25: 126079 | V25: =MIN(H25*parameters!C$22,ROUND(O25+S25-U25,0)) -> 35463531 | W25: 48.24121518 | Y25: 0 | Z25: 0 | AA25: 0 | AB25: 0.001215183351 | AD25: 0.003555173341 | AE25: 0.1727210655 | AF25: 0 | AH25: 0.0394
A26: 17 | B26: Auburn | C26: 2042948200 | D26: 7509909.181 | E26: 551586000 | F26: 7890838.645 | G26: 15400748 | H26: 27034705.6 | I26: 22303632 | J26: 15400748 | K26: 56.97 | M26: 14832871 | N26: 0.0416 | O26: 15449918 | P26: 57.1484603 | Q26: 0 | R26: 0 | S26: 0 | T26: 49170 | U26: 49170 | V26: =MIN(H26*parameters!C$22,ROUND(O26+S26-U26,0)) -> 15400748 | W26: 56.96658297 | Y26: 0 | Z26: 0 | AA26: 0 | AB26: -0.003417025366 | AD26: 0.003192702069 | AE26: 0.1784603019 | AF26: 0 | AH26: 0.0416
A27: 18 | B27: Avon | C27: 823961800 | D27: 3028896.321 | E27: 147040000 | F27: 2103514.075 | G27: 5132410 | H27: 7247159.265 | I27: 5978906 | J27: 5132410 | K27: 70.82 | M27: 4926654 | N27: 0.0602 | O27: 5223239 | P27: 72.07291587 | Q27: 0 | R27: 0 | S27: 0 | T27: 90829 | U27: 90829 | V27: =MIN(H27*parameters!C$22,ROUND(O27+S27-U27,0)) -> 5132410 | W27: 70.819611 | Y27: 0 | Z27: 0 | AA27: 0 | AB27: -0.0003890001331 | AD27: 0.01769714423 | AE27: 1.25291587 | AF27: 0 | AH27: 0.0602
A28: 19 | B28: Ayer | C28: 1102998400 | D28: 4054639.178 | E28: 261294000 | F28: 3738000.589 | G28: 7792640 | H28: 10770616.36 | I28: 8885758 | J28: 7792640 | K28: 72.35 | M28: 7363897 | N28: 0.0565 | O28: 7779957 | P28: 72.23316419 | Q28: 0.1168358108 | R28: 0 | S28: 0 | T28: 0 | U28: 0 | V28: =MIN(H28*parameters!C$22,ROUND(O28+S28-U28,0)) -> 7779957 | W28: 72.23316419 | Y28: -12683 | Z28: 12683 | AA28: 0 | AB28: -0.1168358108 | AD28: -0.001627561391 | AE28: -0.1168358108 | AF28: 0 | AH28: 0.0565
A29: 20 | B29: Barnstable | C29: 13665091900 | D29: 50233089.18 | E29: 1677855000 | F29: 24002935.31 | G29: 74236024 | H29: 63416637.65 | I29: 52318726 | J29: 52318726 | K29: 82.5 | M29: 50531433 | N29: 0.0455 | O29: 52830613 | P29: 83.30718082 | Q29: 0 | R29: 0 | S29: 0 | T29: 511887 | U29: 511887 | V29: =MIN(H29*parameters!C$22,ROUND(O29+S29-U29,0)) -> 52318726 | W29: 82.4999999 | Y29: 0 | Z29: 0 | AA29: 0 | AB29: -9.885388863e-08 | AD29: 0.009784011178 | AE29: 0.8071808224 | AF29: 0 | AH29: 0.0455
A30: 21 | B30: Barre | C30: 431266200 | D30: 1585341.221 | E30: 138210000 | F30: 1977194.507 | G30: 3562536 | H30: 9071219.226 | I30: 7483756 | J30: 3562536 | K30: 39.27 | M30: 3546550 | N30: 0.0365 | O30: 3675999 | P30: 40.52375881 | Q30: 0 | R30: 0 | S30: 0 | T30: 113463 | U30: 113463 | V30: =MIN(H30*parameters!C$22,ROUND(O30+S30-U30,0)) -> 3562536 | W30: 39.27295671 | Y30: 0 | Z30: 0 | AA30: 0 | AB30: 0.002956712286 | AD30: 0.03184894132 | AE30: 1.253758806 | AF30: 0 | AH30: 0.0365
A31: 22 | B31: Becket | C31: 518810500 | D31: 1907155.422 | E31: 48089000 | F31: 687948.098 | G31: 2595104 | H31: 2420842.438 | I31: 1997195 | J31: 1997195 | K31: 82.5 | M31: 1771907 | N31: 0.0321 | O31: 1828785 | P31: 75.54333035 | Q31: 6.956669654 | R31: 0.01 | S31: 17719 | T31: 0 | U31: 0 | V31: =MIN(H31*parameters!C$22,ROUND(O31+S31-U31,0)) -> 1846504 | W31: 76.27526563 | Y31: -168410 | Z31: 150691 | AA31: 0 | AB31: -6.224734369 | AD31: -0.08432326338 | AE31: -6.956669654 | AF31: 17719.07 | AH31: 0.0321
A32: 23 | B32: Bedford | C32: 3503731500 | D32: 12879771.18 | E32: 897532000 | F32: 12839847.62 | G32: 25719619 | H32: 28215049.53 | I32: 23277416 | J32: 23277416 | K32: 82.5 | M32: 22558495 | N32: 0.0553 | O32: 23805980 | P32: 84.37334117 | Q32: 0 | R32: 0 | S32: 0 | T32: 528564 | U32: 528564 | V32: =MIN(H32*parameters!C$22,ROUND(O32+S32-U32,0)) -> 23277416 | W32: 82.50000049 | Y32: 0 | Z32: 0 | AA32: 0 | AB32: 4.92213303e-07 | AD32: 0.02270715959 | AE32: 1.87334117 | AF32: 0 | AH32: 0.0553
A33: 24 | B33: Belchertown | C33: 1458257000 | D33: 5360575.286 | E33: 494255000 | F33: 7070677.019 | G33: 12431252 | H33: 25652824.11 | I33: 21163580 | J33: 12431252 | K33: 48.46 | M33: 12034426 | N33: 0.0449 | O33: 12574772 | P33: 49.01905516 | Q33: 0 | R33: 0 | S33: 0 | T33: 143520 | U33: 143520 | V33: =MIN(H33*parameters!C$22,ROUND(O33+S33-U33,0)) -> 12431252 | W33: 48.4595846 | Y33: 0 | Z33: 0 | AA33: 0 | AB33: -0.0004154031187 | AD33: 0.01154509618 | AE33: 0.559055162 | AF33: 0 | AH33: 0.0449
A34: 25 | B34: Bellingham | C34: 2306766000 | D34: 8479707.494 | E34: 576785000 | F34: 8251328.655 | G34: 16731036 | H34: 25255673.72 | I34: 20835931 | J34: 16731036 | K34: 66.25 | M34: 16328065 | N34: 0.0425 | O34: 17022008 | P34: 67.39874844 | Q34: 0 | R34: 0 | S34: 0 | T34: 290972 | U34: 290972 | V34: =MIN(H34*parameters!C$22,ROUND(O34+S34-U34,0)) -> 16731036 | W34: 66.24664297 | Y34: 0 | Z34: 0 | AA34: 0 | AB34: -0.003357033639 | AD34: 0.01739115259 | AE34: 1.148748443 | AF34: 0 | AH34: 0.0425
A35: 26 | B35: Belmont | C35: 6932749000 | D35: 25484892.55 | E35: 2085819000 | F35: 29839156.85 | G35: 55324049 | H35: 45907675.2 | I35: 37873832 | J35: 37873832 | K35: 82.5 | M35: 35263181 | N35: 0.0408 | O35: 36701919 | P35: 79.94723941 | Q35: 2.55276059 | R35: 0.01 | S35: 352632 | T35: 0 | U35: 0 | V35: =MIN(H35*parameters!C$22,ROUND(O35+S35-U35,0)) -> 37054551 | W35: 80.7153724 | Y35: -1171913 | Z35: 819281 | AA35: 0 | AB35: -1.784627596 | AD35: -0.03094255157 | AE35: -2.55276059 | AF35: 0 | AH35: 0.0408
A36: 27 | B36: Berkley | C36: 772614400 | D36: 2840142.484 | E36: 235981000 | F36: 3375879.725 | G36: 6216022 | H36: 12216391.94 | I36: 10078523 | J36: 6216022 | K36: 50.88 | M36: 6023222 | N36: 0.0369 | O36: 6245479 | P36: 51.12376087 | Q36: 0 | R36: 0 | S36: 0 | T36: 29457 | U36: 29457 | V36: =MIN(H36*parameters!C$22,ROUND(O36+S36-U36,0)) -> 6216022 | W36: 50.88263403 | Y36: 0 | Z36: 0 | AA36: 0 | AB36: 0.002634029115 | AD36: 0.004738882842 | AE36: 0.2437608705 | AF36: 0 | AH36: 0.0369
A37: 28 | B37: Berlin | C37: 600240900 | D37: 2206494.832 | E37: 154765000 | F37: 2214025.814 | G37: 4420521 | H37: 3999484.725 | I37: 3299575 | J37: 3299575 | K37: 82.5 | M37: 3205340 | N37: 0.0591 | O37: 3394776 | P37: 84.88033418 | Q37: 0 | R37: 0 | S37: 0 | T37: 95201 | U37: 95201 | V37: =MIN(H37*parameters!C$22,ROUND(O37+S37-U37,0)) -> 3299575 | W37: 82.50000255 | Y37: 0 | Z37: 0 | AA37: 0 | AB37: 2.547107641e-06 | AD37: 0.02885250373 | AE37: 2.380334178 | AF37: 0 | AH37: 0.0591
A38: 29 | B38: Bernardston | C38: 216985900 | D38: 797643.5244 | E38: 60913000 | F38: 871404.739 | G38: 1669048 | H38: 2966712.576 | I38: 2447538 | J38: 1669048 | K38: 56.26 | M38: 1612576 | N38: 0.0416 | O38: 1679659 | P38: 56.61684296 | Q38: 0 | R38: 0 | S38: 0 | T38: 10611 | U38: 10611 | V38: =MIN(H38*parameters!C$22,ROUND(O38+S38-U38,0)) -> 1669048 | W38: 56.25917433 | Y38: 0 | Z38: 0 | AA38: 0 | AB38: -0.0008256662623 | AD38: 0.006357516381 | AE38: 0.3568429561 | AF38: 0 | AH38: 0.0416
A39: 30 | B39: Beverly | C39: 6145554700 | D39: 22591154.13 | E39: 1745748000 | F39: 24974194.02 | G39: 47565348 | H39: 48564636.98 | I39: 40065826 | J39: 40065826 | K39: 82.5 | M39: 39360839 | N39: 0.0408 | O39: 40966761 | P39: 84.35512658 | Q39: 0 | R39: 0 | S39: 0 | T39: 900935 | U39: 900935 | V39: =MIN(H39*parameters!C$22,ROUND(O39+S39-U39,0)) -> 40065826 | W39: 82.50000101 | Y39: 0 | Z39: 0 | AA39: 0 | AB39: 1.008344853e-06 | AD39: 0.0224863703 | AE39: 1.855126581 | AF39: 0 | AH39: 0.0408
A40: 31 | B40: Billerica | C40: 6134145700 | D40: 22549214.47 | E40: 1531796000 | F40: 21913455.15 | G40: 44462670 | H40: 60056112.51 | I40: 49546293 | J40: 44462670 | K40: 74.04 | M40: 42695329 | N40: 0.0493 | O40: 44800209 | P40: 74.59725102 | Q40: 0 | R40: 0 | S40: 0 | T40: 337539 | U40: 337539 | V40: =MIN(H40*parameters!C$22,ROUND(O40+S40-U40,0)) -> 44462670 | W40: 74.03521164 | Y40: 0 | Z40: 0 | AA40: 0 | AB40: -0.004788355719 | AD40: 0.00759151441 | AE40: 0.5572510203 | AF40: 0 | AH40: 0.0493
A41: 32 | B41: Blackstone | C41: 894520200 | D41: 3288270.09 | E41: 271352000 | F41: 3881887.589 | G41: 7170158 | H41: 14794343.99 | I41: 12205334 | J41: 7170158 | K41: 48.47 | M41: 6951173 | N41: 0.038 | O41: 7215318 | P41: 48.77078702 | Q41: 0 | R41: 0 | S41: 0 | T41: 45160 | U41: 45160 | V41: =MIN(H41*parameters!C$22,ROUND(O41+S41-U41,0)) -> 7170158 | W41: 48.46553523 | Y41: 0 | Z41: 0 | AA41: 0 | AB41: -0.004464769468 | AD41: 0.006298327038 | AE41: 0.3007870215 | AF41: 0 | AH41: 0.038
A42: 33 | B42: Blandford | C42: 174294800 | D42: 640710.3805 | E42: 36451000 | F42: 521458.049 | G42: 1162168 | H42: 1278379.991 | I42: 1054663 | J42: 1054663 | K42: 82.5 | M42: 1083006 | N42: 0.0319 | O42: 1117554 | P42: 87.41954723 | Q42: 0 | R42: 0 | S42: 0 | T42: 62891 | U42: 62891 | V42: =MIN(H42*parameters!C$22,ROUND(O42+S42-U42,0)) -> 1054663 | W42: 82.49996147 | Y42: 0 | Z42: 0 | AA42: 0 | AB42: -3.853127936e-05 | AD42: 0.0596313704 | AE42: 4.919547229 | AF42: 0 | AH42: 0.0319
